Workbook

Sheet INPUT
A1: =IF(H7=1,"TEST PERIOD WITH RIDERS","TEST PERIOD WITHOUT RIDERS") -> TEST PERIOD WITH RIDERS
A4: Input Areas in Grey
B6: =IF(H$7=1,"12 Months Projected with Riders","12 Months Projected without Riders") -> 12 Months Projected with Riders
H7: 1
B8: DUKE ENERGY KENTUCKY, INC.
B9: AUTOMATED RATE CASE FILING SYSTEM
B10: FOR THE TWELVE MONTHS ENDED March 31, 2021
B11: CASE NO. 2019-00271
B12: SERVICE: | D12: (ELECTRIC SERVICE)
B13: DATA: ____ BASE PERIOD __X__FORECASTED PERIOD | I13: Number of Pages
B14: TYPE OF FILING: _X_ ORIGINAL ___UPDATED ___ REVISED | I14: Schedule M-2.2 | J14: 22
B15: ANNUALIZED TEST YEAR REVENUES AT PROPOSED VS. MOST CURRENT RATES | I15: Schedule M-2.3 | J15: 23
C17: CURRENT | D17: PROPOSED
B18: FUEL COSTS: (BFC EFFECTIVE DEC 2006)
B19: FUEL ADJUSTMENT CLAUSE (FAC): | C19: 0.000681 | D19: 0.000681 | E19: $ PER KWH | J19: not used
B20: BASE FUEL COST: | C20: 0.023837 | D20: 0.023837 | E20: $ PER KWH
B22: RIDER MSR-E: (EFFECTIVE MAY 2010)
B23: RESIDENTIAL | C23: 0 | D23: 0 | E23: $ PER KWH | F23: CANCELLED & WITHDRAWN
B24: DISTRIBUTION | C24: 0 | D24: 0 | E24: $ PER KWH
B25: TRANSMISSION | C25: 0 | D25: 0 | E25: $ PER KWH
B26: LIGHTING | C26: 0 | D26: 0 | E26: $ PER KWH
B28: RIDER DSMR: (EFFECTIVE OCTOBER 1, 2018) | F28: Enter Here
B29: RESIDENTIAL | C29: =IF($H$7=1,F29,0) -> 0.003035 | D29: 0.003035 | E29: $ PER KWH | F29: 0.003035 | G29: =+F29 -> 0.003035 | I29: 0.1 | J29: =IF($H$7=1,I29,0) -> 0.1 | K29: HEA $ / MONTH
B30: DISTRIBUTION | C30: 0.005091 | D30: 0.005091 | E30: $ PER KWH | F30: 0.005091 | G30: =+F30 -> 0.005091
B31: TRANSMISSION | C31: 0.000463 | D31: 0.000463 | E31: $ PER KWH | F31: 0.000463 | G31: =+F31 -> 0.000463
B33: RIDER PSM : (EFFECTIVE MAY 1, 2019)
B34: All Rates | C34: =IF($H$7=1,F34,0) -> -0.000163 | D34: =IF($H$7=1,G34,0) -> -0.000163 | E34: $ PER KWH | F34: -0.000163 | G34: -0.000163
B38: WITNESS: | D38: J. L. Kern
C41: CURRENT | D41: PROPOSED
B42: RATE RS: (EFFECTIVE OCTOBER 2, 2018)
B43: CUSTOMER CHARGE | C43: 11 | D43: ='Proposed Rates'!C14 -> 14 | E43: $ PER MONTH | G43: =D43/C43-1 -> 0.2727272727
B44: ENERGY CHARGE | C44: 0.07165 | D44: ='Proposed Rates'!C20 -> 0.084272 | E44: $ PER KWH | G44: =D44/C44-1 -> 0.1761618981
B46: RATE DS: (EFFECTIVE OCTOBER 2, 2018)
B47: CUSTOMER CHARGE
B48: Single Phase | C48: 17.14 | D48: ='Proposed Rates'!G18 -> 15 | E48: $ PER MONTH | G48: =D48/C48-1 -> -0.1248541424
B49: Three Phase | C49: 34.28 | D49: ='Proposed Rates'!G19 -> 30 | E49: $ PER MONTH | G49: =D49/C49-1 -> -0.1248541424
B50: ENERGY CHARGE
B51: First 6000 | C51: 0.0802 | D51: ='Proposed Rates'!G32 -> 0.091238 | E51: $ PER KWH | G51: =D51/C51-1 -> 0.1376309227
B52: Next 300 KWH/KW | C52: 0.049232 | D52: ='Proposed Rates'!G36 -> 0.056008 | E52: $ PER KWH | G52: =D52/C52-1 -> 0.1376340591
B53: Additional | C53: 0.040317 | D53: ='Proposed Rates'!G40 -> 0.045866 | E53: $ PER KWH | G53: =D53/C53-1 -> 0.1376342486
B54: DEMAND CHARGE
B55: First 15 KW | C55: 0 | D55: 0 | E55: $ PER KW
B56: Additional | C56: 8.25 | D56: ='Proposed Rates'!G25 -> 9.38 | E56: $ PER KW | G56: =D56/C56-1 -> 0.136969697
B57: CAP RATES
B58: NON-CHURCH | C58: 0.236915 | D58: ='Proposed Rates'!G44 -> 0.269521 | E58: $ PER KWH | G58: =D58/C58-1 -> 0.1376274191
B59: CHURCH | C59: 0.145445 | D59: ='Proposed Rates'!G48 -> 0.165461 | E59: $ PER KWH | G59: =D59/C59-1 -> 0.1376190312
B61: RIDER LM: (EFFECTIVE APRIL 14, 2018)
B62: CUSTOMER CHARGE
B63: DS (NO INTERVAL DATA RECORDER) | C63: 5 | D63: 5 | E63: $ PER MONTH | G63: =D63/C63-1 -> 0
B64: DS & DP (INTERVAL DATA RECORDER) | C64: 5 | D64: 5 | E64: $ PER MONTH | G64: 0
B66: RATE DT: (EFFECTIVE OCTOBER 2, 2018)
B67: CUSTOMER CHARGE
B68: Single Phase | C68: 63.5 | D68: ='Proposed Rates'!O17 -> 65 | E68: $ PER MONTH | G68: 0.02362204724
B69: Three Phase | C69: 127 | D69: ='Proposed Rates'!O16 -> 130 | E69: $ PER MONTH | G69: 0.02362204724
B70: Primary Voltage | C70: 138 | D70: ='Proposed Rates'!O23 -> 138 | E70: $ PER MONTH | G70: 0
B71: ENERGY CHARGE
B72: Summer On-Peak | C72: 0.04345 | D72: ='Proposed Rates'!O30 -> 0.048712 | E72: $ PER KWH | G72: 0.1211047181
B73: Winter On-Peak | C73: 0.041479 | D73: ='Proposed Rates'!O31 -> 0.046499 | E73: $ PER KWH | G73: 0.121025097
B74: Off-Peak | C74: 0.035582 | D74: ='Proposed Rates'!O32 -> 0.03989 | E74: $ PER KWH | G74: 0.1210724524
B75: DEMAND CHARGE
B76: Summer On-Peak | C76: 13.78 | D76: ='Proposed Rates'!O33 -> 15.45 | E76: $ PER KW | G76: 0.1211901306
B77: Summer Off-Peak | C77: 1.24 | D77: ='Proposed Rates'!O34 -> 1.39 | E77: $ PER KW | G77: 0.1209677419
B78: Winter On-Peak | C78: 13.04 | D78: ='Proposed Rates'!O35 -> 14.62 | E78: $ PER KW | G78: 0.1211656442
B79: Winter Off-Peak | C79: 1.24 | D79: ='Proposed Rates'!O36 -> 1.39 | E79: $ PER KW | G79: 0.1209677419
B80: Primary Service Discount First 1000 KW | C80: -0.7 | D80: ='Proposed Rates'!O37 -> -0.78 | E80: $ PER KW | G80: 0.1142857143
B81: Primary Service Discount Additional KW | C81: -0.54 | D81: ='Proposed Rates'!O38 -> -0.61 | E81: $ PER KW | G81: 0.1296296296
B83: RATE EH: (EFFECTIVE APRIL 14, 2018)
B84: CUSTOMER CHARGE
B85: Single Phase | C85: 17.14 | D85: ='Proposed Rates'!W17 -> 15 | E85: $ PER MONTH | G85: -0.1248541424
B86: Three Phase | C86: 34.28 | D86: ='Proposed Rates'!W16 -> 30 | E86: $ PER MONTH | G86: -0.1248541424
B87: Primary Voltage | C87: 117 | D87: ='Proposed Rates'!W19 -> 117 | E87: $ PER MONTH | G87: 0
B88: ENERGY CHARGE
B89: All KWH | C89: 0.062202 | D89: ='Proposed Rates'!W22 -> 0.070482 | E89: $ PER KWH | G89: 0.1331146908
B90: DEMAND CHARGE
B91: All KW | C91: 0 | D91: 0 | E91: $ PER KW
B93: RATE SP: (EFFECTIVE APRIL 14, 2018)
B94: CUSTOMER CHARGE
B95: Single Phase | C95: 17.14 | D95: ='Proposed Rates'!AA17 -> 15 | E95: $ PER MONTH | G95: -0.1248541424
B96: ENERGY CHARGE
B97: All KWH | C97: 0.09613 | D97: ='Proposed Rates'!AA22 -> 0.111052 | E97: $ PER KWH | G97: 0.1552272964
B98: DEMAND CHARGE
B99: All KW | C99: 0 | D99: 0 | E99: $ PER KW
B101: RATE GSFL: (EFFECTIVE APRIL 14, 2018)
B102: MINIMUM BILL
B103: Minimum Bill | C103: 2.98 | D103: ='Proposed Rates'!AE18 -> 3.36 | E103: $ PER MONTH | G103: 0.1275167785
B104: ENERGY CHARGE
B105: Loads Between 540 to 720 Hours Use per Month | C105: 0.082708 | D105: ='Proposed Rates'!AE19 -> 0.093089 | E105: $ PER KWH | G105: 0.125513856
B106: Loads < 540 Hours Use per Month | C106: 0.09524 | D106: ='Proposed Rates'!AE20 -> 0.107269 | E106: $ PER KWH | G106: 0.126301974
B107: DEMAND CHARGE
B108: All KW | C108: 0 | D108: 0 | E108: $ PER KW
B110: RATE DP: (EFFECTIVE APRIL 14, 2018)
B111: CUSTOMER CHARGE
B112: Primary Voltage | C112: 117 | D112: ='Proposed Rates'!AJ19 -> 117 | E112: $ PER MONTH | G112: 0
B113: ENERGY CHARGE
B114: First 300 KWH/KW | C114: 0.051092 | D114: ='Proposed Rates'!AJ32 -> 0.058203 | E114: $ PER KWH | G114: 0.1391803022
B115: Additional | C115: 0.043219 | D115: ='Proposed Rates'!AJ33 -> 0.049212 | E115: $ PER KWH | G115: 0.1386658646
B116: Cap Rate | C116: 0.241312 | D116: ='Proposed Rates'!AJ34 -> 0.274836 | E116: $ PER KWH | G116: 0.1389238828
B117: DEMAND CHARGE
B118: All KW | C118: 7.92 | D118: ='Proposed Rates'!AJ31 -> 9.02 | E118: $ PER KW | G118: 0.1388888889
B120: RATE TT: (EFFECTIVE OCTOBER 2, 2018)
B121: CUSTOMER CHARGE
B122: Customer Charge | C122: 500 | D122: ='Proposed Rates'!AO18 -> 500 | E122: $ PER MONTH | G122: =D122/C122-1 -> 0
B123: ENERGY CHARGE
B124: On-Peak Summer | C124: 0.049051 | D124: ='Proposed Rates'!AO34 -> 0.053207 | E124: $ PER KWH | G124: 0.0847281401
B125: On-Peak Winter | C125: 0.046826 | D125: ='Proposed Rates'!AO35 -> 0.050794 | G125: 0.08473924743
B126: Off-Peak | C126: 0.040168 | D126: ='Proposed Rates'!AO36 -> 0.043571 | G126: 0.08471917945
B127: DEMAND CHARGE
B128: Summer On-Peak | C128: 8.07 | D128: ='Proposed Rates'!AO30 -> 8.75 | E128: $ PER KW | G128: 0.08426270136
B129: Summer Off-Peak | C129: 1.22 | D129: ='Proposed Rates'!AO32 -> 1.32 | E129: $ PER KW | G129: 0.08196721311
B130: Winter On-Peak | C130: 6.62 | D130: ='Proposed Rates'!AO31 -> 7.18 | E130: $ PER KW | G130: 0.08459214502
B131: Winter Off-Peak | C131: 1.22 | D131: =D129 -> 1.32 | E131: $ PER KW | G131: 0.08196721311
B133: RATE RTP-M: (EFFECTIVE June 1, 2012) (WITHDRAW & CANCEL)
B134: CUSTOMER CHARGE
B135: Secondary Voltage | C135: 0 | E135: $ PER MONTH
B136: Primary Voltage | C136: 0 | E136: $ PER MONTH
B137: Transmission Voltage | C137: 0 | E137: $ PER MONTH
B138: ENERGY DELIVERY CHARGE
B139: Secondary Voltage | C139: 0 | E139: $ PER KWH
B140: Primary Voltage | C140: 0 | E140: $ PER KWH
B141: Transmission Voltage | C141: 0 | E141: $ PER KWH
B142: ANSCILLARY SERVICES CHARGE
B143: Secondary Voltage | C143: 0 | E143: $ PER KWH
B144: Primary Voltage | C144: 0 | E144: $ PER KWH
B145: Transmission Voltage | C145: 0 | E145: $ PER KWH
B146: COMMODITY CHARGE
B147: Distribution Service | C147: 0 | E147: $ PER KWH
B148: Primary Service | C148: 0 | E148: $ PER KWH
B149: Transmission Service | C149: 0 | E149: $ PER KWH
B151: RATE RTP: (EFFECTIVE APRIL 14, 2018)
B152: PROGRAM CHARGE
B153: Program Charge | C153: 183 | D153: 183 | E153: $ PER MONTH | G153: =D153/C153-1 -> 0
B154: ENERGY DELIVERY CHARGE
B155: Secondary Voltage | C155: 0.009104 | D155: ='RTP Worksheet'!F16 -> 0.018391 | E155: $ PER KWH | G155: 1.020101054
B156: Primary Voltage | C156: 0.00785 | D156: ='RTP Worksheet'!I16 -> 0.015184 | E156: $ PER KWH | G156: 0.9342675159
B157: Transmission Voltage | C157: 0.003576 | D157: ='RTP Worksheet'!J16 -> 0.006602 | E157: $ PER KWH | G157: 0.846196868
B158: COMMODITY CHARGE
B159: Distribution Service (DS-Secondary) | C159: =0.046597-C155 -> 0.037493 | D159: =C159 -> 0.037493 | E159: $ PER KWH | G159: 0
B160: Primary Service (DT-Secondary) | C160: =0.038566-C155 -> 0.029462 | D160: =C160 -> 0.029462 | E160: $ PER KWH | G160: 0
B161: Transmission Service | C161: =0.035662-C157 -> 0.032086 | D161: =C161 -> 0.032086 | E161: $ PER KWH | G161: 0
B163: RIDER ESM : (EFFECTIVE APR 1, 2018) | F163: Enter Here
B164: Residential | C164: =IF($H$7=1,F164,0) -> 0.1176 | D164: =IF($H$7=1,G164,0) -> 0.1176 | E164: % of REV | F164: 0.1176 | G164: 0.1176
B165: Non Residential | C165: =IF($H$7=1,F165,0) -> 0.1816 | D165: =IF($H$7=1,G165,0) -> 0.1816 | E165: % of REV | F165: 0.1816 | G165: 0.1816
B193: RIDER NAMES:
B194: HOME ENERGY ASSISTANCE (HEA)
B195: DEMAND SIDE MANAGEMENT RIDER (DSMR)
B196: ENVIRONMENTAL SURCHARGE MECHANISM RIDER (ESM)
B197: FUEL ADJUSTMENT CLAUSE (FAC)
B198: PROFIT SHARING MECHANISM (PSM)
B202: RATE WS:
B203: Energy | C203: 0.047852 | D203: =C203 -> 0.047852 | E203: $ PER KWH | G203: =D203/C203-1 -> 0

Sheet PRINT
B1: =+INPUT!A1 -> TEST PERIOD WITH RIDERS
B6: SCHEDULE M-2.2 (CURRENT RATES) | L6: SCHEDULE M-2.3 (PROPOSED RATES)

Sheet SCH M
A1: =NAME -> DUKE ENERGY KENTUCKY, INC.
A2: =CASE_NO -> CASE NO. 2019-00271
A3: REVENUES AT PRESENT AND PROPOSED RATES
A4: =DATE -> FOR THE TWELVE MONTHS ENDED March 31, 2021
A5: =SERVICE -> (ELECTRIC SERVICE)
A7: =DATA_PERIOD -> DATA: ____ BASE PERIOD __X__FORECASTED PERIOD | I7: SCHEDULE M
A8: =TYPE -> TYPE OF FILING: _X_ ORIGINAL ___UPDATED ___ REVISED | I8: PAGE 1 OF 1
A9: WORK PAPER REFERENCE NO(S).: | I9: WITNESS:
A10: =TIME -> 12 Months Projected with Riders | I10: =WIT -> J. L. Kern
A11: =INPUT!B5 -> 
E15: REVENUE AT | G15: REVENUE AT | I15: REVENUE | K15: % OF
A16: LINE | C16: RATE | E16: PRESENT | G16: PROPOSED | I16: CHANGE | K16: REVENUE
A17: NO. | C17: CLASSIFICATION | E17: RATES | G17: RATES | I17: (AMOUNT) | K17: CHANGE
C18: (A) | E18: (B) | G18: (C) | I18: (D=C-B) | K18: (E=D / B)
E19: ($) | G19: ($) | I19: ($)
C20: RESIDENTIAL
A21: 1 | C21: RESIDENTIAL SERVICE (RS) | E21: ='Rate RS'!AN79 -> 142725329 | G21: ='Rate RS'!R38 -> 166037161 | I21: =G21-E21 -> 23311832 | K21: =IF(E21=0,"-",ROUND(I21/E21,4)) -> 0.1633
A22: 2 | C22: TOTAL RESIDENTIAL | E22: =E21 -> 142725329 | G22: =G21 -> 166037161 | I22: =I21 -> 23311832 | K22: =IF(E22=0,"-",ROUND(I22/E22,4)) -> 0.1633
C24: DISTRIBUTION
A25: 3 | C25: DISTRIBUTION SERVICE (DS) | E25: ='Rate DS'!AO105 -> 107120615 | G25: ='Rate DS'!R50 -> 118382878 | I25: =G25-E25 -> 11262263 | K25: =IF(E25=0,"-",ROUND(I25/E25,4)) -> 0.1051
A26: 4 | C26: DT PRIMARY TIME OF DAY (DT-PRI) | E26: ='Rate DT-Pri'!AO133 -> 35609809 | G26: ='Rate DT-Pri'!R63 -> 39188453 | I26: 3578644 | K26: 0.1005
A27: 5 | C27: DT SECONDARY TIME OF DAY (DT-SEC) | E27: ='Rate DT-Sec'!AO129 -> 55679009 | G27: ='Rate DT-Sec'!R61 -> 61272189 | I27: =G27-E27 -> 5593180 | K27: =IF(E27=0,"-",ROUND(I27/E27,4)) -> 0.1005
A28: 6 | C28: ELECTRIC SPACE HEATING (EH) | E28: ='Rate EH'!AO91 -> 714500 | G28: ='Rate EH'!R43 -> 789863 | I28: =G28-E28 -> 75363 | K28: 0.1055
A29: 7 | C29: SPORTS SERVICE (SP) | E29: ='Rate SP GSFL'!AO101 -> 35533 | G29: ='Rate SP GSFL'!R38 -> 39290 | I29: =G29-E29 -> 3757 | K29: 0.1057
A30: 8 | C30: SMALL FIXED LOADS (GSFL) | E30: ='Rate SP GSFL'!AO120 -> 684691 | G30: ='Rate SP GSFL'!R57 -> 757059 | I30: =G30-E30 -> 72368 | K30: 0.1057
A31: 9 | C31: PRIMARY VOLTAGE (DP) | E31: ='Rate DP'!AO98 -> 1618001 | G31: ='Rate DP'!R46 -> 1803392 | I31: 185391 | K31: 0.1146
A32: 10 | C32: TOTAL DISTRIBUTION | E32: =SUM(E25:E31) -> 201462158 | G32: =SUM(G25:G31) -> 222233124 | I32: =SUM(I25:I31) -> 20770966 | K32: 0.1031
C34: TRANSMISSION
A35: 11 | C35: TIME OF DAY (TT) | E35: ='Rate TT'!AO120 -> 15048103 | G35: ='Rate TT'!R56 -> 16174592 | I35: =G35-E35 -> 1126489 | K35: =IF(E35=0,"-",ROUND(I35/E35,4)) -> 0.0749
A36: 12 | C36: TOTAL TRANSMISSION | E36: =SUM(E35) -> 15048103 | G36: =SUM(G35) -> 16174592 | I36: =SUM(I35) -> 1126489 | K36: =IF(E36=0,"-",ROUND(I36/E36,4)) -> 0.0749
C38: REAL TIME PRICING
A39: 13 | C39: DT PRIMARY-REAL TIME PRICING (DT-RTP PRI) | E39: ='Rate DT RTP-P'!AO82 -> 0 | G39: ='Rate DT RTP-P'!R38 -> 0 | I39: =G39-E39 -> 0 | K39: =IF(E39=0,"-",ROUND(I39/E39,4)) -> -
A40: 14 | C40: DT SECONDARY-REAL TIME PRICING (DT-RTP SEC) | E40: ='Rate DT RTP-S'!AO83 -> 75246 | G40: ='Rate DT RTP-S'!R39 -> 90205 | I40: =G40-E40 -> 14959 | K40: =IF(E40=0,"-",ROUND(I40/E40,4)) -> 0.1988
A41: 15 | C41: DS-REAL TIME PRICING (DS-RTP) | E41: ='Rate DS RTP'!AO83 -> 49438 | G41: ='Rate DS RTP'!R39 -> 56946 | I41: =G41-E41 -> 7508 | K41: =IF(E41=0,"-",ROUND(I41/E41,4)) -> 0.1519
A42: 16 | C42: TT-REAL TIME PRICING (TT-RTP) | E42: ='Rate TT RTP'!AO85 -> 526469 | G42: ='Rate TT RTP'!R39 -> 570332 | I42: =G42-E42 -> 43863 | K42: =IF(E42=0,"-",ROUND(I42/E42,4)) -> 0.0833
A43: 17 | C43: TOTAL REAL TIME PRICING | E43: =SUM(E39:E42) -> 651153 | G43: =SUM(G39:G42) -> 717483 | I43: =SUM(I39:I42) -> 66330 | K43: =IF(E43=0,"-",ROUND(I43/E43,4)) -> 0.1019
C45: LIGHTING
A46: 18 | C46: STREET LIGHTING (SL) | E46: ='Rate SL'!AO429 -> 1541102 | G46: ='Rate SL'!R209 -> 1705304 | I46: =G46-E46 -> 164202 | K46: =IF(E46=0,"-",ROUND(I46/E46,4)) -> 0.1065
A47: 19 | C47: TRAFFIC LIGHTING (TL) | E47: ='Rate TL'!AO98 -> 80436 | G47: ='Rate TL'!R47 -> 89339 | I47: 8903 | K47: 0.1107
A48: 20 | C48: UNMETERED OUTDOOR LIGHTING (UOLS) | E48: ='Rate UOLS'!AO63 -> 197059 | G48: ='Rate UOLS'!R28 -> 219328 | I48: 22269 | K48: 0.113
A49: 21 | C49: NON STANDARD STREET LIGHTING (NSU) | E49: ='Rate NSU'!AO95 -> 79931 | G49: ='Rate NSU'!R45 -> 88381 | I49: 8450 | K49: 0.1057
A50: 22 | C50: CUST OWNED STREET LIGHTING SERVICE (SC) | E50: ='Rate SC'!AO145 -> 4056 | G50: ='Rate SC'!R72 -> 4515 | I50: 459 | K50: 0.1132
A51: 23 | C51: OVERHEAD EQUIV STREET LIGHTING SERVICE (SE) | E51: ='Rate SE'!AO108 -> 226920 | G51: ='Rate SE'!R52 -> 251044 | I51: 24124 | K51: 0.1063
A52: 24 | C52: LED OUTDOOR LIGHTING (LED) | E52: =+'Rate LED'!AO354 -> 0 | G52: =+'Rate LED'!R133 -> 0 | I52: 0 | K52: -
A53: 25 | C53: TOTAL LIGHTING | E53: =SUM(E46:E52) -> 2129504 | G53: =SUM(G46:G52) -> 2357911 | I53: =SUM(I46:I52) -> 228407 | K53: 0.1073
A55: 26 | C55: INTERDEPARTMENTAL | E55: ='SCH M-2.2'!V56 -> 58828 | G55: ='SCH M-2.3'!R56 -> 66205 | I55: =G55-E55 -> 7377 | K55: =IF(E55=0,"-",ROUND(I55/E55,4)) -> 0.1254
A56: 27 | C56: SPECIAL CONTRACTS | E56: =+'SCH M-2.2'!V62 -> 16848 | G56: ='SCH M-2.3'!R62 -> 18961 | I56: =G56-E56 -> 2113 | K56: =IF(E56=0,"-",ROUND(I56/E56,4)) -> 0.1254
A58: 28 | C58: TOTAL RETAIL REVENUE | E58: =E53+E43+E36+E32+E22+E55+E56 -> 362091923 | G58: =G53+G43+G36+G32+G22+G55+G56 -> 407605437 | I58: =G58-E58 -> 45513514 | K58: =IF(E58=0,"-",ROUND(I58/E58,4)) -> 0.1257
C60: OTHER MISCELLANEOUS REVENUE
A61: 29 | C61: PJM AND TRANSMISSION | E61: ='SCH M-2.2'!V57 -> 169500 | G61: ='SCH M-2.3'!R57 -> 169500 | I61: =G61-E61 -> 0 | K61: =IF(E61=0,"-",ROUND(I61/E61,4)) -> 0
A62: 30 | C62: BAD CHECK CHARGES | E62: ='SCH M-2.2'!V58 -> 40932 | G62: =+'SCH M-2.3'!R58 -> 40932 | I62: 0 | K62: 0
A63: 31 | C63: RECONNECTION CHARGES | E63: ='SCH M-2.2'!V59 -> 45600 | G63: =+'SCH M-2.3'!R59 -> 61738 | I63: 16138 | K63: 0.3539
A64: 32 | C64: POLE AND LINE ATTACHMENTS | E64: ='SCH M-2.2'!V60 -> 215037 | G64: =+'SCH M-2.3'!R60 -> 319833 | I64: 104796 | K64: =IF(E64=0,"-",ROUND(I64/E64,4)) -> 0.4873
A65: 33 | C65: RENTS | E65: ='SCH M-2.2'!V61 -> 1058004 | G65: =+'SCH M-2.3'!R61 -> 1058004 | I65: 0 | K65: 0
A66: 34 | C66: OTHER MISCELLANEOUS | E66: ='SCH M-2.2'!V63 -> 165980 | G66: =+'SCH M-2.3'!R63 -> 165980 | I66: 0 | K66: 0
A67: 35 | C67: TOTAL MISCELLANEOUS REVENUE | E67: =SUM(E61:E66) -> 1695053 | G67: =SUM(G61:G66) -> 1815987 | I67: =SUM(I61:I66) -> 120934 | K67: 0.0713
A69: 36 | C69: TOTAL REVENUE | E69: =E67+E58 -> 363786976 | G69: =G67+G58 -> 409421424 | I69: =I67+I58 -> 45634448 | K69: =IF(E69=0,"-",ROUND(I69/E69,4)) -> 0.1254

Sheet SCH M-2.1
A1: =NAME -> DUKE ENERGY KENTUCKY, INC.
A2: =CASE_NO -> CASE NO. 2019-00271
A3: TEST PERIOD REVENUES AT CURRENT RATES
A4: =DATE -> FOR THE TWELVE MONTHS ENDED March 31, 2021
A5: =SERVICE -> (ELECTRIC SERVICE)
A6: =DATA_PERIOD -> DATA: ____ BASE PERIOD __X__FORECASTED PERIOD | R6: SCHEDULE M-2.1
A7: =TYPE -> TYPE OF FILING: _X_ ORIGINAL ___UPDATED ___ REVISED | R7: PAGE 1 OF 1
A8: WORK PAPER REFERENCE NO(S).: | R8: WITNESS:
A9: =TIME -> 12 Months Projected with Riders | R9: =WIT -> J. L. Kern
A10: =INPUT!B5 -> 
A11: TEST PERIOD REVENUES AT CURRENT RATES
J13: TEST PERIOD | N13: % OF REV
J14: REVENUE LESS | N14: TO TOTAL | R14: TEST PERIOD
A15: LINE | C15: RATE | D15: CLASS / | F15: CUSTOMER | J15: FAC | L15: AVERAGE | N15: EXCLUSIVE OF | P15: FAC | R15: REVENUE | T15: % OF REV
A16: NO. | C16: CODE | D16: DESCRIPTION | F16: BILLS | H16: SALES | J16: REVENUE | L16: RATE | N16: FAC | P16: REVENUE | R16: TOTAL | T16: TO TOTAL
C17: (A) | D17: (B) | F17: (C) | H17: (D) | J17: (E) | L17: (F=E/D) | N17: (G) | P17: (H) | R17: (I) | T17: (J)
H19: (KWH) | J19: ($) | L19: (¢/KWH) | N19: (%) | P19: ($) | R19: ($) | T19: (%)
A20: 1 | C20: RS | D20: RESIDENTIAL SERV | F20: ='Rate RS'!X79 -> 1567592 | H20: ='Rate RS'!Z79 -> 1474334998 | J20: ='Rate RS'!AD79 -> 141721307 | L20: =IF(H20=0,"-",ROUND(J20/H20*100,6)) -> 9.612558 | N20: =IF(ABS(J20/$J$48*100)<0.005,"- ",ROUND(J20/$J$48*100,2)) -> 39.25 | P20: ='Rate RS'!AL79 -> 1004022 | R20: ='Rate RS'!AN79 -> 142725329 | T20: =IF(ABS(R20/$R$48*100)<0.005,"- ",ROUND(R20/$R$48*100,2)) -> 39.23
A21: 2 | C21: DS | D21: DISTRIBUTION SERV | F21: ='Rate DS'!Y105 -> 157764 | H21: ='Rate DS'!AA105 -> 1098580606 | J21: ='Rate DS'!AE105 -> 106372482 | L21: 9.68272 | N21: =IF(ABS(J21/$J$48*100)<0.005,"- ",ROUND(J21/$J$48*100,2)) -> 29.46 | P21: ='Rate DS'!AM105 -> 748133 | R21: ='Rate DS'!AO105 -> 107120615 | T21: 29.45
A22: 3 | C22: DT-PRI | D22: TIME OF DAY | F22: ='Rate DT-Pri'!Y133 -> 455 | H22: ='Rate DT-Pri'!AA133 -> 479737379 | J22: ='Rate DT-Pri'!AE133 -> 35283108 | L22: 7.354671 | N22: 9.77 | P22: ='Rate DT-Pri'!AM133 -> 326701 | R22: ='Rate DT-Pri'!AO133 -> 35609809 | T22: 9.79
A23: 4 | C23: DT-SEC | D23: TIME OF DAY | F23: ='Rate DT-Sec'!Y129 -> 1876 | H23: ='Rate DT-Sec'!AA129 -> 691028749 | J23: ='Rate DT-Sec'!AE129 -> 55208418 | L23: 7.989308 | N23: 15.29 | P23: ='Rate DT-Sec'!AM129 -> 470591 | R23: =J23+P23 -> 55679009 | T23: 15.31
A24: 5 | C24: EH | D24: ELEC SPACE HEATING | F24: ='Rate EH'!Y91 -> 481 | H24: ='Rate EH'!AA91 -> 9323104 | J24: ='Rate EH'!AE91 -> 708151 | L24: 7.595657 | N24: 0.2 | P24: ='Rate EH'!AM91 -> 6349 | R24: ='Rate EH'!AO91 -> 714500 | T24: 0.2
A25: 6 | C25: SP | D25: SPORTS SERV | F25: ='Rate SP GSFL'!Y101 -> 180 | H25: ='Rate SP GSFL'!AA101 -> 277600 | J25: ='Rate SP GSFL'!AE101 -> 35344 | L25: 12.731988 | N25: 0.01 | P25: ='Rate SP GSFL'!AM101 -> 189 | R25: ='Rate SP GSFL'!AO101 -> 35533 | T25: 0.01
A26: 7 | C26: GSFL | D26: SMALL FIXED LOADS | F26: ='Rate SP GSFL'!Y120 -> 540 | H26: ='Rate SP GSFL'!AA120 -> 6000613 | J26: ='Rate SP GSFL'!AE120 -> 680605 | L26: 11.342258 | N26: 0.19 | P26: ='Rate SP GSFL'!AM120 -> 4086 | R26: =J26+P26 -> 684691 | T26: 0.19
A27: 8 | C27: DP | D27: PRIMARY VOLTAGE | F27: ='Rate DP'!Y98 -> 120 | H27: ='Rate DP'!AA98 -> 19761251 | J27: ='Rate DP'!AE98 -> 1604544 | L27: 8.119648 | N27: 0.44 | P27: ='Rate DP'!AM98 -> 13457 | R27: ='Rate DP'!AO98 -> 1618001 | T27: 0.44
A28: 9 | C28: TT | D28: TIME OF DAY | F28: ='Rate TT'!Y120 -> 155 | H28: ='Rate TT'!AA120 -> 229203341 | J28: ='Rate TT'!AE120 -> 14892016 | L28: 6.497294 | N28: 4.12 | P28: ='Rate TT'!AM120 -> 156087 | R28: ='Rate TT'!AO120 -> 15048103 | T28: 4.14
A29: 10 | C29: DT-RTP PRI | D29: REAL TIME PRICING | F29: ='Rate DT RTP-P'!Y82 -> 0 | H29: ='Rate DT RTP-P'!AA82 -> 0 | J29: ='Rate DT RTP-P'!AE82 -> 0 | L29: =IF(H29=0,"-",ROUND(J29/H29*100,6)) -> - | N29: - | P29: ='Rate DT RTP-P'!AM82 -> 0 | R29: ='Rate DT RTP-P'!AO82 -> 0 | T29: -
A30: 11 | C30: DT-RTP SEC | D30: REAL TIME PRICING | F30: ='Rate DT RTP-S'!Y83 -> 24 | H30: ='Rate DT RTP-S'!AA83 -> 1610719 | J30: ='Rate DT RTP-S'!AE83 -> 75246 | L30: 4.671578 | N30: 0.02 | P30: ='Rate DT RTP-S'!AM83 -> 0 | R30: ='Rate DT RTP-S'!AO83 -> 75246 | T30: 0.02
A31: 12 | C31: DS-RTP | D31: REAL TIME PRICING | F31: ='Rate DS RTP'!Y83 -> 36 | H31: ='Rate DS RTP'!AA83 -> 808421 | J31: ='Rate DS RTP'!AE83 -> 49438 | L31: 6.115378 | N31: 0.01 | P31: ='Rate DS RTP'!AM83 -> 0 | R31: ='Rate DS RTP'!AO83 -> 49438 | T31: 0.01
A32: 13 | C32: TT-RTP | D32: REAL TIME PRICING | F32: ='Rate TT RTP'!Y85 -> 24 | H32: ='Rate TT RTP'!AA85 -> 14495300 | J32: ='Rate TT RTP'!AE85 -> 526469 | L32: 3.631998 | N32: 0.15 | P32: ='Rate TT RTP'!AM85 -> 0 | R32: ='Rate TT RTP'!AO85 -> 526469 | T32: 0.14
A33: 14 | C33: SL | D33: STREET LIGHTING | F33: ='Rate SL'!Y429 -> 135466 | H33: ='Rate SL'!AA429 -> 10548224 | J33: ='Rate SL'!AE429 -> 1533918 | L33: 14.541955 | N33: 0.42 | P33: ='Rate SL'!AM429 -> 7183 | R33: ='Rate SL'!AO429 -> 1541102 | T33: 0.42
A34: 15 | C34: TL | D34: TRAFFIC LIGHTING | F34: ='Rate TL'!Y98 -> 95904 | H34: ='Rate TL'!AA98 -> 1445796 | J34: ='Rate TL'!AE98 -> 79451 | L34: 5.495312 | N34: 0.02 | P34: ='Rate TL'!AM98 -> 985 | R34: ='Rate TL'!AO98 -> 80436 | T34: 0.02
A35: 16 | C35: UOLS | D35: UNMTRD OUTDR LIGHT | F35: ='Rate UOLS'!Y63 -> 89808 | H35: ='Rate UOLS'!AA63 -> 4739968 | J35: ='Rate UOLS'!AE63 -> 193831 | L35: 4.089289 | N35: 0.05 | P35: ='Rate UOLS'!AM63 -> 3228 | R35: ='Rate UOLS'!AO63 -> 197059 | T35: 0.05
A36: 17 | C36: NSU | D36: NON STD STREET LIGHT | F36: ='Rate NSU'!Y95 -> 9196 | H36: ='Rate NSU'!AA95 -> 449416 | J36: ='Rate NSU'!AE95 -> 79625 | L36: 17.717438 | N36: 0.02 | P36: ='Rate NSU'!AM95 -> 306 | R36: ='Rate NSU'!AO95 -> 79931 | T36: 0.02
A37: 18 | C37: SC | D37: CUST OWNED STREET LIGHTING | F37: ='Rate SC'!Y145 -> 2065 | H37: ='Rate SC'!AA145 -> 97596 | J37: ='Rate SC'!AE145 -> 3990 | L37: 4.088282 | N37: - | P37: ='Rate SC'!AM145 -> 66 | R37: ='Rate SC'!AO145 -> 4056 | T37: -
A38: 19 | C38: SE | D38: OVR HD EQUIV STREET LIGHTING | F38: ='Rate SE'!Y108 -> 25036 | H38: ='Rate SE'!AA108 -> 1493016 | J38: ='Rate SE'!AE108 -> 225903 | L38: 15.130648 | N38: 0.06 | P38: ='Rate SE'!AM108 -> 1017 | R38: ='Rate SE'!AO108 -> 226920 | T38: 0.06
A39: 20 | C39: LED | D39: LED OUTDOOR LIGHT | F39: ='Rate LED'!Y354 -> 0 | H39: ='Rate LED'!AA354 -> 0 | J39: ='Rate LED'!AC354 -> 0 | L39: - | N39: - | P39: ='Rate LED'!AM354 -> 0 | R39: ='Rate LED'!AO354 -> 0 | T39: -
A40: 21 | C40: ID01 | D40: INTERDEPARTMENTAL | F40: ='SCH M-2.2'!F56 -> 12 | H40: ='SCH M-2.2'!H56 -> 715341 | J40: ='SCH M-2.2'!L56 -> 58341 | L40: 8.155691 | N40: 0.02 | P40: ='SCH M-2.2'!T56 -> 487 | R40: ='SCH M-2.2'!V56 -> 58828 | T40: 0.02
A41: 22 | C41: IS | D41: PJM AND TRANSMISSION | F41: ='SCH M-2.2'!F57 -> 0 | H41: ='SCH M-2.2'!H57 -> 0 | J41: ='SCH M-2.2'!L57 -> 169500 | L41: =IF(H41=0,"-",ROUND(J41/H41*100,6)) -> - | N41: 0.05 | P41: ='SCH M-2.2'!T57 -> 0 | R41: ='SCH M-2.2'!V57 -> 169500 | T41: 0.05
A42: 23 | D42: BAD CHECK CHARGES | F42: ='SCH M-2.2'!F58 -> 0 | H42: ='SCH M-2.2'!H58 -> 0 | J42: ='SCH M-2.2'!L58 -> 40932 | L42: - | N42: =IF(ABS(J42/$J$48*100)<0.005,"- ",ROUND(J42/$J$48*100,2)) -> 0.01 | P42: ='SCH M-2.2'!T58 -> 0 | R42: ='SCH M-2.2'!V58 -> 40932 | T42: 0.01
A43: 24 | D43: RECONNECTION CHGS | F43: ='SCH M-2.2'!F59 -> 0 | H43: ='SCH M-2.2'!H59 -> 0 | J43: ='SCH M-2.2'!L59 -> 45600 | L43: - | N43: 0.01 | P43: ='SCH M-2.2'!T59 -> 0 | R43: ='SCH M-2.2'!V59 -> 45600 | T43: 0.01
A44: 25 | D44: POLE AND LINE ATTACHMENTS | F44: ='SCH M-2.2'!F60 -> 0 | H44: ='SCH M-2.2'!H60 -> 0 | J44: ='SCH M-2.2'!L60 -> 215037 | L44: =IF(H44=0,"-",ROUND(J44/H44*100,6)) -> - | N44: 0.06 | P44: ='SCH M-2.2'!T60 -> 0 | R44: ='SCH M-2.2'!V60 -> 215037 | T44: =IF(ABS(R44/$R$48*100)<0.005,"- ",ROUND(R44/$R$48*100,2)) -> 0.06
A45: 26 | D45: RENTS | F45: ='SCH M-2.2'!F61 -> 0 | H45: ='SCH M-2.2'!H61 -> 0 | J45: ='SCH M-2.2'!L61 -> 1058004 | L45: - | N45: 0.29 | P45: ='SCH M-2.2'!T61 -> 0 | R45: ='SCH M-2.2'!V61 -> 1058004 | T45: =IF(ABS(R45/$R$48*100)<0.005,"- ",ROUND(R45/$R$48*100,2)) -> 0.29
A46: 27 | C46: WS | D46: SPECIAL CONTRACTS | F46: ='SCH M-2.2'!F62 -> 132 | H46: ='SCH M-2.2'!H62 -> 352079 | J46: ='SCH M-2.2'!L62 -> 16608 | L46: 4.717123 | N46: - | P46: ='SCH M-2.2'!T62 -> 240 | R46: ='SCH M-2.2'!V62 -> 16848 | T46: =IF(ABS(R46/$R$48*100)<0.005,"- ",ROUND(R46/$R$48*100,2)) -> -
A47: 28 | D47: OTHER MISC | F47: ='SCH M-2.2'!F63 -> 0 | H47: ='SCH M-2.2'!H63 -> 0 | J47: ='SCH M-2.2'!L63 -> 165980 | L47: - | N47: 0.05 | P47: ='SCH M-2.2'!T63 -> 0 | R47: ='SCH M-2.2'!V63 -> 165980 | T47: =IF(ABS(R47/$R$48*100)<0.005,"- ",ROUND(R47/$R$48*100,2)) -> 0.05
A48: 29 | C48: TOTAL | F48: =SUM(F20:F47) -> 2086866 | H48: =SUM(H20:H47) -> 4045003517 | J48: =SUM(J20:J47) -> 361043848 | L48: 8.925675 | N48: 100 | P48: =SUM(P20:P47) -> 2743127 | R48: =SUM(R20:R47) -> 363786976 | T48: 100
C50: NOTE: DETAIL CONTAINED ON SCHEDULES M-2.2 AND M-2.3.

Sheet SCH M-2.2
A1: =NAME -> DUKE ENERGY KENTUCKY, INC.
A2: =CASE_NO -> CASE NO. 2019-00271
A3: =TITLE -> ANNUALIZED TEST YEAR REVENUES AT PROPOSED VS. MOST CURRENT RATES
A4: =DATE -> FOR THE TWELVE MONTHS ENDED March 31, 2021
A5: =SERVICE -> (ELECTRIC SERVICE)
A6: =DATA_PERIOD -> DATA: ____ BASE PERIOD __X__FORECASTED PERIOD | V6: SCHEDULE M-2.2
A7: =TYPE -> TYPE OF FILING: _X_ ORIGINAL ___UPDATED ___ REVISED | V7: ="PAGE 1 OF "&TEXT(Page_Num_2.2,"00") -> PAGE 1 OF 22
A8: WORK PAPER REFERENCE NO(S).: | V8: WITNESS:
A9: =TIME -> 12 Months Projected with Riders | V9: =WIT -> J. L. Kern
A10: =INPUT!B5 -> 
A11: CURRENT ANNUALIZED
L13: CURRENT | N13: % OF REV TO | P13: REVENUE | R13: % INCR IN | V13: CURRENT | X13: TOTAL
J14: MOST | L14: REVENUE LESS | N14: TOTAL LESS | P14: INCR LESS | R14: REV LESS | V14: TOTAL | X14: REVENUE
A15: LINE | C15: RATE | D15: CLASS / | F15: CUSTOMER | J15: CURRENT | L15: FAC | N15: FAC | P15: FAC REV | R15: FAC REV | T15: FAC | V15: REVENUE | X15: % INCREASE
A16: NO. | C16: CODE | D16: DESCRIPTION | F16: BILLS | H16: SALES | J16: RATES | L16: REVENUE | N16: REVENUE | P16: (F - K) | R16: (M / K) | T16: REVENUE | V16: (K + H) | X16: (M / K1)
C17: (A) | D17: (B) | F17: (C) | H17: (D) | J17: (J) | L17: (K) | N17: (L) | P17: (M) | R17: (N) | T17: (H) | V17: (K1) | X17: (O)
H19: (KWH) | J19: (¢/KWH) | L19: ($) | N19: (%) | P19: ($) | R19: (%) | T19: ($) | V19: ($) | X19: (%)
C20: RESIDENTIAL
A21: 1 | C21: RS | D21: RESIDENTIAL SERV | F21: ='Rate RS'!X79 -> 1567592 | H21: ='Rate RS'!Z79 -> 1474334998 | J21: =IF(H21=0,"-",ROUND((L21/H21)*100,6)) -> 9.612558 | L21: ='Rate RS'!AD79 -> 141721307 | N21: =ROUND((L21/L$22)*100,2) -> 100 | P21: ='Rate RS'!AH79 -> 23311832 | R21: =ROUND((P21/L21)*100,1) -> 16.4 | T21: ='Rate RS'!AL79 -> 1004022 | V21: ='Rate RS'!AN79 -> 142725329 | X21: =ROUND((P21/V21)*100,1) -> 16.3
A22: 2 | C22: TOTAL RESIDENTIAL | F22: =F21 -> 1567592 | H22: =H21 -> 1474334998 | J22: =IF(H22=0,"-",ROUND((L22/H22)*100,6)) -> 9.612558 | L22: =L21 -> 141721307 | N22: =ROUND((L22/L$66)*100,2) -> 39.25 | P22: =P21 -> 23311832 | R22: =ROUND((P22/L22)*100,1) -> 16.4 | T22: =T21 -> 1004022 | V22: =V21 -> 142725329 | X22: =ROUND((P22/V22)*100,1) -> 16.3
C24: DISTRIBUTION
A25: 3 | C25: DS | D25: DISTRIBUTION SERV | F25: ='Rate DS'!Y105 -> 157764 | H25: ='Rate DS'!AA105 -> 1098580606 | J25: =IF(H25=0,"-",ROUND((L25/H25)*100,6)) -> 9.68272 | L25: ='Rate DS'!AE105 -> 106372482 | N25: =ROUND((L25/L$32)*100,2) -> 53.21 | P25: ='Rate DS'!AI105 -> 11262263 | R25: =ROUND((P25/L25)*100,1) -> 10.6 | T25: ='Rate DS'!AM105 -> 748133 | V25: ='Rate DS'!AO105 -> 107120615 | X25: =ROUND((P25/V25)*100,1) -> 10.5
A26: 4 | C26: DT-PRI | D26: TIME OF DAY | F26: ='Rate DT-Pri'!Y133 -> 455 | H26: ='Rate DT-Pri'!AA133 -> 479737379 | J26: 7.354671 | L26: ='Rate DT-Pri'!AE133 -> 35283108 | N26: 17.65 | P26: ='Rate DT-Pri'!AI133 -> 3578644 | R26: 10.1 | T26: ='Rate DT-Pri'!AM133 -> 326701 | V26: ='Rate DT-Pri'!AO133 -> 35609809 | X26: 10
A27: 5 | C27: DT-SEC | D27: TIME OF DAY | F27: ='Rate DT-Sec'!Y129 -> 1876 | H27: ='Rate DT-Sec'!AA129 -> 691028749 | J27: 7.989308 | L27: ='Rate DT-Sec'!AE129 -> 55208418 | N27: 27.62 | P27: ='Rate DT-Sec'!AI129 -> 5593180 | R27: 10.1 | T27: ='Rate DT-Sec'!AM129 -> 470591 | V27: ='Rate DT-Sec'!AO129 -> 55679009 | X27: =ROUND((P27/V27)*100,1) -> 10
A28: 6 | C28: EH | D28: ELEC SPACE HEATING | F28: ='Rate EH'!Y91 -> 481 | H28: ='Rate EH'!AA91 -> 9323104 | J28: 7.595657 | L28: ='Rate EH'!AE91 -> 708151 | N28: 0.35 | P28: ='Rate EH'!AI91 -> 75363 | R28: =ROUND((P28/L28)*100,1) -> 10.6 | T28: ='Rate EH'!AM91 -> 6349 | V28: ='Rate EH'!AO91 -> 714500 | X28: =ROUND((P28/V28)*100,1) -> 10.5
A29: 7 | C29: SP | D29: SPORTS SERV | F29: ='Rate SP GSFL'!Y101 -> 180 | H29: ='Rate SP GSFL'!AA101 -> 277600 | J29: 12.731988 | L29: ='Rate SP GSFL'!AE101 -> 35344 | N29: 0.02 | P29: ='Rate SP GSFL'!AI101 -> 3757 | R29: =ROUND((P29/L29)*100,1) -> 10.6 | T29: ='Rate SP GSFL'!AM101 -> 189 | V29: ='Rate SP GSFL'!AO101 -> 35533 | X29: =ROUND((P29/V29)*100,1) -> 10.6
A30: 8 | C30: GSFL | D30: SMALL FIXED LOADS | F30: ='Rate SP GSFL'!Y120 -> 540 | H30: ='Rate SP GSFL'!AA120 -> 6000613 | J30: 11.342258 | L30: ='Rate SP GSFL'!AE120 -> 680605 | N30: 0.34 | P30: ='Rate SP GSFL'!AI120 -> 72368 | R30: =ROUND((P30/L30)*100,1) -> 10.6 | T30: ='Rate SP GSFL'!AM120 -> 4086 | V30: ='Rate SP GSFL'!AO120 -> 684691 | X30: =ROUND((P30/V30)*100,1) -> 10.6
A31: 9 | C31: DP | D31: PRIMARY VOLTAGE | F31: ='Rate DP'!Y98 -> 120 | H31: ='Rate DP'!AA98 -> 19761251 | J31: 8.119648 | L31: ='Rate DP'!AE98 -> 1604544 | N31: =ROUND((L31/L$32)*100,2) -> 0.8 | P31: ='Rate DP'!AI98 -> 185391 | R31: 11.6 | T31: ='Rate DP'!AM98 -> 13457 | V31: ='Rate DP'!AO98 -> 1618001 | X31: 11.5
A32: 10 | C32: TOTAL DISTRIBUTION | F32: =SUM(F25:F31) -> 161416 | H32: =SUM(H25:H31) -> 2304709302 | J32: =IF(H32=0,"-",ROUND((L32/H32)*100,6)) -> 8.673226 | L32: =SUM(L25:L31) -> 199892652 | N32: =ROUND((L32/L$66)*100,2) -> 55.37 | P32: =SUM(P25:P31) -> 20770966 | R32: =ROUND((P32/L32)*100,1) -> 10.4 | T32: =SUM(T25:T31) -> 1569506 | V32: =SUM(V25:V31) -> 201462158 | X32: =ROUND((P32/V32)*100,1) -> 10.3
C34: TRANSMISSION
A35: 11 | C35: TT | D35: TIME OF DAY | F35: ='Rate TT'!Y120 -> 155 | H35: ='Rate TT'!AA120 -> 229203341 | J35: =IF(H35=0,"-",ROUND((L35/H35)*100,6)) -> 6.497294 | L35: ='Rate TT'!AE120 -> 14892016 | N35: =ROUND((L35/L$36)*100,2) -> 100 | P35: ='Rate TT'!AI120 -> 1126489 | R35: =ROUND((P35/L35)*100,1) -> 7.6 | T35: ='Rate TT'!AM120 -> 156087 | V35: ='Rate TT'!AO120 -> 15048103 | X35: ='Rate TT'!AQ120 -> 7.5
A36: 12 | C36: TOTAL TRANSMISSION | F36: =F35 -> 155 | H36: =H35 -> 229203341 | J36: =IF(H36=0,"-",ROUND((L36/H36)*100,6)) -> 6.497294 | L36: =L35 -> 14892016 | N36: =ROUND((L36/L$66)*100,2) -> 4.12 | P36: =P35 -> 1126489 | R36: =ROUND((P36/L36)*100,1) -> 7.6 | T36: =T35 -> 156087 | V36: =V35 -> 15048103 | X36: =ROUND((P36/V36)*100,1) -> 7.5
C38: REAL TIME PRICING
A39: 13 | C39: DT-RTP PRI | D39: REAL TIME PRICING | F39: ='Rate DT RTP-P'!Y82 -> 0 | H39: ='Rate DT RTP-P'!AA82 -> 0 | J39: =IF(H39=0,"-",ROUND((L39/H39)*100,6)) -> - | L39: ='Rate DT RTP-P'!AE82 -> 0 | N39: =IFERROR(ROUND((L39/L$43)*100,2),0) -> 0 | P39: ='Rate DT RTP-P'!AI82 -> 0 | R39: =IFERROR(ROUND((P39/L39)*100,1),0) -> 0 | T39: ='Rate DT RTP-P'!AM82 -> 0 | V39: ='Rate DT RTP-P'!AO82 -> 0 | X39: =IFERROR(ROUND((P39/V39)*100,1),0) -> 0
A40: 14 | C40: DT-RTP SEC | D40: REAL TIME PRICING | F40: ='Rate DT RTP-S'!Y83 -> 24 | H40: ='Rate DT RTP-S'!AA83 -> 1610719 | J40: =IF(H40=0,"-",ROUND((L40/H40)*100,6)) -> 4.671578 | L40: ='Rate DT RTP-S'!AE83 -> 75246 | N40: =ROUND((L40/L$43)*100,2) -> 11.56 | P40: ='Rate DT RTP-S'!AI83 -> 14959 | R40: =ROUND((P40/L40)*100,1) -> 19.9 | T40: ='Rate DT RTP-S'!AM83 -> 0 | V40: ='Rate DT RTP-S'!AO83 -> 75246 | X40: =ROUND((P40/V40)*100,1) -> 19.9
A41: 15 | C41: DS-RTP | D41: REAL TIME PRICING | F41: ='Rate DS RTP'!Y83 -> 36 | H41: ='Rate DS RTP'!AA83 -> 808421 | J41: =IF(H41=0,"-",ROUND((L41/H41)*100,6)) -> 6.115378 | L41: ='Rate DS RTP'!AE83 -> 49438 | N41: =ROUND((L41/L$43)*100,2) -> 7.59 | P41: ='Rate DS RTP'!AI83 -> 7508 | R41: =ROUND((P41/L41)*100,1) -> 15.2 | T41: ='Rate DS RTP'!AM83 -> 0 | V41: ='Rate DS RTP'!AO83 -> 49438 | X41: =ROUND((P41/V41)*100,1) -> 15.2
A42: 16 | C42: TT-RTP | D42: REAL TIME PRICING | F42: ='Rate TT RTP'!Y85 -> 24 | H42: ='Rate TT RTP'!AA85 -> 14495300 | J42: =IF(H42=0,"-",ROUND((L42/H42)*100,6)) -> 3.631998 | L42: ='Rate TT RTP'!AE85 -> 526469 | N42: =ROUND((L42/L$43)*100,2) -> 80.85 | P42: ='Rate TT RTP'!AI85 -> 43863 | R42: =ROUND((P42/L42)*100,1) -> 8.3 | T42: ='Rate TT RTP'!AM85 -> 0 | V42: ='Rate TT RTP'!AO85 -> 526469 | X42: =ROUND((P42/V42)*100,1) -> 8.3
A43: 17 | C43: TOTAL REAL TIME PRICING | F43: =SUM(F39:F42) -> 84 | H43: =SUM(H39:H42) -> 16914440 | J43: =IF(H43=0,"-",ROUND((L43/H43)*100,6)) -> 3.849687 | L43: =SUM(L39:L42) -> 651153 | N43: =ROUND((L43/L$66)*100,2) -> 0.18 | P43: =SUM(P39:P42) -> 66330 | R43: =ROUND((P43/L43)*100,1) -> 10.2 | T43: =SUM(T39:T42) -> 0 | V43: =SUM(V39:V42) -> 651153 | X43: =ROUND((P43/V43)*100,1) -> 10.2
C45: LIGHTING
A46: 18 | C46: SL | D46: STREET LIGHTING | F46: ='Rate SL'!Y429 -> 135466 | H46: ='Rate SL'!AA429 -> 10548224 | J46: =IF(H46=0,"-",ROUND((L46/H46)*100,6)) -> 14.541955 | L46: ='Rate SL'!AE429 -> 1533918 | N46: =ROUND((L46/L$53)*100,2) -> 72.47 | P46: ='Rate SL'!AI429 -> 164202 | R46: =ROUND((P46/L46)*100,1) -> 10.7 | T46: ='Rate SL'!AM429 -> 7183 | V46: ='Rate SL'!AO429 -> 1541102 | X46: =ROUND((P46/V46)*100,1) -> 10.7
A47: 19 | C47: TL | D47: TRAFFIC LIGHTING | F47: ='Rate TL'!Y98 -> 95904 | H47: ='Rate TL'!AA98 -> 1445796 | J47: 5.495312 | L47: ='Rate TL'!AE98 -> 79451 | N47: 3.75 | P47: ='Rate TL'!AI98 -> 8903 | R47: 11.2 | T47: ='Rate TL'!AM98 -> 985 | V47: ='Rate TL'!AO98 -> 80436 | X47: 11.1
A48: 20 | C48: UOLS | D48: UNMTRD OUTDR LIGHT | F48: ='Rate UOLS'!Y63 -> 89808 | H48: ='Rate UOLS'!AA63 -> 4739968 | J48: 4.089289 | L48: ='Rate UOLS'!AE63 -> 193831 | N48: 9.16 | P48: ='Rate UOLS'!AI63 -> 22269 | R48: =IF(L48=0,"0.0 ",ROUND((P48/L48)*100,1)) -> 11.5 | T48: ='Rate UOLS'!AM63 -> 3228 | V48: ='Rate UOLS'!AO63 -> 197059 | X48: =IF(V48=0,"0.0 ",ROUND((P48/V48)*100,1)) -> 11.3
A49: 21 | C49: NSU | D49: NON STD STREET LIGHT | F49: ='Rate NSU'!Y95 -> 9196 | H49: ='Rate NSU'!AA95 -> 449416 | J49: 17.717438 | L49: ='Rate NSU'!AE95 -> 79625 | N49: 3.76 | P49: ='Rate NSU'!AI95 -> 8450 | R49: 10.6 | T49: ='Rate NSU'!AM95 -> 306 | V49: ='Rate NSU'!AO95 -> 79931 | X49: 10.6
A50: 22 | C50: SC | D50: CUST OWNED STREET LIGHTING | F50: ='Rate SC'!Y145 -> 2065 | H50: ='Rate SC'!AA145 -> 97596 | J50: 4.088282 | L50: ='Rate SC'!AE145 -> 3990 | N50: 0.19 | P50: ='Rate SC'!AI145 -> 459 | R50: 11.5 | T50: ='Rate SC'!AM145 -> 66 | V50: ='Rate SC'!AO145 -> 4056 | X50: 11.3
A51: 23 | C51: SE | D51: OVR HD EQUIV STREET LIGHTING | F51: ='Rate SE'!Y108 -> 25036 | H51: ='Rate SE'!AA108 -> 1493016 | J51: 15.130648 | L51: ='Rate SE'!AE108 -> 225903 | N51: 10.67 | P51: ='Rate SE'!AI108 -> 24123 | R51: 10.7 | T51: ='Rate SE'!AM108 -> 1017 | V51: ='Rate SE'!AO108 -> 226920 | X51: 10.6
A52: 24 | C52: LED | D52: LED OUTDOOR LIGHT | F52: ='Rate LED'!Y354 -> 0 | H52: ='Rate LED'!AA354 -> 0 | J52: - | L52: ='Rate LED'!AE354 -> 0 | P52: ='Rate LED'!AI354 -> 0 | R52: =IFERROR(ROUND((P52/L52)*100,1),0) -> 0 | T52: ='Rate LED'!AM354 -> 0 | V52: ='Rate LED'!AO354 -> 0 | X52: =IFERROR(ROUND((P52/V52)*100,1),0) -> 0
A53: 25 | C53: TOTAL LIGHTING | F53: =SUM(F46:F52) -> 357475 | H53: =SUM(H46:H52) -> 18774016 | J53: =IF(H53=0,"-",ROUND((L53/H53)*100,6)) -> 11.274721 | L53: =SUM(L46:L52) -> 2116718 | N53: =ROUND((L53/L$66)*100,2) -> 0.59 | P53: =SUM(P46:P52) -> 228406 | R53: 10.8 | T53: =SUM(T46:T52) -> 12785 | V53: =SUM(V46:V52) -> 2129504 | X53: 10.7
C55: OTHER MISC REVENUE
A56: 26 | C56: ID01 | D56: INTERDEPARTMENTAL | F56: 12 | H56: 715341 | J56: =IF(H56=0,"-",ROUND((L56/H56)*100,6)) -> 8.155691 | L56: =V56-T56 -> 58341 | N56: =ROUND((L56/L$64)*100,2) -> 3.3 | P56: ='SCH M-2.3'!L56-'SCH M-2.2'!L56 -> 7377 | R56: =ROUND((P56/L56)*100,1) -> 12.6 | T56: =ROUND(H56*CUR_FAC,0) -> 487 | V56: 58828 | X56: =ROUND((P56/V56)*100,1) -> 12.5
A57: 27 | D57: PJM AND TRANSMISSION | F57: 0 | H57: 0 | J57: - | L57: 169500 | N57: =ROUND((L57/L$64)*100,2) -> 9.58 | P57: ='SCH M-2.3'!L57-'SCH M-2.2'!L57 -> 0 | R57: =IF(L57=0,0,ROUND((P57/L57)*100,1)) -> 0 | T57: 0 | V57: =L57+T57 -> 169500 | X57: =IF(V57=0,0,ROUND((P57/V57)*100,1)) -> 0
A58: 28 | D58: BAD CHECK CHARGES | F58: 0 | H58: 0 | J58: - | L58: 40932 | N58: 2.31 | P58: ='SCH M-2.3'!L58-'SCH M-2.2'!L58 -> 0 | R58: 0 | T58: 0 | V58: 40932 | X58: 0
A59: 29 | D59: RECONNECTION CHGS | F59: 0 | H59: 0 | J59: - | L59: 45600 | N59: 2.58 | P59: ='SCH M-2.3'!L59-'SCH M-2.2'!L59 -> 16138 | R59: 35.4 | T59: 0 | V59: 45600 | X59: 35.4
A60: 30 | D60: POLE AND LINE ATTACHMENTS | F60: 0 | H60: 0 | J60: - | L60: 215037 | N60: =ROUND((L60/L$64)*100,2) -> 12.15 | P60: ='SCH M-2.3'!L60-'SCH M-2.2'!L60 -> 104796 | R60: =ROUND((P60/L60)*100,1) -> 48.7 | T60: 0 | V60: =L60+T60 -> 215037 | X60: =ROUND((P60/V60)*100,1) -> 48.7
A61: 31 | D61: RENTS | F61: 0 | H61: 0 | J61: - | L61: 1058004 | N61: 59.77 | P61: ='SCH M-2.3'!L61-'SCH M-2.2'!L61 -> 0 | R61: 0 | T61: 0 | V61: 1058004 | X61: 0
A62: 32 | C62: WS | D62: SPECIAL CONTRACTS | F62: 132 | H62: 352079 | J62: 4.717123 | L62: =V62-T62 -> 16608 | N62: 0.94 | P62: ='SCH M-2.3'!L62-'SCH M-2.2'!L62 -> 2113 | R62: 12.7 | T62: =ROUND(H62*CUR_FAC,0) -> 240 | V62: =ROUND(H62*INPUT!C203,0) -> 16848 | X62: 12.5
A63: 33 | D63: OTHER MISC | F63: 0 | H63: 0 | J63: - | L63: 165980 | N63: =ROUND((L63/L$64)*100,2) -> 9.38 | P63: ='SCH M-2.3'!L63-'SCH M-2.2'!L63 -> 0 | R63: 0 | T63: 0 | V63: 165980 | X63: 0
A64: 34 | C64: TOTAL MISC REVENUE | F64: =SUM(F56:F63) -> 144 | H64: =SUM(H56:H63) -> 1067420 | L64: =SUM(L56:L63) -> 1770002 | N64: =ROUND((L64/L$66)*100,2) -> 0.49 | P64: =SUM(P56:P63) -> 130424 | R64: 7.4 | T64: =SUM(T56:T63) -> 727 | V64: =SUM(V56:V63) -> 1770729 | X64: 7.4
A66: 35 | C66: TOTAL | F66: =F64+F53+F43+F36+F32+F22 -> 2086866 | H66: =H64+H53+H43+H36+H32+H22 -> 4045003517 | J66: =IF(H66=0,"-",ROUND((L66/H66)*100,6)) -> 8.925675 | L66: =L64+L53+L43+L36+L32+L22 -> 361043848 | N66: 100 | P66: =P64+P53+P43+P36+P32+P22 -> 45634447 | R66: =ROUND((P66/L66)*100,1) -> 12.6 | T66: =T64+T53+T43+T36+T32+T22 -> 2743127 | V66: =V64+V53+V43+V36+V32+V22 -> 363786976 | X66: =ROUND((P66/V66)*100,1) -> 12.5
C68: ="NOTE: DETAIL CONTAINED ON SCHEDULES M-2.2 PAGES 2 THROUGH "&TEXT(Page_Num_2.2,"00")&"." -> NOTE: DETAIL CONTAINED ON SCHEDULES M-2.2 PAGES 2 THROUGH 22.

Sheet SCH M-2.3
A1: =NAME -> DUKE ENERGY KENTUCKY, INC.
A2: =CASE_NO -> CASE NO. 2019-00271
A3: =TITLE -> ANNUALIZED TEST YEAR REVENUES AT PROPOSED VS. MOST CURRENT RATES
A4: =DATE -> FOR THE TWELVE MONTHS ENDED March 31, 2021
A5: =SERVICE -> (ELECTRIC SERVICE)
A6: =DATA_PERIOD -> DATA: ____ BASE PERIOD __X__FORECASTED PERIOD | R6: SCHEDULE M-2.3
A7: =TYPE -> TYPE OF FILING: _X_ ORIGINAL ___UPDATED ___ REVISED | R7: ="PAGE 1 OF "&TEXT(Page_Num_2.3,"00") -> PAGE 1 OF 23
A8: WORK PAPER REFERENCE NO(S).: | R8: WITNESS:
A9: =TIME -> 12 Months Projected with Riders | R9: =WIT -> J. L. Kern
A10: =INPUT!B5 -> 
A11: PROPOSED ANNUALIZED
L13: PROPOSED | N13: % OF REV TO | R13: PROPOSED
L14: REVENUE LESS | N14: TOTAL LESS | R14: TOTAL
A15: LINE | C15: RATE | D15: CLASS / | F15: CUSTOMER | J15: PROPOSED | L15: FAC | N15: FAC | P15: FAC | R15: REVENUE
A16: NO. | C16: CODE | D16: DESCRIPTION | F16: BILLS | H16: SALES | J16: RATES | L16: REVENUE | N16: REVENUE | P16: REVENUE | R16: (F + H)
C17: (A) | D17: (B) | F17: (C) | H17: (D) | J17: (E) | L17: (F) | N17: (G) | P17: (H) | R17: (I)
H19: (KWH) | J19: (¢/KWH) | L19: ($) | N19: (%) | P19: ($) | R19: ($)
C20: RESIDENTIAL
A21: 1 | C21: RS | D21: RESIDENTIAL SERV | F21: ='Rate RS'!F38 -> 1567592 | H21: ='Rate RS'!H38 -> 1474334998 | J21: =IF(H21=0,"-",ROUND((L21/H21)*100,6)) -> 11.193734 | L21: ='Rate RS'!L38 -> 165033139 | N21: =ROUND((L21/L$22)*100,2) -> 100 | P21: ='Rate RS'!P38 -> 1004022 | R21: ='Rate RS'!R38 -> 166037161
A22: 2 | C22: TOTAL RESIDENTIAL | F22: =F21 -> 1567592 | H22: =H21 -> 1474334998 | J22: =IF(H22=0,"-",ROUND((L22/H22)*100,6)) -> 11.193734 | L22: =L21 -> 165033139 | N22: =ROUND((L22/L$66)*100,2) -> 40.58 | P22: =P21 -> 1004022 | R22: =R21 -> 166037161
C24: DISTRIBUTION
A25: 3 | C25: DS | D25: DISTRIBUTION SERV | F25: ='Rate DS'!F50 -> 157764 | H25: ='Rate DS'!H50 -> 1098580606 | J25: =IF(H25=0,"-",ROUND((L25/H25)*100,6)) -> 10.707885 | L25: ='Rate DS'!L50 -> 117634745 | N25: =ROUND((L25/L$32)*100,2) -> 53.31 | P25: ='Rate DS'!P50 -> 748133 | R25: ='Rate DS'!R50 -> 118382878
A26: 4 | C26: DT-PRI | D26: TIME OF DAY | F26: ='Rate DT-Pri'!F63 -> 455 | H26: ='Rate DT-Pri'!H63 -> 479737379 | J26: 8.10063 | L26: ='Rate DT-Pri'!L63 -> 38861752 | N26: 17.61 | P26: ='Rate DT-Pri'!P63 -> 326701 | R26: ='Rate DT-Pri'!R63 -> 39188453
A27: 5 | C27: DT-SEC | D27: TIME OF DAY | F27: ='Rate DT-Sec'!F61 -> 1876 | H27: ='Rate DT-Sec'!H61 -> 691028749 | J27: 8.798707 | L27: ='Rate DT-Sec'!L61 -> 60801598 | N27: 27.55 | P27: ='Rate DT-Sec'!P61 -> 470591 | R27: ='Rate DT-Sec'!R61 -> 61272189
A28: 6 | C28: EH | D28: ELEC SPACE HEATING | F28: ='Rate EH'!F43 -> 481 | H28: ='Rate EH'!H43 -> 9323104 | J28: 8.404004 | L28: ='Rate EH'!L43 -> 783514 | N28: 0.36 | P28: ='Rate EH'!P43 -> 6349 | R28: ='Rate EH'!R43 -> 789863
A29: 7 | C29: SP | D29: SPORTS SERV | F29: ='Rate SP GSFL'!F38 -> 180 | H29: ='Rate SP GSFL'!H38 -> 277600 | J29: 14.085375 | L29: ='Rate SP GSFL'!L38 -> 39101 | N29: 0.02 | P29: ='Rate SP GSFL'!P38 -> 189 | R29: ='Rate SP GSFL'!R38 -> 39290
A30: 8 | C30: GSFL | D30: SMALL FIXED LOADS | F30: ='Rate SP GSFL'!F57 -> 540 | H30: ='Rate SP GSFL'!H57 -> 6000613 | J30: 12.548268 | L30: ='Rate SP GSFL'!L57 -> 752973 | N30: 0.34 | P30: ='Rate SP GSFL'!P57 -> 4086 | R30: ='Rate SP GSFL'!R57 -> 757059
A31: 9 | C31: DP | D31: PRIMARY VOLTAGE | F31: ='Rate DP'!F46 -> 120 | H31: ='Rate DP'!H46 -> 19761251 | J31: 9.057802 | L31: ='Rate DP'!L46 -> 1789935 | N31: =ROUND((L31/L$32)*100,2) -> 0.81 | P31: ='Rate DP'!P46 -> 13457 | R31: ='Rate DP'!R46 -> 1803392
A32: 10 | C32: TOTAL DISTRIBUTION | F32: =SUM(F25:F31) -> 161416 | H32: =SUM(H25:H31) -> 2304709302 | J32: 9.574466 | L32: =SUM(L25:L31) -> 220663618 | N32: =ROUND((L32/L$66)*100,2)+0.01 -> 54.27 | P32: =SUM(P25:P31) -> 1569506 | R32: =SUM(R25:R31) -> 222233124
C34: TRANSMISSION
A35: 11 | C35: TT | D35: TIME OF DAY | F35: ='Rate TT'!F56 -> 155 | H35: ='Rate TT'!H56 -> 229203341 | J35: =IF(H35=0,"-",ROUND((L35/H35)*100,6)) -> 6.988775 | L35: ='Rate TT'!L56 -> 16018505 | N35: =ROUND((L35/L$36)*100,2) -> 100 | P35: ='Rate TT'!P56 -> 156087 | R35: ='Rate TT'!R56 -> 16174592
A36: 12 | C36: TOTAL TRANSMISSION | F36: =F35 -> 155 | H36: =H35 -> 229203341 | J36: =IF(H36=0,"-",ROUND((L36/H36)*100,6)) -> 6.988775 | L36: =L35 -> 16018505 | N36: =ROUND((L36/L$66)*100,2) -> 3.94 | P36: =P35 -> 156087 | R36: =R35 -> 16174592
C38: REAL TIME PRICING
A39: 13 | C39: DT-RTP PRI | D39: REAL TIME PRICING | F39: ='Rate DT RTP-P'!F38 -> 0 | H39: ='Rate DT RTP-P'!H38 -> 0 | J39: =IF(H39=0,"-",ROUND((L39/H39)*100,6)) -> - | L39: ='Rate DT RTP-P'!L38 -> 0 | N39: =IFERROR(ROUND((L39/L$43)*100,2),0) -> 0 | P39: ='Rate DT RTP-P'!P38 -> 0 | R39: ='Rate DT RTP-P'!R38 -> 0
A40: 14 | C40: DT-RTP SEC | D40: REAL TIME PRICING | F40: ='Rate DT RTP-S'!F39 -> 24 | H40: ='Rate DT RTP-S'!H39 -> 1610719 | J40: =IF(H40=0,"-",ROUND((L40/H40)*100,6)) -> 5.600294 | L40: ='Rate DT RTP-S'!L39 -> 90205 | N40: =IFERROR(ROUND((L40/L$43)*100,2),0) -> 12.57 | P40: ='Rate DT RTP-S'!P39 -> 0 | R40: ='Rate DT RTP-S'!R39 -> 90205
A41: 15 | C41: DS-RTP | D41: REAL TIME PRICING | F41: ='Rate DS RTP'!F39 -> 36 | H41: ='Rate DS RTP'!H39 -> 808421 | J41: =IF(H41=0,"-",ROUND((L41/H41)*100,6)) -> 7.044102 | L41: ='Rate DS RTP'!L39 -> 56946 | N41: =IFERROR(ROUND((L41/L$43)*100,2),0) -> 7.94 | P41: ='Rate DS RTP'!P39 -> 0 | R41: ='Rate DS RTP'!R39 -> 56946
A42: 16 | C42: TT-RTP | D42: REAL TIME PRICING | F42: ='Rate TT RTP'!F39 -> 24 | H42: ='Rate TT RTP'!H39 -> 14495300 | J42: =IF(H42=0,"-",ROUND((L42/H42)*100,6)) -> 3.934599 | L42: ='Rate TT RTP'!L39 -> 570332 | N42: =IFERROR(ROUND((L42/L$43)*100,2),0) -> 79.49 | P42: ='Rate TT RTP'!P39 -> 0 | R42: ='Rate TT RTP'!R39 -> 570332
A43: 17 | C43: TOTAL REAL TIME PRICING | F43: =SUM(F39:F42) -> 84 | H43: =SUM(H39:H42) -> 16914440 | J43: =IF(H43=0,"-",ROUND((L43/H43)*100,6)) -> 4.241837 | L43: =SUM(L39:L42) -> 717483 | N43: =ROUND((L43/L$66)*100,2) -> 0.18 | P43: =SUM(P39:P42) -> 0 | R43: =SUM(R39:R42) -> 717483
C45: LIGHTING
A46: 18 | C46: SL | D46: STREET LIGHTING | F46: ='Rate SL'!F209 -> 135466 | H46: ='Rate SL'!H209 -> 10548224 | J46: =IF(H46=0,"-",ROUND((L46/H46)*100,6)) -> 16.098634 | L46: ='Rate SL'!L209 -> 1698120 | N46: =ROUND((L46/L$53)*100,2) -> 72.41 | P46: ='Rate SL'!P209 -> 7183 | R46: ='Rate SL'!R209 -> 1705304
A47: 19 | C47: TL | D47: TRAFFIC LIGHTING | F47: ='Rate TL'!F47 -> 95904 | H47: ='Rate TL'!H47 -> 1445796 | J47: 6.111097 | L47: ='Rate TL'!L47 -> 88354 | N47: 3.77 | P47: ='Rate TL'!P47 -> 985 | R47: ='Rate TL'!R47 -> 89339
A48: 20 | C48: UOLS | D48: UNMTRD OUTDR LIGHT | F48: ='Rate UOLS'!F28 -> 89808 | H48: ='Rate UOLS'!H28 -> 4739968 | J48: 4.559103 | L48: ='Rate UOLS'!L28 -> 216100 | N48: 9.21 | P48: ='Rate UOLS'!P28 -> 3228 | R48: ='Rate UOLS'!R28 -> 219328
A49: 21 | C49: NSU | D49: NON STD STREET LIGHT | F49: ='Rate NSU'!F45 -> 9196 | H49: ='Rate NSU'!H45 -> 449416 | J49: 19.597656 | L49: ='Rate NSU'!L45 -> 88075 | N49: 3.76 | P49: ='Rate NSU'!P45 -> 306 | R49: ='Rate NSU'!R45 -> 88381
A50: 22 | C50: SC | D50: CUST OWNED STREET LIGHTING | F50: ='Rate SC'!F72 -> 2065 | H50: ='Rate SC'!H72 -> 97596 | J50: 4.558588 | L50: ='Rate SC'!L72 -> 4449 | N50: 0.19 | P50: ='Rate SC'!P72 -> 66 | R50: ='Rate SC'!R72 -> 4515
A51: 23 | C51: SE | D51: OVR HD EQUIV STREET LIGHTING | F51: ='Rate SE'!F52 -> 25036 | H51: ='Rate SE'!H52 -> 1493016 | J51: 16.746371 | L51: ='Rate SE'!L52 -> 250026 | N51: 10.66 | P51: ='Rate SE'!P52 -> 1017 | R51: ='Rate SE'!R52 -> 251044
A52: 24 | C52: LED | D52: LED OUTDOOR LIGHT | F52: ='Rate LED'!F202 -> 0 | H52: ='Rate LED'!H202 -> 0 | J52: - | L52: ='Rate LED'!L202 -> 0 | N52: 0 | P52: ='Rate LED'!P202 -> 0 | R52: ='Rate LED'!R202 -> 0
A53: 25 | C53: TOTAL LIGHTING | F53: =SUM(F46:F52) -> 357475 | H53: =SUM(H46:H52) -> 18774016 | J53: 12.491328 | L53: =SUM(L46:L52) -> 2345124 | N53: =ROUND((L53/L$66)*100,2) -> 0.58 | P53: =SUM(P46:P52) -> 12785 | R53: =SUM(R46:R52) -> 2357911
C55: OTHER MISC REVENUE
A56: 26 | C56: ID01 | D56: INTERDEPARTMENTAL | F56: ='SCH M-2.2'!F56 -> 12 | H56: ='SCH M-2.2'!H56 -> 715341 | J56: =IF(H56=0,"-",ROUND((L56/H56)*100,2)) -> 9.19 | L56: ='Revenue Requirements'!I39-P56 -> 65718 | N56: =ROUND((L56/L$64)*100,2) -> 3.46 | P56: ='SCH M-2.2'!T56 -> 487 | R56: =L56+P56 -> 66205
A57: 27 | D57: PJM AND TRANSMISSION | F57: ='SCH M-2.2'!F57 -> 0 | H57: ='SCH M-2.2'!H57 -> 0 | J57: - | L57: ='SCH M-2.2'!L57 -> 169500 | N57: 8.92 | P57: ='SCH M-2.2'!T57 -> 0 | R57: =L57+P57 -> 169500
A58: 28 | D58: BAD CHECK CHARGES | F58: ='SCH M-2.2'!F58 -> 0 | H58: ='SCH M-2.2'!H58 -> 0 | J58: - | L58: ='SCH M-2.2'!L58 -> 40932 | N58: 2.15 | P58: ='SCH M-2.2'!T58 -> 0 | R58: 40932
A59: 29 | D59: RECONNECTION CHGS | F59: ='SCH M-2.2'!F59 -> 0 | H59: ='SCH M-2.2'!H59 -> 0 | J59: - | L59: 61738 | N59: 3.25 | P59: ='SCH M-2.2'!T59 -> 0 | R59: 61738
A60: 30 | D60: POLE AND LINE ATTACHMENTS | F60: ='SCH M-2.2'!F60 -> 0 | H60: ='SCH M-2.2'!H60 -> 0 | J60: =IF(H60=0,"-",ROUND((L60/H60)*100,2)) -> - | L60: 319833 | N60: =ROUND((L60/L$64)*100,2) -> 16.83 | P60: ='SCH M-2.2'!T60 -> 0 | R60: =L60+P60 -> 319833
A61: 31 | D61: RENTS | F61: ='SCH M-2.2'!F61 -> 0 | H61: ='SCH M-2.2'!H61 -> 0 | J61: - | L61: ='SCH M-2.2'!L61 -> 1058004 | N61: 55.67 | P61: ='SCH M-2.2'!T61 -> 0 | R61: 1058004
A62: 32 | C62: WS | D62: SPECIAL CONTRACTS | F62: ='SCH M-2.2'!F62 -> 132 | H62: ='SCH M-2.2'!H62 -> 352079 | J62: 5.32 | L62: ='Revenue Requirements'!I38-P62 -> 18721 | N62: 0.99 | P62: ='SCH M-2.2'!T62 -> 240 | R62: 18961
A63: 33 | D63: OTHER MISC | F63: ='SCH M-2.2'!F63 -> 0 | H63: ='SCH M-2.2'!H63 -> 0 | J63: - | L63: ='SCH M-2.2'!L63 -> 165980 | N63: =ROUND((L63/L$64)*100,2) -> 8.73 | P63: ='SCH M-2.2'!T63 -> 0 | R63: 165980
A64: 34 | C64: TOTAL MISC REVENUE | F64: =SUM(F56:F63) -> 144 | H64: =SUM(H56:H63) -> 1067420 | L64: =SUM(L56:L63) -> 1900426 | N64: =ROUND((L64/L$66)*100,2) -> 0.47 | P64: =SUM(P56:P63) -> 727 | R64: =SUM(R56:R63) -> 1901153
A66: 35 | C66: TOTAL | F66: =F64+F53+F43+F36+F32+F22 -> 2086866 | H66: =H64+H53+H43+H36+H32+H22 -> 4045003517 | J66: 10.05 | L66: =L64+L53+L43+L36+L32+L22 -> 406678295 | N66: 100 | P66: =P64+P53+P43+P36+P32+P22 -> 2743127 | R66: =R64+R53+R43+R36+R32+R22 -> 409421424
C67: ="NOTE: DETAIL CONTAINED ON SCHEDULES M-2.3 PAGES 2 THROUGH "&TEXT(Page_Num_2.3,"00")&"." -> NOTE: DETAIL CONTAINED ON SCHEDULES M-2.3 PAGES 2 THROUGH 23.

Sheet Rate RS
A1: =NAME -> DUKE ENERGY KENTUCKY, INC.
A2: =CASE_NO -> CASE NO. 2019-00271
A3: =TITLE -> ANNUALIZED TEST YEAR REVENUES AT PROPOSED VS. MOST CURRENT RATES
A4: =DATE -> FOR THE TWELVE MONTHS ENDED March 31, 2021
A5: =SERVICE -> (ELECTRIC SERVICE)
A6: =DATA_PERIOD -> DATA: ____ BASE PERIOD __X__FORECASTED PERIOD | R6: SCHEDULE M-2.3
A7: =TYPE -> TYPE OF FILING: _X_ ORIGINAL ___UPDATED ___ REVISED | R7: ="PAGE 2 OF "&TEXT(Page_Num_2.3,"00") -> PAGE 2 OF 23
A8: WORK PAPER REFERENCE NO(S).: | R8: WITNESS:
A9: =TIME -> 12 Months Projected with Riders | R9: =WIT -> J. L. Kern
A10: =INPUT!B5 -> 
A11: PROPOSED ANNUALIZED
L13: PROPOSED | N13: % OF REV TO | R13: PROPOSED
L14: REVENUE LESS | N14: TOTAL LESS | R14: TOTAL
A15: LINE | C15: RATE | D15: CLASS / | F15: CUSTOMER | J15: PROPOSED | L15: FAC | N15: FAC | P15: FAC | R15: REVENUE
A16: NO. | C16: CODE | D16: DESCRIPTION | F16: BILLS(1) | H16: SALES | J16: RATES | L16: REVENUE | N16: REVENUE | P16: REVENUE (2) | R16: (F + H)
C17: (A) | D17: (B) | F17: (C) | H17: (D) | J17: (E) | L17: (F) | N17: (G) | P17: (H) | R17: (I)
H19: (KWH) | J19: ($/KWH) | L19: ($) | N19: (%) | P19: ($) | R19: ($)
A20: 1 | C20: RS | D20: RESIDENTIAL
A22: 2 | C22: CUSTOMER CHARGE:
A23: 3 | C23: BILLS | F23: 1567592 | J23: =INPUT!D43 -> 14 | L23: =ROUND(F23*J23,0)-P23 -> 21946288 | N23: =ROUND((L23/$L$38)*100,1) -> 13.3 | R23: =L23+P23 -> 21946288
A25: 4 | C25: ENERGY CHARGE (3):
A26: 5 | C26: ALL KWH | H26: 1474334998 | J26: =INPUT!D44 -> 0.084272 | L26: =ROUND(H26*J26,0)-P26 -> 124245159 | N26: =ROUND((L26/$L$38)*100,1) -> 75.3 | R26: =L26+P26 -> 124245159
A28: 6 | C28: TOTAL RATE RS EXCLUDING RIDERS | F28: =F23 -> 1567592 | H28: =H26 -> 1474334998 | L28: =SUM(L23:L26) -> 146191447 | N28: =ROUND((L28/$L$38)*100,1) -> 88.6 | R28: =SUM(R23:R26) -> 146191447
A30: 7 | C30: RIDERS:
A31: 8 | C31: =HEA_Name -> HOME ENERGY ASSISTANCE (HEA) | J31: =DSM_RS_CUST -> 0.1 | L31: =ROUND(F23*J31,0) -> 156759 | N31: =ROUND((L31/$L$38)*100,1) -> 0.1 | R31: =L31+P31 -> 156759
A32: 9 | C32: =DSMR_Name -> DEMAND SIDE MANAGEMENT RIDER (DSMR) | J32: =PRO_DSM_RES -> 0.003035 | L32: =ROUND(H26*J32,0) -> 4474607 | N32: 2.7 | R32: =L32+P32 -> 4474607
A33: 10 | C33: =ESM_Name -> ENVIRONMENTAL SURCHARGE MECHANISM RIDER (ESM) | L33: =AD74 -> 14450643 | N33: 8.8 | R33: =L33+P33 -> 14450643
A34: 11 | C34: =FAC_Name -> FUEL ADJUSTMENT CLAUSE (FAC) | J34: =PRO_FAC -> 0.000681 | N34: 0 | P34: =ROUND($H$26*PRO_FAC,0) -> 1004022 | R34: =L34+P34 -> 1004022
A35: 12 | C35: =PSM_Name -> PROFIT SHARING MECHANISM (PSM) | J35: =PRO_PSM -> -0.000163 | L35: =ROUND(H26*J35,0) -> -240317 | N35: -0.1 | R35: =L35+P35 -> -240317
A36: 13 | C36: TOTAL RIDERS | L36: =SUM(L31:L35) -> 18841692 | N36: 11.4 | P36: =SUM(P31:P35) -> 1004022 | R36: =SUM(R31:R35) -> 19845714
A38: 14 | C38: TOTAL RATE RS INCLUDING RIDERS | F38: =F23 -> 1567592 | H38: =H26 -> 1474334998 | L38: =L28+L36 -> 165033139 | N38: 100 | P38: =P36+P28 -> 1004022 | R38: =R28+R36 -> 166037161
C40: (1) BILLS THAT TERMINATE IN RESPECTIVE RATE STEPS.
C41: ="(2) REFLECTS FUEL COMPONENT OF "&TEXT(PRO_FAC,"$0.000000;($0.000000)")&" PER KWH." -> (2) REFLECTS FUEL COMPONENT OF $0.000681 PER KWH.
C42: ="(3) REFLECTS FUEL COST RECOVERY INCLUDED IN BASE RATES OF "&TEXT(PRO_BASE_FUEL,"$0.000000;($0.000000)")&" PER KWH." -> (3) REFLECTS FUEL COST RECOVERY INCLUDED IN BASE RATES OF $0.023837 PER KWH. | T42: =NAME -> DUKE ENERGY KENTUCKY, INC.
T43: =CASE_NO -> CASE NO. 2019-00271
T44: =TITLE -> ANNUALIZED TEST YEAR REVENUES AT PROPOSED VS. MOST CURRENT RATES
T45: =DATE -> FOR THE TWELVE MONTHS ENDED March 31, 2021
T46: =SERVICE -> (ELECTRIC SERVICE)
T47: =DATA_PERIOD -> DATA: ____ BASE PERIOD __X__FORECASTED PERIOD | AN47: SCHEDULE M-2.2
T48: =TYPE -> TYPE OF FILING: _X_ ORIGINAL ___UPDATED ___ REVISED | AN48: ="PAGE 2 OF "&TEXT(Page_Num_2.2,"00") -> PAGE 2 OF 22
T49: WORK PAPER REFERENCE NO(S).: | AN49: WITNESS:
T50: =TIME -> 12 Months Projected with Riders | AN50: =WIT -> J. L. Kern
T51: =INPUT!B5 -> 
AD52: CURRENT ANNUALIZED
AD54: CURRENT | AF54: % OF REV TO | AH54: REVENUE | AJ54: % INCR IN | AN54: CURRENT | AP54: TOTAL
AB55: MOST | AD55: REVENUE LESS | AF55: TOTAL LESS | AH55: INCR LESS | AJ55: REV LESS | AN55: TOTAL | AP55: REVENUE
T56: LINE | V56: RATE | W56: CLASS / | X56: CUSTOMER | AB56: CURRENT | AD56: FAC | AF56: FAC | AH56: FAC REV | AJ56: FAC REV | AL56: FAC | AN56: REVENUE | AP56: % INCREASE
T57: NO. | V57: CODE | W57: DESCRIPTION | X57: BILLS(1) | Z57: SALES | AB57: RATES | AD57: REVENUE | AF57: REVENUE | AH57: (F - K) | AJ57: (M / K) | AL57: REVENUE (2) | AN57: (K + H) | AP57: (M / K1)
V58: (A) | W58: (B) | X58: (C) | Z58: (D) | AB58: (J) | AD58: (K) | AF58: (L) | AH58: (M) | AJ58: (N) | AL58: (H) | AN58: (K1) | AP58: (O)
Z60: (KWH) | AB60: ($/KWH) | AD60: ($) | AF60: (%) | AH60: ($) | AJ60: (%) | AL60: ($) | AN60: ($) | AP60: (%)
T61: 1 | V61: RS | W61: RESIDENTIAL
T63: 2 | V63: CUSTOMER CHARGE:
T64: 3 | V64: BILLS | X64: =F23 -> 1567592 | AB64: =INPUT!C43 -> 11 | AD64: =ROUND(X64*AB64,0) -> 17243512 | AF64: =ROUND((AD64/$AD$79)*100,1) -> 12.2 | AH64: =L23-AD64 -> 4702776 | AJ64: =ROUND((AH64/AD64)*100,1) -> 27.3 | AN64: =AD64+AL64 -> 17243512 | AP64: =ROUND((AH64/AN64)*100,1) -> 27.3
T66: 4 | V66: ENERGY CHARGE (3):
T67: 5 | V67: ALL KWH | Z67: =H26 -> 1474334998 | AB67: =INPUT!C44 -> 0.07165 | AD67: =ROUND((Z67*AB67),0)-AL67 -> 105636103 | AF67: =ROUND((AD67/$AD$79)*100,1) -> 74.5 | AH67: =L26-AD67 -> 18609056 | AJ67: =ROUND((AH67/AD67)*100,1) -> 17.6 | AN67: =AD67+AL67 -> 105636103 | AP67: =ROUND((AH67/AN67)*100,1) -> 17.6
T69: 6 | V69: TOTAL RATE RS EXCLUDING RIDERS | X69: =X64 -> 1567592 | Z69: =Z67 -> 1474334998 | AD69: =SUM(AD64:AD67) -> 122879615 | AF69: =ROUND((AD69/$AD$79)*100,1) -> 86.7 | AH69: =SUM(AH64:AH67) -> 23311832 | AJ69: =ROUND((AH69/AD69)*100,1) -> 19 | AN69: =SUM(AN64:AN67) -> 122879615 | AP69: =ROUND((AH69/AN69)*100,1) -> 19
T71: 7 | V71: RIDERS:
T72: =A31 -> 8 | V72: =C31 -> HOME ENERGY ASSISTANCE (HEA) | AB72: =DSM_RS_CUST -> 0.1 | AD72: =ROUND(X64*AB72,0) -> 156759 | AF72: =ROUND((AD72/$AD$79)*100,1) -> 0.1 | AH72: =L31-AD72 -> 0 | AJ72: =IFERROR(ROUND((AH72/AD72)*100,1),0) -> 0 | AN72: =AD72+AL72 -> 156759 | AP72: =IFERROR(ROUND((AH72/AN72)*100,1),0) -> 0
T73: 9 | V73: =C32 -> DEMAND SIDE MANAGEMENT RIDER (DSMR) | AB73: =DSM_RES -> 0.003035 | AD73: =ROUND(Z67*AB73,0) -> 4474607 | AF73: =ROUND((AD73/$AD$79)*100,1) -> 3.2 | AH73: =L32-AD73 -> 0 | AJ73: =IFERROR(ROUND((AH73/AD73)*100,1),0) -> 0 | AN73: =AD73+AL73 -> 4474607 | AP73: =IFERROR(ROUND((AH73/AN73)*100,1),0) -> 0
T74: 10 | V74: =C33 -> ENVIRONMENTAL SURCHARGE MECHANISM RIDER (ESM) | AB74: =CUR_ESM -> 0.1176 | AD74: =ROUND(AN69*AB74,0) -> 14450643 | AF74: =ROUND((AD74/$AD$79)*100,1) -> 10.2 | AH74: =L33-AD74 -> 0 | AJ74: =IFERROR(ROUND((AH74/AD74)*100,1),0) -> 0 | AN74: =AD74+AL74 -> 14450643 | AP74: =IFERROR(ROUND((AH74/AN74)*100,1),0) -> 0
T75: 11 | V75: =C34 -> FUEL ADJUSTMENT CLAUSE (FAC) | AB75: =CUR_FAC -> 0.000681 | AL75: =ROUND(Z67*CUR_FAC,0) -> 1004022 | AN75: =AD75+AL75 -> 1004022 | AP75: =IFERROR(ROUND((AH75/AN75)*100,1),0) -> 0
T76: 12 | V76: =C35 -> PROFIT SHARING MECHANISM (PSM) | AB76: =RS_PSM -> -0.000163 | AD76: =ROUND(Z67*AB76,0) -> -240317 | AF76: =ROUND((AD76/$AD$79)*100,1) -> -0.2 | AH76: =L35-AD76 -> 0 | AJ76: =IFERROR(ROUND((AH76/AD76)*100,1),0) -> 0 | AN76: =AD76+AL76 -> -240317 | AP76: =IFERROR(ROUND((AH76/AN76)*100,1),0) -> 0
T77: 13 | V77: TOTAL RIDERS | AD77: =SUM(AD72:AD76) -> 18841692 | AF77: =ROUND((AD77/$AD$79)*100,1) -> 13.3 | AH77: =SUM(AH72:AH76) -> 0 | AJ77: 0 | AL77: =SUM(AL72:AL76) -> 1004022 | AN77: =SUM(AN72:AN76) -> 19845714 | AP77: =ROUND((AH77/AN77)*100,1) -> 0
T79: =A38 -> 14 | V79: TOTAL RATE RS INCLUDING RIDERS | X79: =X64 -> 1567592 | Z79: =Z67 -> 1474334998 | AD79: =AD69+AD77 -> 141721307 | AF79: 100 | AH79: =AH69+AH77 -> 23311832 | AJ79: =ROUND((AH79/AD79)*100,1) -> 16.4 | AL79: =AL69+AL77 -> 1004022 | AN79: =AN69+AN77 -> 142725329 | AP79: =ROUND((AH79/AN79)*100,1) -> 16.3
V81: (1) BILLS THAT TERMINATE IN RESPECTIVE RATE STEPS.
V82: ="(2) REFLECTS FUEL COMPONENT OF "&TEXT(CUR_FAC,"$0.000000;($0.000000)")&" PER KWH." -> (2) REFLECTS FUEL COMPONENT OF $0.000681 PER KWH.
V83: ="(3) REFLECTS FUEL COST RECOVERY INCLUDED IN BASE RATES OF "&TEXT(CUR_BASE_FUEL,"$0.000000;($0.000000)")&" PER KWH." -> (3) REFLECTS FUEL COST RECOVERY INCLUDED IN BASE RATES OF $0.023837 PER KWH.

Sheet Rate DS
A1: =NAME -> DUKE ENERGY KENTUCKY, INC.
A2: =CASE_NO -> CASE NO. 2019-00271
A3: =TITLE -> ANNUALIZED TEST YEAR REVENUES AT PROPOSED VS. MOST CURRENT RATES
A4: =DATE -> FOR THE TWELVE MONTHS ENDED March 31, 2021
A5: =SERVICE -> (ELECTRIC SERVICE)
A6: =DATA_PERIOD -> DATA: ____ BASE PERIOD __X__FORECASTED PERIOD | R6: SCHEDULE M-2.3
A7: =TYPE -> TYPE OF FILING: _X_ ORIGINAL ___UPDATED ___ REVISED | R7: ="PAGE 3 OF "&TEXT(Page_Num_2.3,"00") -> PAGE 3 OF 23
A8: WORK PAPER REFERENCE NO(S).: | R8: WITNESS:
A9: =TIME -> 12 Months Projected with Riders | R9: =WIT -> J. L. Kern
A10: =INPUT!B5 -> 
A11: PROPOSED ANNUALIZED
L13: PROPOSED | N13: % OF REV TO | R13: PROPOSED
L14: REVENUE LESS | N14: TOTAL LESS | R14: TOTAL
A15: LINE | C15: RATE | D15: CLASS / | F15: CUSTOMER | J15: PROPOSED | L15: FAC | N15: FAC | P15: FAC | R15: REVENUE
A16: NO. | C16: CODE | D16: DESCRIPTION | F16: BILLS(1) | H16: SALES | J16: RATES | L16: REVENUE | N16: REVENUE | P16: REVENUE (2) | R16: (F + H)
C17: (A) | D17: (B) | F17: (C) | H17: (D) | J17: (E) | L17: (F) | N17: (G) | P17: (H) | R17: (I)
H19: (KW/KWH) | J19: ($/KWH)/ | L19: ($) | N19: (%) | P19: ($) | R19: ($)
A20: 1 | C20: DS | D20: SERVICE AT SECONDARY | J20: ($/KW)
A21: 2 | D21: DISTRIBUTION VOLTAGE
A23: 3 | C23: CUSTOMER CHARGE:
A24: 4 | C24: LOAD MANAGEMENT RIDER | F24: 1850 | J24: =INPUT!D63 -> 5 | L24: =ROUND(F24*J24,0) -> 9250 | N24: =ROUND((L24/L$50)*100,1) -> 0 | R24: =L24+P24 -> 9250
A25: 5 | C25: SINGLE PHASE | F25: 85095 | J25: =INPUT!D48 -> 15 | L25: =ROUND(F25*J25,0) -> 1276425 | N25: =ROUND((L25/L$50)*100,1) -> 1.1 | R25: =L25+P25 -> 1276425
A26: 6 | C26: THREE PHASE | F26: 72669 | J26: =INPUT!D49 -> 30 | L26: =ROUND(F26*J26,0) -> 2180070 | N26: =ROUND((L26/L$50)*100,1) -> 1.9 | R26: =L26+P26 -> 2180070
A27: 7 | C27: TOTAL CUSTOMER CHARGE | F27: =SUM(F25:F26) -> 157764 | L27: =SUM(L24:L26) -> 3465745 | N27: =ROUND((L27/L$50)*100,1) -> 2.9 | R27: =SUM(R24:R26) -> 3465745
A29: 8 | C29: DEMAND CHARGE:
A30: 9 | C30: FIRST 15 KW | H30: 1422691 | J30: =INPUT!D55 -> 0 | L30: =ROUND(H30*J30,0) -> 0 | N30: =ROUND((L30/L$50)*100,1) -> 0 | R30: =L30+P30 -> 0
A31: 10 | C31: ADDITIONAL KW | H31: 2434415 | J31: =INPUT!D56 -> 9.38 | L31: =ROUND(H31*J31,0) -> 22834813 | N31: =ROUND((L31/L$50)*100,1) -> 19.4 | R31: =L31+P31 -> 22834813
A32: 11 | C32: TOTAL DEMAND | H32: =SUM(H30:H31) -> 3857106 | L32: =SUM(L30:L31) -> 22834813 | N32: =ROUND((L32/L$50)*100,1) -> 19.4 | R32: =SUM(R30:R31) -> 22834813
A34: 12 | C34: ENERGY CHARGE (3):
A35: 13 | C35: FIRST 6000 KWH | H35: 387763899 | J35: =INPUT!D51 -> 0.091238 | L35: =ROUND(H35*J35,0)-P35 -> 35378803 | N35: =ROUND((L35/L$50)*100,1) -> 30.1 | R35: =L35+P35 -> 35378803
A36: 14 | C36: NEXT 300KWH/KW | H36: 600468397 | J36: =INPUT!D52 -> 0.056008 | L36: =ROUND(H36*J36,0)-P36 -> 33631034 | N36: 28.6 | R36: =L36+P36 -> 33631034
A37: 15 | C37: ADDITIONAL KWH | H37: 108623566 | J37: =INPUT!D53 -> 0.045866 | L37: =ROUND(H37*J37,0)-P37 -> 4982128 | N37: 4.2 | R37: =L37+P37 -> 4982128
A38: 16 | C38: NON-CHURCH "CAP" RATE | H38: 1454608 | J38: =INPUT!D58 -> 0.269521 | L38: =ROUND(H38*J38,0)-P38 -> 392047 | N38: 0.3 | R38: =L38+P38 -> 392047
A39: 17 | C39: CHURCH CAP RATE | H39: 270136 | J39: =INPUT!D59 -> 0.165461 | L39: =ROUND(H39*J39,0)-P39 -> 44697 | N39: 0 | R39: =L39+P39 -> 44697
A40: 18 | C40: TOTAL ENERGY | H40: =SUM(H35:H39) -> 1098580606 | L40: =SUM(L35:L39) -> 74428709 | N40: 63.3 | R40: =SUM(R35:R39) -> 74428709
A41: 19 | C41: TOTAL RATE DS EXCLUDING RIDERS | F41: =F27 -> 157764 | H41: =H40 -> 1098580606 | L41: =L27+L32+L40 -> 100729267 | N41: 85.6 | R41: =R27+R32+R40 -> 100729267
A43: 20 | C43: RIDERS:
A44: 21 | C44: =DSMR_Name -> DEMAND SIDE MANAGEMENT RIDER (DSMR) | J44: =PRO_DSM_DIST -> 0.005091 | L44: =ROUND($H$41*J44,0) -> 5592874 | N44: =ROUND((L44/L$50)*100,1) -> 4.8 | R44: =L44+P44 -> 5592874
A45: 22 | C45: =ESM_Name -> ENVIRONMENTAL SURCHARGE MECHANISM RIDER (ESM) | L45: =AE100 -> 11491673 | N45: =ROUND((L45/L$50)*100,1) -> 9.8 | R45: =L45+P45 -> 11491673
A46: 23 | C46: =FAC_Name -> FUEL ADJUSTMENT CLAUSE (FAC) | J46: =PRO_FAC -> 0.000681 | P46: =ROUND(H40*J46,0) -> 748133 | R46: =L46+P46 -> 748133
A47: 24 | C47: =PSM_Name -> PROFIT SHARING MECHANISM (PSM) | J47: =PRO_PSM -> -0.000163 | L47: =ROUND(H41*J47,0) -> -179069 | N47: =ROUND((L47/L$50)*100,1) -> -0.2 | R47: =L47+P47 -> -179069
A48: 25 | C48: TOTAL RIDERS | L48: =SUM(L44:L47) -> 16905478 | N48: =ROUND((L48/L$50)*100,1) -> 14.4 | P48: =SUM(P44:P47) -> 748133 | R48: =SUM(R44:R47) -> 17653611
A50: 26 | C50: TOTAL RATE DS INCLUDING RIDERS | F50: =F41 -> 157764 | H50: =H41 -> 1098580606 | L50: =L41+L48 -> 117634745 | N50: 100 | P50: =P41+P48 -> 748133 | R50: =R41+R48 -> 118382878
C52: (1) BILLS THAT TERMINATE IN RESPECTIVE RATE STEPS.
C53: ="(2) REFLECTS FUEL COMPONENT OF "&TEXT(PRO_FAC,"$0.000000;($0.000000)")&" PER KWH." -> (2) REFLECTS FUEL COMPONENT OF $0.000681 PER KWH.
C54: ="(3) REFLECTS FUEL COST RECOVERY INCLUDED IN BASE RATES OF "&TEXT(PRO_BASE_FUEL,"$0.000000;($0.000000)")&" PER KWH." -> (3) REFLECTS FUEL COST RECOVERY INCLUDED IN BASE RATES OF $0.023837 PER KWH.
T56: =NAME -> DUKE ENERGY KENTUCKY, INC.
T57: =CASE_NO -> CASE NO. 2019-00271
T58: =TITLE -> ANNUALIZED TEST YEAR REVENUES AT PROPOSED VS. MOST CURRENT RATES
T59: =DATE -> FOR THE TWELVE MONTHS ENDED March 31, 2021
T60: =SERVICE -> (ELECTRIC SERVICE)
T61: =DATA_PERIOD -> DATA: ____ BASE PERIOD __X__FORECASTED PERIOD | AO61: SCHEDULE M-2.2
T62: =TYPE -> TYPE OF FILING: _X_ ORIGINAL ___UPDATED ___ REVISED | AO62: ="PAGE 3 OF "&TEXT(Page_Num_2.2,"00") -> PAGE 3 OF 22
T63: WORK PAPER REFERENCE NO(S).: | AO63: WITNESS:
T64: =TIME -> 12 Months Projected with Riders | AO64: =WIT -> J. L. Kern
T65: =INPUT!B5 -> 
T66: CURRENT ANNUALIZED
AE68: CURRENT | AG68: % OF REV TO | AI68: REVENUE | AK68: % INCR IN | AO68: CURRENT | AQ68: TOTAL
AC69: MOST | AE69: REVENUE LESS | AG69: TOTAL LESS | AI69: INCR LESS | AK69: REV LESS | AO69: TOTAL | AQ69: REVENUE
T70: LINE | V70: RATE | W70: CLASS / | Y70: CUSTOMER | AC70: CURRENT | AE70: FAC | AG70: FAC | AI70: FAC REV | AK70: FAC REV | AM70: FAC | AO70: REVENUE | AQ70: % INCREASE
T71: NO. | V71: CODE | W71: DESCRIPTION | Y71: BILLS(1) | AA71: SALES | AC71: RATES | AE71: REVENUE | AG71: REVENUE | AI71: (F - K) | AK71: (M / K) | AM71: REVENUE (2) | AO71: (K + H) | AQ71: (M / K1)
V72: (A) | W72: (B) | Y72: (C) | AA72: (D) | AC72: (J) | AE72: (K) | AG72: (L) | AI72: (M) | AK72: (N) | AM72: (H) | AO72: (K1) | AQ72: (O)
AA74: (KW/KWH) | AC74: ($/KWH)/ | AE74: ($) | AG74: (%) | AI74: ($) | AK74: (%) | AM74: ($) | AO74: ($) | AQ74: (%)
T75: =A20 -> 1 | V75: DS | W75: SERVICE AT | AC75: ($/KW)
T76: 2 | W76: DISTRIBUTION VOLTAGE
T78: 3 | V78: CUSTOMER CHARGE:
T79: 4 | V79: LOAD MANAGEMENT RIDER | Y79: =F24 -> 1850 | AC79: =INPUT!C63 -> 5 | AE79: =ROUND(Y79*AC79,0) -> 9250 | AG79: =ROUND((AE79/AE$105)*100,1) -> 0 | AI79: =L24-AE79 -> 0 | AK79: =ROUND((AI79/AE79)*100,1) -> 0 | AO79: =AE79+AM79 -> 9250 | AQ79: =IF(AO79=0,"0.0 ",ROUND((AI79/AO79)*100,1)) -> 0
T80: 5 | V80: SINGLE PHASE | Y80: =F25 -> 85095 | AC80: =INPUT!C48 -> 17.14 | AE80: =ROUND(Y80*AC80,0) -> 1458528 | AG80: =ROUND((AE80/AE$105)*100,1) -> 1.4 | AI80: =L25-AE80 -> -182103 | AK80: =ROUND((AI80/AE80)*100,1) -> -12.5 | AO80: =AE80+AM80 -> 1458528 | AQ80: =IF(AO80=0,"0.0 ",ROUND((AI80/AO80)*100,1)) -> -12.5
T81: 6 | V81: THREE PHASE | Y81: =F26 -> 72669 | AC81: =INPUT!C49 -> 34.28 | AE81: =ROUND(Y81*AC81,0) -> 2491093 | AG81: =ROUND((AE81/AE$105)*100,1) -> 2.3 | AI81: =L26-AE81 -> -311023 | AK81: =ROUND((AI81/AE81)*100,1) -> -12.5 | AO81: =AE81+AM81 -> 2491093 | AQ81: =IF(AO81=0,"0.0 ",ROUND((AI81/AO81)*100,1)) -> -12.5
T82: 7 | V82: TOTAL CUSTOMER CHARGE | Y82: =F27 -> 157764 | AE82: =SUM(AE79:AE81) -> 3958871 | AG82: =ROUND((AE82/AE$105)*100,1) -> 3.7 | AI82: =SUM(AI79:AI81) -> -493126 | AK82: =ROUND((AI82/AE82)*100,1) -> -12.5 | AO82: =SUM(AO79:AO81) -> 3958871 | AQ82: =IF(AO82=0,"0.0 ",ROUND((AI82/AO82)*100,1)) -> -12.5
T84: 8 | V84: DEMAND CHARGE:
T85: 9 | V85: FIRST 15 KW | AA85: =H30 -> 1422691 | AC85: =INPUT!C55 -> 0 | AE85: =ROUND(AA85*AC85,0) -> 0 | AG85: =ROUND((AE85/AE$105)*100,1) -> 0 | AI85: =L30-AE85 -> 0 | AK85: 0 | AO85: =AE85+AM85 -> 0 | AQ85: =IF(AO85=0,"0.0 ",ROUND((AI85/AO85)*100,1)) -> 0.0
T86: 10 | V86: ADDITIONAL KW | AA86: =H31 -> 2434415 | AC86: =INPUT!C56 -> 8.25 | AE86: =ROUND(AA86*AC86,0) -> 20083924 | AG86: =ROUND((AE86/AE$105)*100,1) -> 18.9 | AI86: =L31-AE86 -> 2750889 | AK86: =ROUND((AI86/AE86)*100,1) -> 13.7 | AO86: =AE86+AM86 -> 20083924 | AQ86: =IF(AO86=0,"0.0 ",ROUND((AI86/AO86)*100,1)) -> 13.7
T87: 11 | V87: TOTAL DEMAND | AA87: =H32 -> 3857106 | AE87: =SUM(AE85:AE86) -> 20083924 | AG87: =ROUND((AE87/AE$105)*100,1) -> 18.9 | AI87: =SUM(AI85:AI86) -> 2750889 | AK87: =ROUND((AI87/AE87)*100,1) -> 13.7 | AO87: =SUM(AO85:AO86) -> 20083924 | AQ87: =IF(AO87=0,"0.0 ",ROUND((AI87/AO87)*100,1)) -> 13.7 | AT87: =1-AT95 -> 0.2348773537
T89: 12 | V89: ENERGY CHARGE (3):
T90: 13 | V90: FIRST 6000 KWH | AA90: =H35 -> 387763899 | AC90: =INPUT!C51 -> 0.0802 | AE90: =ROUND((AA90*AC90),0)-AM90 -> 31098665 | AG90: =ROUND((AE90/AE$105)*100,1) -> 29.2 | AI90: =L35-AE90 -> 4280138 | AK90: =ROUND((AI90/AE90)*100,1) -> 13.8 | AO90: =AE90+AM90 -> 31098665 | AQ90: =IF(AO90=0,"0.0 ",ROUND((AI90/AO90)*100,1)) -> 13.8 | AT90: =AO90/SUM($AO$90:$AO$94) -> 0.4753388
T91: 14 | V91: NEXT 300KWH/KW | AA91: 600468397 | AC91: =INPUT!C52 -> 0.049232 | AE91: =ROUND((AA91*AC91),0)-AM91 -> 29562260 | AG91: 27.8 | AI91: =L36-AE91 -> 4068774 | AK91: 13.8 | AO91: =AE91+AM91 -> 29562260 | AQ91: 13.8 | AT91: =AO91/SUM($AO$90:$AO$94) -> 0.4518550618
T92: 15 | V92: ADDITIONAL KWH | AA92: 108623566 | AC92: =INPUT!C53 -> 0.040317 | AE92: =ROUND((AA92*AC92),0)-AM92 -> 4379376 | AG92: 4.1 | AI92: =L37-AE92 -> 602752 | AK92: 13.8 | AO92: =AE92+AM92 -> 4379376 | AQ92: 13.8 | AT92: =AO92/SUM($AO$90:$AO$94) -> 0.0669381574
T93: 16 | V93: NON-CHURCH "CAP" RATE | AA93: 1454608 | AC93: =INPUT!C58 -> 0.236915 | AE93: =ROUND((AA93*AC93),0)-AM93 -> 344618 | AG93: 0.3 | AI93: =L38-AE93 -> 47429 | AK93: 13.8 | AO93: =AE93+AM93 -> 344618 | AQ93: 13.8 | AT93: =AO93/SUM($AO$90:$AO$94) -> 0.005267438541
T94: 17 | V94: CHURCH CAP RATE | AA94: 270136 | AC94: =INPUT!C59 -> 0.145445 | AE94: =ROUND((AA94*AC94),0)-AM94 -> 39290 | AG94: 0 | AI94: =L39-AE94 -> 5407 | AK94: 13.8 | AO94: =AE94+AM94 -> 39290 | AQ94: 13.8 | AT94: =AO94/SUM($AO$90:$AO$94) -> 0.0006005422244
T95: 18 | V95: TOTAL ENERGY | AA95: 1098580606 | AE95: =SUM(AE90:AE94) -> 65424209 | AG95: 61.5 | AI95: =SUM(AI90:AI94) -> 9004500 | AK95: 13.8 | AO95: =SUM(AO90:AO94) -> 65424209 | AQ95: 13.8 | AT95: =AO95/(AO95+AO87) -> 0.7651226463
T96: =A41 -> 19 | V96: TOTAL RATE DS EXCLUDING RIDERS | Y96: =Y82 -> 157764 | AA96: =AA95 -> 1098580606 | AE96: =AE82+AE87+AE95 -> 89467004 | AG96: 84.1 | AI96: =L41-AE96 -> 11262263 | AK96: 12.6 | AO96: =AO82+AO87+AO95 -> 89467004 | AQ96: 12.6
T98: =A43 -> 20 | V98: RIDERS:
T99: 21 | V99: =C44 -> DEMAND SIDE MANAGEMENT RIDER (DSMR) | AC99: =DSM_DIST -> 0.005091 | AE99: =ROUND($AA$95*AC99,0) -> 5592874 | AG99: =ROUND((AE99/AE$105)*100,1) -> 5.3 | AI99: =L44-AE99 -> 0 | AK99: =IFERROR(ROUND((AI99/AE99)*100,1),0) -> 0 | AO99: =AE99+AM99 -> 5592874 | AQ99: 0
T100: 22 | V100: =C45 -> ENVIRONMENTAL SURCHARGE MECHANISM RIDER (ESM) | AC100: =CUR_ESM_NonRes -> 0.1816 | AE100: =ROUND((AO96-CUR_BASE_FUEL*'Rate DS'!AA96)*AC100,0) -> 11491673 | AG100: =ROUND((AE100/AE$105)*100,1) -> 10.8 | AI100: =L45-AE100 -> 0 | AK100: =IFERROR(ROUND((AI100/AE100)*100,1),0) -> 0 | AO100: =AE100+AM100 -> 11491673 | AQ100: =IF(AO100=0,"0.0 ",ROUND((AI100/AO100)*100,1)) -> 0
T101: 23 | V101: =C46 -> FUEL ADJUSTMENT CLAUSE (FAC) | AC101: =CUR_FAC -> 0.000681 | AM101: =ROUND(AA95*CUR_FAC,0) -> 748133 | AO101: =AE101+AM101 -> 748133 | AQ101: =IF(AO101=0,"0.0 ",ROUND(((R46-AO101)/AO101)*100,1)) -> 0
T102: 24 | V102: =C47 -> PROFIT SHARING MECHANISM (PSM) | AC102: =RS_PSM -> -0.000163 | AE102: =ROUND(AA95*AC102,0) -> -179069 | AG102: =ROUND((AE102/AE$105)*100,1) -> -0.2 | AI102: =L47-AE102 -> 0 | AK102: =IFERROR(ROUND((AI102/AE102)*100,1),0) -> 0 | AO102: =AE102+AM102 -> -179069 | AQ102: 0
T103: 25 | V103: TOTAL RIDERS | AE103: =SUM(AE99:AE102) -> 16905478 | AG103: =ROUND((AE103/AE$105)*100,1) -> 15.9 | AI103: =SUM(AI99:AI102) -> 0 | AK103: 0 | AM103: =AM101 -> 748133 | AO103: =SUM(AO99:AO102) -> 17653611 | AQ103: 0
T105: =A50 -> 26 | V105: TOTAL RATE DS INCLUDING RIDERS | Y105: =F50 -> 157764 | AA105: =H50 -> 1098580606 | AE105: =AE96+AE103 -> 106372482 | AG105: 100 | AI105: =AI96+AI103 -> 11262263 | AK105: =ROUND((AI105/AE105)*100,1) -> 10.6 | AM105: =AM96+AM103 -> 748133 | AO105: =AO96+AO103 -> 107120615 | AQ105: =IF(AO105=0,"0.0 ",ROUND((AI105/AO105)*100,1)) -> 10.5
V107: (1) BILLS THAT TERMINATE IN RESPECTIVE RATE STEPS.
V108: ="(2) REFLECTS FUEL COMPONENT OF "&TEXT(CUR_FAC,"$0.000000;($0.000000)")&" PER KWH." -> (2) REFLECTS FUEL COMPONENT OF $0.000681 PER KWH.
V109: ="(3) REFLECTS FUEL COST RECOVERY INCLUDED IN BASE RATES OF "&TEXT(CUR_BASE_FUEL,"$0.000000;($0.000000)")&" PER KWH." -> (3) REFLECTS FUEL COST RECOVERY INCLUDED IN BASE RATES OF $0.023837 PER KWH.

Sheet Rate DT-Pri
A1: =NAME -> DUKE ENERGY KENTUCKY, INC.
A2: =CASE_NO -> CASE NO. 2019-00271
A3: =TITLE -> ANNUALIZED TEST YEAR REVENUES AT PROPOSED VS. MOST CURRENT RATES
A4: =DATE -> FOR THE TWELVE MONTHS ENDED March 31, 2021
A5: =SERVICE -> (ELECTRIC SERVICE)
A6: =DATA_PERIOD -> DATA: ____ BASE PERIOD __X__FORECASTED PERIOD | R6: SCHEDULE M-2.3
A7: =TYPE -> TYPE OF FILING: _X_ ORIGINAL ___UPDATED ___ REVISED | R7: ="PAGE 4 OF "&TEXT(Page_Num_2.3,"00") -> PAGE 4 OF 23
A8: WORK PAPER REFERENCE NO(S).: | R8: WITNESS:
A9: =TIME -> 12 Months Projected with Riders | R9: =WIT -> J. L. Kern
A10: =INPUT!B5 -> 
A11: PROPOSED ANNUALIZED
L13: PROPOSED | N13: % OF REV TO | R13: PROPOSED
L14: REVENUE LESS | N14: TOTAL LESS | R14: TOTAL
A15: LINE | C15: RATE | D15: CLASS / | F15: CUSTOMER | J15: PROPOSED | L15: FAC | N15: FAC | P15: FAC | R15: REVENUE
A16: NO. | C16: CODE | D16: DESCRIPTION | F16: BILLS(1) | H16: SALES | J16: RATES | L16: REVENUE | N16: REVENUE | P16: REVENUE (2) | R16: (F + H)
C17: (A) | D17: (B) | F17: (C) | H17: (D) | J17: (E) | L17: (F) | N17: (G) | P17: (H) | R17: (I)
H19: (KW/KWH) | J19: ($/KWH)/ | L19: ($) | N19: (%) | P19: ($) | R19: ($)
A20: 1 | C20: DT-PRI | D20: TIME OF DAY PRIMARY | J20: ($/KW)
A21: 2 | C21: SUMMER:
A22: 3 | C22: CUSTOMER CHARGE:
A23: 4 | C23: PRIMARY VOLTAGE | F23: 152 | J23: =INPUT!D70 -> 138 | L23: =ROUND(+F23*J23,0) -> 20976 | N23: =ROUND((+L23/$L$63)*100,1) -> 0.1 | R23: =L23+P23 -> 20976
A24: 5 | C24: TOTAL CUSTOMER CHARGE | F24: =SUM(F23:F23) -> 152 | L24: =SUM(L23:L23) -> 20976 | N24: =ROUND((+L24/$L$63)*100,1) -> 0.1 | R24: =SUM(R23:R23) -> 20976
A25: 6 | C25: DEMAND CHARGE:
A26: 7 | C26: ON PEAK KW | H26: 316210 | J26: =INPUT!D76 -> 15.45 | L26: =ROUND(+H26*J26,0) -> 4885445 | N26: =ROUND((+L26/$L$63)*100,1) -> 12.6 | R26: =L26+P26 -> 4885445
A27: 8 | C27: OFF PEAK KW | H27: 17953 | J27: =INPUT!D77 -> 1.39 | L27: =ROUND(+H27*J27,0) -> 24955 | N27: =ROUND((+L27/$L$63)*100,1) -> 0.1 | R27: =L27+P27 -> 24955
A28: 9 | C28: SUB-TOTAL | H28: =SUM(H26:H27) -> 334163 | L28: =SUM(L26:L27) -> 4910400 | N28: =ROUND((+L28/$L$63)*100,1) -> 12.6 | R28: =SUM(R26:R27) -> 4910400
A29: 10 | C29: PRIMARY SERV. DIS.
A30: 11 | C30: FIRST 1000 KW | H30: 125344 | J30: =INPUT!D80 -> -0.78 | L30: =ROUND(+H30*J30,0) -> -97768 | N30: =ROUND((+L30/$L$63)*100,1) -> -0.3 | R30: =L30+P30 -> -97768
A31: 12 | C31: ADDITIONAL KW | H31: 208819 | J31: =INPUT!D81 -> -0.61 | L31: =ROUND(+H31*J31,0) -> -127380 | N31: =ROUND((+L31/$L$63)*100,1) -> -0.3 | R31: =L31+P31 -> -127380
A32: 13 | C32: TOTAL DEMAND | H32: =SUM(H30:H31) -> 334163 | L32: =L28+L30+L31 -> 4685252 | N32: =ROUND((+L32/$L$63)*100,1) -> 12.1 | R32: =R28+R30+R31 -> 4685252
A33: 14 | C33: ENERGY CHARGE (3):
A34: 15 | C34: ON PEAK KWH | H34: 47406405 | J34: =INPUT!D72 -> 0.048712 | L34: =ROUND((+H34*J34),0)-P34 -> 2309261 | N34: =ROUND((+L34/$L$63)*100,1) -> 5.9 | R34: =L34+P34 -> 2309261
A35: 16 | C35: OFF PEAK KWH | H35: 121762096 | J35: =INPUT!D74 -> 0.03989 | L35: =ROUND((+H35*J35),0)-P35 -> 4857090 | N35: =ROUND((+L35/$L$63)*100,1) -> 12.5 | R35: =L35+P35 -> 4857090
A36: 17 | C36: TOTAL SUMMER | F36: =F24 -> 152 | H36: =H34+H35 -> 169168501 | L36: =L24+L32+L34+L35 -> 11872579 | N36: =ROUND((+L36/$L$63)*100,1) -> 30.6 | R36: =R24+R32+R34+R35 -> 11872579
A38: 18 | C38: WINTER: | H38: =185857814-185857934 -> -120
A39: 19 | C39: CUSTOMER CHARGE:
A40: 20 | C40: PRIMARY VOLTAGE | F40: 303 | J40: =J23 -> 138 | L40: =ROUND(+F40*J40,0) -> 41814 | N40: =ROUND((+L40/$L$63)*100,1) -> 0.1 | R40: =L40+P40 -> 41814
A41: 21 | C41: TOTAL CUSTOMER CHARGE | F41: =SUM(F40:F40) -> 303 | L41: =SUM(L40:L40) -> 41814 | N41: =ROUND((+L41/$L$63)*100,1) -> 0.1 | R41: =SUM(R40:R40) -> 41814
A42: 22 | C42: DEMAND CHARGE:
A43: 23 | C43: ON PEAK KW | H43: 595945 | J43: =INPUT!D78 -> 14.62 | L43: =ROUND(+H43*J43,0) -> 8712716 | N43: =ROUND((+L43/$L$63)*100,1) -> 22.4 | R43: =L43+P43 -> 8712716
A44: 24 | C44: OFF PEAK KW | H44: 38057 | J44: =INPUT!D79 -> 1.39 | L44: =ROUND(+H44*J44,0) -> 52899 | N44: =ROUND((+L44/$L$63)*100,1) -> 0.1 | R44: =L44+P44 -> 52899
A45: 25 | C45: SUB-TOTAL | H45: =SUM(H43:H44) -> 634002 | L45: =SUM(L43:L44) -> 8765615 | N45: =ROUND((+L45/$L$63)*100,1)+0.1 -> 22.7 | R45: =SUM(R43:R44) -> 8765615
A46: 26 | C46: PRIMARY SERV. DIS.
A47: 27 | C47: FIRST 1000 KW | H47: 276544 | J47: =J30 -> -0.78 | L47: =ROUND(+H47*J47,0) -> -215704 | N47: =ROUND((+L47/$L$63)*100,1) -> -0.6 | R47: =L47+P47 -> -215704
A48: 28 | C48: ADDITIONAL KW | H48: 357459 | J48: =J31 -> -0.61 | L48: =ROUND(+H48*J48,0) -> -218050 | N48: =ROUND((+L48/$L$63)*100,1) -> -0.6 | R48: =L48+P48 -> -218050
A49: 29 | C49: TOTAL DEMAND | H49: =SUM(H47:H48) -> 634003 | L49: =L45+L47+L48 -> 8331861 | N49: =ROUND((+L49/$L$63)*100,1) -> 21.4 | R49: =R45+R47+R48 -> 8331861
A50: 30 | C50: ENERGY CHARGE (3):
A51: 31 | C51: ON PEAK KWH | H51: 84879504 | J51: =INPUT!D73 -> 0.046499 | L51: =ROUND((+H51*J51),0)-P51 -> 3946812 | N51: =ROUND((+L51/$L$63)*100,1) -> 10.2 | R51: =L51+P51 -> 3946812
A52: 32 | C52: OFF PEAK KWH | H52: 225689374 | J52: =J35 -> 0.03989 | L52: =ROUND((+H52*J52),0)-P52 -> 9002749 | N52: =ROUND((+L52/$L$63)*100,1)-0.1 -> 23.1 | R52: =L52+P52 -> 9002749
A53: 33 | C53: TOTAL WINTER | F53: =F41 -> 303 | H53: =H51+H52 -> 310568878 | L53: =L41+L49+L51+L52 -> 21323236 | N53: =ROUND((+L53/$L$63)*100,1) -> 54.9 | R53: =R41+R49+R51+R52 -> 21323236
A54: 34 | C54: TOTAL RATE DT PRIMARY EXCLUDING RIDERS | F54: =F36+F53 -> 455 | H54: =H36+H53 -> 479737379 | L54: =L36+L53 -> 33195815 | N54: =ROUND((+L54/$L$63)*100,1) -> 85.4 | R54: =L54+P54 -> 33195815
A56: 35 | C56: RIDERS:
A57: 36 | C57: =DSMR_Name -> DEMAND SIDE MANAGEMENT RIDER (DSMR) | J57: =PRO_DSM_DIST -> 0.005091 | L57: =ROUND($H$54*J57,0) -> 2442343 | N57: =ROUND((+L57/$L$63)*100,1) -> 6.3 | R57: =L57+P57 -> 2442343
A58: 37 | C58: =ESM_Name -> ENVIRONMENTAL SURCHARGE MECHANISM RIDER (ESM) | L58: =AE128 -> 3301791 | N58: =ROUND((+L58/$L$63)*100,1) -> 8.5 | R58: =L58+P58 -> 3301791
A59: 38 | C59: =FAC_Name -> FUEL ADJUSTMENT CLAUSE (FAC) | J59: =PRO_FAC -> 0.000681 | P59: =ROUND(H54*PRO_FAC,0) -> 326701 | R59: =L59+P59 -> 326701
A60: 39 | C60: =PSM_Name -> PROFIT SHARING MECHANISM (PSM) | J60: =PRO_PSM -> -0.000163 | L60: =ROUND(H54*PRO_PSM,0) -> -78197 | N60: =ROUND((+L60/$L$63)*100,1) -> -0.2 | R60: =L60+P60 -> -78197
A61: 40 | C61: TOTAL RIDERS | L61: =SUM(L57:L60) -> 5665937 | N61: =ROUND((+L61/$L$63)*100,1) -> 14.6 | P61: =SUM(P57:P60) -> 326701 | R61: =SUM(R57:R60) -> 5992638
A63: 41 | C63: TOTAL RATE DT PRIMARY INCLUDING RIDERS | F63: =F54 -> 455 | H63: =H54 -> 479737379 | L63: =L54+L61 -> 38861752 | N63: 100 | P63: =P54+P61 -> 326701 | R63: =R54+R61 -> 39188453
C65: (1) BILLS THAT TERMINATE IN RESPECTIVE RATE STEPS.
C66: ="(2) REFLECTS FUEL COMPONENT OF "&TEXT(PRO_FAC,"$0.000000;($0.000000)")&" PER KWH." -> (2) REFLECTS FUEL COMPONENT OF $0.000681 PER KWH.
C67: ="(3) REFLECTS FUEL COST RECOVERY INCLUDED IN BASE RATES OF "&TEXT(PRO_BASE_FUEL,"$0.000000;($0.000000)")&" PER KWH." -> (3) REFLECTS FUEL COST RECOVERY INCLUDED IN BASE RATES OF $0.023837 PER KWH.
T71: =NAME -> DUKE ENERGY KENTUCKY, INC.
T72: =CASE_NO -> CASE NO. 2019-00271
T73: =TITLE -> ANNUALIZED TEST YEAR REVENUES AT PROPOSED VS. MOST CURRENT RATES
T74: =DATE -> FOR THE TWELVE MONTHS ENDED March 31, 2021
T75: =SERVICE -> (ELECTRIC SERVICE)
T76: =DATA_PERIOD -> DATA: ____ BASE PERIOD __X__FORECASTED PERIOD | AO76: SCHEDULE M-2.2
T77: =TYPE -> TYPE OF FILING: _X_ ORIGINAL ___UPDATED ___ REVISED | AO77: ="PAGE 4 OF "&TEXT(Page_Num_2.2,"00") -> PAGE 4 OF 22
T78: WORK PAPER REFERENCE NO(S).: | AO78: WITNESS:
T79: =TIME -> 12 Months Projected with Riders | AO79: =WIT -> J. L. Kern
T80: =INPUT!B5 -> 
T81: CURRENT ANNUALIZED
AE83: CURRENT | AG83: % OF REV TO | AI83: REVENUE | AK83: % INCR IN | AO83: CURRENT | AQ83: TOTAL
AC84: MOST | AE84: REVENUE LESS | AG84: TOTAL LESS | AI84: INCR LESS | AK84: REV LESS | AO84: TOTAL | AQ84: REVENUE
T85: LINE | V85: RATE | W85: CLASS / | Y85: CUSTOMER | AC85: CURRENT | AE85: FAC | AG85: FAC | AI85: FAC REV | AK85: FAC REV | AM85: FAC | AO85: REVENUE | AQ85: % INCREASE
T86: NO. | V86: CODE | W86: DESCRIPTION | Y86: BILLS(1) | AA86: SALES | AC86: RATES | AE86: REVENUE | AG86: REVENUE | AI86: (F - K) | AK86: (M / K) | AM86: REVENUE (2) | AO86: (K + H) | AQ86: (M / K1)
V87: (A) | W87: (B) | Y87: (C) | AA87: (D) | AC87: (J) | AE87: (K) | AG87: (L) | AI87: (M) | AK87: (N) | AM87: (H) | AO87: (K1) | AQ87: (O)
AA89: (KW/KWH) | AC89: ($/KWH)/ | AE89: ($) | AG89: (%) | AI89: ($) | AK89: (%) | AM89: ($) | AO89: ($) | AQ89: (%)
T90: 1 | V90: DT-PRI | W90: TIME OF DAY PRIMARY | AC90: ($/KW)
T91: 2 | V91: SUMMER:
T92: 3 | V92: CUSTOMER CHARGE:
T93: 4 | V93: PRIMARY VOLTAGE | Y93: =F23 -> 152 | AC93: =INPUT!C70 -> 138 | AE93: =ROUND(+Y93*AC93,0) -> 20976 | AG93: =ROUND((+AE93/$AE$133)*100,1) -> 0.1 | AI93: =L23-AE93 -> 0 | AK93: =IF(AE93=0,0,ROUND((AI93/AE93)*100,1)) -> 0 | AO93: =AE93+AM93 -> 20976 | AQ93: =ROUND((+AI93/AO93)*100,1) -> 0
T94: 5 | V94: TOTAL CUSTOMER CHARGE | Y94: =F24 -> 152 | AE94: =SUM(AE93:AE93) -> 20976 | AG94: =ROUND((+AE94/$AE$133)*100,1) -> 0.1 | AI94: =SUM(AI93:AI93) -> 0 | AK94: =IF(AE94=0,0,ROUND((AI94/AE94)*100,1)) -> 0 | AO94: =SUM(AO93:AO93) -> 20976 | AQ94: =ROUND((+AI94/AO94)*100,1) -> 0
T95: 6 | V95: DEMAND CHARGE:
T96: 7 | V96: ON PEAK KW | AA96: =H26 -> 316210 | AC96: =INPUT!C76 -> 13.78 | AE96: =ROUND(+AA96*AC96,0) -> 4357374 | AG96: =ROUND((+AE96/$AE$133)*100,1) -> 12.3 | AI96: =L26-AE96 -> 528071 | AK96: =IF(AE96=0,0,ROUND((AI96/AE96)*100,1)) -> 12.1 | AO96: =AE96+AM96 -> 4357374 | AQ96: 0
T97: 8 | V97: OFF PEAK KW | AA97: =H27 -> 17953 | AC97: =INPUT!C77 -> 1.24 | AE97: =ROUND(+AA97*AC97,0) -> 22262 | AG97: =ROUND((+AE97/$AE$133)*100,1) -> 0.1 | AI97: =L27-AE97 -> 2693 | AK97: 12.1 | AO97: =AE97+AM97 -> 22262 | AQ97: =ROUND((+AI97/AO97)*100,1) -> 12.1
T98: 9 | V98: SUB-TOTAL | AA98: =H28 -> 334163 | AE98: =SUM(AE96:AE97) -> 4379636 | AG98: =ROUND((+AE98/$AE$133)*100,1) -> 12.4 | AI98: =SUM(AI96:AI97) -> 530764 | AK98: 12.1 | AO98: =SUM(AO96:AO97) -> 4379636 | AQ98: =ROUND((+AI98/AO98)*100,1) -> 12.1
T99: 10 | V99: PRIMARY SERV. DIS.
T100: 11 | V100: FIRST 1000 KW | AA100: =H30 -> 125344 | AC100: =INPUT!C80 -> -0.7 | AE100: =ROUND(+AA100*AC100,0) -> -87741 | AG100: =ROUND((+AE100/$AE$133)*100,1) -> -0.2 | AI100: =L30-AE100 -> -10027 | AK100: 11.4 | AO100: =AE100+AM100 -> -87741 | AQ100: =ROUND((+AI100/AO100)*100,1) -> 11.4
T101: 12 | V101: ADDITIONAL KW | AA101: =H31 -> 208819 | AC101: =INPUT!C81 -> -0.54 | AE101: =ROUND(+AA101*AC101,0) -> -112762 | AG101: =ROUND((+AE101/$AE$133)*100,1) -> -0.3 | AI101: =L31-AE101 -> -14618 | AK101: 13 | AO101: =AE101+AM101 -> -112762 | AQ101: =ROUND((+AI101/AO101)*100,1) -> 13
T102: 13 | V102: TOTAL DEMAND | AA102: =H32 -> 334163 | AE102: =AE98+AE100+AE101 -> 4179133 | AG102: =ROUND((+AE102/$AE$133)*100,1) -> 11.8 | AI102: =AI98+AI100+AI101 -> 506119 | AK102: 12.1 | AO102: =AO98+AO100+AO101 -> 4179133 | AQ102: =ROUND((+AI102/AO102)*100,1) -> 12.1
T103: 14 | V103: ENERGY CHARGE (3):
T104: 15 | V104: ON PEAK KWH | AA104: =H34 -> 47406405 | AC104: =INPUT!C72 -> 0.04345 | AE104: =ROUND((+AA104*AC104),0)-AM104 -> 2059808 | AG104: =ROUND((+AE104/$AE$133)*100,1) -> 5.8 | AI104: =L34-AE104 -> 249453 | AK104: =IF(AE104=0,0,ROUND((AI104/AE104)*100,1)) -> 12.1 | AO104: =AE104+AM104 -> 2059808 | AQ104: =ROUND((+AI104/AO104)*100,1) -> 12.1
T105: 16 | V105: OFF PEAK KWH | AA105: =H35 -> 121762096 | AC105: =INPUT!C74 -> 0.035582 | AE105: =ROUND((+AA105*AC105),0)-AM105 -> 4332539 | AG105: =ROUND((+AE105/$AE$133)*100,1) -> 12.3 | AI105: =L35-AE105 -> 524551 | AK105: 12.1 | AO105: =AE105+AM105 -> 4332539 | AQ105: =ROUND((+AI105/AO105)*100,1) -> 12.1
T106: 17 | V106: TOTAL SUMMER | Y106: =F36 -> 152 | AA106: =H36 -> 169168501 | AE106: =AE94+AE102+AE104+AE105 -> 10592456 | AG106: =ROUND((+AE106/$AE$133)*100,1) -> 30 | AI106: =AI94+AI102+AI104+AI105 -> 1280123 | AK106: 12.1 | AO106: =AO94+AO102+AO104+AO105 -> 10592456 | AQ106: =ROUND((+AI106/AO106)*100,1) -> 12.1
T108: 18 | V108: WINTER:
T109: 19 | V109: CUSTOMER CHARGE:
T110: 20 | V110: PRIMARY VOLTAGE | Y110: =F40 -> 303 | AC110: =AC93 -> 138 | AE110: =ROUND(+Y110*AC110,0) -> 41814 | AG110: =ROUND((+AE110/$AE$133)*100,1) -> 0.1 | AI110: =L40-AE110 -> 0 | AK110: =IF(AE110=0,0,ROUND((AI110/AE110)*100,1)) -> 0 | AO110: =AE110+AM110 -> 41814 | AQ110: =ROUND((+AI110/AO110)*100,1) -> 0
T111: 21 | V111: TOTAL CUSTOMER CHARGE | Y111: =F41 -> 303 | AE111: =SUM(AE110:AE110) -> 41814 | AG111: =ROUND((+AE111/$AE$133)*100,1) -> 0.1 | AI111: =SUM(AI110:AI110) -> 0 | AK111: =IF(AE111=0,0,ROUND((AI111/AE111)*100,1)) -> 0 | AO111: =SUM(AO110:AO110) -> 41814 | AQ111: =ROUND((+AI111/AO111)*100,1) -> 0
T112: 22 | V112: DEMAND CHARGE:
T113: 23 | V113: ON PEAK KW | AA113: =H43 -> 595945 | AC113: =INPUT!C78 -> 13.04 | AE113: =ROUND(+AA113*AC113,0) -> 7771123 | AG113: =ROUND((+AE113/$AE$133)*100,1) -> 22 | AI113: =L43-AE113 -> 941593 | AK113: =IF(AE113=0,0,ROUND((AI113/AE113)*100,1)) -> 12.1 | AO113: =AE113+AM113 -> 7771123 | AQ113: 0
T114: 24 | V114: OFF PEAK KW | AA114: =H44 -> 38057 | AC114: =INPUT!C79 -> 1.24 | AE114: =ROUND(+AA114*AC114,0) -> 47191 | AG114: =ROUND((+AE114/$AE$133)*100,1) -> 0.1 | AI114: =L44-AE114 -> 5708 | AK114: =IF(AE114=0,0,ROUND((AI114/AE114)*100,1)) -> 12.1 | AO114: =AE114+AM114 -> 47191 | AQ114: =ROUND((+AI114/AO114)*100,1) -> 12.1
T115: 25 | V115: SUB-TOTAL | AA115: =H45 -> 634002 | AE115: =SUM(AE113:AE114) -> 7818314 | AG115: =ROUND((+AE115/$AE$133)*100,1) -> 22.2 | AI115: =SUM(AI113:AI114) -> 947301 | AK115: =IF(AE115=0,0,ROUND((AI115/AE115)*100,1)) -> 12.1 | AO115: =SUM(AO113:AO114) -> 7818314 | AQ115: =ROUND((+AI115/AO115)*100,1) -> 12.1
T116: 26 | V116: PRIMARY SERV. DIS.
T117: 27 | V117: FIRST 1000 KW | AA117: =H47 -> 276544 | AC117: =AC100 -> -0.7 | AE117: =ROUND(+AA117*AC117,0) -> -193581 | AG117: =ROUND((+AE117/$AE$133)*100,1) -> -0.5 | AI117: =L47-AE117 -> -22123 | AK117: =IF(AE117=0,0,ROUND((AI117/AE117)*100,1)) -> 11.4 | AO117: =AE117+AM117 -> -193581 | AQ117: =ROUND((+AI117/AO117)*100,1) -> 11.4
T118: 28 | V118: ADDITIONAL KW | AA118: =H48 -> 357459 | AC118: =AC101 -> -0.54 | AE118: =ROUND(+AA118*AC118,0) -> -193028 | AG118: =ROUND((+AE118/$AE$133)*100,1) -> -0.5 | AI118: =L48-AE118 -> -25022 | AK118: =IF(AE118=0,0,ROUND((AI118/AE118)*100,1)) -> 13 | AO118: =AE118+AM118 -> -193028 | AQ118: =ROUND((+AI118/AO118)*100,1) -> 13
T119: 29 | V119: TOTAL DEMAND | AA119: =H49 -> 634003 | AE119: =AE115+AE117+AE118 -> 7431705 | AG119: =ROUND((+AE119/$AE$133)*100,1) -> 21.1 | AI119: =AI115+AI117+AI118 -> 900156 | AK119: =IF(AE119=0,0,ROUND((AI119/AE119)*100,1)) -> 12.1 | AO119: =AO115+AO117+AO118 -> 7431705 | AQ119: =ROUND((+AI119/AO119)*100,1) -> 12.1
T120: 30 | V120: ENERGY CHARGE (3):
T121: 31 | V121: ON PEAK KWH | AA121: =H51 -> 84879504 | AC121: =INPUT!C73 -> 0.041479 | AE121: =ROUND((+AA121*AC121),0)-AM121 -> 3520717 | AG121: =ROUND((+AE121/$AE$133)*100,1) -> 10 | AI121: =L51-AE121 -> 426095 | AK121: =IF(AE121=0,0,ROUND((AI121/AE121)*100,1)) -> 12.1 | AO121: =AE121+AM121 -> 3520717 | AQ121: =ROUND((+AI121/AO121)*100,1) -> 12.1
T122: 32 | V122: OFF PEAK KWH | AA122: =H52 -> 225689374 | AC122: =AC105 -> 0.035582 | AE122: =ROUND((+AA122*AC122),0)-AM122 -> 8030479 | AG122: =ROUND((+AE122/$AE$133)*100,1) -> 22.8 | AI122: =L52-AE122 -> 972270 | AK122: =IF(AE122=0,0,ROUND((AI122/AE122)*100,1)) -> 12.1 | AO122: =AE122+AM122 -> 8030479 | AQ122: =ROUND((+AI122/AO122)*100,1) -> 12.1
T123: 33 | V123: TOTAL WINTER | Y123: =F53 -> 303 | AA123: =H53 -> 310568878 | AE123: =AE111+AE119+AE121+AE122 -> 19024715 | AG123: =ROUND((+AE123/$AE$133)*100,1) -> 53.9 | AI123: =AI111+AI119+AI121+AI122 -> 2298521 | AK123: =IF(AE123=0,0,ROUND((AI123/AE123)*100,1)) -> 12.1 | AO123: =AO111+AO119+AO121+AO122 -> 19024715 | AQ123: =ROUND((+AI123/AO123)*100,1) -> 12.1
T124: 34 | V124: TOTAL RATE DT PRIMARY EXCLUDING RIDERS | Y124: =Y106+Y123 -> 455 | AA124: =AA106+AA123 -> 479737379 | AE124: =AE123+AE106 -> 29617171 | AG124: =ROUND((+AE124/$AE$133)*100,1) -> 83.9 | AI124: =AI123+AI106 -> 3578644 | AK124: =IF(AE124=0,0,ROUND((AI124/AE124)*100,1)) -> 12.1 | AO124: =AO123+AO106 -> 29617171 | AQ124: =ROUND((+AI124/AO124)*100,1) -> 12.1
T126: =A56 -> 35 | V126: RIDERS:
T127: 36 | V127: =C57 -> DEMAND SIDE MANAGEMENT RIDER (DSMR) | AC127: =DSM_DIST -> 0.005091 | AE127: =ROUND($AA$124*AC127,0) -> 2442343 | AG127: =ROUND((+AE127/$AE$133)*100,1) -> 6.9 | AI127: =L57-AE127 -> 0 | AK127: =IF(AE127=0,0,ROUND((AI127/AE127)*100,1)) -> 0 | AO127: =AE127+AM127 -> 2442343 | AQ127: =IF(AO127=0,0,ROUND((+AI127/AO127)*100,1)) -> 0
T128: 37 | V128: =C58 -> ENVIRONMENTAL SURCHARGE MECHANISM RIDER (ESM) | AC128: =CUR_ESM_NonRes -> 0.1816 | AE128: =ROUND((AO124-CUR_BASE_FUEL*AA124)*AC128,0) -> 3301791 | AG128: =ROUND((+AE128/$AE$133)*100,1) -> 9.4 | AI128: =L58-AE128 -> 0 | AK128: =IF(AE128=0,0,ROUND((AI128/AE128)*100,1)) -> 0 | AO128: =AE128+AM128 -> 3301791 | AQ128: =IF(AO128=0,0,ROUND((+AI128/AO128)*100,1)) -> 0
T129: 38 | V129: =C59 -> FUEL ADJUSTMENT CLAUSE (FAC) | AC129: =CUR_FAC -> 0.000681 | AM129: =ROUND(AA124*CUR_FAC,0) -> 326701 | AO129: =AE129+AM129 -> 326701 | AQ129: =IF(AO129=0,0,ROUND((+AI129/AO129)*100,1)) -> 0
T130: 39 | V130: =C60 -> PROFIT SHARING MECHANISM (PSM) | AC130: =RS_PSM -> -0.000163 | AE130: =ROUND(AA124*RS_PSM,0) -> -78197 | AG130: =ROUND((+AE130/$AE$133)*100,1) -> -0.2 | AI130: =L60-AE130 -> 0 | AK130: =IF(AE130=0,0,ROUND((AI130/AE130)*100,1)) -> 0 | AO130: =AE130+AM130 -> -78197 | AQ130: =IF(AO130=0,0,ROUND((+AI130/AO130)*100,1)) -> 0
T131: 40 | V131: TOTAL RIDERS | AE131: =SUM(AE127:AE130) -> 5665937 | AG131: =ROUND((+AE131/$AE$133)*100,1) -> 16.1 | AI131: =SUM(AI127:AI130) -> 0 | AK131: =IF(AE131=0,0,ROUND((AI131/AE131)*100,1)) -> 0 | AM131: =AM129 -> 326701 | AO131: =SUM(AO127:AO130) -> 5992638 | AQ131: =ROUND((+AI131/AO131)*100,1) -> 0
T133: =A63 -> 41 | V133: TOTAL RATE DT PRIMARY INCLUDING RIDERS | Y133: =F63 -> 455 | AA133: =H63 -> 479737379 | AE133: =AE124+AE131 -> 35283108 | AG133: 100 | AI133: =AI124+AI131 -> 3578644 | AK133: =IF(AE133=0,0,ROUND((AI133/AE133)*100,1)) -> 10.1 | AM133: =AM124+AM131 -> 326701 | AO133: =AO124+AO131 -> 35609809 | AQ133: =ROUND((+AI133/AO133)*100,1) -> 10
V135: (1) BILLS THAT TERMINATE IN RESPECTIVE RATE STEPS.
V136: ="(2) REFLECTS FUEL COMPONENT OF "&TEXT(CUR_FAC,"$0.000000;($0.000000)")&" PER KWH." -> (2) REFLECTS FUEL COMPONENT OF $0.000681 PER KWH.
V137: ="(3) REFLECTS FUEL COST RECOVERY INCLUDED IN BASE RATES OF "&TEXT(CUR_BASE_FUEL,"$0.000000;($0.000000)")&" PER KWH." -> (3) REFLECTS FUEL COST RECOVERY INCLUDED IN BASE RATES OF $0.023837 PER KWH.

Sheet Rate DT-Sec
A1: =NAME -> DUKE ENERGY KENTUCKY, INC.
A2: =CASE_NO -> CASE NO. 2019-00271
A3: =TITLE -> ANNUALIZED TEST YEAR REVENUES AT PROPOSED VS. MOST CURRENT RATES
A4: =DATE -> FOR THE TWELVE MONTHS ENDED March 31, 2021
A5: =SERVICE -> (ELECTRIC SERVICE)
A6: =DATA_PERIOD -> DATA: ____ BASE PERIOD __X__FORECASTED PERIOD | R6: SCHEDULE M-2.3
A7: =TYPE -> TYPE OF FILING: _X_ ORIGINAL ___UPDATED ___ REVISED | R7: ="PAGE 5 OF "&TEXT(Page_Num_2.3,"00") -> PAGE 5 OF 23
A8: WORK PAPER REFERENCE NO(S).: | R8: WITNESS:
A9: =TIME -> 12 Months Projected with Riders | R9: =WIT -> J. L. Kern
A10: =INPUT!B5 -> 
A11: PROPOSED ANNUALIZED
L13: PROPOSED | N13: % OF REV TO | R13: PROPOSED
L14: REVENUE LESS | N14: TOTAL LESS | R14: TOTAL
A15: LINE | C15: RATE | D15: CLASS / | F15: CUSTOMER | J15: PROPOSED | L15: FAC | N15: FAC | P15: FAC | R15: REVENUE
A16: NO. | C16: CODE | D16: DESCRIPTION | F16: BILLS(1) | H16: SALES | J16: RATES | L16: REVENUE | N16: REVENUE | P16: REVENUE (2) | R16: (F + H)
C17: (A) | D17: (B) | F17: (C) | H17: (D) | J17: (E) | L17: (F) | N17: (G) | P17: (H) | R17: (I)
H19: (KW/KWH) | J19: ($/KWH)/ | L19: ($) | N19: (%) | P19: ($) | R19: ($)
A20: 1 | C20: DT-SEC | D20: TIME OF DAY SECONDARY | J20: ($/KW)
A21: 2 | C21: SUMMER:
A22: 3 | C22: CUSTOMER CHARGE:
A23: 4 | C23: SINGLE PHASE | F23: 0 | J23: =INPUT!D68 -> 65 | L23: =ROUND(+F23*J23,0) -> 0 | N23: =ROUND((+L23/$L$61)*100,1) -> 0 | R23: =L23+P23 -> 0
A24: 5 | C24: THREE PHASE | F24: 634 | J24: =INPUT!D69 -> 130 | L24: =ROUND(+F24*J24,0) -> 82420 | N24: =ROUND((+L24/$L$61)*100,1) -> 0.1 | R24: =L24+P24 -> 82420
A25: 6 | C25: TOTAL CUSTOMER CHARGE | F25: =SUM(F23:F24) -> 634 | L25: =SUM(L23:L24) -> 82420 | N25: =ROUND((+L25/$L$61)*100,1) -> 0.1 | R25: =SUM(R23:R24) -> 82420
A27: 7 | C27: DEMAND CHARGE:
A28: 8 | C28: ON PEAK KW | H28: 525253 | J28: =PRO_DT_SUM_PEAK -> 15.45 | L28: =ROUND(+H28*J28,0) -> 8115159 | N28: =ROUND((+L28/$L$61)*100,1) -> 13.3 | R28: =L28+P28 -> 8115159
A29: 9 | C29: OFF PEAK KW | H29: 13915 | J29: =PRO_DT_SUM_PK_OFF -> 1.39 | L29: =ROUND(+H29*J29,0) -> 19342 | N29: =ROUND((+L29/$L$61)*100,1) -> 0 | R29: =L29+P29 -> 19342
A30: 10 | C30: TOTAL DEMAND | H30: =SUM(H28:H29) -> 539168 | L30: =SUM(L28:L29) -> 8134501 | N30: =ROUND((+L30/$L$61)*100,1) -> 13.4 | R30: =SUM(R28:R29) -> 8134501
A32: 11 | C32: ENERGY CHARGE (3):
A33: 12 | C33: ON PEAK KWH | H33: 72442514 | J33: =PRO_DT_SUM_E_ON -> 0.048712 | L33: =ROUND((+H33*J33),0)-P33 -> 3528820 | N33: =ROUND((+L33/$L$61)*100,1) -> 5.8 | R33: =L33+P33 -> 3528820
A34: 13 | C34: OFF PEAK KWH | H34: 172060887 | J34: =PRO_DT_SUM_E_OFF -> 0.03989 | L34: =ROUND((+H34*J34),0)-P34 -> 6863509 | N34: =ROUND((+L34/$L$61)*100,1) -> 11.3 | R34: =L34+P34 -> 6863509
A35: 14 | C35: TOTAL SUMMER | F35: =F25 -> 634 | H35: =H33+H34 -> 244503401 | L35: =L25+L30+L33+L34 -> 18609250 | N35: =ROUND((+L35/$L$61)*100,1) -> 30.6 | R35: =R25+R30+R33+R34 -> 18609250
A37: 15 | C37: WINTER: | H37: =185857814-185857934 -> -120
A38: 16 | C38: CUSTOMER CHARGE:
A39: 17 | C39: SINGLE PHASE | F39: =F23 -> 0 | J39: =J23 -> 65 | L39: =ROUND(+F39*J39,0) -> 0 | N39: =ROUND((+L39/$L$61)*100,1) -> 0 | R39: =L39+P39 -> 0
A40: 18 | C40: THREE PHASE | F40: 1242 | J40: =J24 -> 130 | L40: =ROUND(+F40*J40,0) -> 161460 | N40: =ROUND((+L40/$L$61)*100,1) -> 0.3 | R40: =L40+P40 -> 161460
A41: 19 | C41: TOTAL CUSTOMER CHARGE | F41: =SUM(F39:F40) -> 1242 | L41: =SUM(L39:L40) -> 161460 | N41: =ROUND((+L41/$L$61)*100,1) -> 0.3 | R41: =SUM(R39:R40) -> 161460
A43: 20 | C43: DEMAND CHARGE:
A44: 21 | C44: ON PEAK KW | H44: 992074 | J44: =PRO_DT_WIN_PEAK -> 14.62 | L44: =ROUND(+H44*J44,0) -> 14504122 | N44: =ROUND((+L44/$L$61)*100,1)-0.1 -> 23.8 | R44: =L44+P44 -> 14504122
A45: 22 | C45: OFF PEAK KW | H45: 20242 | J45: =PRO_DT_WIN_PK_OFF -> 1.39 | L45: =ROUND(+H45*J45,0) -> 28136 | N45: =ROUND((+L45/$L$61)*100,1) -> 0 | R45: =L45+P45 -> 28136
A46: 23 | C46: TOTAL DEMAND | H46: =SUM(H44:H45) -> 1012316 | L46: =SUM(L44:L45) -> 14532258 | N46: =ROUND((+L46/$L$61)*100,1) -> 23.9 | R46: =SUM(R44:R45) -> 14532258
A48: 24 | C48: ENERGY CHARGE (3):
A49: 25 | C49: ON PEAK KWH | H49: 128813740 | J49: =PRO_DT_WIN_E_ON -> 0.046499 | L49: =ROUND((+H49*J49),0)-P49 -> 5989710 | N49: =ROUND((+L49/$L$61)*100,1) -> 9.9 | R49: =L49+P49 -> 5989710
A50: 26 | C50: OFF PEAK KWH | H50: 317711608 | J50: =PRO_DT_WIN_E_OFF -> 0.03989 | L50: =ROUND((+H50*J50),0)-P50 -> 12673516 | N50: =ROUND((+L50/$L$61)*100,1) -> 20.8 | R50: =L50+P50 -> 12673516
A51: 27 | C51: TOTAL WINTER | F51: =F41 -> 1242 | H51: =H49+H50 -> 446525348 | L51: =L41+L46+L49+L50 -> 33356944 | N51: =ROUND((+L51/$L$61)*100,1) -> 54.9 | R51: =R41+R46+R49+R50 -> 33356944
A52: 28 | C52: TOTAL RATE DT SECONDARY EXCLUDING RIDERS | F52: =F35+F51 -> 1876 | H52: =H51+H35 -> 691028749 | L52: =L35+L51 -> 51966194 | N52: =ROUND((+L52/$L$61)*100,1) -> 85.5 | R52: =R35+R51 -> 51966194
A54: 29 | C54: RIDERS:
A55: 30 | C55: =DSMR_Name -> DEMAND SIDE MANAGEMENT RIDER (DSMR) | J55: =PRO_DSM_DIST -> 0.005091 | L55: =ROUND($H$52*J55,0) -> 3518027 | N55: =ROUND((+L55/$L$61)*100,1) -> 5.8 | R55: =L55+P55 -> 3518027
A56: 31 | C56: =ESM_Name -> ENVIRONMENTAL SURCHARGE MECHANISM RIDER (ESM) | L56: =AE124 -> 5430015 | N56: =ROUND((+L56/$L$61)*100,1) -> 8.9 | R56: =L56+P56 -> 5430015
A57: 32 | C57: =FAC_Name -> FUEL ADJUSTMENT CLAUSE (FAC) | J57: =PRO_FAC -> 0.000681 | P57: =ROUND(H52*PRO_FAC,0) -> 470591 | R57: =L57+P57 -> 470591
A58: 33 | C58: =PSM_Name -> PROFIT SHARING MECHANISM (PSM) | J58: =PRO_PSM -> -0.000163 | L58: =ROUND(H52*PRO_PSM,0) -> -112638 | N58: =ROUND((+L58/$L$61)*100,1) -> -0.2 | R58: =L58+P58 -> -112638
A59: 34 | C59: TOTAL RIDERS | L59: =SUM(L55:L58) -> 8835404 | N59: =ROUND((+L59/$L$61)*100,1) -> 14.5 | P59: =SUM(P55:P58) -> 470591 | R59: =SUM(R55:R58) -> 9305995
A61: 35 | C61: TOTAL RATE DT SECONDARY INCLUDING RIDERS | F61: =F35+F51 -> 1876 | H61: =H35+H51 -> 691028749 | L61: =L59+L52 -> 60801598 | N61: 100 | P61: =P59+P52 -> 470591 | R61: =R59+R52 -> 61272189
C63: (1) BILLS THAT TERMINATE IN RESPECTIVE RATE STEPS.
C64: ="(2) REFLECTS FUEL COMPONENT OF "&TEXT(PRO_FAC,"$0.000000;($0.000000)")&" PER KWH." -> (2) REFLECTS FUEL COMPONENT OF $0.000681 PER KWH.
C65: ="(3) REFLECTS FUEL COST RECOVERY INCLUDED IN BASE RATES OF "&TEXT(PRO_BASE_FUEL,"$0.000000;($0.000000)")&" PER KWH." -> (3) REFLECTS FUEL COST RECOVERY INCLUDED IN BASE RATES OF $0.023837 PER KWH.
T69: =NAME -> DUKE ENERGY KENTUCKY, INC.
T70: =CASE_NO -> CASE NO. 2019-00271
T71: =TITLE -> ANNUALIZED TEST YEAR REVENUES AT PROPOSED VS. MOST CURRENT RATES
T72: =DATE -> FOR THE TWELVE MONTHS ENDED March 31, 2021
T73: =SERVICE -> (ELECTRIC SERVICE)
T74: =DATA_PERIOD -> DATA: ____ BASE PERIOD __X__FORECASTED PERIOD | AO74: SCHEDULE M-2.2
T75: =TYPE -> TYPE OF FILING: _X_ ORIGINAL ___UPDATED ___ REVISED | AO75: ="PAGE 5 OF "&TEXT(Page_Num_2.2,"00") -> PAGE 5 OF 22
T76: WORK PAPER REFERENCE NO(S).: | AO76: WITNESS:
T77: =TIME -> 12 Months Projected with Riders | AO77: =WIT -> J. L. Kern
T78: =INPUT!B5 -> 
T79: CURRENT ANNUALIZED
AE81: CURRENT | AG81: % OF REV TO | AI81: REVENUE | AK81: % INCR IN | AO81: CURRENT | AQ81: TOTAL
AC82: MOST | AE82: REVENUE LESS | AG82: TOTAL LESS | AI82: INCR LESS | AK82: REV LESS | AO82: TOTAL | AQ82: REVENUE
T83: LINE | V83: RATE | W83: CLASS / | Y83: CUSTOMER | AC83: CURRENT | AE83: FAC | AG83: FAC | AI83: FAC REV | AK83: FAC REV | AM83: FAC | AO83: REVENUE | AQ83: % INCREASE
T84: NO. | V84: CODE | W84: DESCRIPTION | Y84: BILLS(1) | AA84: SALES | AC84: RATES | AE84: REVENUE | AG84: REVENUE | AI84: (F - K) | AK84: (M / K) | AM84: REVENUE (2) | AO84: (K + H) | AQ84: (M / K1)
V85: (A) | W85: (B) | Y85: (C) | AA85: (D) | AC85: (J) | AE85: (K) | AG85: (L) | AI85: (M) | AK85: (N) | AM85: (H) | AO85: (K1) | AQ85: (O)
AA87: (KW/KWH) | AC87: ($/KWH)/ | AE87: ($) | AG87: (%) | AI87: ($) | AK87: (%) | AM87: ($) | AO87: ($) | AQ87: (%)
T88: 1 | V88: DT-SEC | W88: TIME OF DAY SECONDARY | AC88: ($/KW)
T89: 2 | V89: SUMMER:
T90: 3 | V90: CUSTOMER CHARGE:
T91: 4 | V91: SINGLE PHASE | Y91: =F23 -> 0 | AC91: =INPUT!C68 -> 63.5 | AE91: =ROUND(+Y91*AC91,0) -> 0 | AG91: =ROUND((+AE91/$AE$129)*100,1) -> 0 | AI91: =L23-AE91 -> 0 | AK91: =IF(AE91=0,0,ROUND((AI91/AE91)*100,1)) -> 0 | AO91: =AE91+AM91 -> 0 | AQ91: 0
T92: 5 | V92: THREE PHASE | Y92: =F24 -> 634 | AC92: =INPUT!C69 -> 127 | AE92: =ROUND(+Y92*AC92,0) -> 80518 | AG92: =ROUND((+AE92/$AE$129)*100,1) -> 0.1 | AI92: =L24-AE92 -> 1902 | AK92: =IF(AE92=0,0,ROUND((AI92/AE92)*100,1)) -> 2.4 | AO92: =AE92+AM92 -> 80518 | AQ92: =ROUND((+AI92/AO92)*100,1) -> 2.4
T93: 6 | V93: TOTAL CUSTOMER CHARGE | Y93: =F25 -> 634 | AE93: =SUM(AE91:AE92) -> 80518 | AG93: =ROUND((+AE93/$AE$129)*100,1) -> 0.1 | AI93: =SUM(AI91:AI92) -> 1902 | AK93: =IF(AE93=0,0,ROUND((AI93/AE93)*100,1)) -> 2.4 | AO93: =SUM(AO91:AO92) -> 80518 | AQ93: =ROUND((+AI93/AO93)*100,1) -> 2.4
T95: 7 | V95: DEMAND CHARGE:
T96: 8 | V96: ON PEAK KW | AA96: =H28 -> 525253 | AC96: =CUR_DT_SUM_PEAK_ON -> 13.78 | AE96: =ROUND(+AA96*AC96,0) -> 7237986 | AG96: =ROUND((+AE96/$AE$129)*100,1) -> 13.1 | AI96: =L28-AE96 -> 877173 | AK96: =IF(AE96=0,0,ROUND((AI96/AE96)*100,1)) -> 12.1 | AO96: =AE96+AM96 -> 7237986 | AQ96: 0
T97: 9 | V97: OFF PEAK KW | AA97: =H29 -> 13915 | AC97: =CUR_DT_SUM_PK_OFF -> 1.24 | AE97: =ROUND(+AA97*AC97,0) -> 17255 | AG97: =ROUND((+AE97/$AE$129)*100,1) -> 0 | AI97: =L29-AE97 -> 2087 | AK97: =IF(AE97=0,0,ROUND((AI97/AE97)*100,1)) -> 12.1 | AO97: =AE97+AM97 -> 17255 | AQ97: =ROUND((+AI97/AO97)*100,1) -> 12.1
T98: 10 | V98: TOTAL DEMAND | AA98: =H30 -> 539168 | AE98: =SUM(AE96:AE97) -> 7255241 | AG98: =ROUND((+AE98/$AE$129)*100,1) -> 13.1 | AI98: =SUM(AI96:AI97) -> 879260 | AK98: =IF(AE98=0,0,ROUND((AI98/AE98)*100,1)) -> 12.1 | AO98: =SUM(AO96:AO97) -> 7255241 | AQ98: =ROUND((+AI98/AO98)*100,1) -> 12.1
T100: 11 | V100: ENERGY CHARGE (3):
T101: 12 | V101: ON PEAK KWH | AA101: =H33 -> 72442514 | AC101: =CUR_DT_SUM_E_ON -> 0.04345 | AE101: =ROUND((+AA101*AC101),0)-AM101 -> 3147627 | AG101: =ROUND((+AE101/$AE$129)*100,1) -> 5.7 | AI101: =L33-AE101 -> 381193 | AK101: =IF(AE101=0,0,ROUND((AI101/AE101)*100,1)) -> 12.1 | AO101: =AE101+AM101 -> 3147627 | AQ101: =ROUND((+AI101/AO101)*100,1) -> 12.1
T102: 13 | V102: OFF PEAK KWH | AA102: =H34 -> 172060887 | AC102: =CUR_DT_SUM_E_OFF -> 0.035582 | AE102: =ROUND((+AA102*AC102),0)-AM102 -> 6122270 | AG102: =ROUND((+AE102/$AE$129)*100,1) -> 11.1 | AI102: =L34-AE102 -> 741239 | AK102: =IF(AE102=0,0,ROUND((AI102/AE102)*100,1)) -> 12.1 | AO102: =AE102+AM102 -> 6122270 | AQ102: =ROUND((+AI102/AO102)*100,1) -> 12.1
T103: 14 | V103: TOTAL SUMMER | Y103: =F35 -> 634 | AA103: =H35 -> 244503401 | AE103: =AE93+AE98+AE101+AE102 -> 16605656 | AG103: =ROUND((+AE103/$AE$129)*100,1) -> 30.1 | AI103: =AI93+AI98+AI101+AI102 -> 2003594 | AK103: =IF(AE103=0,0,ROUND((AI103/AE103)*100,1)) -> 12.1 | AO103: =AO93+AO98+AO101+AO102 -> 16605656 | AQ103: =ROUND((+AI103/AO103)*100,1) -> 12.1
T105: 15 | V105: WINTER:
T106: 16 | V106: CUSTOMER CHARGE:
T107: 17 | V107: SINGLE PHASE | Y107: =F39 -> 0 | AC107: =AC91 -> 63.5 | AE107: =ROUND(+Y107*AC107,0) -> 0 | AG107: =ROUND((+AE107/$AE$129)*100,1) -> 0 | AI107: =L39-AE107 -> 0 | AK107: =IF(AE107=0,0,ROUND((AI107/AE107)*100,1)) -> 0 | AO107: =AE107+AM107 -> 0 | AQ107: 0
T108: 18 | V108: THREE PHASE | Y108: =F40 -> 1242 | AC108: =AC92 -> 127 | AE108: =ROUND(+Y108*AC108,0) -> 157734 | AG108: =ROUND((+AE108/$AE$129)*100,1) -> 0.3 | AI108: =L40-AE108 -> 3726 | AK108: =IF(AE108=0,0,ROUND((AI108/AE108)*100,1)) -> 2.4 | AO108: =AE108+AM108 -> 157734 | AQ108: =ROUND((+AI108/AO108)*100,1) -> 2.4
T109: 19 | V109: TOTAL CUSTOMER CHARGE | Y109: =F41 -> 1242 | AE109: =SUM(AE107:AE108) -> 157734 | AG109: =ROUND((+AE109/$AE$129)*100,1) -> 0.3 | AI109: =SUM(AI107:AI108) -> 3726 | AK109: =IF(AE109=0,0,ROUND((AI109/AE109)*100,1)) -> 2.4 | AO109: =SUM(AO107:AO108) -> 157734 | AQ109: =ROUND((+AI109/AO109)*100,1) -> 2.4
T111: 20 | V111: DEMAND CHARGE:
T112: 21 | V112: ON PEAK KW | AA112: =H44 -> 992074 | AC112: =CUR_DT_WIN_PEAK_ON -> 13.04 | AE112: =ROUND(+AA112*AC112,0) -> 12936645 | AG112: =ROUND((+AE112/$AE$129)*100,1) -> 23.4 | AI112: =L44-AE112 -> 1567477 | AK112: =IF(AE112=0,0,ROUND((AI112/AE112)*100,1)) -> 12.1 | AO112: =AE112+AM112 -> 12936645 | AQ112: 0
T113: 22 | V113: OFF PEAK KW | AA113: =H45 -> 20242 | AC113: =CUR_DT_WIN_PK_OFF -> 1.24 | AE113: =ROUND(+AA113*AC113,0) -> 25100 | AG113: =ROUND((+AE113/$AE$129)*100,1) -> 0 | AI113: =L45-AE113 -> 3036 | AK113: =IF(AE113=0,0,ROUND((AI113/AE113)*100,1)) -> 12.1 | AO113: =AE113+AM113 -> 25100 | AQ113: =ROUND((+AI113/AO113)*100,1) -> 12.1
T114: 23 | V114: TOTAL DEMAND | AA114: =H46 -> 1012316 | AE114: =SUM(AE112:AE113) -> 12961745 | AG114: =ROUND((+AE114/$AE$129)*100,1) -> 23.5 | AI114: =SUM(AI112:AI113) -> 1570513 | AK114: =IF(AE114=0,0,ROUND((AI114/AE114)*100,1)) -> 12.1 | AO114: =SUM(AO112:AO113) -> 12961745 | AQ114: =ROUND((+AI114/AO114)*100,1) -> 12.1
T116: 24 | V116: ENERGY CHARGE (3):
T117: 25 | V117: ON PEAK KWH | AA117: =H49 -> 128813740 | AC117: =CUR_DT_WIN_E_ON -> 0.041479 | AE117: =ROUND((+AA117*AC117),0)-AM117 -> 5343065 | AG117: =ROUND((+AE117/$AE$129)*100,1) -> 9.7 | AI117: =L49-AE117 -> 646645 | AK117: =IF(AE117=0,0,ROUND((AI117/AE117)*100,1)) -> 12.1 | AO117: =AE117+AM117 -> 5343065 | AQ117: =ROUND((+AI117/AO117)*100,1) -> 12.1
T118: 26 | V118: OFF PEAK KWH | AA118: =H50 -> 317711608 | AC118: ='Rate DT-Pri'!AC122 -> 0.035582 | AE118: =ROUND((+AA118*AC118),0)-AM118 -> 11304814 | AG118: =ROUND((+AE118/$AE$129)*100,1) -> 20.5 | AI118: =L50-AE118 -> 1368702 | AK118: =IF(AE118=0,0,ROUND((AI118/AE118)*100,1)) -> 12.1 | AO118: =AE118+AM118 -> 11304814 | AQ118: =ROUND((+AI118/AO118)*100,1) -> 12.1
T119: 27 | V119: TOTAL WINTER | Y119: =F51 -> 1242 | AA119: =H51 -> 446525348 | AE119: =AE109+AE114+AE117+AE118 -> 29767358 | AG119: =ROUND((+AE119/$AE$129)*100,1) -> 53.9 | AI119: =AI109+AI114+AI117+AI118 -> 3589586 | AK119: =IF(AE119=0,0,ROUND((AI119/AE119)*100,1)) -> 12.1 | AO119: =AO109+AO114+AO117+AO118 -> 29767358 | AQ119: =ROUND((+AI119/AO119)*100,1) -> 12.1
T120: 28 | V120: TOTAL RATE DT SECONDARY EXCLUDING RIDERS | Y120: =Y103+Y119 -> 1876 | AA120: =AA119+AA103 -> 691028749 | AE120: =AE119+AE103 -> 46373014 | AG120: =ROUND((+AE120/$AE$129)*100,1) -> 84 | AI120: =AI119+AI103 -> 5593180 | AK120: =IF(AE120=0,0,ROUND((AI120/AE120)*100,1)) -> 12.1 | AO120: =AO119+AO103 -> 46373014 | AQ120: 0
T122: 29 | V122: RIDERS:
T123: =A55 -> 30 | V123: =C55 -> DEMAND SIDE MANAGEMENT RIDER (DSMR) | AC123: =DSM_DIST -> 0.005091 | AE123: =ROUND($AA$120*AC123,0) -> 3518027 | AG123: =ROUND((+AE123/$AE$129)*100,1)+0.1 -> 6.5 | AI123: =L55-AE123 -> 0 | AK123: =IF(AE123=0,0,ROUND((AI123/AE123)*100,1)) -> 0 | AO123: =AE123+AM123 -> 3518027 | AQ123: =IF(AO123=0,0,ROUND((+AI123/AO123)*100,1)) -> 0
T124: =A56 -> 31 | V124: =C56 -> ENVIRONMENTAL SURCHARGE MECHANISM RIDER (ESM) | AC124: =CUR_ESM_NonRes -> 0.1816 | AE124: =ROUND((AO120-CUR_BASE_FUEL*AA120)*AC124,0) -> 5430015 | AG124: =ROUND((+AE124/$AE$129)*100,1) -> 9.8 | AI124: =L56-AE124 -> 0 | AK124: =IF(AE124=0,0,ROUND((AI124/AE124)*100,1)) -> 0 | AO124: =AE124+AM124 -> 5430015 | AQ124: =IF(AO124=0,0,ROUND((+AI124/AO124)*100,1)) -> 0
T125: =A57 -> 32 | V125: =C57 -> FUEL ADJUSTMENT CLAUSE (FAC) | AC125: =CUR_FAC -> 0.000681 | AM125: =ROUND(AA120*CUR_FAC,0) -> 470591 | AO125: =AE125+AM125 -> 470591 | AQ125: =IF(AO125=0,0,ROUND(((R57-AO125)/AO125)*100,1)) -> 0
T126: =A58 -> 33 | V126: =C58 -> PROFIT SHARING MECHANISM (PSM) | AC126: =RS_PSM -> -0.000163 | AE126: =ROUND(AA120*RS_PSM,0) -> -112638 | AG126: =ROUND((+AE126/$AE$129)*100,1) -> -0.2 | AI126: =L58-AE126 -> 0 | AK126: =IF(AE126=0,0,ROUND((AI126/AE126)*100,1)) -> 0 | AO126: =AE126+AM126 -> -112638 | AQ126: =IF(AO126=0,0,ROUND((+AI126/AO126)*100,1)) -> 0
T127: =A59 -> 34 | V127: TOTAL RIDERS | AE127: =SUM(AE123:AE126) -> 8835404 | AG127: =ROUND((+AE127/$AE$129)*100,1) -> 16 | AI127: =SUM(AI123:AI126) -> 0 | AK127: =IF(AE127=0,0,ROUND((AI127/AE127)*100,1)) -> 0 | AM127: =SUM(AM123:AM126) -> 470591 | AO127: =SUM(AO123:AO126) -> 9305995 | AQ127: =ROUND((+AI127/AO127)*100,1) -> 0
T129: =A61 -> 35 | V129: TOTAL RATE DT SECONDARY INCLUDING RIDERS | Y129: =Y120 -> 1876 | AA129: =AA120 -> 691028749 | AE129: =AE127+AE120 -> 55208418 | AG129: 100 | AI129: =AI127+AI120 -> 5593180 | AK129: =IF(AE129=0,0,ROUND((AI129/AE129)*100,1)) -> 10.1 | AM129: =AM127+AM120 -> 470591 | AO129: =AO127+AO120 -> 55679009 | AQ129: =ROUND((+AI129/AO129)*100,1) -> 10
V131: (1) BILLS THAT TERMINATE IN RESPECTIVE RATE STEPS.
V132: ="(2) REFLECTS FUEL COMPONENT OF "&TEXT(CUR_FAC,"$0.000000;($0.000000)")&" PER KWH." -> (2) REFLECTS FUEL COMPONENT OF $0.000681 PER KWH.
V133: ="(3) REFLECTS FUEL COST RECOVERY INCLUDED IN BASE RATES OF "&TEXT(CUR_BASE_FUEL,"$0.000000;($0.000000)")&" PER KWH." -> (3) REFLECTS FUEL COST RECOVERY INCLUDED IN BASE RATES OF $0.023837 PER KWH.

Sheet Rate EH
A1: =NAME -> DUKE ENERGY KENTUCKY, INC.
A2: =CASE_NO -> CASE NO. 2019-00271
A3: =TITLE -> ANNUALIZED TEST YEAR REVENUES AT PROPOSED VS. MOST CURRENT RATES
A4: =DATE -> FOR THE TWELVE MONTHS ENDED March 31, 2021
A5: =SERVICE -> (ELECTRIC SERVICE)
A6: =DATA_PERIOD -> DATA: ____ BASE PERIOD __X__FORECASTED PERIOD | R6: SCHEDULE M-2.3
A7: =TYPE -> TYPE OF FILING: _X_ ORIGINAL ___UPDATED ___ REVISED | R7: ="PAGE 6 OF "&TEXT(Page_Num_2.3,"00") -> PAGE 6 OF 23
A8: WORK PAPER REFERENCE NO(S).: | R8: WITNESS:
A9: =TIME -> 12 Months Projected with Riders | R9: =WIT -> J. L. Kern
A10: =INPUT!B5 -> 
A11: PROPOSED ANNUALIZED
L13: PROPOSED | N13: % OF REV TO | R13: PROPOSED
L14: REVENUE LESS | N14: TOTAL LESS | R14: TOTAL
A15: LINE | C15: RATE | D15: CLASS / | F15: CUSTOMER | J15: PROPOSED | L15: FAC | N15: FAC | P15: FAC | R15: REVENUE
A16: NO. | C16: CODE | D16: DESCRIPTION | F16: BILLS(1) | H16: SALES | J16: RATES | L16: REVENUE | N16: REVENUE | P16: REVENUE (2) | R16: (F + H)
C17: (A) | D17: (B) | F17: (C) | H17: (D) | J17: (E) | L17: (F) | N17: (G) | P17: (H) | R17: (I)
H19: (KW/KWH) | J19: ($/KWH) | L19: ($) | N19: (%) | P19: ($) | R19: ($)
A20: 1 | C20: EH | D20: OPTIONAL RATE FOR | J20: ($/KW)
A21: 2 | D21: ELEC. SPACE HEATING
A23: 3 | C23: CUSTOMER CHARGE:
A24: 4 | C24: SINGLE PHASE | F24: 106 | J24: =INPUT!D85 -> 15 | L24: =ROUND(F24*J24,0) -> 1590 | N24: =ROUND((L24/L$43)*100,1) -> 0.2 | R24: =L24+P24 -> 1590
A25: 5 | C25: THREE PHASE | F25: 375 | J25: =INPUT!D86 -> 30 | L25: =ROUND(F25*J25,0) -> 11250 | N25: =ROUND((L25/L$43)*100,1) -> 1.4 | R25: =L25+P25 -> 11250
A26: 6 | C26: PRIMARY VOLTAGE | F26: 0 | J26: =INPUT!D87 -> 117 | L26: =ROUND(F26*J26,0) -> 0 | N26: =ROUND((L26/L$43)*100,1) -> 0 | R26: =L26+P26 -> 0
A27: 7 | C27: TOTAL CUSTOMER CHARGE | F27: =SUM(F24:F26) -> 481 | L27: =SUM(L24:L26) -> 12840 | N27: =ROUND((L27/L$43)*100,1) -> 1.6 | R27: =SUM(R24:R26) -> 12840
A29: 8 | C29: DEMAND CHARGE:
A30: 9 | C30: ALL KW | H30: 30346 | J30: =INPUT!D91 -> 0 | L30: =ROUND((H30*J30),0) -> 0 | N30: =ROUND((L30/L$43)*100,1) -> 0 | R30: =L30+P30 -> 0
A32: 10 | C32: ENERGY CHARGE (3):
A33: 11 | C33: ALL KWH | H33: 9323104 | J33: =INPUT!D89 -> 0.070482 | L33: =ROUND((H33*J33),0) -> 657111 | N33: =ROUND((L33/L$43)*100,1) -> 83.9 | R33: =L33+P33 -> 657111
A34: 12 | C34: TOTAL RATE EH EXCLUDING RIDERS | F34: =F27 -> 481 | H34: =H33 -> 9323104 | L34: =L27+L30+L33 -> 669951 | N34: =ROUND((L34/L$43)*100,1) -> 85.5 | R34: =R33+R30+R27 -> 669951
A36: 13 | C36: RIDERS:
A37: 14 | C37: =DSMR_Name -> DEMAND SIDE MANAGEMENT RIDER (DSMR) | J37: =PRO_DSM_DIST -> 0.005091 | L37: =ROUND($H$34*J37,0) -> 47464 | N37: =ROUND((L37/L$43)*100,1) -> 6.1 | R37: =L37+P37 -> 47464
A38: 15 | C38: =ESM_Name -> ENVIRONMENTAL SURCHARGE MECHANISM RIDER (ESM) | L38: =AE86 -> 67619 | N38: =ROUND((L38/L$43)*100,1) -> 8.6 | R38: =L38+P38 -> 67619
A39: 16 | C39: =FAC_Name -> FUEL ADJUSTMENT CLAUSE (FAC) | J39: =PRO_FAC -> 0.000681 | N39: =ROUND((L39/L$43)*100,1) -> 0 | P39: =ROUND(H34*PRO_FAC,0) -> 6349 | R39: =L39+P39 -> 6349
A40: 17 | C40: =PSM_Name -> PROFIT SHARING MECHANISM (PSM) | J40: =PRO_PSM -> -0.000163 | L40: =ROUND(H34*PRO_PSM,0) -> -1520 | N40: =ROUND((L40/L$43)*100,1) -> -0.2 | R40: =L40+P40 -> -1520
A41: 18 | C41: TOTAL RIDERS | L41: =SUM(L37:L40) -> 113563 | N41: =ROUND((L41/L$43)*100,1) -> 14.5 | P41: =SUM(P37:P40) -> 6349 | R41: =SUM(R37:R40) -> 119912
A43: 19 | C43: TOTAL RATE EH INCLUDING RIDERS | F43: =F34 -> 481 | H43: =H34 -> 9323104 | L43: =L34+L41 -> 783514 | N43: 100 | P43: =P41+P34 -> 6349 | R43: =R41+R34 -> 789863
C45: (1) BILLS THAT TERMINATE IN RESPECTIVE RATE STEPS.
C46: ="(2) REFLECTS FUEL COMPONENT OF "&TEXT(PRO_FAC,"$0.000000;($0.000000)")&" PER KWH." -> (2) REFLECTS FUEL COMPONENT OF $0.000681 PER KWH.
C47: ="(3) REFLECTS FUEL COST RECOVERY INCLUDED IN BASE RATES OF "&TEXT(PRO_BASE_FUEL,"$0.000000;($0.000000)")&" PER KWH." -> (3) REFLECTS FUEL COST RECOVERY INCLUDED IN BASE RATES OF $0.023837 PER KWH.
T49: =NAME -> DUKE ENERGY KENTUCKY, INC.
T50: =CASE_NO -> CASE NO. 2019-00271
T51: =TITLE -> ANNUALIZED TEST YEAR REVENUES AT PROPOSED VS. MOST CURRENT RATES
T52: =DATE -> FOR THE TWELVE MONTHS ENDED March 31, 2021
T53: =SERVICE -> (ELECTRIC SERVICE)
T54: =DATA_PERIOD -> DATA: ____ BASE PERIOD __X__FORECASTED PERIOD | AO54: SCHEDULE M-2.2
T55: =TYPE -> TYPE OF FILING: _X_ ORIGINAL ___UPDATED ___ REVISED | AO55: ="PAGE 6 OF "&TEXT(Page_Num_2.2,"00") -> PAGE 6 OF 22
T56: WORK PAPER REFERENCE NO(S).: | AO56: WITNESS:
T57: =TIME -> 12 Months Projected with Riders | AO57: =WIT -> J. L. Kern
T58: =INPUT!B5 -> 
T59: CURRENT ANNUALIZED
AE61: CURRENT | AG61: % OF REV TO | AI61: REVENUE | AK61: % INCR IN | AO61: CURRENT | AQ61: TOTAL
AC62: MOST | AE62: REVENUE LESS | AG62: TOTAL LESS | AI62: INCR LESS | AK62: REV LESS | AO62: TOTAL | AQ62: REVENUE
T63: LINE | V63: RATE | W63: CLASS / | Y63: CUSTOMER | AC63: CURRENT | AE63: FAC | AG63: FAC | AI63: FAC REV | AK63: FAC REV | AM63: FAC | AO63: REVENUE | AQ63: % INCREASE
T64: NO. | V64: CODE | W64: DESCRIPTION | Y64: BILLS(1) | AA64: SALES | AC64: RATES | AE64: REVENUE | AG64: REVENUE | AI64: (F - K) | AK64: (M / K) | AM64: REVENUE (2) | AO64: (K + H) | AQ64: (M / K1)
V65: (A) | W65: (B) | Y65: (C) | AA65: (D) | AC65: (J) | AE65: (K) | AG65: (L) | AI65: (M) | AK65: (N) | AM65: (H) | AO65: (K1) | AQ65: (O)
AA67: (KW/KWH) | AC67: ($/KWH)/ | AE67: ($) | AG67: (%) | AI67: ($) | AK67: (%) | AM67: ($) | AO67: ($) | AQ67: (%)
T68: 1 | V68: EH | W68: OPTIONAL RATE FOR | AC68: ($/KW)
T69: 2 | W69: ELEC. SPACE HEATING
T71: 3 | V71: CUSTOMER CHARGE:
T72: 4 | V72: SINGLE PHASE | Y72: =F24 -> 106 | AC72: =INPUT!C85 -> 17.14 | AE72: =ROUND(Y72*AC72,0) -> 1817 | AG72: =ROUND((AE72/AE$91)*100,1) -> 0.3 | AI72: =L24-AE72 -> -227 | AK72: =IF(AE72=0,"0.0 ",ROUND((AI72/AE72)*100,1)) -> -12.5 | AO72: =AE72+AM72 -> 1817 | AQ72: =IF(AO72=0,"0.0 ",ROUND((AI72/AO72)*100,1)) -> -12.5
T73: 5 | V73: THREE PHASE | Y73: =F25 -> 375 | AC73: =INPUT!C86 -> 34.28 | AE73: =ROUND(Y73*AC73,0) -> 12855 | AG73: =ROUND((AE73/AE$91)*100,1)+0.1 -> 1.9 | AI73: =L25-AE73 -> -1605 | AK73: =IF(AE73=0,"0.0 ",ROUND((AI73/AE73)*100,1)) -> -12.5 | AO73: =AE73+AM73 -> 12855 | AQ73: =IF(AO73=0,"0.0 ",ROUND((AI73/AO73)*100,1)) -> -12.5
T74: 6 | V74: PRIMARY VOLTAGE | Y74: =F26 -> 0 | AC74: =INPUT!C87 -> 117 | AE74: =ROUND(Y74*AC74,0) -> 0 | AG74: =ROUND((AE74/AE$91)*100,1) -> 0 | AI74: =L26-AE74 -> 0 | AK74: =IF(AE74=0,"0.0 ",ROUND((AI74/AE74)*100,1)) -> 0.0 | AO74: =AE74+AM74 -> 0 | AQ74: =IF(AO74=0,"0.0 ",ROUND((AI74/AO74)*100,1)) -> 0.0
T75: 7 | V75: TOTAL CUSTOMER CHARGE | Y75: =F27 -> 481 | AE75: =SUM(AE72:AE74) -> 14672 | AG75: =ROUND((AE75/AE$91)*100,1) -> 2.1 | AI75: =SUM(AI72:AI74) -> -1832 | AK75: =IF(AE75=0,"0.0 ",ROUND((AI75/AE75)*100,1)) -> -12.5 | AO75: =SUM(AO72:AO74) -> 14672 | AQ75: =IF(AO75=0,"0.0 ",ROUND((AI75/AO75)*100,1)) -> -12.5
T77: 8 | V77: DEMAND CHARGE:
T78: 9 | V78: ALL KW | AA78: =H30 -> 30346 | AC78: =INPUT!C91 -> 0 | AE78: =ROUND(Y78*AC78,0) -> 0 | AG78: =ROUND((AE78/AE$91)*100,1) -> 0 | AI78: =L30-AE78 -> 0 | AK78: =IF(AE78=0,"0.0 ",ROUND((AI78/AE78)*100,1)) -> 0.0 | AO78: =AE78+AM78 -> 0 | AQ78: =IF(AO78=0,"0.0 ",ROUND((AI78/AO78)*100,1)) -> 0.0
T80: 10 | V80: ENERGY CHARGE (3):
T81: 11 | V81: ALL CONSUMPTION | AA81: =H33 -> 9323104 | AC81: =INPUT!C89 -> 0.062202 | AE81: =ROUND((AA81*AC81),0) -> 579916 | AG81: =ROUND((AE81/AE$91)*100,1) -> 81.9 | AI81: =L33-AE81 -> 77195 | AK81: =IF(AE81=0,"0.0 ",ROUND((AI81/AE81)*100,1)) -> 13.3 | AO81: =AE81+AM81 -> 579916 | AQ81: =IF(AO81=0,"0.0 ",ROUND((AI81/AO81)*100,1)) -> 13.3
T82: 12 | V82: TOTAL RATE EH EXCLUDING RIDERS | Y82: =Y75 -> 481 | AA82: =AA81 -> 9323104 | AE82: =AE75+AE78+AE81 -> 594588 | AG82: =ROUND((AE82/AE$91)*100,1) -> 84 | AI82: =AI75+AI78+AI81 -> 75363 | AK82: =IF(AE82=0,"0.0 ",ROUND((AI82/AE82)*100,1)) -> 12.7 | AO82: =AO75+AO78+AO81 -> 594588 | AQ82: =IF(AO82=0,"0.0 ",ROUND((AI82/AO82)*100,1)) -> 12.7
T84: =A36 -> 13 | V84: RIDERS:
T85: 14 | V85: =C37 -> DEMAND SIDE MANAGEMENT RIDER (DSMR) | AC85: =DSM_DIST -> 0.005091 | AE85: =ROUND($AA$82*AC85,0) -> 47464 | AG85: =ROUND((AE85/AE$91)*100,1) -> 6.7 | AI85: =L37-AE85 -> 0 | AK85: =IF(AE85=0,"0.0 ",ROUND((AI85/AE85)*100,1)) -> 0 | AO85: =AE85+AM85 -> 47464 | AQ85: =IF(AO85=0,"0.0 ",ROUND((AI85/AO85)*100,1)) -> 0
T86: 15 | V86: =C38 -> ENVIRONMENTAL SURCHARGE MECHANISM RIDER (ESM) | AC86: =CUR_ESM_NonRes -> 0.1816 | AE86: =ROUND((AO82-CUR_BASE_FUEL*AA82)*AC86,0) -> 67619 | AG86: =ROUND((AE86/AE$91)*100,1) -> 9.5 | AI86: =L38-AE86 -> 0 | AK86: =IF(AE86=0,"0.0 ",ROUND((AI86/AE86)*100,1)) -> 0 | AO86: =AE86+AM86 -> 67619 | AQ86: =IF(AO86=0,"0.0 ",ROUND((AI86/AO86)*100,1)) -> 0
T87: 16 | V87: =C39 -> FUEL ADJUSTMENT CLAUSE (FAC) | AC87: =CUR_FAC -> 0.000681 | AM87: =ROUND(AA82*CUR_FAC,0) -> 6349 | AO87: =AE87+AM87 -> 6349 | AQ87: =IF(AO87=0,"0.0 ",ROUND(((R39-AO87)/AO87)*100,1)) -> 0
T88: 17 | V88: =C40 -> PROFIT SHARING MECHANISM (PSM) | AC88: =RS_PSM -> -0.000163 | AE88: =ROUND(AA82*RS_PSM,0) -> -1520 | AG88: =ROUND((AE88/AE$91)*100,1) -> -0.2 | AI88: =L40-AE88 -> 0 | AK88: =IF(AE88=0,"0.0 ",ROUND((AI88/AE88)*100,1)) -> 0 | AO88: =AE88+AM88 -> -1520 | AQ88: =IF(AO88=0,"0.0 ",ROUND((AI88/AO88)*100,1)) -> 0
T89: 18 | V89: TOTAL RIDERS | AE89: =SUM(AE85:AE88) -> 113563 | AG89: =ROUND((AE89/AE$91)*100,1) -> 16 | AI89: =SUM(AI85:AI88) -> 0 | AK89: =IF(AE89=0,"0.0 ",ROUND((AI89/AE89)*100,1)) -> 0 | AM89: =SUM(AM85:AM88) -> 6349 | AO89: =SUM(AO85:AO88) -> 119912 | AQ89: =IF(AO89=0,"0.0 ",ROUND((AI89/AO89)*100,1)) -> 0
T91: =A43 -> 19 | V91: TOTAL RATE EH INCLUDING RIDERS | Y91: =Y82 -> 481 | AA91: =AA82 -> 9323104 | AE91: =AE89+AE82 -> 708151 | AG91: 100 | AI91: =AI89+AI82 -> 75363 | AK91: =IF(AE91=0,"0.0 ",ROUND((AI91/AE91)*100,1)) -> 10.6 | AM91: =AM89+AM82 -> 6349 | AO91: =AO89+AO82 -> 714500 | AQ91: =IF(AO91=0,"0.0 ",ROUND((AI91/AO91)*100,1)) -> 10.5
V93: (1) BILLS THAT TERMINATE IN RESPECTIVE RATE STEPS.
V94: ="(2) REFLECTS FUEL COMPONENT OF "&TEXT(CUR_FAC,"$0.000000;($0.000000)")&" PER KWH." -> (2) REFLECTS FUEL COMPONENT OF $0.000681 PER KWH.
V95: ="(3) REFLECTS FUEL COST RECOVERY INCLUDED IN BASE RATES OF "&TEXT(CUR_BASE_FUEL,"$0.000000;($0.000000)")&" PER KWH." -> (3) REFLECTS FUEL COST RECOVERY INCLUDED IN BASE RATES OF $0.023837 PER KWH.

Sheet Rate SP GSFL
A1: =NAME -> DUKE ENERGY KENTUCKY, INC.
A2: =CASE_NO -> CASE NO. 2019-00271
A3: =TITLE -> ANNUALIZED TEST YEAR REVENUES AT PROPOSED VS. MOST CURRENT RATES
A4: =DATE -> FOR THE TWELVE MONTHS ENDED March 31, 2021
A5: =SERVICE -> (ELECTRIC SERVICE)
A6: =DATA_PERIOD -> DATA: ____ BASE PERIOD __X__FORECASTED PERIOD | R6: SCHEDULE M-2.3
A7: =TYPE -> TYPE OF FILING: _X_ ORIGINAL ___UPDATED ___ REVISED | R7: ="PAGE 7 OF "&TEXT(Page_Num_2.3,"00") -> PAGE 7 OF 23
A8: WORK PAPER REFERENCE NO(S).: | R8: WITNESS:
A9: =TIME -> 12 Months Projected with Riders | R9: =WIT -> J. L. Kern
A10: =INPUT!B5 -> 
A11: PROPOSED ANNUALIZED
L13: PROPOSED | N13: % OF REV TO | R13: PROPOSED
L14: REVENUE LESS | N14: TOTAL LESS | R14: TOTAL
A15: LINE | C15: RATE | D15: CLASS / | F15: CUSTOMER | J15: PROPOSED | L15: FAC | N15: FAC | P15: FAC | R15: REVENUE
A16: NO. | C16: CODE | D16: DESCRIPTION | F16: BILLS(1) | H16: SALES | J16: RATES | L16: REVENUE | N16: REVENUE | P16: REVENUE (2) | R16: (F + H)
C17: (A) | D17: (B) | F17: (C) | H17: (D) | J17: (E) | L17: (F) | N17: (G) | P17: (H) | R17: (I)
H19: (KWH) | J19: ($/KWH) | L19: ($) | N19: (%) | P19: ($) | R19: ($)
A21: 1 | C21: SP | D21: SEASONAL SPORTS SERVICE
A23: 2 | C23: MINIMUM BILLS (4) | F23: 0 | L23: 0 | N23: =ROUND((L23/L$38)*100,1) -> 0 | R23: =L23+P23 -> 0
A25: 3 | C25: CUSTOMER CHARGE | F25: 180 | J25: =INPUT!D95 -> 15 | L25: =ROUND(F25*J25,0) -> 2700 | N25: =ROUND((L25/L$38)*100,1) -> 6.9 | R25: =L25+P25 -> 2700
A27: 4 | C27: ENERGY CHARGE (3):
A28: 5 | C28: ALL CONSUMPTION | H28: 277600 | J28: =INPUT!D97 -> 0.111052 | L28: =ROUND((H28*(J28)),0) -> 30828 | N28: =ROUND((L28/L$38)*100,1) -> 78.8 | R28: =L28+P28 -> 30828
A29: 6 | C29: TOTAL RATE SP EXCLUDING RIDERS | F29: =F25 -> 180 | H29: =H28 -> 277600 | L29: =L23+L25+L28 -> 33528 | N29: =ROUND((L29/L$38)*100,1) -> 85.7 | R29: =R23+R25+R28 -> 33528
A31: 7 | C31: RIDERS:
A32: 8 | C32: =DSMR_Name -> DEMAND SIDE MANAGEMENT RIDER (DSMR) | J32: =PRO_DSM_DIST -> 0.005091 | L32: =ROUND($H$29*J32,0) -> 1413 | N32: =ROUND((L32/L$38)*100,1)+0.1 -> 3.7 | R32: =L32+P32 -> 1413
A33: 9 | C33: =ESM_Name -> ENVIRONMENTAL SURCHARGE MECHANISM RIDER (ESM) | L33: =AE96 -> 4205 | N33: =ROUND((L33/L$38)*100,1) -> 10.8 | R33: =L33+P33 -> 4205
A34: 10 | C34: =FAC_Name -> FUEL ADJUSTMENT CLAUSE (FAC) | J34: =PRO_FAC -> 0.000681 | P34: =ROUND(H29*PRO_FAC,0) -> 189 | R34: =L34+P34 -> 189
A35: 11 | C35: =PSM_Name -> PROFIT SHARING MECHANISM (PSM) | J35: =PRO_PSM -> -0.000163 | L35: =ROUND(H29*PRO_PSM,0) -> -45 | N35: =ROUND((L35/L$38)*100,1) -> -0.1 | R35: =L35+P35 -> -45
A36: 12 | C36: TOTAL RIDERS | L36: =SUM(L32:L35) -> 5573 | N36: =ROUND((L36/L$38)*100,1) -> 14.3 | P36: =SUM(P32:P35) -> 189 | R36: =SUM(R32:R35) -> 5762
A38: 13 | C38: TOTAL RATE SP INCLUDING RIDERS | F38: =F23+F25 -> 180 | H38: =H28 -> 277600 | L38: =L29+L36 -> 39101 | N38: 100 | P38: =P36+P29 -> 189 | R38: =R29+R36 -> 39290
A41: 14 | C41: GS-FL | D41: SMALL FIXED LOADS
A43: 15 | C43: MINIMUM BILLS | F43: 540 | J43: =INPUT!D103 -> 3.36 | L43: =ROUND(F43*J43,0) -> 1814 | N43: =ROUND((L43/L$57)*100,1) -> 0.2 | R43: =L43+P43 -> 1814
A45: 16 | C45: BASE RATE (3):
A46: 17 | C46: LOAD RANGE 540 TO 720 HRS | H46: 11720 | J46: =INPUT!D105 -> 0.093089 | L46: =ROUND((H46*J46),0) -> 1091 | N46: =ROUND((L46/L$57)*100,1) -> 0.1 | R46: =L46+P46 -> 1091
A47: 18 | C47: LOAD RANGE LESS THAN 540 HRS | H47: 5988893 | J47: =INPUT!D106 -> 0.107269 | L47: =ROUND((H47*J47),0) -> 642423 | N47: =ROUND((L47/L$57)*100,1) -> 85.3 | R47: =L47+P47 -> 642423
A48: 19 | C48: TOTAL RATE GS-FL EXCLUDING RIDERS | F48: =SUM(F43:F47) -> 540 | H48: =SUM(H46:H47) -> 6000613 | L48: =SUM(L43:L47) -> 645328 | N48: =ROUND((L48/L$57)*100,1) -> 85.7 | R48: =SUM(R43:R47) -> 645328
A50: 20 | C50: RIDERS:
A51: 21 | C51: =DSMR_Name -> DEMAND SIDE MANAGEMENT RIDER (DSMR) | J51: =PRO_DSM_DIST -> 0.005091 | L51: =ROUND($H$48*J51,0) -> 30549 | N51: =ROUND((L51/L$57)*100,1)-0.1 -> 4 | R51: =L51+P51 -> 30549
A52: 22 | C52: =ESM_Name -> ENVIRONMENTAL SURCHARGE MECHANISM RIDER (ESM) | L52: =AE115 -> 78074 | N52: =ROUND((L52/L$57)*100,1) -> 10.4 | R52: =L52+P52 -> 78074
A53: 23 | C53: =FAC_Name -> FUEL ADJUSTMENT CLAUSE (FAC) | J53: =PRO_FAC -> 0.000681 | P53: =ROUND(H48*PRO_FAC,0) -> 4086 | R53: =L53+P53 -> 4086
A54: 24 | C54: =PSM_Name -> PROFIT SHARING MECHANISM (PSM) | J54: =PRO_PSM -> -0.000163 | L54: =ROUND($H$48*J54,0) -> -978 | N54: =ROUND((L54/L$57)*100,1) -> -0.1 | R54: =L54+P54 -> -978
A55: 25 | C55: TOTAL RIDERS | L55: =SUM(L51:L54) -> 107645 | N55: =ROUND((L55/L$57)*100,1) -> 14.3 | P55: =SUM(P51:P54) -> 4086 | R55: =SUM(R51:R54) -> 111731
A57: 26 | C57: TOTAL RATE GS-FL INCLUDING RIDERS | F57: =SUM(F43:F47) -> 540 | H57: =SUM(H43:H47) -> 6000613 | L57: =L48+L55 -> 752973 | N57: 100 | P57: =P48+P55 -> 4086 | R57: =R48+R55 -> 757059
C59: (1) BILLS THAT TERMINATE IN RESPECTIVE RATE STEPS.
C60: ="(2) REFLECTS FUEL COMPONENT OF "&TEXT(PRO_FAC,"$0.000000;($0.000000)")&" PER KWH." -> (2) REFLECTS FUEL COMPONENT OF $0.000681 PER KWH.
C61: ="(3) REFLECTS FUEL COST RECOVERY INCLUDED IN BASE RATES OF "&TEXT(PRO_BASE_FUEL,"$0.000000;($0.000000)")&" PER KWH." -> (3) REFLECTS FUEL COST RECOVERY INCLUDED IN BASE RATES OF $0.023837 PER KWH.
C62: (4) 1.5% OF INSTALLED TRANSFORMER AMD METERING COSTS BUT NOT LESS THAN CUSTOMER CHARGE WHETHER SERVICE IS ON OR DISCONNECTED.
T65: =NAME -> DUKE ENERGY KENTUCKY, INC.
T66: =CASE_NO -> CASE NO. 2019-00271
T67: =TITLE -> ANNUALIZED TEST YEAR REVENUES AT PROPOSED VS. MOST CURRENT RATES
T68: =DATE -> FOR THE TWELVE MONTHS ENDED March 31, 2021
T69: =SERVICE -> (ELECTRIC SERVICE)
T70: =DATA_PERIOD -> DATA: ____ BASE PERIOD __X__FORECASTED PERIOD | AO70: SCHEDULE M-2.2
T71: =TYPE -> TYPE OF FILING: _X_ ORIGINAL ___UPDATED ___ REVISED | AO71: ="PAGE 7 OF "&TEXT(Page_Num_2.2,"00") -> PAGE 7 OF 22
T72: WORK PAPER REFERENCE NO(S).: | AO72: WITNESS:
T73: =TIME -> 12 Months Projected with Riders | AO73: =WIT -> J. L. Kern
T74: =INPUT!B5 -> 
T75: CURRENT ANNUALIZED
AE77: CURRENT | AG77: % OF REV TO | AI77: REVENUE | AK77: % INCR IN | AO77: CURRENT | AQ77: TOTAL
AC78: MOST | AE78: REVENUE LESS | AG78: TOTAL LESS | AI78: INCR LESS | AK78: REV LESS | AO78: TOTAL | AQ78: REVENUE
T79: LINE | V79: RATE | W79: CLASS / | Y79: CUSTOMER | AC79: CURRENT | AE79: FAC | AG79: FAC | AI79: FAC REV | AK79: FAC REV | AM79: FAC | AO79: REVENUE | AQ79: % INCREASE
T80: NO. | V80: CODE | W80: DESCRIPTION | Y80: BILLS(1) | AA80: SALES | AC80: RATES | AE80: REVENUE | AG80: REVENUE | AI80: (F - K) | AK80: (M / K) | AM80: REVENUE (2) | AO80: (K + H) | AQ80: (M / K1)
V81: (A) | W81: (B) | Y81: (C) | AA81: (D) | AC81: (J) | AE81: (K) | AG81: (L) | AI81: (M) | AK81: (N) | AM81: (H) | AO81: (K1) | AQ81: (O)
AA83: (KWH) | AC83: ($/KWH) | AE83: ($) | AG83: (%) | AI83: ($) | AK83: (%) | AM83: ($) | AO83: ($) | AQ83: (%)
T84: 1 | V84: SP | W84: SEASONAL SPORTS SERVICE
T86: 2 | V86: MINIMUM BILLS (4) | Y86: =F23 -> 0 | AE86: =L23 -> 0 | AG86: =ROUND((AE86/AE$101)*100,1) -> 0 | AI86: =L23-AE86 -> 0 | AK86: 0 | AO86: =AE86+AM86 -> 0 | AQ86: =IF(AO86=0,"0.0 ",ROUND((AI86/AO86)*100,1)) -> 0.0
T88: 3 | V88: CUSTOMER CHARGE | Y88: =F25 -> 180 | AC88: =INPUT!C95 -> 17.14 | AE88: =ROUND(Y88*AC88,0) -> 3085 | AG88: =ROUND((AE88/AE$101)*100,1) -> 8.7 | AI88: =L25-AE88 -> -385 | AK88: =ROUND((AI88/AE88)*100,1) -> -12.5 | AO88: =AE88+AM88 -> 3085 | AQ88: =IF(AO88=0,"0.0 ",ROUND((AI88/AO88)*100,1)) -> -12.5
T90: 4 | V90: ENERGY CHARGE (3):
T91: 5 | V91: ALL CONSUMPTION | AA91: =H28 -> 277600 | AC91: =INPUT!C97 -> 0.09613 | AE91: =ROUND((AA91*AC91),0) -> 26686 | AG91: =ROUND((AE91/AE$101)*100,1)-0.1 -> 75.4 | AI91: =L28-AE91 -> 4142 | AK91: =ROUND((AI91/AE91)*100,1) -> 15.5 | AO91: =AE91+AM91 -> 26686 | AQ91: =IF(AO91=0,"0.0 ",ROUND((AI91/AO91)*100,1)) -> 15.5
T92: 6 | V92: TOTAL RATE SP EXCLUDING RIDERS | Y92: =Y88 -> 180 | AA92: =AA91 -> 277600 | AE92: =SUM(AE86:AE91) -> 29771 | AG92: =ROUND((AE92/AE$101)*100,1) -> 84.2 | AI92: =SUM(AI86:AI91) -> 3757 | AK92: =ROUND((AI92/AE92)*100,1) -> 12.6 | AO92: =SUM(AO86:AO91) -> 29771 | AQ92: =IF(AO92=0,"0.0 ",ROUND((AI92/AO92)*100,1)) -> 12.6
T94: 7 | V94: RIDERS:
T95: =A32 -> 8 | V95: =C32 -> DEMAND SIDE MANAGEMENT RIDER (DSMR) | AC95: =DSM_DIST -> 0.005091 | AE95: =ROUND(AA92*AC95,0) -> 1413 | AG95: =ROUND((AE95/AE$101)*100,1) -> 4 | AI95: =L32-AE95 -> 0 | AK95: =ROUND((AI95/AE95)*100,1) -> 0 | AO95: =AE95+AM95 -> 1413 | AQ95: =IF(AO95=0,"0.0 ",ROUND((AI95/AO95)*100,1)) -> 0
T96: =A33 -> 9 | V96: =C33 -> ENVIRONMENTAL SURCHARGE MECHANISM RIDER (ESM) | AC96: =CUR_ESM_NonRes -> 0.1816 | AE96: =ROUND((AO92-CUR_BASE_FUEL*AA92)*AC96,0) -> 4205 | AG96: =ROUND((AE96/AE$101)*100,1) -> 11.9 | AI96: =L33-AE96 -> 0 | AK96: =IF(AE96=0,0,ROUND((AI96/AE96)*100,1)) -> 0 | AO96: =AE96+AM96 -> 4205 | AQ96: =IF(AO96=0,"0.0 ",ROUND((AI96/AO96)*100,1)) -> 0
T97: =A34 -> 10 | V97: =C34 -> FUEL ADJUSTMENT CLAUSE (FAC) | AC97: =CUR_FAC -> 0.000681 | AM97: =ROUND(AA92*CUR_FAC,0) -> 189 | AO97: =AE97+AM97 -> 189 | AQ97: =IF(AO97=0,0,ROUND(((R34-AO97)/AO97)*100,1)) -> 0
T98: =A35 -> 11 | V98: =C35 -> PROFIT SHARING MECHANISM (PSM) | AC98: =RS_PSM -> -0.000163 | AE98: =ROUND(AA92*AC98,0) -> -45 | AG98: =ROUND((AE98/AE$101)*100,1) -> -0.1 | AI98: =L35-AE98 -> 0 | AK98: =ROUND((AI98/AE98)*100,1) -> 0 | AO98: =AE98+AM98 -> -45 | AQ98: =IF(AO98=0,"0.0 ",ROUND((AI98/AO98)*100,1)) -> 0
T99: =A36 -> 12 | V99: TOTAL RIDERS | AE99: =SUM(AE95:AE98) -> 5573 | AG99: =ROUND((AE99/AE$101)*100,1) -> 15.8 | AI99: =SUM(AI95:AI98) -> 0 | AK99: =ROUND((AI99/AE99)*100,1) -> 0 | AM99: =SUM(AM95:AM98) -> 189 | AO99: =SUM(AO95:AO98) -> 5762 | AQ99: =IF(AO99=0,"0.0 ",ROUND((AI99/AO99)*100,1)) -> 0
T101: =A38 -> 13 | V101: TOTAL RATE SP INCLUDING RIDERS | Y101: =F38 -> 180 | AA101: =H38 -> 277600 | AE101: =AE92+AE99 -> 35344 | AG101: 100 | AI101: =AI92+AI99 -> 3757 | AK101: =ROUND((AI101/AE101)*100,1) -> 10.6 | AM101: =AM99+AM92 -> 189 | AO101: =AO99+AO92 -> 35533 | AQ101: =IF(AO101=0,"0.0 ",ROUND((AI101/AO101)*100,1)) -> 10.6
T104: =A41 -> 14 | V104: GS-FL | W104: SMALL FIXED LOADS
T106: =A43 -> 15 | V106: MINIMUM BILLS | Y106: =F43 -> 540 | AC106: =INPUT!C103 -> 2.98 | AE106: =ROUND(Y106*AC106,0) -> 1609 | AG106: =ROUND((AE106/AE$120)*100,1) -> 0.2 | AI106: =L43-AE106 -> 205 | AK106: =IF(AE106=0,"0.0 ",ROUND((AI106/AE106)*100,1)) -> 12.7 | AO106: =AE106+AM106 -> 1609 | AQ106: =IF(AO106=0,"0.0 ",ROUND((AI106/AO106)*100,1)) -> 12.7
T108: =A45 -> 16 | V108: BASE RATE (3):
T109: =A46 -> 17 | V109: LOAD RANGE 540 TO 720 HRS | AA109: =H46 -> 11720 | AC109: =INPUT!C105 -> 0.082708 | AE109: =ROUND((AA109*AC109),0) -> 969 | AG109: =ROUND((AE109/AE$120)*100,1) -> 0.1 | AI109: =L46-AE109 -> 122 | AK109: =IF(AE109=0,"0.0 ",ROUND((AI109/AE109)*100,1)) -> 12.6 | AO109: =AE109+AM109 -> 969 | AQ109: =IF(AO109=0,"0.0 ",ROUND((AI109/AO109)*100,1)) -> 12.6
T110: =A47 -> 18 | V110: LOAD RANGE LESS THAN 540 HRS | AA110: =H47 -> 5988893 | AC110: =INPUT!C106 -> 0.09524 | AE110: =ROUND((AA110*AC110),0) -> 570382 | AG110: =ROUND((AE110/AE$120)*100,1) -> 83.8 | AI110: =L47-AE110 -> 72041 | AK110: =IF(AE110=0,"0.0 ",ROUND((AI110/AE110)*100,1)) -> 12.6 | AO110: =AE110+AM110 -> 570382 | AQ110: =IF(AO110=0,"0.0 ",ROUND((AI110/AO110)*100,1)) -> 12.6
T111: =A48 -> 19 | V111: TOTAL RATE GS-FL EXCLUDING RIDERS | Y111: =SUM(Y106:Y110) -> 540 | AA111: =SUM(AA106:AA110) -> 6000613 | AE111: =SUM(AE106:AE110) -> 572960 | AG111: =ROUND((AE111/AE$120)*100,1) -> 84.2 | AI111: =SUM(AI106:AI110) -> 72368 | AK111: =IF(AE111=0,"0.0 ",ROUND((AI111/AE111)*100,1)) -> 12.6 | AO111: =SUM(AO106:AO110) -> 572960 | AQ111: =IF(AO111=0,"0.0 ",ROUND((AI111/AO111)*100,1)) -> 12.6
T113: =A50 -> 20 | V113: RIDERS:
T114: 21 | V114: =C51 -> DEMAND SIDE MANAGEMENT RIDER (DSMR) | AC114: =DSM_DIST -> 0.005091 | AE114: =ROUND($AA$111*AC114,0) -> 30549 | AG114: =ROUND((AE114/AE$120)*100,1) -> 4.5 | AI114: =L51-AE114 -> 0 | AK114: =IF(AE114=0,"0.0 ",ROUND((AI114/AE114)*100,1)) -> 0 | AO114: =AE114+AM114 -> 30549 | AQ114: =IF(AO114=0,"0.0 ",ROUND((AI114/AO114)*100,1)) -> 0
T115: 22 | V115: =C52 -> ENVIRONMENTAL SURCHARGE MECHANISM RIDER (ESM) | AC115: =CUR_ESM_NonRes -> 0.1816 | AE115: =ROUND((AO111-CUR_BASE_FUEL*AA111)*AC115,0) -> 78074 | AG115: =ROUND((AE115/AE$120)*100,1) -> 11.5 | AI115: =L52-AE115 -> 0 | AK115: =IF(AE115=0,"0.0 ",ROUND((AI115/AE115)*100,1)) -> 0 | AO115: =AE115+AM115 -> 78074 | AQ115: =IF(AO115=0,"0.0 ",ROUND((AI115/AO115)*100,1)) -> 0
T116: 23 | V116: =C53 -> FUEL ADJUSTMENT CLAUSE (FAC) | AC116: =CUR_FAC -> 0.000681 | AM116: =ROUND(AA111*CUR_FAC,0) -> 4086 | AO116: =AE116+AM116 -> 4086 | AQ116: =IF(AO116=0,0,ROUND(((R53-AO116)/AO116)*100,1)) -> 0
T117: 24 | V117: =C54 -> PROFIT SHARING MECHANISM (PSM) | AC117: =RS_PSM -> -0.000163 | AE117: =ROUND(AA111*RS_PSM,0) -> -978 | AG117: =ROUND((AE117/AE$120)*100,1) -> -0.1 | AI117: =L54-AE117 -> 0 | AK117: =IF(AE117=0,"0.0 ",ROUND((AI117/AE117)*100,1)) -> 0 | AO117: =AE117+AM117 -> -978 | AQ117: =IF(AO117=0,"0.0 ",ROUND((AI117/AO117)*100,1)) -> 0
T118: 25 | V118: TOTAL RIDERS | AE118: =SUM(AE114:AE117) -> 107645 | AG118: =ROUND((AE118/AE$120)*100,1) -> 15.8 | AI118: =SUM(AI114:AI117) -> 0 | AK118: =IF(AE118=0,"0.0 ",ROUND((AI118/AE118)*100,1)) -> 0 | AM118: =SUM(AM114:AM117) -> 4086 | AO118: =SUM(AO114:AO117) -> 111731 | AQ118: =IF(AO118=0,"0.0 ",ROUND((AI118/AO118)*100,1)) -> 0
T120: =A57 -> 26 | V120: TOTAL RATE GS-FL INCLUDING RIDERS | Y120: =F57 -> 540 | AA120: =H57 -> 6000613 | AE120: =AE111+AE118 -> 680605 | AG120: 100 | AI120: =AI111+AI118 -> 72368 | AK120: =IF(AE120=0,"0.0 ",ROUND((AI120/AE120)*100,1)) -> 10.6 | AM120: =AM111+AM118 -> 4086 | AO120: =AO111+AO118 -> 684691 | AQ120: =IF(AO120=0,"0.0 ",ROUND((AI120/AO120)*100,1)) -> 10.6
V122: (1) BILLS THAT TERMINATE IN RESPECTIVE RATE STEPS.
V123: ="(2) REFLECTS FUEL COMPONENT OF "&TEXT(CUR_FAC,"$0.000000;($0.000000)")&" PER KWH." -> (2) REFLECTS FUEL COMPONENT OF $0.000681 PER KWH.
V124: ="(3) REFLECTS FUEL COST RECOVERY INCLUDED IN BASE RATES OF "&TEXT(CUR_BASE_FUEL,"$0.000000;($0.000000)")&" PER KWH." -> (3) REFLECTS FUEL COST RECOVERY INCLUDED IN BASE RATES OF $0.023837 PER KWH.
V125: (4) 1.5% OF INSTALLED TRANSFORMER AMD METERING COSTS BUT NOT LESS THAN CUSTOMER CHARGE WHETHER SERVICE IS ON OR DISCONNECTED.

Sheet Rate DP
A1: =NAME -> DUKE ENERGY KENTUCKY, INC.
A2: =CASE_NO -> CASE NO. 2019-00271
A3: =TITLE -> ANNUALIZED TEST YEAR REVENUES AT PROPOSED VS. MOST CURRENT RATES
A4: =DATE -> FOR THE TWELVE MONTHS ENDED March 31, 2021
A5: =SERVICE -> (ELECTRIC SERVICE)
A6: =DATA_PERIOD -> DATA: ____ BASE PERIOD __X__FORECASTED PERIOD | R6: SCHEDULE M-2.3
A7: =TYPE -> TYPE OF FILING: _X_ ORIGINAL ___UPDATED ___ REVISED | R7: ="PAGE 8 OF "&TEXT(Page_Num_2.3,"00") -> PAGE 8 OF 23
A8: WORK PAPER REFERENCE NO(S).: | R8: WITNESS:
A9: =TIME -> 12 Months Projected with Riders | R9: =WIT -> J. L. Kern
A10: =INPUT!B5 -> 
A11: PROPOSED ANNUALIZED
L13: PROPOSED | N13: % OF REV TO | R13: PROPOSED
L14: REVENUE LESS | N14: TOTAL LESS | R14: TOTAL
A15: LINE | C15: RATE | D15: CLASS / | F15: CUSTOMER | J15: PROPOSED | L15: FAC | N15: FAC | P15: FAC | R15: REVENUE
A16: NO. | C16: CODE | D16: DESCRIPTION | F16: BILLS(1) | H16: SALES | J16: RATES | L16: REVENUE | N16: REVENUE | P16: REVENUE (2) | R16: (F + H)
C17: (A) | D17: (B) | F17: (C) | H17: (D) | J17: (E) | L17: (F) | N17: (G) | P17: (H) | R17: (I)
H19: (KW/KWH) | J19: ($/KWH) | L19: ($) | N19: (%) | P19: ($) | R19: ($)
A20: 1 | C20: DP | D20: SERVICE AT PRIMARY | J20: ($/KW)
A21: 2 | D21: DISTRIBUTION VOLTAGE
A23: 3 | C23: CUSTOMER CHARGE:
A24: 4 | C24: LOAD MANAGEMENT RIDER | F24: 24 | J24: =INPUT!D64 -> 5 | L24: =ROUND(F24*J24,0) -> 120 | N24: =ROUND((L24/$L$46)*100,1) -> 0 | R24: =L24+P24 -> 120
A25: 5 | C25: PRIMARY VOLTAGE | F25: 120 | J25: =INPUT!D112 -> 117 | L25: =ROUND(F25*J25,0) -> 14040 | N25: =ROUND((L25/$L$46)*100,1) -> 0.8 | R25: =L25+P25 -> 14040
A26: 6 | C26: TOTAL CUSTOMER CHARGE | F26: =F25 -> 120 | L26: =SUM(L24:L25) -> 14160 | N26: =ROUND((L26/$L$46)*100,1) -> 0.8 | R26: =SUM(R24:R25) -> 14160
A28: 7 | C28: DEMAND CHARGE:
A29: 8 | C29: ALL KW | H29: 46913 | J29: =INPUT!D118 -> 9.02 | L29: =ROUND(H29*J29,0) -> 423155 | N29: =ROUND((L29/$L$46)*100,1) -> 23.6 | R29: =L29+P29 -> 423155
A30: 9 | C30: TOTAL DEMAND | H30: =SUM(H29) -> 46913 | L30: =SUM(L29) -> 423155 | N30: =ROUND((L30/$L$46)*100,1) -> 23.6 | R30: =SUM(R29) -> 423155
A32: 10 | C32: ENERGY CHARGE (3):
A33: 11 | C33: FIRST 300KWH/KW | H33: 13736575 | J33: =INPUT!D114 -> 0.058203 | L33: =ROUND((H33*J33),0) -> 799510 | N33: =ROUND((L33/$L$46)*100,1) -> 44.7 | R33: =L33+P33 -> 799510
A34: 12 | C34: ADDITIONAL KWH | H34: 6024676 | J34: =INPUT!D115 -> 0.049212 | L34: =ROUND((H34*J34),0) -> 296486 | N34: =ROUND((L34/$L$46)*100,1) -> 16.6 | R34: =L34+P34 -> 296486
A35: 13 | C35: CAP RATE KWH | H35: 0 | J35: =INPUT!D116 -> 0.274836 | L35: =ROUND((H35*J35),0) -> 0 | N35: =ROUND((L35/$L$46)*100,1) -> 0 | R35: =L35+P35 -> 0
A36: 14 | C36: TOTAL ENERGY | H36: =SUM(H33:H35) -> 19761251 | L36: =SUM(L33:L35) -> 1095996 | N36: =ROUND((L36/$L$46)*100,1) -> 61.2 | R36: =L36+P36 -> 1095996
A37: 15 | C37: TOTAL RATE DP EXCLUDING RIDERS | F37: =F26 -> 120 | H37: =H36 -> 19761251 | L37: =L36+L30+L26 -> 1533311 | N37: =ROUND((L37/$L$46)*100,1) -> 85.7 | R37: =R26+R30+R36 -> 1533311
A39: 16 | C39: RIDERS:
A40: 17 | C40: =DSMR_Name -> DEMAND SIDE MANAGEMENT RIDER (DSMR) | J40: =PRO_DSM_DIST -> 0.005091 | L40: =ROUND($H$37*J40,0) -> 100605 | N40: =ROUND((L40/$L$46)*100,1) -> 5.6 | R40: =L40+P40 -> 100605
A41: 18 | C41: =ESM_Name -> ENVIRONMENTAL SURCHARGE MECHANISM RIDER (ESM) | L41: =AE93 -> 159240 | N41: =ROUND((L41/$L$46)*100,1) -> 8.9 | R41: =L41+P41 -> 159240
A42: 19 | C42: =FAC_Name -> FUEL ADJUSTMENT CLAUSE (FAC) | J42: =PRO_FAC -> 0.000681 | P42: =ROUND(H37*PRO_FAC,0) -> 13457 | R42: =L42+P42 -> 13457
A43: 20 | C43: =PSM_Name -> PROFIT SHARING MECHANISM (PSM) | J43: =PRO_PSM -> -0.000163 | L43: =ROUND(H37*PRO_PSM,0) -> -3221 | N43: =ROUND((L43/$L$46)*100,1) -> -0.2 | R43: =L43+P43 -> -3221
A44: 21 | C44: TOTAL RIDERS | L44: =SUM(L40:L43) -> 256624 | N44: =ROUND((L44/$L$46)*100,1) -> 14.3 | P44: =SUM(P40:P43) -> 13457 | R44: =SUM(R40:R43) -> 270081
A46: 22 | C46: TOTAL RATE DP INCLUDING RIDERS | F46: =F26 -> 120 | H46: =H36 -> 19761251 | L46: =L37+L44 -> 1789935 | N46: 100 | P46: =P44+P37 -> 13457 | R46: =R44+R37 -> 1803392
C48: (1) BILLS THAT TERMINATE IN RESPECTIVE RATE STEPS.
C49: ="(2) REFLECTS FUEL COMPONENT OF "&TEXT(PRO_FAC,"$0.000000;($0.000000)")&" PER KWH." -> (2) REFLECTS FUEL COMPONENT OF $0.000681 PER KWH.
C50: ="(3) REFLECTS FUEL COST RECOVERY INCLUDED IN BASE RATES OF "&TEXT(PRO_BASE_FUEL,"$0.000000;($0.000000)")&" PER KWH." -> (3) REFLECTS FUEL COST RECOVERY INCLUDED IN BASE RATES OF $0.023837 PER KWH.
T53: =NAME -> DUKE ENERGY KENTUCKY, INC.
T54: =CASE_NO -> CASE NO. 2019-00271
T55: =TITLE -> ANNUALIZED TEST YEAR REVENUES AT PROPOSED VS. MOST CURRENT RATES
T56: =DATE -> FOR THE TWELVE MONTHS ENDED March 31, 2021
T57: =SERVICE -> (ELECTRIC SERVICE)
T58: =DATA_PERIOD -> DATA: ____ BASE PERIOD __X__FORECASTED PERIOD | AO58: SCHEDULE M-2.2
T59: =TYPE -> TYPE OF FILING: _X_ ORIGINAL ___UPDATED ___ REVISED | AO59: ="PAGE 8 OF "&TEXT(Page_Num_2.2,"00") -> PAGE 8 OF 22
T60: WORK PAPER REFERENCE NO(S).: | AO60: WITNESS:
T61: =TIME -> 12 Months Projected with Riders | AO61: =WIT -> J. L. Kern
T62: =INPUT!B5 -> 
T63: CURRENT ANNUALIZED
AE65: CURRENT | AG65: % OF REV TO | AI65: REVENUE | AK65: % INCR IN | AO65: CURRENT | AQ65: TOTAL
AC66: MOST | AE66: REVENUE LESS | AG66: TOTAL LESS | AI66: INCR LESS | AK66: REV LESS | AO66: TOTAL | AQ66: REVENUE
T67: LINE | V67: RATE | W67: CLASS / | Y67: CUSTOMER | AC67: CURRENT | AE67: FAC | AG67: FAC | AI67: FAC REV | AK67: FAC REV | AM67: FAC | AO67: REVENUE | AQ67: % INCREASE
T68: NO. | V68: CODE | W68: DESCRIPTION | Y68: BILLS(1) | AA68: SALES | AC68: RATES | AE68: REVENUE | AG68: REVENUE | AI68: (F - K) | AK68: (M / K) | AM68: REVENUE (2) | AO68: (K + H) | AQ68: (M / K1)
V69: (A) | W69: (B) | Y69: (C) | AA69: (D) | AC69: (J) | AE69: (K) | AG69: (L) | AI69: (M) | AK69: (N) | AM69: (H) | AO69: (K1) | AQ69: (O)
AA71: (KW/KWH) | AC71: ($/KWH)/ | AE71: ($) | AG71: (%) | AI71: ($) | AK71: (%) | AM71: ($) | AO71: ($) | AQ71: (%)
T72: 1 | V72: DP | W72: SERVICE AT PRIMARY | AC72: ($/KW)
T73: 2 | W73: DISTRIBUTION VOLTAGE
T75: 3 | V75: CUSTOMER CHARGE:
T76: 4 | V76: LOAD MANAGEMENT RIDER | Y76: =F24 -> 24 | AC76: =INPUT!C64 -> 5 | AE76: =ROUND(Y76*AC76,0) -> 120 | AG76: =ROUND((AE76/$AE$98)*100,1) -> 0 | AI76: =L24-AE76 -> 0 | AK76: =ROUND((AI76/AE76)*100,1) -> 0 | AO76: =AE76+AM76 -> 120 | AQ76: =ROUND((AI76/AO76)*100,1) -> 0
T77: 5 | V77: PRIMARY VOLTAGE | Y77: =F25 -> 120 | AC77: =INPUT!C112 -> 117 | AE77: =ROUND(Y77*AC77,0) -> 14040 | AG77: =ROUND((AE77/$AE$98)*100,1) -> 0.9 | AI77: =L25-AE77 -> 0 | AK77: =ROUND((AI77/AE77)*100,1) -> 0 | AO77: =AE77+AM77 -> 14040 | AQ77: =ROUND((AI77/AO77)*100,1) -> 0
T78: 6 | V78: TOTAL CUSTOMER CHARGE | Y78: =F26 -> 120 | AE78: =SUM(AE76:AE77) -> 14160 | AG78: =ROUND((AE78/$AE$98)*100,1)+0.1 -> 1 | AI78: =SUM(AI76:AI77) -> 0 | AK78: =SUM(AK76:AK77) -> 0 | AO78: =SUM(AO76:AO77) -> 14160 | AQ78: =ROUND((AI78/AO78)*100,1) -> 0
T80: 7 | V80: DEMAND CHARGE:
T81: 8 | V81: ALL KW | AA81: =H29 -> 46913 | AC81: =INPUT!C118 -> 7.92 | AE81: =ROUND(AA81*AC81,0) -> 371551 | AG81: =ROUND((AE81/$AE$98)*100,1) -> 23.2 | AI81: =L29-AE81 -> 51604 | AK81: =ROUND((AI81/AE81)*100,1) -> 13.9 | AO81: =AE81+AM81 -> 371551 | AQ81: =ROUND((AI81/AO81)*100,1) -> 13.9
T82: 9 | V82: TOTAL DEMAND | AA82: =H30 -> 46913 | AE82: =SUM(AE81) -> 371551 | AG82: =ROUND((AE82/$AE$98)*100,1) -> 23.2 | AI82: =SUM(AI81) -> 51604 | AK82: =ROUND((AI82/AE82)*100,1) -> 13.9 | AO82: =SUM(AO81) -> 371551 | AQ82: =ROUND((AI82/AO82)*100,1) -> 13.9
T84: 10 | V84: ENERGY CHARGE (3):
T85: 11 | V85: FIRST 300KWH/KW | AA85: =H33 -> 13736575 | AC85: =INPUT!C114 -> 0.051092 | AE85: =ROUND((AA85*AC85),0) -> 701829 | AG85: =ROUND((AE85/$AE$98)*100,1) -> 43.7 | AI85: =L33-AE85 -> 97681 | AK85: =ROUND((AI85/AE85)*100,1) -> 13.9 | AO85: =AE85+AM85 -> 701829 | AQ85: =ROUND((AI85/AO85)*100,1) -> 13.9
T86: 12 | V86: ADDITIONAL KWH | AA86: =H34 -> 6024676 | AC86: =INPUT!C115 -> 0.043219 | AE86: =ROUND((AA86*AC86),0) -> 260380 | AG86: =ROUND((AE86/$AE$98)*100,1) -> 16.2 | AI86: =L34-AE86 -> 36106 | AK86: =ROUND((AI86/AE86)*100,1) -> 13.9 | AO86: =AE86+AM86 -> 260380 | AQ86: =ROUND((AI86/AO86)*100,1) -> 13.9
T87: 13 | V87: CAP RATE KWH | AA87: =H35 -> 0 | AC87: =INPUT!C116 -> 0.241312 | AE87: =ROUND((AA87*AC87),0) -> 0 | AG87: =ROUND((AE87/$AE$98)*100,1) -> 0 | AI87: =L35-AE87 -> 0 | AK87: =IF(AE87=0,0,ROUND((AI87/AE87)*100,1)) -> 0 | AO87: =AE87+AM87 -> 0 | AQ87: =IF(AO87=0,0,ROUND((AI87/AO87)*100,1)) -> 0
T88: 14 | V88: TOTAL ENERGY | AA88: =H36 -> 19761251 | AE88: =SUM(AE85:AE87) -> 962209 | AG88: =ROUND((AE88/$AE$98)*100,1) -> 60 | AI88: =SUM(AI85:AI87) -> 133787 | AK88: =ROUND((AI88/AE88)*100,1) -> 13.9 | AO88: =SUM(AO85:AO87) -> 962209 | AQ88: =ROUND((AI88/AO88)*100,1) -> 13.9
T89: 15 | V89: TOTAL RATE DP EXCLUDING RIDERS | Y89: =Y78 -> 120 | AA89: =AA88 -> 19761251 | AE89: =AE78+AE82+AE88 -> 1347920 | AG89: =ROUND((AE89/$AE$98)*100,1) -> 84 | AI89: =AI78+AI82+AI88 -> 185391 | AK89: =ROUND((AI89/AE89)*100,1) -> 13.8 | AO89: =AO78+AO82+AO88 -> 1347920 | AQ89: =ROUND((AI89/AO89)*100,1) -> 13.8
T91: =A39 -> 16 | V91: RIDERS:
T92: 17 | V92: =C40 -> DEMAND SIDE MANAGEMENT RIDER (DSMR) | AC92: =DSM_DIST -> 0.005091 | AE92: =ROUND($AA$89*AC92,0) -> 100605 | AG92: =ROUND((AE92/$AE$98)*100,1)-0.1 -> 6.2 | AI92: =L40-AE92 -> 0 | AK92: =IF(AE92=0,0,ROUND((AI92/AE92)*100,1)) -> 0 | AO92: =AE92+AM92 -> 100605 | AQ92: =IF(AO92=0,0,ROUND((AI92/AO92)*100,1)) -> 0
T93: 18 | V93: =C41 -> ENVIRONMENTAL SURCHARGE MECHANISM RIDER (ESM) | AC93: =CUR_ESM_NonRes -> 0.1816 | AE93: =ROUND((AO89-CUR_BASE_FUEL*AA89)*AC93,0) -> 159240 | AG93: =ROUND((AE93/$AE$98)*100,1) -> 9.9 | AI93: =L41-AE93 -> 0 | AK93: =IF(AE93=0,0,ROUND((AI93/AE93)*100,1)) -> 0 | AO93: =AE93+AM93 -> 159240 | AQ93: =IF(AO93=0,0,ROUND((AI93/AO93)*100,1)) -> 0
T94: 19 | V94: =C42 -> FUEL ADJUSTMENT CLAUSE (FAC) | AC94: =CUR_FAC -> 0.000681 | AM94: =ROUND(AA89*CUR_FAC,0) -> 13457 | AO94: =AE94+AM94 -> 13457 | AQ94: =IF(AO94=0,0,ROUND((AI94/AO94)*100,1)) -> 0
T95: 20 | V95: =C43 -> PROFIT SHARING MECHANISM (PSM) | AC95: =RS_PSM -> -0.000163 | AE95: =ROUND(AA89*RS_PSM,0) -> -3221 | AG95: =ROUND((AE95/$AE$98)*100,1) -> -0.2 | AI95: =L43-AE95 -> 0 | AK95: =IF(AE95=0,0,ROUND((AI95/AE95)*100,1)) -> 0 | AO95: =AE95+AM95 -> -3221 | AQ95: =IF(AO95=0,0,ROUND((AI95/AO95)*100,1)) -> 0
T96: 21 | V96: TOTAL RIDERS | AE96: =SUM(AE92:AE95) -> 256624 | AG96: =ROUND((AE96/$AE$98)*100,1) -> 16 | AI96: =SUM(AI92:AI95) -> 0 | AK96: =ROUND((AI96/AE96)*100,1) -> 0 | AM96: =SUM(AM92:AM95) -> 13457 | AO96: =SUM(AO92:AO95) -> 270081 | AQ96: =IF(AO96=0,0,ROUND((AI96/AO96)*100,1)) -> 0
T98: =A46 -> 22 | V98: TOTAL RATE DP INCLUDING RIDERS | Y98: =F46 -> 120 | AA98: =H46 -> 19761251 | AE98: =AE96+AE89 -> 1604544 | AG98: 100 | AI98: =AI96+AI89 -> 185391 | AK98: =ROUND((AI98/AE98)*100,1) -> 11.6 | AM98: =AM96+AM89 -> 13457 | AO98: =AO96+AO89 -> 1618001 | AQ98: =ROUND((AI98/AO98)*100,1) -> 11.5
V100: (1) BILLS THAT TERMINATE IN RESPECTIVE RATE STEPS.
V101: ="(2) REFLECTS FUEL COMPONENT OF "&TEXT(CUR_FAC,"$0.000000;($0.000000)")&" PER KWH." -> (2) REFLECTS FUEL COMPONENT OF $0.000681 PER KWH.
V102: ="(3) REFLECTS FUEL COST RECOVERY INCLUDED IN BASE RATES OF "&TEXT(CUR_BASE_FUEL,"$0.000000;($0.000000)")&" PER KWH." -> (3) REFLECTS FUEL COST RECOVERY INCLUDED IN BASE RATES OF $0.023837 PER KWH.

Sheet Rate TT
A1: =NAME -> DUKE ENERGY KENTUCKY, INC.
A2: =CASE_NO -> CASE NO. 2019-00271
A3: =TITLE -> ANNUALIZED TEST YEAR REVENUES AT PROPOSED VS. MOST CURRENT RATES
A4: =DATE -> FOR THE TWELVE MONTHS ENDED March 31, 2021
A5: =SERVICE -> (ELECTRIC SERVICE)
A6: =DATA_PERIOD -> DATA: ____ BASE PERIOD __X__FORECASTED PERIOD | R6: SCHEDULE M-2.3
A7: =TYPE -> TYPE OF FILING: _X_ ORIGINAL ___UPDATED ___ REVISED | R7: ="PAGE 9 OF "&TEXT(Page_Num_2.3,"00") -> PAGE 9 OF 23
A8: WORK PAPER REFERENCE NO(S).: | R8: WITNESS:
A9: =TIME -> 12 Months Projected with Riders | R9: =WIT -> J. L. Kern
A10: =INPUT!B5 -> 
A11: PROPOSED ANNUALIZED
L13: PROPOSED | N13: % OF REV TO | R13: PROPOSED
L14: REVENUE LESS | N14: TOTAL LESS | R14: TOTAL
A15: LINE | C15: RATE | D15: CLASS / | F15: CUSTOMER | J15: PROPOSED | L15: FAC | N15: FAC | P15: FAC | R15: REVENUE
A16: NO. | C16: CODE | D16: DESCRIPTION | F16: BILLS(1) | H16: SALES | J16: RATES | L16: REVENUE | N16: REVENUE | P16: REVENUE (2) | R16: (F + H)
C17: (A) | D17: (B) | F17: (C) | H17: (D) | J17: (E) | L17: (F) | N17: (G) | P17: (H) | R17: (I)
H18: (KW/KWH) | J18: ($/KWH)/ | L18: ($) | N18: (%) | P18: ($) | R18: ($)
A19: 1 | C19: TT | D19: TIME OF DAY | J19: ($/KW)
A20: 2 | C20: SUMMER:
A21: 3 | C21: CUSTOMER CHARGE | F21: 52 | J21: =INPUT!D122 -> 500 | L21: =ROUND(F21*J21,0) -> 26000 | N21: =ROUND((L21/$L$56)*100,1) -> 0.2 | R21: =L21+P21 -> 26000
A23: 4 | C23: DEMAND CHARGE:
A24: 5 | C24: ON PEAK KW | H24: 164217 | J24: =INPUT!D128 -> 8.75 | L24: =ROUND(H24*J24,0) -> 1436899 | N24: =ROUND((L24/$L$56)*100,1) -> 9 | R24: =L24+P24 -> 1436899
A25: 6 | C25: OFF PEAK KW | H25: 6210 | J25: =INPUT!D129 -> 1.32 | L25: =ROUND(H25*J25,0) -> 8197 | N25: =ROUND((L25/$L$56)*100,1) -> 0.1 | R25: =L25+P25 -> 8197
A26: 7 | C26: TOTAL DEMAND | H26: =SUM(H24:H25) -> 170427 | L26: =SUM(L24:L25) -> 1445096 | N26: =ROUND((L26/$L$56)*100,1)+0.1 -> 9.1 | R26: =SUM(R24:R25) -> 1445096
A28: 8 | C28: ENERGY CHARGE (3):
A29: 9 | C29: ON PEAK KWH | H29: 26283286 | J29: =PRO_SUM_TT_ON_KWH -> 0.053207 | L29: =ROUND((H29*J29),0) -> 1398455 | N29: =ROUND((L29/$L$56)*100,1) -> 8.7 | R29: =L29+P29 -> 1398455
A30: 10 | C30: OFF PEAK KWH | H30: 49073886 | J30: =PRO_TT_OFF -> 0.043571 | L30: =ROUND((H30*J30),0) -> 2138198 | N30: =ROUND((L30/$L$56)*100,1) -> 13.3 | R30: =L30+P30 -> 2138198
A31: 11 | C31: TOTAL ENERGY | H31: =SUM(H29:H30) -> 75357172 | L31: =SUM(L29:L30) -> 3536653 | N31: =ROUND((L31/$L$56)*100,1)+0.1 -> 22.2 | R31: =SUM(R29:R30) -> 3536653
A32: 12 | C32: TOTAL SUMMER | F32: =F21 -> 52 | H32: =H31 -> 75357172 | L32: =L21+L26+L31 -> 5007749 | N32: =ROUND((L32/$L$56)*100,1)-0.1 -> 31.2 | R32: =R21+R26+R31 -> 5007749
A34: 13 | C34: WINTER:
A35: 14 | C35: CUSTOMER CHARGE | F35: 103 | J35: =J21 -> 500 | L35: =ROUND(F35*J35,0) -> 51500 | N35: =ROUND((L35/L$56)*100,1) -> 0.3 | R35: =L35+P35 -> 51500
A37: 15 | C37: DEMAND CHARGE:
A38: 16 | C38: ON PEAK KW | H38: 333064 | J38: =INPUT!D130 -> 7.18 | L38: =ROUND(H38*J38,0) -> 2391400 | N38: =ROUND((L38/$L$56)*100,1) -> 14.9 | R38: =L38+P38 -> 2391400
A39: 17 | C39: OFF PEAK KW | H39: 12304 | J39: =INPUT!D131 -> 1.32 | L39: =ROUND(H39*J39,0) -> 16241 | N39: =ROUND((L39/$L$56)*100,1) -> 0.1 | R39: =L39+P39 -> 16241
A40: 18 | C40: TOTAL DEMAND | H40: =SUM(H38:H39) -> 345368 | L40: =L38+L39 -> 2407641 | N40: =ROUND((L40/$L$56)*100,1) -> 15 | R40: =L40+P40 -> 2407641
A42: 19 | C42: ENERGY CHARGE (3):
A43: 20 | C43: ON PEAK KWH | H43: 47227579 | J43: =PRO_WIN_TT_ON_KWH -> 0.050794 | L43: =ROUND((H43*J43),0) -> 2398878 | N43: =ROUND((L43/$L$56)*100,1) -> 15 | R43: =L43+P43 -> 2398878
A44: 21 | C44: OFF PEAK KWH | H44: 106618590 | J44: =PRO_TT_OFF -> 0.043571 | L44: =ROUND((H44*J44),0) -> 4645479 | N44: =ROUND((L44/$L$56)*100,1) -> 29 | R44: =L44+P44 -> 4645479
A45: 22 | C45: TOTAL ENERGY | H45: =SUM(H43:H44) -> 153846169 | L45: =SUM(L43:L44) -> 7044357 | N45: =ROUND((L45/$L$56)*100,1) -> 44 | R45: =SUM(R43:R44) -> 7044357
A46: 23 | C46: TOTAL WINTER | F46: =F35 -> 103 | H46: =H45 -> 153846169 | L46: =L35+L40+L45 -> 9503498 | N46: =ROUND((L46/$L$56)*100,1) -> 59.3 | R46: =R35+R40+R45 -> 9503498
A47: 24 | C47: TOTAL RATE TT EXCLUDING RIDERS | F47: =F32+F46 -> 155 | H47: =H46+H32 -> 229203341 | L47: =L46+L32 -> 14511247 | N47: =ROUND((L47/L$56)*100,1) -> 90.6 | R47: =R46+R32 -> 14511247
A49: 25 | C49: RIDERS:
A50: 26 | C50: =DSMR_Name -> DEMAND SIDE MANAGEMENT RIDER (DSMR) | J50: =PRO_DSM_TRANS -> 0.000463 | L50: =ROUND($H$47*J50,0) -> 106121 | N50: =ROUND((L50/L$56)*100,1) -> 0.7 | R50: =L50+P50 -> 106121
A51: 27 | C51: =ESM_Name -> ENVIRONMENTAL SURCHARGE MECHANISM RIDER (ESM) | L51: =AE115 -> 1438497 | N51: =ROUND((L51/L$56)*100,1) -> 9 | R51: =L51+P51 -> 1438497
A52: 28 | C52: =FAC_Name -> FUEL ADJUSTMENT CLAUSE (FAC) | J52: =PRO_FAC -> 0.000681 | P52: =ROUND(H47*PRO_FAC,0) -> 156087 | R52: =L52+P52 -> 156087
A53: 29 | C53: =PSM_Name -> PROFIT SHARING MECHANISM (PSM) | J53: =PRO_PSM -> -0.000163 | L53: =ROUND(H47*PRO_PSM,0) -> -37360 | N53: =ROUND((L53/L$56)*100,1) -> -0.2 | R53: =L53+P53 -> -37360
A54: 30 | C54: TOTAL RIDERS | L54: =SUM(L50:L53) -> 1507258 | N54: =ROUND((L54/L$56)*100,1) -> 9.4 | P54: =SUM(P50:P53) -> 156087 | R54: =SUM(R50:R53) -> 1663345
A56: 31 | C56: TOTAL RATE TT INCLUDING RIDERS | F56: =F32+F46 -> 155 | H56: =H32+H46 -> 229203341 | L56: =L54+L47 -> 16018505 | N56: 100 | P56: =P54+P47 -> 156087 | R56: =R54+R47 -> 16174592
C58: (1) BILLS THAT TERMINATE IN RESPECTIVE RATE STEPS.
C59: ="(2) REFLECTS FUEL COMPONENT OF "&TEXT(PRO_FAC,"$0.000000;($0.000000)")&" PER KWH." -> (2) REFLECTS FUEL COMPONENT OF $0.000681 PER KWH.
C60: ="(3) REFLECTS FUEL COST RECOVERY INCLUDED IN BASE RATES OF "&TEXT(PRO_BASE_FUEL,"$0.000000;($0.000000)")&" PER KWH." -> (3) REFLECTS FUEL COST RECOVERY INCLUDED IN BASE RATES OF $0.023837 PER KWH.
T65: =NAME -> DUKE ENERGY KENTUCKY, INC.
T66: =CASE_NO -> CASE NO. 2019-00271
T67: =TITLE -> ANNUALIZED TEST YEAR REVENUES AT PROPOSED VS. MOST CURRENT RATES
T68: =DATE -> FOR THE TWELVE MONTHS ENDED March 31, 2021
T69: =SERVICE -> (ELECTRIC SERVICE)
T70: =DATA_PERIOD -> DATA: ____ BASE PERIOD __X__FORECASTED PERIOD | AO70: SCHEDULE M-2.2
T71: =TYPE -> TYPE OF FILING: _X_ ORIGINAL ___UPDATED ___ REVISED | AO71: ="PAGE 9 OF "&TEXT(Page_Num_2.2,"00") -> PAGE 9 OF 22
T72: WORK PAPER REFERENCE NO(S).: | AO72: WITNESS:
T73: =TIME -> 12 Months Projected with Riders | AO73: =WIT -> J. L. Kern
T74: =INPUT!B5 -> 
T75: CURRENT ANNUALIZED
AE77: CURRENT | AG77: % OF REV TO | AI77: REVENUE | AK77: % INCR IN | AO77: CURRENT | AQ77: TOTAL
AC78: MOST | AE78: REVENUE LESS | AG78: TOTAL LESS | AI78: INCR LESS | AK78: REV LESS | AO78: TOTAL | AQ78: REVENUE
T79: LINE | V79: RATE | W79: CLASS / | Y79: CUSTOMER | AC79: CURRENT | AE79: FAC | AG79: FAC | AI79: FAC REV | AK79: FAC REV | AM79: FAC | AO79: REVENUE | AQ79: % INCREASE
T80: NO. | V80: CODE | W80: DESCRIPTION | Y80: BILLS(1) | AA80: SALES | AC80: RATES | AE80: REVENUE | AG80: REVENUE | AI80: (F - K) | AK80: (M / K) | AM80: REVENUE (2) | AO80: (K + H) | AQ80: (M / K1)
V81: (A) | W81: (B) | Y81: (C) | AA81: (D) | AC81: (J) | AE81: (K) | AG81: (L) | AI81: (M) | AK81: (N) | AM81: (H) | AO81: (K1) | AQ81: (O)
AA82: (KW/KWH) | AC82: ($/KWH)/ | AE82: ($) | AG82: (%) | AI82: ($) | AK82: (%) | AM82: ($) | AO82: ($) | AQ82: (%)
T83: =A19 -> 1 | V83: TT | W83: TIME OF DAY | AC83: ($/KW)
T84: =A20 -> 2 | V84: SUMMER:
T85: =A21 -> 3 | V85: CUSTOMER CHARGE | Y85: =F21 -> 52 | AC85: =INPUT!C122 -> 500 | AE85: =ROUND(Y85*AC85,0) -> 26000 | AG85: =ROUND((AE85/AE$120)*100,1) -> 0.2 | AI85: =L21-AE85 -> 0 | AK85: =IF(AE85=0,"0.0 ",ROUND((AI85/AE85)*100,1)) -> 0 | AO85: =AE85+AM85 -> 26000 | AQ85: =IF(AO85=0,"0.0 ",ROUND((AI85/AO85)*100,1)) -> 0
T87: =A23 -> 4 | V87: DEMAND CHARGE:
T88: =A24 -> 5 | V88: ON PEAK KW | AA88: =H24 -> 164217 | AC88: =INPUT!C128 -> 8.07 | AE88: =ROUND(AA88*AC88,0) -> 1325231 | AG88: =ROUND((AE88/AE$120)*100,1) -> 8.9 | AI88: =L24-AE88 -> 111668 | AK88: =IF(AE88=0,"0.0 ",ROUND((AI88/AE88)*100,1)) -> 8.4 | AO88: =AE88+AM88 -> 1325231 | AQ88: =IF(AO88=0,"0.0 ",ROUND((AI88/AO88)*100,1)) -> 8.4
T89: =A25 -> 6 | V89: OFF PEAK KW | AA89: =H25 -> 6210 | AC89: =INPUT!C129 -> 1.22 | AE89: =ROUND(AA89*AC89,0) -> 7576 | AG89: =ROUND((AE89/AE$120)*100,1) -> 0.1 | AI89: =L25-AE89 -> 621 | AK89: =IF(AE89=0,"0.0 ",ROUND((AI89/AE89)*100,1)) -> 8.2 | AO89: =AE89+AM89 -> 7576 | AQ89: =IF(AO89=0,"0.0 ",ROUND((AI89/AO89)*100,1)) -> 8.2
T90: =A26 -> 7 | V90: TOTAL DEMAND | AA90: =H26 -> 170427 | AE90: =AE88+AE89 -> 1332807 | AG90: =ROUND((AE90/AE$120)*100,1)+0.1 -> 9 | AI90: =SUM(AI88:AI89) -> 112289 | AK90: =IF(AE90=0,"0.0 ",ROUND((AI90/AE90)*100,1)) -> 8.4 | AO90: =AO88+AO89 -> 1332807 | AQ90: =IF(AO90=0,"0.0 ",ROUND((AI90/AO90)*100,1)) -> 8.4
T92: =A28 -> 8 | V92: ENERGY CHARGE (3):
T93: =A29 -> 9 | V93: ON PEAK KWH | AA93: =H29 -> 26283286 | AC93: =CUR_SUM_TT_ON_KWH -> 0.049051 | AE93: =ROUND((AA93*AC93),0) -> 1289221 | AG93: =ROUND((AE93/AE$120)*100,1) -> 8.7 | AI93: =L29-AE93 -> 109234 | AK93: =IF(AE93=0,"0.0 ",ROUND((AI93/AE93)*100,1)) -> 8.5 | AO93: =AE93+AM93 -> 1289221 | AQ93: =IF(AO93=0,"0.0 ",ROUND((AI93/AO93)*100,1)) -> 8.5
T94: =A30 -> 10 | V94: OFF PEAK KWH | AA94: =H30 -> 49073886 | AC94: =CUR_TT_OFF -> 0.040168 | AE94: =ROUND((AA94*AC94),0) -> 1971200 | AG94: =ROUND((AE94/AE$120)*100,1) -> 13.2 | AI94: =L30-AE94 -> 166998 | AK94: =IF(AE94=0,"0.0 ",ROUND((AI94/AE94)*100,1)) -> 8.5 | AO94: =AE94+AM94 -> 1971200 | AQ94: =IF(AO94=0,"0.0 ",ROUND((AI94/AO94)*100,1)) -> 8.5
T95: =A31 -> 11 | V95: TOTAL ENERGY | AA95: =H31 -> 75357172 | AE95: =AE93+AE94 -> 3260421 | AG95: =ROUND((AE95/AE$120)*100,1) -> 21.9 | AI95: =SUM(AI93:AI94) -> 276232 | AK95: =IF(AE95=0,"0.0 ",ROUND((AI95/AE95)*100,1)) -> 8.5 | AO95: =AO93+AO94 -> 3260421 | AQ95: =IF(AO95=0,"0.0 ",ROUND((AI95/AO95)*100,1)) -> 8.5
T96: =A32 -> 12 | V96: TOTAL SUMMER | Y96: =F32 -> 52 | AA96: =H32 -> 75357172 | AE96: =AE85+AE90+AE95 -> 4619228 | AG96: =ROUND((AE96/AE$120)*100,1) -> 31 | AI96: =AI85+AI90+AI95 -> 388521 | AK96: =IF(AE96=0,"0.0 ",ROUND((AI96/AE96)*100,1)) -> 8.4 | AO96: =AO85+AO90+AO95 -> 4619228 | AQ96: =IF(AO96=0,"0.0 ",ROUND((AI96/AO96)*100,1)) -> 8.4
T98: =A34 -> 13 | V98: WINTER:
T99: =A35 -> 14 | V99: CUSTOMER CHARGE | Y99: =F35 -> 103 | AC99: =AC85 -> 500 | AE99: =ROUND(Y99*AC99,0) -> 51500 | AG99: =ROUND((AE99/AE$120)*100,1) -> 0.3 | AI99: =L35-AE99 -> 0 | AK99: =IF(AE99=0,"0.0 ",ROUND((AI99/AE99)*100,1)) -> 0 | AO99: =AE99+AM99 -> 51500 | AQ99: =IF(AO99=0,"0.0 ",ROUND((AI99/AO99)*100,1)) -> 0
T101: =A37 -> 15 | V101: DEMAND CHARGE:
T102: =A38 -> 16 | V102: ON PEAK KW | AA102: =H38 -> 333064 | AC102: =INPUT!C130 -> 6.62 | AE102: =ROUND(AA102*AC102,0) -> 2204884 | AG102: =ROUND((AE102/AE$120)*100,1) -> 14.8 | AI102: =L38-AE102 -> 186516 | AK102: =IF(AE102=0,"0.0 ",ROUND((AI102/AE102)*100,1)) -> 8.5 | AO102: =AE102+AM102 -> 2204884 | AQ102: =IF(AO102=0,"0.0 ",ROUND((AI102/AO102)*100,1)) -> 8.5
T103: =A39 -> 17 | V103: OFF PEAK KW | AA103: =H39 -> 12304 | AC103: =INPUT!C131 -> 1.22 | AE103: =ROUND(AA103*AC103,0) -> 15011 | AG103: =ROUND((AE103/AE$120)*100,1) -> 0.1 | AI103: =L39-AE103 -> 1230 | AK103: =IF(AE103=0,"0.0 ",ROUND((AI103/AE103)*100,1)) -> 8.2 | AO103: =AE103+AM103 -> 15011 | AQ103: =IF(AO103=0,"0.0 ",ROUND((AI103/AO103)*100,1)) -> 8.2
T104: =A40 -> 18 | V104: TOTAL DEMAND | AA104: =H40 -> 345368 | AE104: =AE102+AE103 -> 2219895 | AG104: =ROUND((AE104/AE$120)*100,1) -> 14.9 | AI104: =SUM(AI102:AI103) -> 187746 | AK104: =IF(AE104=0,"0.0 ",ROUND((AI104/AE104)*100,1)) -> 8.5 | AO104: =AO102+AO103 -> 2219895 | AQ104: =IF(AO104=0,"0.0 ",ROUND((AI104/AO104)*100,1)) -> 8.5
T106: =A42 -> 19 | V106: ENERGY CHARGE (3):
T107: 20 | V107: ON PEAK KWH | AA107: =H43 -> 47227579 | AC107: =CUR_WIN_TT_ON_KWH -> 0.046826 | AE107: =ROUND((AA107*AC107),0) -> 2211479 | AG107: =ROUND((AE107/AE$120)*100,1) -> 14.9 | AI107: =L43-AE107 -> 187399 | AK107: =IF(AE107=0,"0.0 ",ROUND((AI107/AE107)*100,1)) -> 8.5 | AO107: =AE107+AM107 -> 2211479 | AQ107: =IF(AO107=0,"0.0 ",ROUND((AI107/AO107)*100,1)) -> 8.5
T108: 21 | V108: OFF PEAK KWH | AA108: =H44 -> 106618590 | AC108: =CUR_TT_OFF -> 0.040168 | AE108: =ROUND((AA108*AC108),0) -> 4282656 | AG108: =ROUND((AE108/AE$120)*100,1)-0.1 -> 28.7 | AI108: =L44-AE108 -> 362823 | AK108: =IF(AE108=0,"0.0 ",ROUND((AI108/AE108)*100,1)) -> 8.5 | AO108: =AE108+AM108 -> 4282656 | AQ108: =IF(AO108=0,"0.0 ",ROUND((AI108/AO108)*100,1)) -> 8.5
T109: 22 | V109: TOTAL ENERGY | AA109: =H45 -> 153846169 | AE109: =AE107+AE108 -> 6494135 | AG109: =ROUND((AE109/AE$120)*100,1) -> 43.6 | AI109: =SUM(AI107:AI108) -> 550222 | AK109: =IF(AE109=0,"0.0 ",ROUND((AI109/AE109)*100,1)) -> 8.5 | AO109: =AO107+AO108 -> 6494135 | AQ109: =IF(AO109=0,"0.0 ",ROUND((AI109/AO109)*100,1)) -> 8.5
T110: 23 | V110: TOTAL WINTER | Y110: =F46 -> 103 | AA110: =H46 -> 153846169 | AE110: =AE99+AE104+AE109 -> 8765530 | AG110: =ROUND((AE110/AE$120)*100,1) -> 58.9 | AI110: =AI99+AI104+AI109 -> 737968 | AK110: =IF(AE110=0,"0.0 ",ROUND((AI110/AE110)*100,1)) -> 8.4 | AO110: =AO99+AO104+AO109 -> 8765530 | AQ110: =IF(AO110=0,"0.0 ",ROUND((AI110/AO110)*100,1)) -> 8.4
T111: 24 | V111: TOTAL RATE TT EXCLUDING RIDERS | Y111: =Y96+Y110 -> 155 | AA111: =AA96+AA110 -> 229203341 | AE111: =AE96+AE110 -> 13384758 | AG111: =ROUND((AE111/AE$120)*100,1) -> 89.9 | AI111: =AI110+AI96 -> 1126489 | AK111: =IF(AE111=0,"0.0 ",ROUND((AI111/AE111)*100,1)) -> 8.4 | AO111: =AO110+AO96 -> 13384758 | AQ111: =IF(AO111=0,"0.0 ",ROUND((AI111/AO111)*100,1)) -> 8.4
T113: =A49 -> 25 | V113: RIDERS:
T114: 26 | V114: =C50 -> DEMAND SIDE MANAGEMENT RIDER (DSMR) | AC114: =DSM_TRANS -> 0.000463 | AE114: =ROUND($AA$111*AC114,0) -> 106121 | AG114: =ROUND((AE114/AE$120)*100,1) -> 0.7 | AI114: =L50-AE114 -> 0 | AK114: =IF(AE114=0,"0.0 ",ROUND((AI114/AE114)*100,1)) -> 0 | AO114: =AE114+AM114 -> 106121 | AQ114: =IF(AO114=0,"0.0 ",ROUND((AI114/AO114)*100,1)) -> 0
T115: 27 | V115: =C51 -> ENVIRONMENTAL SURCHARGE MECHANISM RIDER (ESM) | AC115: =CUR_ESM_NonRes -> 0.1816 | AE115: =ROUND((AO111-CUR_BASE_FUEL*AA111)*AC115,0) -> 1438497 | AG115: =ROUND((AE115/AE$120)*100,1) -> 9.7 | AI115: =L51-AE115 -> 0 | AK115: =IF(AE115=0,"0.0 ",ROUND((AI115/AE115)*100,1)) -> 0 | AO115: =AE115+AM115 -> 1438497 | AQ115: =IF(AO115=0,"0.0 ",ROUND((AI115/AO115)*100,1)) -> 0
T116: 28 | V116: =C52 -> FUEL ADJUSTMENT CLAUSE (FAC) | AC116: =CUR_FAC -> 0.000681 | AM116: =ROUND(AA111*CUR_FAC,0) -> 156087 | AO116: =AE116+AM116 -> 156087 | AQ116: =IF(AO116=0,"0.0 ",ROUND(((R52-AO116)/AO116)*100,1)) -> 0
T117: 29 | V117: =C53 -> PROFIT SHARING MECHANISM (PSM) | AC117: =RS_PSM -> -0.000163 | AE117: =ROUND(AA111*RS_PSM,0) -> -37360 | AG117: =ROUND((AE117/AE$120)*100,1) -> -0.3 | AI117: =L53-AE117 -> 0 | AK117: =IF(AE117=0,"0.0 ",ROUND((AI117/AE117)*100,1)) -> 0 | AO117: =AE117+AM117 -> -37360 | AQ117: =IF(AO117=0,"0.0 ",ROUND((AI117/AO117)*100,1)) -> 0
T118: 30 | V118: TOTAL RIDERS | AE118: =SUM(AE114:AE117) -> 1507258 | AG118: =ROUND((AE118/AE$120)*100,1) -> 10.1 | AI118: =SUM(AI114:AI117) -> 0 | AK118: =IF(AE118=0,"0.0 ",ROUND((AI118/AE118)*100,1)) -> 0 | AM118: =SUM(AM114:AM117) -> 156087 | AO118: =SUM(AO114:AO117) -> 1663345 | AQ118: =IF(AO118=0,"0.0 ",ROUND((AI118/AO118)*100,1)) -> 0
T120: =A56 -> 31 | V120: TOTAL RATE TT INCLUDING RIDERS | Y120: =Y111 -> 155 | AA120: =AA111 -> 229203341 | AE120: =AE111+AE118 -> 14892016 | AG120: 100 | AI120: =AI111+AI118 -> 1126489 | AK120: =IF(AE120=0,"0.0 ",ROUND((AI120/AE120)*100,1)) -> 7.6 | AM120: =AM111+AM118 -> 156087 | AO120: =AO111+AO118 -> 15048103 | AQ120: =IF(AO120=0,"0.0 ",ROUND((AI120/AO120)*100,1)) -> 7.5
V122: (1) BILLS THAT TERMINATE IN RESPECTIVE RATE STEPS.
V123: ="(2) REFLECTS FUEL COMPONENT OF "&TEXT(CUR_FAC,"$0.000000;($0.000000)")&" PER KWH." -> (2) REFLECTS FUEL COMPONENT OF $0.000681 PER KWH.
V124: ="(3) REFLECTS FUEL COST RECOVERY INCLUDED IN BASE RATES OF "&TEXT(CUR_BASE_FUEL,"$0.000000;($0.000000)")&" PER KWH." -> (3) REFLECTS FUEL COST RECOVERY INCLUDED IN BASE RATES OF $0.023837 PER KWH.

Sheet Rate DT RTP-P
A1: =NAME -> DUKE ENERGY KENTUCKY, INC.
A2: =CASE_NO -> CASE NO. 2019-00271
A3: =TITLE -> ANNUALIZED TEST YEAR REVENUES AT PROPOSED VS. MOST CURRENT RATES
A4: =DATE -> FOR THE TWELVE MONTHS ENDED March 31, 2021
A5: =SERVICE -> (ELECTRIC SERVICE)
A6: =DATA_PERIOD -> DATA: ____ BASE PERIOD __X__FORECASTED PERIOD | R6: SCHEDULE M-2.3
A7: =TYPE -> TYPE OF FILING: _X_ ORIGINAL ___UPDATED ___ REVISED | R7: PAGE xx OF 20
A8: WORK PAPER REFERENCE NO(S).: | R8: WITNESS:
A9: =TIME -> 12 Months Projected with Riders | R9: =WIT -> J. L. Kern
A10: =INPUT!B5 -> 
A11: PROPOSED ANNUALIZED
L13: PROPOSED | N13: % OF REV TO | R13: PROPOSED
L14: REVENUE LESS | N14: TOTAL LESS | R14: TOTAL
A15: LINE | C15: RATE | D15: CLASS / | F15: CUSTOMER | J15: PROPOSED | L15: FAC | N15: FAC | P15: FAC | R15: REVENUE
A16: NO. | C16: CODE | D16: DESCRIPTION | F16: BILLS(1) | H16: SALES | J16: RATES | L16: REVENUE | N16: REVENUE | P16: REVENUE (2) | R16: (F + H)
C17: (A) | D17: (B) | F17: (C) | H17: (D) | J17: (E) | L17: (F) | N17: (G) | P17: (H) | R17: (I)
H19: (KWH) | J19: ($/KWH) | L19: ($) | N19: (%) | P19: ($) | R19: ($)
A20: 1 | C20: DT RTP | D20: TIME OF DAY SERVICE AT PRIMARY
A21: 2 | D21: DISTRIBUTION VOLTAGE
A23: 3 | C23: CUSTOMER CHARGE:
A24: 4 | C24: BILLS (Real-Time Pricing) | F24: 0 | J24: =INPUT!D153 -> 183 | L24: =ROUND(+F24*J24,0) -> 0 | N24: 0 | R24: =L24+P24 -> 0
A25: 5 | C25: TOTAL CUSTOMER CHARGE | L25: =SUM(L24:L24) -> 0 | N25: 0 | R25: =SUM(R24:R24) -> 0
A27: 6 | C27: ENERGY CHARGE (3):
A28: 7 | C28: ALL KWH | H28: 0 | J28: =INPUT!D156 -> 0.015184 | L28: =ROUND((H28*J28),0) -> 0 | N28: 0 | R28: =L28+P28 -> 0
A29: 8 | C29: COMMODITY CHARGES | H29: =H28 -> 0 | J29: =INPUT!D160 -> 0.029462 | L29: =ROUND((H29*J29),0) -> 0 | N29: 0 | P29: =ROUND(-H29*(CUR_FAC+CUR_BASE_FUEL),0) -> 0 | R29: =L29+P29 -> 0
A30: 9 | C30: TOTAL ENERGY | H30: =H28 -> 0 | L30: =SUM(L28:L29) -> 0 | N30: 0 | P30: =P29 -> 0 | R30: =SUM(R28:R29) -> 0
A31: 10 | C31: TOTAL RATE DT RTP PRIMARY EXCLUDING RIDERS | F31: =F24 -> 0 | H31: =H30 -> 0 | L31: =L30+L25 -> 0 | N31: 0 | P31: =P30 -> 0 | R31: =R25+R30 -> 0
A33: 11 | C33: RIDERS:
A34: 12 | C34: DEMAND SIDE MANAGEMENT RIDER (DSMR) | J34: =PRO_DSM_DIST -> 0.005091 | L34: =ROUND(H31*PRO_DSM_DIST,0) -> 0 | N34: 0 | R34: =L34+P34 -> 0
A35: 13 | C35: PROFIT SHARING MECHANISM (PSM) | J35: =PRO_PSM -> -0.000163 | L35: =ROUND(H31*PRO_PSM,0) -> 0 | N35: 0 | R35: =L35+P35 -> 0
A36: 14 | C36: TOTAL RIDERS | L36: =SUM(L34:L35) -> 0 | N36: 0 | P36: =SUM(P34:P35) -> 0 | R36: =SUM(R34:R35) -> 0
A38: 15 | C38: TOTAL RATE DT RTP PRIMARY INCLUDING RIDERS | F38: =F31 -> 0 | H38: =H31 -> 0 | L38: =L36+L31 -> 0 | N38: 100 | P38: =P36+P31 -> 0 | R38: =R36+R31 -> 0
C40: (1) BILLS THAT TERMINATE IN RESPECTIVE RATE STEPS.
F41: 0 | H41: 0
T45: =NAME -> DUKE ENERGY KENTUCKY, INC.
T46: =CASE_NO -> CASE NO. 2019-00271
T47: =TITLE -> ANNUALIZED TEST YEAR REVENUES AT PROPOSED VS. MOST CURRENT RATES
T48: =DATE -> FOR THE TWELVE MONTHS ENDED March 31, 2021
T49: =SERVICE -> (ELECTRIC SERVICE)
T50: =DATA_PERIOD -> DATA: ____ BASE PERIOD __X__FORECASTED PERIOD | AO50: SCHEDULE M-2.2
T51: =TYPE -> TYPE OF FILING: _X_ ORIGINAL ___UPDATED ___ REVISED | AO51: =R7 -> PAGE xx OF 20
T52: WORK PAPER REFERENCE NO(S).: | AO52: WITNESS:
T53: =TIME -> 12 Months Projected with Riders | AO53: =WIT -> J. L. Kern
T54: =INPUT!B5 -> 
T55: CURRENT ANNUALIZED
AE57: CURRENT | AG57: % OF REV TO | AI57: REVENUE | AK57: % INCR IN | AO57: CURRENT | AQ57: TOTAL
AC58: MOST | AE58: REVENUE LESS | AG58: TOTAL LESS | AI58: INCR LESS | AK58: REV LESS | AO58: TOTAL | AQ58: REVENUE
T59: LINE | V59: RATE | W59: CLASS / | Y59: CUSTOMER | AC59: CURRENT | AE59: FAC | AG59: FAC | AI59: FAC REV | AK59: FAC REV | AM59: FAC | AO59: REVENUE | AQ59: % INCREASE
T60: NO. | V60: CODE | W60: DESCRIPTION | Y60: BILLS(1) | AA60: SALES | AC60: RATES | AE60: REVENUE | AG60: REVENUE | AI60: (F - K) | AK60: (M / K) | AM60: REVENUE | AO60: (K + H) | AQ60: (M / K1)
V61: (A) | W61: (B) | Y61: (C) | AA61: (D) | AC61: (J) | AE61: (K) | AG61: (L) | AI61: (M) | AK61: (N) | AM61: (H) | AO61: (K1) | AQ61: (O)
AA63: (KWH) | AC63: ($/KWH) | AE63: ($) | AG63: (%) | AI63: ($) | AK63: (%) | AM63: ($) | AO63: ($) | AQ63: (%)
T64: =A20 -> 1 | V64: DT RTP | W64: TIME OF DAY SERVICE AT PRIMARY
T65: 2 | W65: DISTRIBUTION VOLTAGE
T67: 3 | V67: CUSTOMER CHARGE:
T68: 4 | V68: BILLS (Real-Time Pricing) | Y68: =F24 -> 0 | AC68: =INPUT!C153 -> 183 | AE68: =ROUND(+Y68*AC68,0) -> 0 | AG68: 0 | AI68: =L24-AE68 -> 0 | AK68: =IF(AE68=0,0,ROUND((AI68/AE68)*100,1)) -> 0 | AO68: =AE68+AM68 -> 0 | AQ68: 0
T69: 5 | V69: TOTAL CUSTOMER CHARGE | AE69: =SUM(AE68:AE68) -> 0 | AG69: 0 | AI69: =SUM(AI68:AI68) -> 0 | AK69: =IF(AE69=0,0,ROUND((AI69/AE69)*100,1)) -> 0 | AO69: =SUM(AO68:AO68) -> 0 | AQ69: 0
T71: 6 | V71: ENERGY CHARGE:
T72: 7 | V72: ALL KWH | AA72: =H28 -> 0 | AC72: =INPUT!C156 -> 0.00785 | AE72: =ROUND((+AA72*AC72),0) -> 0 | AG72: 0 | AI72: =L28-AE72 -> 0 | AK72: =IF(AE72=0,0,ROUND((AI72/AE72)*100,1)) -> 0 | AO72: =AE72+AM72 -> 0 | AQ72: 0
T73: 8 | V73: COMMODITY CHARGES | AA73: =H29 -> 0 | AC73: =INPUT!C160 -> 0.029462 | AE73: =ROUND((+AA73*AC73),0) -> 0 | AG73: 0 | AI73: =L29-AE73 -> 0 | AK73: =IF(AE73=0,0,ROUND((AI73/AE73)*100,1)) -> 0 | AM73: =ROUND(-AA73*(CUR_FAC+CUR_BASE_FUEL),0) -> 0 | AO73: =AE73+AM73 -> 0 | AQ73: 0
T74: 9 | V74: TOTAL ENERGY | AA74: =H30 -> 0 | AE74: =SUM(AE72:AE73) -> 0 | AG74: 0 | AI74: =SUM(AI72:AI73) -> 0 | AK74: =IF(AE74=0,0,ROUND((AI74/AE74)*100,1)) -> 0 | AM74: =AM73 -> 0 | AO74: =SUM(AO72:AO73) -> 0 | AQ74: 0
T75: 10 | V75: TOTAL RATE DT RTP PRIMARY EXCLUDING RIDERS | Y75: =Y68 -> 0 | AA75: =AA74 -> 0 | AE75: =AE69+AE74 -> 0 | AG75: 0 | AI75: =AI69+AI74 -> 0 | AK75: =IF(AE75=0,0,ROUND((AI75/AE75)*100,1)) -> 0 | AM75: =AM74+AM69 -> 0 | AO75: =AO74+AO69 -> 0 | AQ75: 0
T77: 11 | V77: RIDERS:
T78: 12 | V78: DEMAND SIDE MANAGEMENT RIDER (DSMR) | AC78: =DSM_DIST -> 0.005091 | AE78: =ROUND(AA75*DSM_DIST,0) -> 0 | AG78: 0 | AI78: =L34-AE78 -> 0 | AK78: =IF(AE78=0,0,ROUND((AI78/AE78)*100,1)) -> 0 | AO78: =AE78+AM78 -> 0 | AQ78: 0
T79: 13 | V79: PROFIT SHARING MECHANISM (PSM) | AC79: =RS_PSM -> -0.000163 | AE79: =ROUND(AA75*RS_PSM,0) -> 0 | AG79: 0 | AI79: =L35-AE79 -> 0 | AK79: =IF(AE79=0,0,ROUND((AI79/AE79)*100,1)) -> 0 | AO79: =AE79+AM79 -> 0 | AQ79: 0
T80: 14 | V80: TOTAL RIDERS | AE80: =SUM(AE78:AE79) -> 0 | AG80: 0 | AI80: =SUM(AI78:AI79) -> 0 | AK80: =IF(AE80=0,0,ROUND((AI80/AE80)*100,1)) -> 0 | AO80: =SUM(AO78:AO79) -> 0 | AQ80: 0
T82: =A38 -> 15 | V82: TOTAL RATE DT RTP PRIMARY INCLUDING RIDERS | Y82: =F38 -> 0 | AA82: =H38 -> 0 | AE82: =AE80+AE75 -> 0 | AG82: 100 | AI82: =AI80+AI75 -> 0 | AK82: =IF(AE82=0,0,ROUND((AI82/AE82)*100,1)) -> 0 | AM82: =AM80+AM75 -> 0 | AO82: =AO69+AO74 -> 0 | AQ82: 0
V84: (1) BILLS THAT TERMINATE IN RESPECTIVE RATE STEPS.

Sheet Rate DT RTP-S
A1: =NAME -> DUKE ENERGY KENTUCKY, INC.
A2: =CASE_NO -> CASE NO. 2019-00271
A3: =TITLE -> ANNUALIZED TEST YEAR REVENUES AT PROPOSED VS. MOST CURRENT RATES
A4: =DATE -> FOR THE TWELVE MONTHS ENDED March 31, 2021
A5: =SERVICE -> (ELECTRIC SERVICE)
A6: =DATA_PERIOD -> DATA: ____ BASE PERIOD __X__FORECASTED PERIOD | R6: SCHEDULE M-2.3
A7: =TYPE -> TYPE OF FILING: _X_ ORIGINAL ___UPDATED ___ REVISED | R7: ="PAGE 10 OF "&TEXT(Page_Num_2.3,"00") -> PAGE 10 OF 23
A8: WORK PAPER REFERENCE NO(S).: | R8: WITNESS:
A9: =TIME -> 12 Months Projected with Riders | R9: =WIT -> J. L. Kern
A10: =INPUT!B5 -> 
A11: PROPOSED ANNUALIZED
L13: PROPOSED | N13: % OF REV TO | R13: PROPOSED
L14: REVENUE LESS | N14: TOTAL LESS | R14: TOTAL
A15: LINE | C15: RATE | D15: CLASS / | F15: CUSTOMER | J15: PROPOSED | L15: FAC | N15: FAC | P15: FAC | R15: REVENUE
A16: NO. | C16: CODE | D16: DESCRIPTION | F16: BILLS(1) | H16: SALES | J16: RATES | L16: REVENUE | N16: REVENUE | P16: REVENUE (2) | R16: (F + H)
C17: (A) | D17: (B) | F17: (C) | H17: (D) | J17: (E) | L17: (F) | N17: (G) | P17: (H) | R17: (I)
H19: (KWH) | J19: ($/KWH) | L19: ($) | N19: (%) | P19: ($) | R19: ($)
A20: 1 | C20: DT RTP | D20: TIME OF DAY SERVICE AT SECONDARY
A21: 2 | D21: DISTRIBUTION VOLTAGE
A23: 3 | C23: CUSTOMER CHARGE:
A24: 4 | C24: BILLS (Real-Time Pricing) | F24: 24 | J24: =INPUT!D153 -> 183 | L24: =ROUND(F24*J24,0) -> 4392 | N24: =ROUND((L24/$L$39)*100,1) -> 4.9 | R24: =L24+P24 -> 4392
A25: 5 | C25: TOTAL CUSTOMER CHARGE | L25: =SUM(L24) -> 4392 | N25: =ROUND((L25/$L$39)*100,1) -> 4.9 | R25: =SUM(R24) -> 4392
A27: 6 | C27: ENERGY CHARGE:
A28: 7 | C28: ALL KWH | H28: 1610719 | J28: =INPUT!D155 -> 0.018391 | L28: =ROUND((H28*J28),0) -> 29623 | N28: =ROUND((L28/$L$39)*100,1) -> 32.8 | R28: =L28+P28 -> 29623
A29: 8 | C29: COMMODITY CHARGES | H29: =H28 -> 1610719 | J29: =INPUT!D160 -> 0.029462 | L29: =ROUND((H29*J29),0) -> 47455 | N29: =ROUND((L29/$L$39)*100,1) -> 52.6 | P29: 0 | R29: =L29+P29 -> 47455
A30: 9 | C30: TOTAL ENERGY | H30: =H28 -> 1610719 | L30: =SUM(L28:L29) -> 77078 | N30: =ROUND((L30/$L$39)*100,1) -> 85.4 | P30: =P29 -> 0 | R30: =SUM(R28:R29) -> 77078
A31: 10 | C31: TOTAL RATE DT RTP SECONDARY EXCLUDING RIDERS | F31: =F24 -> 24 | H31: =H30 -> 1610719 | L31: =L30+L25 -> 81470 | N31: =ROUND((L31/$L$39)*100,1) -> 90.3 | P31: =P30+P25 -> 0 | R31: =R30+R25 -> 81470
A33: 11 | C33: RIDERS:
A34: 12 | C34: =DSMR_Name -> DEMAND SIDE MANAGEMENT RIDER (DSMR) | J34: =PRO_DSM_DIST -> 0.005091 | L34: =ROUND(H31*PRO_DSM_DIST,0) -> 8200 | M34: =ROUND((K34/$L$39)*100,1) -> 0 | N34: =ROUND((L34/$L$39)*100,1) -> 9.1 | Q34: =K34+O34 -> 0 | R34: =L34+P34 -> 8200
A35: 13 | C35: =ESM_Name -> ENVIRONMENTAL SURCHARGE MECHANISM RIDER (ESM) | L35: =AE79 -> 798 | N35: =ROUND((L35/$L$39)*100,1) -> 0.9 | R35: =L35+P35 -> 798
A36: 14 | C36: =PSM_Name -> PROFIT SHARING MECHANISM (PSM) | J36: =PRO_PSM -> -0.000163 | L36: =ROUND(H31*PRO_PSM,0) -> -263 | N36: =ROUND((L36/$L$39)*100,1) -> -0.3 | R36: =L36+P36 -> -263
A37: 15 | C37: TOTAL RIDERS | L37: =SUM(L34:L36) -> 8735 | N37: =ROUND((L37/$L$39)*100,1) -> 9.7 | P37: =SUM(P34:P36) -> 0 | R37: =SUM(R34:R36) -> 8735
A39: 16 | C39: TOTAL RATE DT RTP SECONDARY INCLUDING RIDERS | F39: =F31 -> 24 | H39: =H31 -> 1610719 | L39: =L37+L31 -> 90205 | N39: 100 | P39: =P37+P31 -> 0 | R39: =R37+R31 -> 90205
C41: (1) BILLS THAT TERMINATE IN RESPECTIVE RATE STEPS.
T45: =NAME -> DUKE ENERGY KENTUCKY, INC.
T46: =CASE_NO -> CASE NO. 2019-00271
T47: =TITLE -> ANNUALIZED TEST YEAR REVENUES AT PROPOSED VS. MOST CURRENT RATES
T48: =DATE -> FOR THE TWELVE MONTHS ENDED March 31, 2021
T49: =SERVICE -> (ELECTRIC SERVICE)
T50: =DATA_PERIOD -> DATA: ____ BASE PERIOD __X__FORECASTED PERIOD | AO50: SCHEDULE M-2.2
T51: =TYPE -> TYPE OF FILING: _X_ ORIGINAL ___UPDATED ___ REVISED | AO51: ="PAGE 10 OF "&TEXT(Page_Num_2.2,"00") -> PAGE 10 OF 22
T52: WORK PAPER REFERENCE NO(S).: | AO52: WITNESS:
T53: =TIME -> 12 Months Projected with Riders | AO53: =WIT -> J. L. Kern
T54: =INPUT!B5 -> 
T55: CURRENT ANNUALIZED
AE57: CURRENT | AG57: % OF REV TO | AI57: REVENUE | AK57: % INCR IN | AO57: CURRENT | AQ57: TOTAL
AC58: MOST | AE58: REVENUE LESS | AG58: TOTAL LESS | AI58: INCR LESS | AK58: REV LESS | AO58: TOTAL | AQ58: REVENUE
T59: LINE | V59: RATE | W59: CLASS / | Y59: CUSTOMER | AC59: CURRENT | AE59: FAC | AG59: FAC | AI59: FAC REV | AK59: FAC REV | AM59: FAC | AO59: REVENUE | AQ59: % INCREASE
T60: NO. | V60: CODE | W60: DESCRIPTION | Y60: BILLS(1) | AA60: SALES | AC60: RATES | AE60: REVENUE | AG60: REVENUE | AI60: (F - K) | AK60: (M / K) | AM60: REVENUE | AO60: (K + H) | AQ60: (M / K1)
V61: (A) | W61: (B) | Y61: (C) | AA61: (D) | AC61: (J) | AE61: (K) | AG61: (L) | AI61: (M) | AK61: (N) | AM61: (H) | AO61: (K1) | AQ61: (O)
AA63: (KWH) | AC63: ($/KWH) | AE63: ($) | AG63: (%) | AI63: ($) | AK63: (%) | AM63: ($) | AO63: ($) | AQ63: (%)
T64: =A20 -> 1 | V64: DT RTP | W64: TIME OF DAY SERVICE AT SECONDARY
T65: 2 | W65: DISTRIBUTION VOLTAGE
T67: 3 | V67: CUSTOMER CHARGE:
T68: 4 | V68: BILLS (Real-Time Pricing) | Y68: =F24 -> 24 | AC68: =INPUT!C153 -> 183 | AE68: =ROUND(Y68*AC68,0) -> 4392 | AG68: =ROUND((AE68/$AE$83)*100,1) -> 5.8 | AI68: =L24-AE68 -> 0 | AK68: =ROUND((AI68/AE68)*100,1) -> 0 | AO68: =AE68+AM68 -> 4392 | AQ68: =ROUND((AI68/AO68)*100,1) -> 0
T69: 5 | V69: TOTAL CUSTOMER CHARGE | AE69: =SUM(AE68) -> 4392 | AG69: =ROUND((AE69/$AE$83)*100,1) -> 5.8 | AI69: =SUM(AI68) -> 0 | AK69: =ROUND((AI69/AE69)*100,1) -> 0 | AO69: =SUM(AO68) -> 4392 | AQ69: =ROUND((AI69/AO69)*100,1) -> 0
T71: 6 | V71: ENERGY CHARGE:
T72: 7 | V72: ALL KWH | AA72: =H28 -> 1610719 | AC72: =INPUT!C155 -> 0.009104 | AE72: =ROUND((AA72*AC72),0) -> 14664 | AG72: =ROUND((AE72/$AE$83)*100,1) -> 19.5 | AI72: =L28-AE72 -> 14959 | AK72: =ROUND((AI72/AE72)*100,1) -> 102 | AO72: =AE72+AM72 -> 14664 | AQ72: =ROUND((AI72/AO72)*100,1) -> 102
T73: 8 | V73: COMMODITY CHARGES | AA73: =H29 -> 1610719 | AC73: =INPUT!C160 -> 0.029462 | AE73: =ROUND((AA73*AC73),0) -> 47455 | AG73: =ROUND((AE73/$AE$83)*100,1) -> 63.1 | AI73: =L29-AE73 -> 0 | AK73: =ROUND((AI73/AE73)*100,1) -> 0 | AM73: 0 | AO73: =AE73+AM73 -> 47455 | AQ73: =ROUND((AI73/AO73)*100,1) -> 0
T74: 9 | V74: TOTAL ENERGY | AA74: =H30 -> 1610719 | AE74: =SUM(AE72:AE73) -> 62119 | AG74: =ROUND((AE74/$AE$83)*100,1) -> 82.6 | AI74: =SUM(AI72:AI73) -> 14959 | AK74: =ROUND((AI74/AE74)*100,1) -> 24.1 | AM74: =AM73 -> 0 | AO74: =SUM(AO72:AO73) -> 62119 | AQ74: =ROUND((AI74/AO74)*100,1) -> 24.1
T75: 10 | V75: TOTAL RATE DT RTP SECONDARY EXCLUDING RIDERS | Y75: =Y68 -> 24 | AA75: =AA74 -> 1610719 | AE75: =AE74+AE69 -> 66511 | AG75: =ROUND((AE75/$AE$83)*100,1) -> 88.4 | AI75: =AI74+AI69 -> 14959 | AK75: =ROUND((AI75/AE75)*100,1) -> 22.5 | AM75: =AM74+AM69 -> 0 | AO75: =AO74+AO69 -> 66511 | AQ75: =ROUND((AI75/AO75)*100,1) -> 22.5
T77: =A33 -> 11 | V77: RIDERS:
T78: =A34 -> 12 | V78: =C34 -> DEMAND SIDE MANAGEMENT RIDER (DSMR) | AC78: =DSM_DIST -> 0.005091 | AE78: =ROUND(AA75*DSM_DIST,0) -> 8200 | AG78: =ROUND((AE78/$AE$83)*100,1) -> 10.9 | AI78: =L34-AE78 -> 0 | AK78: =ROUND((AI78/AE78)*100,1) -> 0 | AO78: =AE78+AM78 -> 8200 | AQ78: =ROUND((AI78/AO78)*100,1) -> 0
T79: =A35 -> 13 | V79: =C35 -> ENVIRONMENTAL SURCHARGE MECHANISM RIDER (ESM) | AC79: =CUR_ESM_NonRes -> 0.1816 | AE79: =ROUND(AO69*AC79,0) -> 798 | AG79: =ROUND((AE79/$AE$83)*100,1) -> 1.1 | AI79: =L35-AE79 -> 0 | AK79: =IF(AE79=0,0,ROUND((AI79/AE79)*100,1)) -> 0 | AO79: =AE79+AM79 -> 798 | AQ79: =IF(AO79=0,0,ROUND((AI79/AO79)*100,1)) -> 0
T80: =A36 -> 14 | V80: =C36 -> PROFIT SHARING MECHANISM (PSM) | AC80: =RS_PSM -> -0.000163 | AE80: =ROUND(AA75*RS_PSM,0) -> -263 | AG80: =ROUND((AE80/$AE$83)*100,1) -> -0.3 | AI80: =L36-AE80 -> 0 | AK80: =ROUND((AI80/AE80)*100,1) -> 0 | AO80: =AE80+AM80 -> -263 | AQ80: =ROUND((AI80/AO80)*100,1) -> 0
T81: =A37 -> 15 | V81: TOTAL RIDERS | AE81: =SUM(AE78:AE80) -> 8735 | AG81: =ROUND((AE81/$AE$83)*100,1) -> 11.6 | AI81: =SUM(AI78:AI80) -> 0 | AK81: =ROUND((AI81/AE81)*100,1) -> 0 | AM81: =SUM(AM78:AM80) -> 0 | AO81: =SUM(AO78:AO80) -> 8735 | AQ81: =ROUND((AI81/AO81)*100,1) -> 0
T83: =A39 -> 16 | V83: TOTAL RATE DT RTP SECONDARY INCLUDING RIDERS | Y83: =F39 -> 24 | AA83: =H39 -> 1610719 | AE83: =AE81+AE75 -> 75246 | AG83: 100 | AI83: =AI81+AI75 -> 14959 | AK83: =ROUND((AI83/AE83)*100,1) -> 19.9 | AM83: =AM81+AM75 -> 0 | AO83: =AO81+AO75 -> 75246 | AQ83: =ROUND((AI83/AO83)*100,1) -> 19.9
V85: (1) BILLS THAT TERMINATE IN RESPECTIVE RATE STEPS.

Sheet Rate DS RTP
A1: =NAME -> DUKE ENERGY KENTUCKY, INC.
A2: =CASE_NO -> CASE NO. 2019-00271
A3: =TITLE -> ANNUALIZED TEST YEAR REVENUES AT PROPOSED VS. MOST CURRENT RATES
A4: =DATE -> FOR THE TWELVE MONTHS ENDED March 31, 2021
A5: =SERVICE -> (ELECTRIC SERVICE)
A6: =DATA_PERIOD -> DATA: ____ BASE PERIOD __X__FORECASTED PERIOD | R6: SCHEDULE M-2.3
A7: =TYPE -> TYPE OF FILING: _X_ ORIGINAL ___UPDATED ___ REVISED | R7: ="PAGE 11 OF "&TEXT(Page_Num_2.3,"00") -> PAGE 11 OF 23
A8: WORK PAPER REFERENCE NO(S).: | R8: WITNESS:
A9: =TIME -> 12 Months Projected with Riders | R9: =WIT -> J. L. Kern
A10: =INPUT!B5 -> 
A11: PROPOSED ANNUALIZED
L13: PROPOSED | N13: % OF REV TO | R13: PROPOSED
L14: REVENUE LESS | N14: TOTAL LESS | R14: TOTAL
A15: LINE | C15: RATE | D15: CLASS / | F15: CUSTOMER | J15: PROPOSED | L15: FAC | N15: FAC | P15: FAC | R15: REVENUE
A16: NO. | C16: CODE | D16: DESCRIPTION | F16: BILLS(1) | H16: SALES | J16: RATES | L16: REVENUE | N16: REVENUE | P16: REVENUE (2) | R16: (F + H)
C17: (A) | D17: (B) | F17: (C) | H17: (D) | J17: (E) | L17: (F) | N17: (G) | P17: (H) | R17: (I)
H19: (KWH) | J19: ($/KWH) | L19: ($) | N19: (%) | P19: ($) | R19: ($)
A20: 1 | C20: DS RTP | D20: SERVICE AT SECONDARY
A21: 2 | D21: DISTRIBUTION VOLTAGE
A23: 3 | C23: CUSTOMER CHARGE:
A24: 4 | C24: BILLS (Real-Time Pricing) | F24: 36 | J24: =INPUT!D153 -> 183 | L24: =ROUND(F24*J24,0) -> 6588 | N24: =ROUND((L24/L$39)*100,1) -> 11.6 | R24: =L24+P24 -> 6588
A25: 5 | C25: TOTAL CUSTOMER CHARGE | L25: =SUM(L24:L24) -> 6588 | N25: =ROUND((L25/L$39)*100,1) -> 11.6 | R25: =SUM(R24:R24) -> 6588
A27: 6 | C27: ENERGY CHARGE:
A28: 7 | C28: ALL KWH | H28: 808421 | J28: =INPUT!D155 -> 0.018391 | L28: =ROUND((H28*J28),0) -> 14868 | N28: =ROUND((L28/L$39)*100,1) -> 26.1 | R28: =L28+P28 -> 14868
A29: 8 | C29: COMMODITY CHARGES | H29: =H28 -> 808421 | J29: =INPUT!D159 -> 0.037493 | L29: =ROUND((H29*J29),0) -> 30310 | N29: =ROUND((L29/L$39)*100,1) -> 53.2 | P29: 0 | R29: =L29+P29 -> 30310
A30: 9 | C30: TOTAL ENERGY | H30: =H28 -> 808421 | L30: =SUM(L28:L29) -> 45178 | N30: =ROUND((L30/L$39)*100,1) -> 79.3 | P30: =P29 -> 0 | R30: =SUM(R28:R29) -> 45178
A31: 10 | C31: TOTAL RATE DS RTP EXCLUDING RIDERS | F31: =F24 -> 36 | H31: =H30 -> 808421 | L31: =L30+L25 -> 51766 | N31: =ROUND((L31/L$39)*100,1)-0.1 -> 90.8 | P31: =P30+P25 -> 0 | R31: =R30+R25 -> 51766
A33: 11 | C33: RIDERS:
A34: 12 | C34: =DSMR_Name -> DEMAND SIDE MANAGEMENT RIDER (DSMR) | J34: =PRO_DSM_DIST -> 0.005091 | L34: =ROUND($H$31*J34,0) -> 4116 | N34: =ROUND((L34/L$39)*100,1) -> 7.2 | R34: =L34+P34 -> 4116
A35: 13 | C35: =ESM_Name -> ENVIRONMENTAL SURCHARGE MECHANISM RIDER (ESM) | L35: =AE79 -> 1196 | N35: =ROUND((L35/L$39)*100,1) -> 2.1 | R35: =L35+P35 -> 1196
A36: 14 | C36: =PSM_Name -> PROFIT SHARING MECHANISM (PSM) | J36: =PRO_PSM -> -0.000163 | L36: =ROUND(H31*PRO_PSM,0) -> -132 | N36: =ROUND((L36/L$39)*100,1) -> -0.2 | R36: =L36+P36 -> -132
A37: 15 | C37: TOTAL RIDERS | L37: =SUM(L34:L36) -> 5180 | N37: =ROUND((L37/L$39)*100,1)+0.1 -> 9.2 | P37: =SUM(P34:P36) -> 0 | R37: =SUM(R34:R36) -> 5180
A39: 16 | C39: TOTAL RATE DS RTP INCLUDING RIDERS | F39: =F31 -> 36 | H39: =H31 -> 808421 | L39: =L37+L31 -> 56946 | N39: 100 | P39: =P37+P31 -> 0 | R39: =R37+R31 -> 56946
C41: (1) BILLS THAT TERMINATE IN RESPECTIVE RATE STEPS.
T45: =NAME -> DUKE ENERGY KENTUCKY, INC.
T46: =CASE_NO -> CASE NO. 2019-00271
T47: =TITLE -> ANNUALIZED TEST YEAR REVENUES AT PROPOSED VS. MOST CURRENT RATES
T48: =DATE -> FOR THE TWELVE MONTHS ENDED March 31, 2021
T49: =SERVICE -> (ELECTRIC SERVICE)
T50: =DATA_PERIOD -> DATA: ____ BASE PERIOD __X__FORECASTED PERIOD | AO50: SCHEDULE M-2.2
T51: =TYPE -> TYPE OF FILING: _X_ ORIGINAL ___UPDATED ___ REVISED | AO51: ="PAGE 11 OF "&TEXT(Page_Num_2.2,"00") -> PAGE 11 OF 22
T52: WORK PAPER REFERENCE NO(S).: | AO52: WITNESS:
T53: =TIME -> 12 Months Projected with Riders | AO53: =WIT -> J. L. Kern
T54: =INPUT!B5 -> 
T55: CURRENT ANNUALIZED
AE57: CURRENT | AG57: % OF REV TO | AI57: REVENUE | AK57: % INCR IN | AO57: CURRENT | AQ57: TOTAL
AC58: MOST | AE58: REVENUE LESS | AG58: TOTAL LESS | AI58: INCR LESS | AK58: REV LESS | AO58: TOTAL | AQ58: REVENUE
T59: LINE | V59: RATE | W59: CLASS / | Y59: CUSTOMER | AC59: CURRENT | AE59: FAC | AG59: FAC | AI59: FAC REV | AK59: FAC REV | AM59: FAC | AO59: REVENUE | AQ59: % INCREASE
T60: NO. | V60: CODE | W60: DESCRIPTION | Y60: BILLS(1) | AA60: SALES | AC60: RATES | AE60: REVENUE | AG60: REVENUE | AI60: (F - K) | AK60: (M / K) | AM60: REVENUE | AO60: (K + H) | AQ60: (M / K1)
V61: (A) | W61: (B) | Y61: (C) | AA61: (D) | AC61: (J) | AE61: (K) | AG61: (L) | AI61: (M) | AK61: (N) | AM61: (H) | AO61: (K1) | AQ61: (O)
AA63: (KWH) | AC63: ($/KWH) | AE63: ($) | AG63: (%) | AI63: ($) | AK63: (%) | AM63: ($) | AO63: ($) | AQ63: (%)
T64: =A20 -> 1 | V64: DS RTP | W64: SERVICE AT SECONDARY
T65: 2 | W65: DISTRIBUTION VOLTAGE
T67: 3 | V67: CUSTOMER CHARGE:
T68: 4 | V68: BILLS (Real-Time Pricing) | Y68: =F24 -> 36 | AC68: =INPUT!C153 -> 183 | AE68: =ROUND(Y68*AC68,0) -> 6588 | AG68: =ROUND((AE68/AE$83)*100,1) -> 13.3 | AI68: =L24-AE68 -> 0 | AK68: =ROUND((AI68/AE68)*100,1) -> 0 | AO68: =AE68+AM68 -> 6588 | AQ68: =IF(AO68=0,"0.0 ",ROUND((AI68/AO68)*100,1)) -> 0
T69: 5 | V69: TOTAL CUSTOMER CHARGE | AE69: =SUM(AE68:AE68) -> 6588 | AG69: =ROUND((AE69/AE$83)*100,1) -> 13.3 | AI69: =SUM(AI68:AI68) -> 0 | AK69: =ROUND((AI69/AE69)*100,1) -> 0 | AO69: =SUM(AO68:AO68) -> 6588 | AQ69: =IF(AO69=0,"0.0 ",ROUND((AI69/AO69)*100,1)) -> 0
T71: 6 | V71: ENERGY CHARGE:
T72: 7 | V72: ALL KWH | AA72: =H28 -> 808421 | AC72: =INPUT!C155 -> 0.009104 | AE72: =ROUND((AA72*AC72),0) -> 7360 | AG72: =ROUND((AE72/AE$83)*100,1) -> 14.9 | AI72: =L28-AE72 -> 7508 | AK72: =ROUND((AI72/AE72)*100,1) -> 102 | AO72: =AE72+AM72 -> 7360 | AQ72: =IF(AO72=0,"0.0 ",ROUND((AI72/AO72)*100,1)) -> 102
T73: 8 | V73: COMMODITY CHARGES | AA73: =H29 -> 808421 | AC73: =INPUT!C159 -> 0.037493 | AE73: =ROUND((AA73*AC73),0) -> 30310 | AG73: =ROUND((AE73/AE$83)*100,1) -> 61.3 | AI73: =L29-AE73 -> 0 | AK73: =ROUND((AI73/AE73)*100,1) -> 0 | AM73: 0 | AO73: =AE73+AM73 -> 30310 | AQ73: =IF(AO73=0,"0.0 ",ROUND((AI73/AO73)*100,1)) -> 0
T74: 9 | V74: TOTAL ENERGY | AA74: =H30 -> 808421 | AE74: =SUM(AE72:AE73) -> 37670 | AG74: =ROUND((AE74/AE$83)*100,1) -> 76.2 | AI74: =SUM(AI72:AI73) -> 7508 | AK74: =ROUND((AI74/AE74)*100,1) -> 19.9 | AM74: =AM73 -> 0 | AO74: =SUM(AO72:AO73) -> 37670 | AQ74: =IF(AO74=0,"0.0 ",ROUND((AI74/AO74)*100,1)) -> 19.9
T75: 10 | V75: TOTAL RATE DS RTP EXCLUDING RIDERS | Y75: =Y68 -> 36 | AA75: =AA74 -> 808421 | AE75: =AE74+AE69 -> 44258 | AG75: =ROUND((AE75/AE$83)*100,1) -> 89.5 | AI75: =AI74+AI69 -> 7508 | AK75: =ROUND((AI75/AE75)*100,1) -> 17 | AM75: =AM74+AM69 -> 0 | AO75: =AO74+AO69 -> 44258 | AQ75: =IF(AO75=0,"0.0 ",ROUND((AI75/AO75)*100,1)) -> 17
T77: =A33 -> 11 | V77: RIDERS:
T78: =A34 -> 12 | V78: =C34 -> DEMAND SIDE MANAGEMENT RIDER (DSMR) | AC78: =DSM_DIST -> 0.005091 | AE78: =ROUND($AA$75*AC78,0) -> 4116 | AG78: =ROUND((AE78/AE$83)*100,1) -> 8.3 | AI78: =L34-AE78 -> 0 | AK78: =IF(AE78=0,0,ROUND((AI78/AE78)*100,1)) -> 0 | AO78: =AE78+AM78 -> 4116 | AQ78: =IF(AO78=0,"0.0 ",ROUND((AI78/AO78)*100,1)) -> 0
T79: =A35 -> 13 | V79: =C35 -> ENVIRONMENTAL SURCHARGE MECHANISM RIDER (ESM) | AC79: =CUR_ESM_NonRes -> 0.1816 | AE79: =ROUND(AO69*AC79,0) -> 1196 | AG79: =ROUND((AE79/AE$83)*100,1) -> 2.4 | AI79: =L35-AE79 -> 0 | AK79: =IF(AE79=0,0,ROUND((AI79/AE79)*100,1)) -> 0 | AO79: =AE79+AM79 -> 1196 | AQ79: =IF(AO79=0,"0.0 ",ROUND((AI79/AO79)*100,1)) -> 0
T80: =A36 -> 14 | V80: =C36 -> PROFIT SHARING MECHANISM (PSM) | AC80: =RS_PSM -> -0.000163 | AE80: =ROUND(AA75*RS_PSM,0) -> -132 | AG80: =ROUND((AE80/AE$83)*100,1) -> -0.3 | AI80: =L36-AE80 -> 0 | AK80: =IF(AE80=0,0,ROUND((AI80/AE80)*100,1)) -> 0 | AO80: =AE80+AM80 -> -132 | AQ80: =IF(AO80=0,"0.0 ",ROUND((AI80/AO80)*100,1)) -> 0
T81: =A37 -> 15 | V81: TOTAL RIDERS | AE81: =SUM(AE78:AE80) -> 5180 | AG81: =ROUND((AE81/AE$83)*100,1) -> 10.5 | AI81: =SUM(AI78:AI80) -> 0 | AK81: =ROUND((AI81/AE81)*100,1) -> 0 | AM81: =SUM(AM78:AM80) -> 0 | AO81: =SUM(AO78:AO80) -> 5180 | AQ81: =IF(AO81=0,"0.0 ",ROUND((AI81/AO81)*100,1)) -> 0
T83: =A39 -> 16 | V83: TOTAL RATE DS RTP INCLUDING RIDERS | Y83: =Y75 -> 36 | AA83: =AA75 -> 808421 | AE83: =AE81+AE75 -> 49438 | AG83: 100 | AI83: =AI81+AI75 -> 7508 | AK83: =ROUND((AI83/AE83)*100,1) -> 15.2 | AM83: =AM81+AM75 -> 0 | AO83: =AO81+AO75 -> 49438 | AQ83: =IF(AO83=0,"0.0 ",ROUND((AI83/AO83)*100,1)) -> 15.2
V85: (1) BILLS THAT TERMINATE IN RESPECTIVE RATE STEPS.

Sheet Rate TT RTP
A1: =NAME -> DUKE ENERGY KENTUCKY, INC.
A2: =CASE_NO -> CASE NO. 2019-00271
A3: =TITLE -> ANNUALIZED TEST YEAR REVENUES AT PROPOSED VS. MOST CURRENT RATES
A4: =DATE -> FOR THE TWELVE MONTHS ENDED March 31, 2021
A5: =SERVICE -> (ELECTRIC SERVICE)
A6: =DATA_PERIOD -> DATA: ____ BASE PERIOD __X__FORECASTED PERIOD | R6: SCHEDULE M-2.3
A7: =TYPE -> TYPE OF FILING: _X_ ORIGINAL ___UPDATED ___ REVISED | R7: ="PAGE 12 OF "&TEXT(Page_Num_2.3,"00") -> PAGE 12 OF 23
A8: WORK PAPER REFERENCE NO(S).: | R8: WITNESS:
A9: =TIME -> 12 Months Projected with Riders | R9: =WIT -> J. L. Kern
A10: =INPUT!B5 -> 
A11: PROPOSED ANNUALIZED
L13: PROPOSED | N13: % OF REV TO | R13: PROPOSED
L14: REVENUE LESS | N14: TOTAL LESS | R14: TOTAL
A15: LINE | C15: RATE | D15: CLASS / | F15: CUSTOMER | J15: PROPOSED | L15: FAC | N15: FAC | P15: FAC | R15: REVENUE
A16: NO. | C16: CODE | D16: DESCRIPTION | F16: BILLS(1) | H16: SALES | J16: RATES | L16: REVENUE | N16: REVENUE | P16: REVENUE (2) | R16: (F + H)
C17: (A) | D17: (B) | F17: (C) | H17: (D) | J17: (E) | L17: (F) | N17: (G) | P17: (H) | R17: (I)
H19: (KWH) | J19: ($/KWH) | L19: ($) | N19: (%) | P19: ($) | R19: ($)
A20: 1 | C20: TT RTP | D20: TIME OF DAY SERVICE AT
A21: 2 | D21: TRANSMISSION VOLTAGE
A23: 3 | C23: CUSTOMER CHARGE:
A24: 4 | C24: BILLS (Real-Time Pricing) | F24: 24 | J24: =INPUT!D153 -> 183 | L24: =ROUND(F24*J24,0) -> 4392 | N24: =ROUND((L24/$L$39)*100,1) -> 0.8 | R24: =L24+P24 -> 4392
A25: 5 | C25: TOTAL CUSTOMER CHARGE | L25: =SUM(L24) -> 4392 | N25: =ROUND((L25/$L$39)*100,1) -> 0.8 | R25: =SUM(R24) -> 4392
A27: 6 | C27: ENERGY CHARGE:
A28: 7 | C28: ALL KWH | H28: 14495300 | J28: =INPUT!D157 -> 0.006602 | L28: =ROUND((H28*J28),0) -> 95698 | N28: =ROUND((L28/$L$39)*100,1) -> 16.8 | R28: =L28+P28 -> 95698
A29: 8 | C29: COMMODITY CHARGES | H29: =H28 -> 14495300 | J29: =INPUT!D161 -> 0.032086 | L29: =ROUND((H29*J29),0) -> 465096 | N29: =ROUND((L29/$L$39)*100,1) -> 81.5 | P29: 0 | R29: =L29+P29 -> 465096
A30: 9 | C30: TOTAL ENERGY | H30: =H28 -> 14495300 | L30: =SUM(L28:L29) -> 560794 | N30: =ROUND((L30/$L$39)*100,1) -> 98.3 | P30: =P29 -> 0 | R30: =SUM(R28:R29) -> 560794
A31: 10 | C31: TOTAL RATE TT RTP EXCLUDING RIDERS | F31: =F24 -> 24 | H31: =H30 -> 14495300 | L31: =L30+L25 -> 565186 | N31: =ROUND((L31/$L$39)*100,1) -> 99.1 | P31: =SUM(P30+P25) -> 0 | R31: =R30+R25 -> 565186
A33: 11 | C33: RIDERS:
A34: 12 | C34: =DSMR_Name -> DEMAND SIDE MANAGEMENT RIDER (DSMR) | J34: =PRO_DSM_TRANS -> 0.000463 | L34: =ROUND($H$31*J34,0) -> 6711 | N34: =ROUND((L34/$L$39)*100,1) -> 1.2 | R34: =L34+P34 -> 6711
A35: 13 | C35: =ESM_Name -> ENVIRONMENTAL SURCHARGE MECHANISM RIDER (ESM) | L35: =AE81 -> 798 | N35: =ROUND((L35/$L$39)*100,1) -> 0.1 | R35: =L35+P35 -> 798
A36: 14 | C36: =PSM_Name -> PROFIT SHARING MECHANISM (PSM) | J36: =PRO_PSM -> -0.000163 | L36: =ROUND(H31*PRO_PSM,0) -> -2363 | N36: =ROUND((L36/$L$39)*100,1) -> -0.4 | R36: =L36+P36 -> -2363
A37: 15 | C37: TOTAL RIDERS | L37: =SUM(L34:L36) -> 5146 | N37: =ROUND((L37/$L$39)*100,1) -> 0.9 | R37: =SUM(R34:R36) -> 5146
A39: 16 | C39: TOTAL RATE TT RTP INCLUDING RIDERS | F39: =F31 -> 24 | H39: =H31 -> 14495300 | L39: =L37+L31 -> 570332 | N39: 100 | P39: =P37+P31 -> 0 | R39: =R37+R31 -> 570332
C41: (1) BILLS THAT TERMINATE IN RESPECTIVE RATE STEPS.
T47: =NAME -> DUKE ENERGY KENTUCKY, INC.
T48: =CASE_NO -> CASE NO. 2019-00271
T49: =TITLE -> ANNUALIZED TEST YEAR REVENUES AT PROPOSED VS. MOST CURRENT RATES
T50: =DATE -> FOR THE TWELVE MONTHS ENDED March 31, 2021
T51: =SERVICE -> (ELECTRIC SERVICE)
T52: =DATA_PERIOD -> DATA: ____ BASE PERIOD __X__FORECASTED PERIOD | AO52: SCHEDULE M-2.2
T53: =TYPE -> TYPE OF FILING: _X_ ORIGINAL ___UPDATED ___ REVISED | AO53: ="PAGE 12 OF "&TEXT(Page_Num_2.2,"00") -> PAGE 12 OF 22
T54: WORK PAPER REFERENCE NO(S).: | AO54: WITNESS:
T55: =TIME -> 12 Months Projected with Riders | AO55: =WIT -> J. L. Kern
T56: =INPUT!B5 -> 
T57: CURRENT ANNUALIZED
AE59: CURRENT | AG59: % OF REV TO | AI59: REVENUE | AK59: % INCR IN | AO59: CURRENT | AQ59: TOTAL
AC60: MOST | AE60: REVENUE LESS | AG60: TOTAL LESS | AI60: INCR LESS | AK60: REV LESS | AO60: TOTAL | AQ60: REVENUE
T61: LINE | V61: RATE | W61: CLASS / | Y61: CUSTOMER | AC61: CURRENT | AE61: FAC | AG61: FAC | AI61: FAC REV | AK61: FAC REV | AM61: FAC | AO61: REVENUE | AQ61: % INCREASE
T62: NO. | V62: CODE | W62: DESCRIPTION | Y62: BILLS(1) | AA62: SALES | AC62: RATES | AE62: REVENUE | AG62: REVENUE | AI62: (F - K) | AK62: (M / K) | AM62: REVENUE | AO62: (K + H) | AQ62: (M / K1)
V63: (A) | W63: (B) | Y63: (C) | AA63: (D) | AC63: (J) | AE63: (K) | AG63: (L) | AI63: (M) | AK63: (N) | AM63: (H) | AO63: (K1) | AQ63: (O)
AA65: (KWH) | AC65: ($/KWH) | AE65: ($) | AG65: (%) | AI65: ($) | AK65: (%) | AM65: ($) | AO65: ($) | AQ65: (%)
T66: =A20 -> 1 | V66: TT RTP | W66: TIME OF DAY SERVICE AT
T67: =A21 -> 2 | W67: TRANSMISSION VOLTAGE
T69: =A23 -> 3 | V69: CUSTOMER CHARGE:
T70: =A24 -> 4 | V70: BILLS (Real-Time Pricing) | Y70: =F24 -> 24 | AC70: =INPUT!C153 -> 183 | AE70: =ROUND(Y70*AC70,0) -> 4392 | AG70: =ROUND((AE70/AE$85)*100,1) -> 0.8 | AI70: =L24-AE70 -> 0 | AK70: =IF(AE70=0,"0.0 ",ROUND((AI70/AE70)*100,1)) -> 0 | AO70: =AE70+AM70 -> 4392 | AQ70: =IF(AO70=0,"0.0 ",ROUND((AI70/AO70)*100,1)) -> 0
T71: =A25 -> 5 | V71: TOTAL CUSTOMER CHARGE | AE71: =SUM(AE70) -> 4392 | AG71: =ROUND((AE71/AE$85)*100,1) -> 0.8 | AI71: =L25-AE71 -> 0 | AK71: =IF(AE71=0,"0.0 ",ROUND((AI71/AE71)*100,1)) -> 0 | AO71: =AE71+AM71 -> 4392 | AQ71: =IF(AO71=0,"0.0 ",ROUND((AI71/AO71)*100,1)) -> 0
T73: =A27 -> 6 | V73: ENERGY CHARGE:
T74: =A28 -> 7 | V74: ALL KWH | AA74: =H28 -> 14495300 | AC74: =INPUT!C157 -> 0.003576 | AE74: =ROUND((AA74*AC74),0) -> 51835 | AG74: =ROUND((AE74/AE$85)*100,1) -> 9.8 | AI74: =L28-AE74 -> 43863 | AK74: =IF(AE74=0,"0.0 ",ROUND((AI74/AE74)*100,1)) -> 84.6 | AO74: =AE74+AM74 -> 51835 | AQ74: =IF(AO74=0,"0.0 ",ROUND((AI74/AO74)*100,1)) -> 84.6
T75: =A29 -> 8 | V75: COMMODITY CHARGES | AA75: =H29 -> 14495300 | AC75: =INPUT!C161 -> 0.032086 | AE75: =ROUND((AA75*AC75),0) -> 465096 | AG75: =ROUND((AE75/AE$85)*100,1) -> 88.3 | AI75: =L29-AE75 -> 0 | AK75: =IF(AE75=0,"0.0 ",ROUND((AI75/AE75)*100,1)) -> 0 | AM75: 0 | AO75: =AE75+AM75 -> 465096 | AQ75: =IF(AO75=0,"0.0 ",ROUND((AI75/AO75)*100,1)) -> 0
T76: =A30 -> 9 | V76: TOTAL ENERGY | AA76: =H30 -> 14495300 | AE76: =SUM(AE74:AE75) -> 516931 | AG76: =ROUND((AE76/AE$85)*100,1) -> 98.2 | AI76: =SUM(AI74:AI75) -> 43863 | AK76: =IF(AE76=0,"0.0 ",ROUND((AI76/AE76)*100,1)) -> 8.5 | AM76: =AM75 -> 0 | AO76: =SUM(AO74:AO75) -> 516931 | AQ76: =IF(AO76=0,"0.0 ",ROUND((AI76/AO76)*100,1)) -> 8.5
T77: =A31 -> 10 | V77: TOTAL RATE TT RTP EXCLUDING RIDERS | Y77: =Y70 -> 24 | AA77: =AA76 -> 14495300 | AE77: =AE76+AE71 -> 521323 | AG77: =ROUND((AE77/AE$85)*100,1) -> 99 | AI77: =AI76+AI71 -> 43863 | AK77: =IF(AE77=0,"0.0 ",ROUND((AI77/AE77)*100,1)) -> 8.4 | AM77: =AM76+AM71 -> 0 | AO77: =AO76+AO71 -> 521323 | AQ77: =IF(AO77=0,"0.0 ",ROUND((AI77/AO77)*100,1)) -> 8.4
T79: =A33 -> 11 | V79: RIDERS:
T80: =A34 -> 12 | V80: =C34 -> DEMAND SIDE MANAGEMENT RIDER (DSMR) | AC80: =DSM_TRANS -> 0.000463 | AE80: =ROUND($AA$77*AC80,0) -> 6711 | AG80: =ROUND((AE80/AE$85)*100,1) -> 1.3 | AI80: =L34-AE80 -> 0 | AK80: =IF(AE80=0,"0.0 ",ROUND((AI80/AE80)*100,1)) -> 0 | AO80: =AE80+AM80 -> 6711 | AQ80: =IF(AO80=0,"0.0 ",ROUND((AI80/AO80)*100,1)) -> 0
T81: =A35 -> 13 | V81: =C35 -> ENVIRONMENTAL SURCHARGE MECHANISM RIDER (ESM) | AC81: =CUR_ESM_NonRes -> 0.1816 | AE81: =ROUND(AO71*AC81,0) -> 798 | AG81: =ROUND((AE81/AE$85)*100,1) -> 0.2 | AI81: =L35-AE81 -> 0 | AK81: =IF(AE81=0,"0.0 ",ROUND((AI81/AE81)*100,1)) -> 0 | AO81: =AE81+AM81 -> 798 | AQ81: =IF(AO81=0,"0.0 ",ROUND((AI81/AO81)*100,1)) -> 0
T82: =A36 -> 14 | V82: =C36 -> PROFIT SHARING MECHANISM (PSM) | AC82: =RS_PSM -> -0.000163 | AE82: =ROUND(AA77*RS_PSM,0) -> -2363 | AG82: =ROUND((AE82/AE$85)*100,1) -> -0.4 | AI82: =L36-AE82 -> 0 | AK82: =IF(AE82=0,"0.0 ",ROUND((AI82/AE82)*100,1)) -> 0 | AO82: =AE82+AM82 -> -2363 | AQ82: =IF(AO82=0,"0.0 ",ROUND((AI82/AO82)*100,1)) -> 0
T83: =A37 -> 15 | V83: TOTAL RIDERS | AE83: =SUM(AE80:AE82) -> 5146 | AG83: =ROUND((AE83/AE$85)*100,1) -> 1 | AI83: =SUM(AI80:AI82) -> 0 | AK83: =IF(AE83=0,"0.0 ",ROUND((AI83/AE83)*100,1)) -> 0 | AM83: =SUM(AM80:AM82) -> 0 | AO83: =SUM(AO80:AO82) -> 5146 | AQ83: =IF(AO83=0,"0.0 ",ROUND((AI83/AO83)*100,1)) -> 0
T85: =A39 -> 16 | V85: TOTAL RATE TT RTP INCLUDING RIDERS | Y85: =Y77 -> 24 | AA85: =AA77 -> 14495300 | AE85: =AE83+AE77 -> 526469 | AG85: 100 | AI85: =AI83+AI77 -> 43863 | AK85: =IF(AE85=0,"0.0 ",ROUND((AI85/AE85)*100,1)) -> 8.3 | AM85: =AM83+AM77 -> 0 | AO85: =AO83+AO77 -> 526469 | AQ85: =IF(AO85=0,"0.0 ",ROUND((AI85/AO85)*100,1)) -> 8.3
V87: (1) BILLS THAT TERMINATE IN RESPECTIVE RATE STEPS.

Sheet Rate SL
A1: =NAME -> DUKE ENERGY KENTUCKY, INC. | AA1: Increase in Street Lighting rate SL per COSS: | AG1: ='Revenue Requirements'!O33 -> 0.1226523579
A2: =CASE_NO -> CASE NO. 2019-00271
A3: =TITLE -> ANNUALIZED TEST YEAR REVENUES AT PROPOSED VS. MOST CURRENT RATES
A4: =DATE -> FOR THE TWELVE MONTHS ENDED March 31, 2021 | AA4: Pole Rate Increases | AI4: code
A5: =SERVICE -> (ELECTRIC SERVICE) | AA5: w17 | AC5: 4.5 | AE5: =ROUND(AC5*$AG$1,2) -> 0.55 | AG5: =AC5+AE5 -> 5.05 | AI5: 3
A6: =DATA_PERIOD -> DATA: ____ BASE PERIOD __X__FORECASTED PERIOD | R6: SCHEDULE M-2.3 | AA6: w30 | AC6: 4.44 | AE6: 0.54 | AG6: 4.98 | AI6: 4
A7: =TYPE -> TYPE OF FILING: _X_ ORIGINAL ___UPDATED ___ REVISED | R7: ="PAGE 13 OF "&TEXT(Page_Num_2.3,"00") -> PAGE 13 OF 23 | AA7: w35 | AC7: 4.5 | AE7: 0.55 | AG7: 5.05 | AI7: 5
A8: WORK PAPER REFERENCE NO(S).: | R8: WITNESS: | AA8: w40 | AC8: 5.39 | AE8: 0.66 | AG8: 6.05 | AI8: 6
A9: =TIME -> 12 Months Projected with Riders | R9: =WIT -> J. L. Kern | AA9: a12 | AC9: 12.23 | AE9: 1.5 | AG9: 13.73 | AI9: 7
A10: PROPOSED ANNUALIZED | AA10: a28 | AC10: 7.09 | AE10: 0.87 | AG10: 7.96 | AI10: 8
AA11: a28h | AC11: 7.16 | AE11: 0.88 | AG11: 8.04 | AI11: 8A
L12: PROPOSED | N12: % OF REV TO | R12: PROPOSED | AA12: a30 | AC12: 14.16 | AE12: 1.74 | AG12: 15.9 | AI12: 9
L13: REVENUE LESS | N13: TOTAL LESS | R13: TOTAL | AA13: f17 | AC13: 4.5 | AE13: 0.55 | AG13: 5.05 | AI13: 10
A14: LINE | C14: RATE | D14: CLASS / | F14: CUSTOMER | J14: PROPOSED | L14: FAC | N14: FAC | P14: FAC | R14: REVENUE | AA14: f12 | AC14: 13.15 | AE14: 1.61 | AG14: 14.76 | AI14: 11
A15: NO. | C15: CODE | D15: DESCRIPTION | F15: BILLS(1) | H15: SALES | J15: RATES(1A) | L15: REVENUE | N15: REVENUE | P15: REVENUE (2) | R15: (F + H) | AA15: f30 | AC15: 8.56 | AE15: 1.05 | AG15: 9.61 | AI15: 12
C16: (A) | D16: (B) | F16: (C) | H16: (D) | J16: (E) | L16: (F) | N16: (G) | P16: (H) | R16: (I) | AA16: f35 | AC16: 8.79 | AE16: 1.08 | AG16: 9.87 | AI16: 13
H17: (KWH) | J17: ($/UNIT) | L17: ($) | N17: (%) | P17: ($) | R17: ($) | AA17: s27 | AC17: 11.56 | AE17: 1.42 | AG17: 12.98 | AI17: 16
A18: 1 | C18: SL | D18: STREET LIGHTING -- CO OWNED & MAINTAINED | AA18: s27h | AC18: 17.43 | AE18: 2.14 | AG18: 19.57 | AI18: 17
A19: 2 | C19: OVERHEAD DISTRIBUTION:
A20: 3 | C20: MERCURY VAPOR : | AC20: Annual kWh / Light
A21: 4 | C21: 7,000 LUMEN | F21: 66375 | H21: =ROUND(F21*AC21/12,0) -> 4441594 | J21: =ROUND(AC241+(AC241*$AG$1),2) -> 8.16 | L21: =ROUND((F21*J21),0) -> 541620 | N21: =ROUND((L21/L$209)*100,1) -> 31.9 | P21: =ROUND($P$209/$H$209*H21,0) -> 3025 | R21: =L21+P21 -> 544645 | AC21: 803
A22: 5 | C22: 7,000 LUMEN (OPEN) | F22: 60 | H22: =ROUND(F22*AC22/12,0) -> 4265 | J22: =ROUND(AC242+(AC242*$AG$1),2) -> 6.81 | L22: =ROUND((F22*J22),0) -> 409 | N22: 0 | P22: 3 | R22: =L22+P22 -> 412 | AC22: 853
A23: 6 | C23: 7,000 LUMEN (4) | F23: 12 | H23: 803 | J23: =$J$21+$AG$6 -> 13.14 | L23: 158 | N23: 0 | P23: 1 | R23: =L23+P23 -> 159 | AC23: 803
A24: 7 | C24: 7,000 LUMEN (5) | F24: 511 | H24: 34194 | J24: =$J$21+$AG$7 -> 13.21 | L24: 6750 | N24: 0.4 | P24: 23 | R24: 6773 | AC24: 803
A25: 8 | C25: 7,000 LUMEN (6) | F25: 108 | H25: 7227 | J25: =$J$21+$AG$8 -> 14.21 | L25: 1535 | N25: 0.1 | P25: 5 | R25: =L25+P25 -> 1540 | AC25: 803
A26: 9 | C26: 7,000 LUMEN (8A) | F26: 132 | H26: 8833 | J26: =$J$21+$AG$11 -> 16.2 | L26: 2138 | N26: 0.1 | P26: 6 | R26: =L26+P26 -> 2144 | AC26: 803
A27: 10 | C27: 10,000 LUMEN | F27: =2092+12 -> 2104 | H27: 200581 | J27: =ROUND(AC247+(AC247*$AG$1),2) -> 9.42 | L27: 19820 | N27: 1.2 | P27: 137 | R27: =L27+P27 -> 19957 | AC27: 1144
A28: 11 | C28: 10,000 LUMEN (5) | F28: 0 | H28: 0 | J28: =$J$27+$AG$7 -> 14.47 | L28: 0 | N28: 0 | P28: =ROUND($P$209/$H$209*H28,0) -> 0 | R28: 0 | AC28: 1144
A29: 12 | C29: 21,000 LUMEN | F29: 9336 | H29: 1391842 | J29: =ROUND(AC249+(AC249*$AG$1),2) -> 12.61 | L29: 117727 | N29: 6.9 | P29: =ROUND($P$209/$H$209*H29,0) -> 948 | R29: =L29+P29 -> 118675 | AC29: 1789
A30: 13 | C30: 21,000 LUMEN (5) | F30: 132 | H30: 19679 | J30: =$J$29+$AG$7 -> 17.66 | L30: 2331 | N30: 0.1 | P30: =ROUND($P$209/$H$209*H30,0) -> 13 | R30: 2344 | AC30: 1789
A31: 14 | C31: 21,000 LUMEN (6) | F31: 132 | H31: 19679 | J31: =$J$29+$AG$8 -> 18.66 | L31: 2463 | N31: 0.1 | P31: =ROUND($P$209/$H$209*H31,0) -> 13 | R31: 2476 | AC31: 1789
A32: 15 | C32: METAL HALIDE:
A33: 16 | C33: 14,000 LUMEN | F33: 328 | H33: =ROUND(F33*AC33/12,0) -> 21949 | J33: =ROUND(AC253+(AC253*$AG$1),2) -> 8.16 | L33: 2676 | N33: =ROUND((L33/L$209)*100,1) -> 0.2 | P33: =ROUND($P$209/$H$209*H33,0) -> 15 | R33: =L33+P33 -> 2691 | AC33: 803
A34: 17 | C34: 14,000 LUMEN (5) | F34: 48 | H34: 3212 | J34: =$J$33+$AG$7 -> 13.21 | L34: 634 | N34: 0 | P34: 2 | R34: 636 | AC34: 803
A35: 18 | C35: 14,000 LUMEN (6) | F35: 84 | H35: 5621 | J35: =$J$33+$AG$8 -> 14.21 | L35: 1194 | N35: 0.1 | P35: 4 | R35: 1198 | AC35: 803
A36: 19 | C36: 14,000 LUMEN (10) | F36: 12 | H36: 803 | J36: =$J$33+$AG$13 -> 13.21 | L36: 159 | N36: 0 | P36: 1 | R36: 160 | AC36: 803
A37: 20 | C37: 20,500 LUMEN | F37: 168 | H37: 16016 | J37: =ROUND(AC257+(AC257*$AG$1),2) -> 9.42 | L37: 1583 | N37: 0.1 | P37: 11 | R37: 1594 | AC37: 1144
A38: 21 | C38: 20,500 LUMEN (6) | F38: 24 | H38: 2288 | J38: =$J$37+$AG$8 -> 15.47 | L38: 371 | N38: 0 | P38: 2 | R38: 373 | AC38: 1144
A39: 22 | C39: 36,000 LUMEN | F39: 0 | H39: 0 | J39: =ROUND(AC259+(AC259*$AG$1),2) -> 12.61 | L39: 0 | N39: 0 | P39: 0 | R39: 0 | AC39: 1789
A40: 23 | C40: SODIUM VAPOR:
A41: 24 | C41: 9,500 LUMEN | F41: 18953 | H41: =ROUND(F41*AC41/12,0) -> 769176 | J41: =ROUND(AC261+(AC261*$AG$1),2) -> 9.03 | L41: 171146 | N41: =ROUND((L41/L$209)*100,1) -> 10.1 | P41: =ROUND($P$209/$H$209*H41,0) -> 524 | R41: =L41+P41 -> 171670 | AC41: 487
A42: 25 | C42: 9,500 LUMEN (OPEN) | F42: 120 | H42: 4870 | J42: =ROUND(AC262+(AC262*$AG$1),2) -> 6.78 | L42: 814 | N42: 0 | P42: 3 | R42: =L42+P42 -> 817 | AC42: 487
A43: 26 | C43: 9,500 LUMEN (4) | F43: =24+24 -> 48 | H43: 1948 | J43: =$J$41+$AG$6 -> 14.01 | L43: 672 | N43: 0 | P43: 1 | R43: 673 | AC43: 487
A44: 27 | C44: 9,500 LUMEN (5) | F44: 674 | H44: 27353 | J44: =$J$41+$AG$7 -> 14.08 | L44: 9490 | N44: 0.6 | P44: 19 | R44: =L44+P44 -> 9509 | AC44: 487
A45: 28 | C45: 9,500 LUMEN (6) | F45: 612 | H45: 24837 | J45: =$J$41+$AG$8 -> 15.08 | L45: 9229 | N45: 0.5 | P45: 17 | R45: =L45+P45 -> 9246 | AC45: 487
A46: 29 | C46: 16,000 LUMEN | F46: 372 | H46: 22041 | J46: =ROUND(AC266+(AC266*$AG$1),2) -> 9.85 | L46: 3664 | N46: 0.2 | P46: 15 | R46: 3679 | AC46: 711
A47: 30 | C47: 16,000 LUMEN (5) | F47: 12 | H47: 711 | J47: =$J$46+$AG$7 -> 14.9 | L47: 179 | N47: 0 | P47: 0 | R47: =L47+P47 -> 179 | AC47: 711
A48: 31 | C48: 16,000 LUMEN (6) | F48: 108 | H48: 6399 | J48: =$J$46+$AG$8 -> 15.9 | L48: 1717 | N48: 0.1 | P48: 4 | R48: =L48+P48 -> 1721 | AC48: 711
A49: 32 | C49: 22,000 LUMEN | F49: =5343+3 -> 5346 | H49: 422334 | J49: =ROUND(AC269+(AC269*$AG$1),2) -> 12.76 | L49: 68215 | N49: 4 | P49: 288 | R49: 68503 | AC49: 948
A50: 33 | C50: 22,000 LUMEN (4) | F50: 0 | H50: 0 | J50: =$J$49+$AG$6 -> 17.74 | L50: 0 | N50: 0 | P50: 0 | R50: 0 | AC50: 948
A51: 34 | C51: 22,000 LUMEN (5) | F51: 204 | H51: 16116 | J51: =$J$49+$AG$7 -> 17.81 | L51: 3633 | N51: 0.2 | P51: 11 | R51: =L51+P51 -> 3644 | AC51: 948
A52: 35 | C52: 22,000 LUMEN (6) | F52: 72 | H52: 5688 | J52: =$J$49+$AG$8 -> 18.81 | L52: 1354 | N52: 0.1 | P52: 4 | R52: 1358 | AC52: 948
A53: 36 | C53: 22,000 LUMEN (8) | F53: 12 | H53: 948 | J53: =$J$49+$AG$10 -> 20.72 | L53: 249 | N53: 0 | P53: 1 | R53: 250 | AC53: 948
A54: 37 | C54: 27,500 LUMEN | F54: 96 | H54: 7584 | J54: =ROUND(AC274+(AC274*$AG$1),2) -> 12.76 | L54: 1225 | N54: 0.1 | P54: 5 | R54: 1230 | AC54: 948
A55: 38 | C55: 27,500 LUMEN (6) | F55: 12 | H55: 948 | J55: =$J$54+$AG$8 -> 18.81 | L55: 226 | N55: 0 | P55: 1 | R55: 227 | AC55: 948
A56: 39 | C56: 50,000 LUMEN | F56: =9633+12 -> 9645 | H56: 1574546 | J56: =ROUND(AC276+(AC276*$AG$1),2) -> 17.15 | L56: 165412 | N56: 9.7 | P56: 1072 | R56: 166484 | AC56: 1959
A57: 40 | C57: 50,000 LUMEN (5) | F57: 264 | H57: 43098 | J57: =$J$56+$AG$7 -> 22.2 | L57: 5861 | N57: 0.3 | P57: 29 | R57: 5890 | AC57: 1959
A58: 41 | C58: 50,000 LUMEN (6) | F58: 633 | H58: 103337 | J58: =$J$56+$AG$8 -> 23.2 | L58: 14686 | N58: 0.9 | P58: 70 | R58: 14756 | AC58: 1959
A60: (1) THESE FIGURES REPRESENT NUMBER OF UNITS BILLED. | J60: (5) WITH 35' WOOD POLE. | P60: (9) WITH 30' ALUM POLE.
A61: ="(1A) REFLECTS FUEL COST RECOVERY INCLUDED IN BASE RATES OF "&TEXT(CUR_BASE_FUEL,"$0.000000;($0.000000)")&" PER KWH." -> (1A) REFLECTS FUEL COST RECOVERY INCLUDED IN BASE RATES OF $0.023837 PER KWH. | J61: (6) WITH 40' WOOD POLE. | P61: (10) WITH 17' FIBERGLASS POLE.
A62: ="(2) REFLECTS FUEL COMPONENT OF "&TEXT(CUR_FAC,"$0.000000;($0.000000)")&" PER KWH." -> (2) REFLECTS FUEL COMPONENT OF $0.000681 PER KWH. | J62: (7) WITH 12' ALUM POLE. | P62: (11) WITH 12' FIBERGLASS POLE.
A63: (3) WITH 17' WOOD LAMINATED POLE. | J63: (8) WITH 28' ALUM POLE. | P63: (12) WITH 30' FIBERGLASS POLE.
A64: (4) WITH 30' WOOD POLE. | J64: (8A) WITH 28' ALUM POLE HEAVY GAUGE. | P64: (13) WITH 35' FIBERGLASS POLE.
A67: =NAME -> DUKE ENERGY KENTUCKY, INC.
A68: =CASE_NO -> CASE NO. 2019-00271
A69: =TITLE -> ANNUALIZED TEST YEAR REVENUES AT PROPOSED VS. MOST CURRENT RATES
A70: =DATE -> FOR THE TWELVE MONTHS ENDED March 31, 2021
A71: =SERVICE -> (ELECTRIC SERVICE)
A72: =DATA_PERIOD -> DATA: ____ BASE PERIOD __X__FORECASTED PERIOD | R72: SCHEDULE M-2.3
A73: =TYPE -> TYPE OF FILING: _X_ ORIGINAL ___UPDATED ___ REVISED | R73: ="PAGE 14 OF "&TEXT(Page_Num_2.3,"00") -> PAGE 14 OF 23
A74: WORK PAPER REFERENCE NO(S).: | R74: WITNESS:
A75: =TIME -> 12 Months Projected with Riders | R75: =WIT -> J. L. Kern
A76: PROPOSED ANNUALIZED
L78: PROPOSED | N78: % OF REV TO | R78: PROPOSED
L79: REVENUE LESS | N79: TOTAL LESS | R79: TOTAL
A80: LINE | C80: RATE | D80: CLASS / | F80: CUSTOMER | J80: PROPOSED | L80: FAC | N80: FAC | P80: FAC | R80: REVENUE
A81: NO. | C81: CODE | D81: DESCRIPTION | F81: BILLS(1) | H81: SALES | J81: RATES(1A) | L81: REVENUE | N81: REVENUE | P81: REVENUE (2) | R81: (F + H)
C82: (A) | D82: (B) | F82: (C) | H82: (D) | J82: (E) | L82: (F) | N82: (G) | P82: (H) | R82: (I)
H83: (KWH) | J83: ($/UNIT) | L83: ($) | N83: (%) | P83: ($) | R83: ($)
A84: 42 | C84: SL | D84: STREET LIGHTING -- CO OWNED & MAINTAINED (CONT'D.)
A85: 43 | C85: OVERHEAD DISTRIBUTION (CONT'D.):
A86: 44 | C86: DECORATIVE SODIUM VAPOR:
A87: 45 | C87: 9,500 LUMEN RECTILINEAR | F87: 0 | H87: =ROUND(F87*AC87/12,0) -> 0 | J87: =ROUND(AC307+(AC307*$AG$1),2) -> 11.23 | L87: =ROUND((F87*J87),0) -> 0 | N87: =ROUND((L87/L$209)*100,1) -> 0 | P87: =ROUND($P$209/$H$209*H87,0) -> 0 | R87: =L87+P87 -> 0 | AC87: 487
A88: 46 | C88: 22,000 LUMEN RECTILINEAR | F88: 12 | H88: 1023 | J88: =ROUND(AC308+(AC308*$AG$1),2) -> 13.88 | L88: 167 | N88: 0 | P88: 1 | R88: =L88+P88 -> 168 | AC88: 1023
A89: 47 | C89: 50,000 LUMEN RECTILINEAR | F89: 132 | H89: 21549 | J89: =ROUND(AC309+(AC309*$AG$1),2) -> 18.36 | L89: 2424 | N89: 0.1 | P89: 15 | R89: 2439 | AC89: 1959
A90: 48 | C90: 50,000 LUMEN RECTILINEAR (5) | F90: 180 | H90: 29385 | J90: =$J$89+$AG$7 -> 23.41 | L90: 4214 | N90: 0.2 | P90: 20 | R90: 4234 | AC90: 1959
A91: 49 | C91: 50,000 LUMEN RECTILINEAR (6) | F91: 0 | H91: 0 | J91: =$J$89+$AG$8 -> 24.41 | L91: 0 | N91: 0 | P91: 0 | R91: 0 | AC91: 1959
A92: 50 | C92: 50,000 LUMEN SETBACK | F92: 216 | H92: 35262 | J92: =ROUND(AC312+(AC312*$AG$1),2) -> 27.29 | L92: 5895 | N92: 0.3 | P92: 24 | R92: 5919 | AC92: 1959
A93: 51 | C93: 50,000 LUMEN SETBACK (6) | F93: 36 | H93: 5877 | J93: =$J$92+$AG$8 -> 33.34 | L93: 1200 | N93: 0.1 | P93: 4 | R93: 1204 | AC93: 1959
A94: 52 | C94: TOTAL OVERHEAD | F94: =SUM(F21:F93) -> 117325 | H94: =SUM(H21:H93) -> 9303616 | L94: =SUM(L21:L93) -> 1173240 | N94: 69.1 | P94: =ROUND(H94*CUR_FAC,0) -> 6336 | R94: =SUM(R21:R93) -> 1179577
A96: 53 | C96: UNDERGROUND DISTRIBUTION:
A97: 54 | C97: MERCURY VAPOR:
A98: 55 | C98: 7,000 LUMEN | F98: 60 | H98: =ROUND(F98*AC98/12,0) -> 4370 | J98: =ROUND(AC318+(AC318*$AG$1),2) -> 8.31 | L98: =ROUND((F98*J98),0) -> 499 | N98: =ROUND((L98/L$209)*100,1) -> 0 | P98: =ROUND($P$209/$H$209*H98,0) -> 3 | R98: =L98+P98 -> 502 | AC98: 874
A99: 56 | C99: 7,000 LUMEN (OPEN) | F99: 0 | H99: 0 | J99: =ROUND(AC319+(AC319*$AG$1),2) -> 6.81 | L99: 0 | N99: 0 | P99: 0 | R99: =L99+P99 -> 0 | AC99: 853
A100: 57 | C100: 7,000 LUMEN (4) | F100: 566 | H100: 41224 | J100: =$J$98+$AG$6 -> 13.29 | L100: 7522 | N100: 0.4 | P100: 28 | R100: 7550 | AC100: 874
A101: 58 | C101: 7,000 LUMEN (5) | F101: 4 | H101: 291 | J101: =$J$98+$AG$7 -> 13.36 | L101: 53 | N101: 0 | P101: 0 | R101: 53 | AC101: 874
A102: 59 | C102: 7,000 LUMEN (8) | F102: 348 | H102: 25346 | J102: =$J$98+$AG$10 -> 16.27 | L102: 5662 | N102: 0.3 | P102: 17 | R102: 5679 | AC102: 874
A103: 60 | C103: 10,000 LUMEN | F103: 0 | H103: 0 | J103: =ROUND(AC323+(AC323*$AG$1),2) -> 9.59 | L103: 0 | N103: 0 | P103: 0 | R103: 0 | AC103: 1215
A104: 61 | C104: 10,000 LUMEN (4) | F104: 84 | H104: 8505 | J104: =$J$103+$AG$6 -> 14.57 | L104: 1224 | N104: 0.1 | P104: 6 | R104: 1230 | AC104: 1215
A105: 62 | C105: 10,000 LUMEN (8) | F105: 156 | H105: 15795 | J105: =$J$103+$AG$10 -> 17.55 | L105: 2738 | N105: 0.2 | P105: 11 | R105: 2749 | AC105: 1215
A106: 63 | C106: 21,000 LUMEN | F106: 96 | H106: 15312 | J106: =ROUND(AC326+(AC326*$AG$1),2) -> 12.91 | L106: 1239 | N106: 0.1 | P106: 10 | R106: 1249 | AC106: 1914
A107: 64 | C107: 21,000 LUMEN (8) | F107: 132 | H107: 21054 | J107: =$J$106+$AG$10 -> 20.87 | L107: 2755 | N107: 0.2 | P107: 14 | R107: 2769 | AC107: 1914
A108: 65 | C108: METAL HALIDE:
A109: 66 | C109: 14,000 LUMEN | F109: 0 | H109: =ROUND(F109*AC109/12,0) -> 0 | J109: =ROUND(AC329+(AC329*$AG$1),2) -> 8.31 | L109: 0 | N109: =ROUND((L109/L$209)*100,1) -> 0 | P109: =ROUND($P$209/$H$209*H109,0) -> 0 | R109: =L109+P109 -> 0 | AC109: 874
A110: 67 | C110: 20,500 LUMEN | F110: 0 | H110: =ROUND(F110*AC110/12,0) -> 0 | J110: =ROUND(AC330+(AC330*$AG$1),2) -> 9.59 | L110: 0 | N110: =ROUND((L110/L$209)*100,1) -> 0 | P110: =ROUND($P$209/$H$209*H110,0) -> 0 | R110: =L110+P110 -> 0 | AC110: 1215
A111: 68 | C111: 36,000 LUMEN | F111: 0 | H111: =ROUND(F111*AC111/12,0) -> 0 | J111: =ROUND(AC331+(AC331*$AG$1),2) -> 12.91 | L111: 0 | N111: =ROUND((L111/L$209)*100,1) -> 0 | P111: =ROUND($P$209/$H$209*H111,0) -> 0 | R111: =L111+P111 -> 0 | AC111: 1914
A112: 69 | C112: SODIUM VAPOR: | L112: 0
A113: 70 | C113: 9,500 LUMEN | F113: 0 | H113: =ROUND(F113*AC113/12,0) -> 0 | J113: =ROUND(AC333+(AC333*$AG$1),2) -> 9.03 | L113: 0 | N113: =ROUND((L113/L$209)*100,1) -> 0 | P113: =ROUND($P$209/$H$209*H113,0) -> 0 | R113: =L113+P113 -> 0 | AC113: 487
A114: 71 | C114: 9,500 LUMEN (6) | F114: 24 | H114: 974 | J114: =$J$113+$AG$8 -> 15.08 | L114: 362 | N114: 0 | P114: 1 | R114: =L114+P114 -> 363 | AC114: 487
A115: 72 | C115: 9,500 LUMEN (8) | F115: 588 | H115: 23863 | J115: =$J$113+$AG$10 -> 16.99 | L115: 9990 | N115: 0.6 | P115: 16 | R115: =L115+P115 -> 10006 | AC115: 487
A116: 73 | C116: 9,500 LUMEN (10) | F116: 24 | H116: 974 | J116: =$J$113+$AG$13 -> 14.08 | L116: 338 | N116: 0 | P116: 1 | R116: =L116+P116 -> 339 | AC116: 487
A117: 74 | C117: 9,500 LUMEN (13) | F117: 12 | H117: 487 | J117: =$J$113+$AG$16 -> 18.9 | L117: 227 | N117: 0 | P117: 0 | R117: =L117+P117 -> 227 | AC117: 487
A118: 75 | C118: 9,500 LUMEN (OPEN) | F118: 0 | H118: 0 | J118: =ROUND(AC338+(AC338*$AG$1),2) -> 6.87 | L118: 0 | N118: 0 | P118: 0 | R118: 0 | AC118: 487
A119: 76 | C119: 16,000 LUMEN | F119: 0 | H119: 0 | J119: =ROUND(AC339+(AC339*$AG$1),2) -> 9.81 | L119: 0 | N119: 0 | P119: 0 | R119: 0 | AC119: 711
A120: 77 | C120: 16,000 LUMEN (6) | F120: 24 | H120: 1422 | J120: =$J$119+$AG$8 -> 15.86 | L120: 381 | N120: 0 | P120: 1 | R120: =L120+P120 -> 382 | AC120: 711
A121: 78 | C121: 22,000 LUMEN | F121: 228 | H121: 18012 | J121: =ROUND(AC341+(AC341*$AG$1),2) -> 12.76 | L121: 2909 | N121: 0.2 | P121: 12 | R121: 2921 | AC121: 948
A122: 79 | C122: 22,000 LUMEN (5) | F122: 60 | H122: 4740 | J122: =$J$121+$AG$7 -> 17.81 | L122: 1069 | N122: 0.1 | P122: 3 | R122: 1072 | AC122: 948
A123: 80 | C123: 22,000 LUMEN (8) | F123: 530 | H123: 41870 | J123: =$J$121+$AG$10 -> 20.72 | L123: 10982 | N123: 0.6 | P123: 29 | R123: =L123+P123 -> 11011 | AC123: 948
A124: 81 | C124: 22,000 LUMEN (8A) | F124: 48 | H124: 3792 | J124: =$J$121+$AG$11 -> 20.8 | L124: 998 | N124: 0.1 | P124: 3 | R124: =L124+P124 -> 1001 | AC124: 948
A125: 82 | C125: 27,500 LUMEN | F125: 0 | H125: 0 | J125: =ROUND(AC345+(AC345*$AG$1),2) -> 12.76 | L125: 0 | N125: 0 | P125: 0 | R125: =L125+P125 -> 0 | AC125: 948
A126: 83 | C126: 27,500 LUMEN (9) | F126: 252 | H126: 19908 | J126: =$J$125+$AG$12 -> 28.66 | L126: 7222 | N126: 0.4 | P126: 14 | R126: =L126+P126 -> 7236 | AC126: 948
A127: 84 | C127: 50,000 LUMEN | F127: 342 | H127: 55832 | J127: =ROUND(AC347+(AC347*$AG$1),2) -> 17.15 | L127: 5865 | N127: 0.3 | P127: 38 | R127: 5903 | AC127: 1959
A128: 85 | C128: 50,000 LUMEN (8) | F128: 72 | H128: 11754 | J128: =$J$127+$AG$10 -> 25.11 | L128: 1808 | N128: 0.1 | P128: 8 | R128: =L128+P128 -> 1816 | AC128: 1959
A129: 86 | C129: 50,000 LUMEN (9) | F129: 132 | H129: 21549 | J129: =$J$127+$AG$12 -> 33.05 | L129: 4363 | N129: 0.3 | P129: 15 | R129: =L129+P129 -> 4378 | AC129: 1959
A130: 87 | C130: DECORATIVE MERCURY VAPOR:
A131: 88 | C131: 7,000 LUMEN TOWN & COUNTRY | F131: 0 | H131: =ROUND(F131*AC131/12,0) -> 0 | J131: =ROUND(AC351+(AC351*$AG$1),2) -> 8.59 | L131: 0 | N131: =ROUND((L131/L$209)*100,1) -> 0 | P131: =ROUND($P$209/$H$209*H131,0) -> 0 | R131: =L131+P131 -> 0 | AC131: 853
A132: 89 | C132: 7,000 LUMEN TOWN & COUNTRY (3) | F132: 216 | H132: 15354 | J132: =$J$131+$AG$5 -> 13.64 | L132: 2946 | N132: =ROUND((L132/L$209)*100,1) -> 0.2 | P132: 10 | R132: =L132+P132 -> 2956 | AC132: 853
A133: 90 | C133: 7,000 LUMEN TOWN & COUNTRY (10) | F133: 5870 | H133: 417259 | J133: =$J$131+$AG$13 -> 13.64 | L133: 80067 | N133: =ROUND((L133/L$209)*100,1)-0.1 -> 4.6 | P133: 284 | R133: 80351 | AC133: 853
A134: 91 | C134: 7,000 LUMEN HOLOPHANE | F134: 24 | H134: 1748 | J134: =ROUND(AC354+(AC354*$AG$1),2) -> 10.79 | L134: 259 | N134: =ROUND((L134/L$209)*100,1) -> 0 | P134: 1 | R134: 260 | AC134: 874
A135: 92 | C135: 7,000 LUMEN HOLOPHANE (10) | F135: 1908 | H135: 138966 | J135: =$J$134+$AG$13 -> 15.84 | L135: 30223 | N135: 1.8 | P135: 95 | R135: 30318 | AC135: 874
A136: 93 | C136: 7,000 LUMEN GAS REPLICA (7) | F136: 96 | H136: 6992 | J136: =ROUND(AC356+(AC356*$AG$1),2) -> 38.38 | L136: 3684 | N136: 0.2 | P136: 5 | R136: 3689 | T136: =J136-AG9 -> 24.65 | AC136: 874
A137: 94 | C137: 7,000 LUMEN GRANVILLE | F137: 0 | H137: 0 | J137: =ROUND(AC357+(AC357*$AG$1),2) -> 8.68 | L137: 0 | N137: 0 | P137: 0 | R137: =L137+P137 -> 0 | AC137: 853
A138: 95 | C138: 7,000 LUMEN GRANVILLE (7) | F138: 0 | H138: 0 | J138: =$J$137+$AG$9 -> 22.41 | L138: 0 | N138: 0 | P138: 0 | R138: =L138+P138 -> 0 | AC138: 853
A139: 96 | C139: 7,000 LUMEN ASPEN | F139: 24 | H139: 1748 | J139: =ROUND(AC359+(AC359*$AG$1),2) -> 15.62 | L139: 375 | N139: 0 | P139: 1 | R139: 376 | AC139: 874
A141: (1) THESE FIGURES REPRESENT NUMBER OF UNITS BILLED. | J141: (5) WITH 35' WOOD POLE. | P141: (9) WITH 30' ALUM POLE.
A142: ="(1A) REFLECTS FUEL COST RECOVERY INCLUDED IN BASE RATES OF "&TEXT(CUR_BASE_FUEL,"$0.000000;($0.000000)")&" PER KWH." -> (1A) REFLECTS FUEL COST RECOVERY INCLUDED IN BASE RATES OF $0.023837 PER KWH. | J142: (6) WITH 40' WOOD POLE. | P142: (10) WITH 17' FIBERGLASS POLE.
A143: ="(2) REFLECTS FUEL COMPONENT OF "&TEXT(CUR_FAC,"$0.000000;($0.000000)")&" PER KWH." -> (2) REFLECTS FUEL COMPONENT OF $0.000681 PER KWH. | J143: (7) WITH 12' ALUM POLE. | P143: (11) WITH 12' FIBERGLASS POLE.
A144: (3) WITH 17' WOOD LAMINATED POLE. | J144: (8) WITH 28' ALUM POLE. | P144: (12) WITH 30' FIBERGLASS POLE.
A145: (4) WITH 30' WOOD POLE. | J145: (8A) WITH 28' ALUM POLE HEAVY GAUGE. | P145: (13) WITH 35' FIBERGLASS POLE.
A148: =NAME -> DUKE ENERGY KENTUCKY, INC.
A149: =CASE_NO -> CASE NO. 2019-00271
A150: =TITLE -> ANNUALIZED TEST YEAR REVENUES AT PROPOSED VS. MOST CURRENT RATES
A151: =DATE -> FOR THE TWELVE MONTHS ENDED March 31, 2021
A152: =SERVICE -> (ELECTRIC SERVICE)
A153: =DATA_PERIOD -> DATA: ____ BASE PERIOD __X__FORECASTED PERIOD | R153: SCHEDULE M-2.3
A154: =TYPE -> TYPE OF FILING: _X_ ORIGINAL ___UPDATED ___ REVISED | R154: ="PAGE 15 OF "&TEXT(Page_Num_2.3,"00") -> PAGE 15 OF 23
A155: WORK PAPER REFERENCE NO(S).: | R155: WITNESS:
A156: =TIME -> 12 Months Projected with Riders | R156: =WIT -> J. L. Kern
A157: PROPOSED ANNUALIZED
L159: PROPOSED | N159: % OF REV TO | R159: PROPOSED
L160: REVENUE LESS | N160: TOTAL LESS | R160: TOTAL
A161: LINE | C161: RATE | D161: CLASS / | F161: CUSTOMER | J161: PROPOSED | L161: FAC | N161: FAC | P161: FAC | R161: REVENUE
A162: NO. | C162: CODE | D162: DESCRIPTION | F162: BILLS(1) | H162: SALES | J162: RATES(1A) | L162: REVENUE | N162: REVENUE | P162: REVENUE (2) | R162: (F + H)
C163: (A) | D163: (B) | F163: (C) | H163: (D) | J163: (E) | L163: (F) | N163: (G) | P163: (H) | R163: (I)
H164: (KWH) | J164: ($/UNIT) | L164: ($) | N164: (%) | P164: ($) | R164: ($)
A165: 97 | C165: SL | D165: STREET LIGHTING -- CO OWNED & MAINTAINED (CONT'D.)
A166: 98 | C166: UNDERGROUND DISTRIBUTION (CONT'D.):
A167: 99 | C167: DECORATIVE METAL HALIDE:
A168: 100 | C168: 14,000 LUMEN TRADITIONAIRE | F168: 0 | H168: =ROUND(F168*AC168/12,0) -> 0 | J168: =ROUND(AC388+(AC388*$AG$1),2) -> 8.58 | L168: =ROUND((F168*J168),0) -> 0 | N168: =ROUND((L168/L$209)*100,1) -> 0 | P168: =ROUND($P$209/$H$209*H168,0) -> 0 | R168: =L168+P168 -> 0 | AC168: 853
A169: 101 | C169: 14,000 LUMEN TRADITIONAIRE (7) | F169: 60 | H169: 4265 | J169: =$J$168+$AG$9 -> 22.31 | L169: 1339 | N169: 0.1 | P169: 3 | R169: 1342 | AC169: 853
A170: 102 | C170: 14,000 LUMEN TRADITIONAIRE (10) | F170: 468 | H170: 33267 | J170: =$J$168+$AG$13 -> 13.63 | L170: 6379 | N170: 0.4 | P170: 23 | R170: 6402 | AC170: 853
A171: 103 | C171: 14,000 LUMEN GRANVILLE | F171: 0 | H171: 0 | J171: =ROUND(AC391+(AC391*$AG$1),2) -> 15.62 | L171: 0 | N171: 0 | P171: 0 | R171: 0 | AC171: 874
A172: 104 | C172: 14,000 LUMEN GRANVILLE (11) | F172: 0 | H172: 0 | J172: =$J$171+$AG$14 -> 30.38 | L172: 0 | N172: 0 | P172: 0 | R172: 0 | AC172: 874
A173: 105 | C173: 14,000 LUMEN GAS REPLICA | F173: 0 | H173: 0 | J173: =ROUND(AC393+(AC393*$AG$1),2) -> 24.74 | L173: 0 | N173: 0 | P173: 0 | R173: 0 | AC173: 874
A174: 106 | C174: 14,500 LUMEN GAS REPLICA | F174: 0 | H174: 0 | J174: =ROUND(AC394+(AC394*$AG$1),2) -> 24.74 | L174: 0 | N174: 0 | P174: 0 | R174: 0 | AC174: 874
A175: 107 | C175: 14,500 LUMEN GAS REPLICA (7) | F175: 288 | H175: 20976 | J175: =$J$174+$AG$9 -> 38.47 | L175: 11079 | N175: 0.7 | P175: 14 | R175: 11093 | AC175: 874
A176: 108 | C176: 14,500 LUMEN GAS REPLICA (10) | F176: 60 | H176: 4370 | J176: =$J$174+$AG$13 -> 29.79 | L176: 1787 | N176: 0.1 | P176: 3 | R176: 1790 | AC176: 874
A178: 109 | C178: DECORATIVE SODIUM VAPOR:
A179: 110 | C179: 9,500 LUMEN TOWN & COUNTRY | F179: 96 | H179: =ROUND(F179*AC179/12,0) -> 3896 | J179: =ROUND(AC399+(AC399*$AG$1),2) -> 12.54 | L179: =ROUND((F179*J179),0) -> 1204 | N179: =ROUND((L179/L$209)*100,1) -> 0.1 | P179: =ROUND($P$209/$H$209*H179,0) -> 3 | R179: =L179+P179 -> 1207 | AC179: 487
A180: 111 | C180: 9,500 LUMEN TOWN & COUNTRY (10) | F180: 1905 | H180: 77311 | J180: =$J$179+$AG$13 -> 17.59 | L180: 33509 | N180: 2 | P180: 53 | R180: =L180+P180 -> 33562 | AC180: 487
A181: 112 | C181: 9,500 LUMEN HOLOPHANE | F181: 576 | H181: 25536 | J181: =ROUND(AC401+(AC401*$AG$1),2) -> 13.58 | L181: 7822 | N181: 0.5 | P181: 17 | R181: =L181+P181 -> 7839 | AC181: 532
A182: 113 | C182: 9,500 LUMEN HOLOPHANE (10) | F182: 312 | H182: 13832 | J182: =$J$181+$AG$13 -> 18.63 | L182: 5813 | N182: 0.3 | P182: 9 | R182: =L182+P182 -> 5822 | W182: Rectilinear 9500 Lumen | AC182: 532
A183: 114 | C183: 9,500 LUMEN GAS REPLICA (7) | F183: 132 | H183: 5852 | J183: =ROUND(AC403+(AC403*$AG$1),2) -> 39.27 | L183: 5184 | N183: 0.3 | P183: 4 | R183: =L183+P183 -> 5188 | T183: =J183-AG9 -> 25.54 | W183: =ROUND(9.02+(9.02*$AG$1),2) -> 10.13 | AC183: 532
A184: 115 | C184: 9,500 LUMEN GAS REPLICA (10) | F184: 12 | H184: 532 | J184: =ROUND(AC404+(AC404*$AG$1),2) -> 30.59 | L184: 367 | N184: 0 | P184: 0 | R184: =L184+P184 -> 367 | AC184: 532
A185: 116 | C185: 9,500 LUMEN GAS REPLICA (11) | F185: 312 | H185: 13832 | J185: =ROUND(AC405+(AC405*$AG$1),2) -> 40.3 | L185: 12574 | N185: 0.7 | P185: 9 | R185: 12583 | AC185: 532
A186: 117 | C186: 9,500 LUMEN ASPEN | F186: 888 | H186: 39368 | J186: =ROUND(AC406+(AC406*$AG$1),2) -> 15.82 | L186: 14048 | N186: 0.8 | P186: 27 | R186: 14075 | AC186: 532
A187: 118 | C187: 9,500 LUMEN TRADITIONAIRE | F187: 0 | H187: 0 | J187: =ROUND(AC407+(AC407*$AG$1),2) -> 12.54 | L187: 0 | N187: 0 | P187: 0 | R187: 0 | AC187: 487
A188: 119 | C188: 9,500 LUMEN TRADITIONAIRE (10) | F188: 696 | H188: 28246 | J188: =$J$187+$AG$13 -> 17.59 | L188: 12243 | N188: 0.7 | P188: 19 | R188: 12262 | AC188: 487
A189: 120 | C189: 9,500 LUMEN GRANVILLE | F189: 0 | H189: 0 | J189: =ROUND(AC409+(AC409*$AG$1),2) -> 15.82 | L189: 0 | N189: 0 | P189: 0 | R189: 0 | AC189: 532
A190: 121 | C190: 9,500 LUMEN GRANVILLE (7) | F190: 0 | H190: 0 | J190: =$J$189+$AG$9 -> 29.55 | L190: 0 | N190: 0 | P190: 0 | R190: 0 | AC190: 532
A191: 122 | C191: 9,500 LUMEN GRANVILLE (10) | F191: 0 | H191: 0 | J191: =$J$189+$AG$13 -> 20.87 | L191: 0 | N191: 0 | P191: 0 | R191: =L191+P191 -> 0 | AC191: 532
A192: 123 | C192: 9,500 LUMEN GRANVILLE (11) | F192: 0 | H192: 0 | J192: =$J$189+$AG$14 -> 30.58 | L192: 0 | N192: 0 | P192: 0 | R192: 0 | AC192: 532
A193: 124 | C193: 22,000 LUMEN RECTILINEAR | F193: 0 | H193: 0 | J193: =ROUND(AC413+(AC413*$AG$1),2) -> 13.94 | L193: 0 | N193: 0 | P193: 0 | R193: 0 | AC193: 1023
A194: 125 | C194: 22,000 LUMEN RECTILINEAR (12) | F194: 176 | H194: 15004 | J194: =$J$193+$AG$15 -> 23.55 | L194: 4145 | N194: 0.2 | P194: 10 | R194: 4155 | AC194: 1023
A195: 126 | C195: 50,000 LUMEN RECTILINEAR | F195: 0 | H195: 0 | J195: =ROUND(AC415+(AC415*$AG$1),2) -> 18.42 | L195: 0 | N195: 0 | P195: 0 | R195: 0 | AC195: 1959
A196: 127 | C196: 50,000 LUMEN RECTILINEAR (12) | F196: 36 | H196: 5877 | J196: =$J$195+$AG$15 -> 28.03 | L196: 1009 | N196: 0.1 | P196: 4 | R196: 1013 | AC196: 1959
A197: 128 | C197: 50,000 LUMEN RECTILINEAR (13) | F197: 204 | H197: 33303 | J197: =$J$195+$AG$16 -> 28.29 | L197: 5771 | N197: 0.3 | P197: 23 | R197: 5794 | AC197: 1959
A198: 129 | C198: 50,000 LUMEN SETBACK | F198: 0 | H198: 0 | J198: =ROUND(AC418+(AC418*$AG$1),2) -> 27.29 | L198: 0 | N198: 0 | P198: 0 | R198: 0 | AC198: 1959
A199: 130 | C199: TOTAL UNDERGROUND | F199: =SUM(F98:F198) -> 18141 | H199: =SUM(H98:H198) -> 1244608 | L199: =SUM(L98:L198) -> 310033 | N199: 18.3 | P199: =ROUND(H199*CUR_FAC,0) -> 848 | R199: =SUM(R98:R198) -> 310880
A200: 131 | C200: RIDERS NOT INCLUDED IN RATES ABOVE ($ PER KWH):
A201: 132 | C201: =ESM_Name -> ENVIRONMENTAL SURCHARGE MECHANISM RIDER (ESM) | L201: =AE421 -> 195592 | N201: =ROUND((L201/L$209)*100,1) -> 11.5 | R201: =L201+P201 -> 195592
A202: 133 | C202: =PSM_Name -> PROFIT SHARING MECHANISM (PSM) | J202: =PRO_PSM -> -0.000163 | L202: =ROUND(($H$199+$H$94)*J202,0) -> -1719 | N202: =ROUND((L202/L$209)*100,1) -> -0.1 | R202: =L202+P202 -> -1719
A203: 134 | C203: TOTAL RIDERS NOT INCLUDED IN RATES ABOVE | L203: =SUM(L201:L202) -> 193873 | N203: =ROUND((L203/L$209)*100,1) -> 11.4 | R203: =SUM(R201:R202) -> 193873
A205: 135 | C205: ADD'L FACILITIES CHARGE:
A206: 136 | C206: OVERHEAD | F206: 5025 | J206: =ROUND(AC426+(AC426*$AG$1),2) -> 0.6 | L206: =ROUND((F206*J206),0) -> 3015 | N206: =ROUND((L206/L$209)*100,1) -> 0.2 | R206: =L206+P206 -> 3015
A207: 137 | C207: UNDERGROUND | F207: 20883 | J207: =ROUND(AC427+(AC427*$AG$1),2) -> 0.86 | L207: =ROUND((F207*J207),0) -> 17959 | N207: =ROUND((L207/L$209)*100,1) -> 1.1 | R207: =L207+P207 -> 17959
A208: 138 | C208: TOTAL ADD'L FACILITIES CHG | F208: =SUM(F206:F207) -> 25908 | L208: =SUM(L206:L207) -> 20974 | N208: =ROUND((L208/L$209)*100,1) -> 1.2 | P208: 0 | R208: =SUM(R206:R207) -> 20974
A209: 139 | C209: TOTAL RATE SL INCLUDING RIDERS | F209: =F94+F199 -> 135466 | H209: =H94+H199 -> 10548224 | L209: =L94+L199+L203+L208 -> 1698120 | N209: 100 | P209: =ROUND(H209*CUR_FAC,0) -> 7183 | R209: =R94+R199+R203+R208 -> 1705304
A211: (1) THESE FIGURES REPRESENT NUMBER OF UNITS BILLED. | J211: (5) WITH 35' WOOD POLE. | P211: (9) WITH 30' ALUM POLE.
A212: ="(1A) REFLECTS FUEL COST RECOVERY INCLUDED IN BASE RATES OF "&TEXT(CUR_BASE_FUEL,"$0.000000;($0.000000)")&" PER KWH." -> (1A) REFLECTS FUEL COST RECOVERY INCLUDED IN BASE RATES OF $0.023837 PER KWH. | J212: (6) WITH 40' WOOD POLE. | P212: (10) WITH 17' FIBERGLASS POLE.
... 205 more rows

Sheet Rate TL
A1: =NAME -> DUKE ENERGY KENTUCKY, INC.
A2: =CASE_NO -> CASE NO. 2019-00271
A3: =TITLE -> ANNUALIZED TEST YEAR REVENUES AT PROPOSED VS. MOST CURRENT RATES
A4: =DATE -> FOR THE TWELVE MONTHS ENDED March 31, 2021
A5: =SERVICE -> (ELECTRIC SERVICE)
A6: =DATA_PERIOD -> DATA: ____ BASE PERIOD __X__FORECASTED PERIOD | R6: SCHEDULE M-2.3
A7: =TYPE -> TYPE OF FILING: _X_ ORIGINAL ___UPDATED ___ REVISED | R7: ="PAGE 16 OF "&TEXT(Page_Num_2.3,"00") -> PAGE 16 OF 23
A8: WORK PAPER REFERENCE NO(S).: | R8: WITNESS:
A9: =TIME -> 12 Months Projected with Riders | R9: =WIT -> J. L. Kern
A10: PROPOSED ANNUALIZED
L12: PROPOSED | N12: % OF REV TO | R12: PROPOSED
L13: REVENUE LESS | N13: TOTAL LESS | R13: TOTAL
A14: LINE | C14: RATE | D14: CLASS / | F14: CUSTOMER | J14: PROPOSED | L14: FAC | N14: FAC | P14: FAC | R14: REVENUE
A15: NO. | C15: CODE | D15: DESCRIPTION | F15: BILLS(1) | H15: SALES | J15: RATES | L15: REVENUE | N15: REVENUE | P15: REVENUE (2) | R15: (F + H)
C16: (A) | D16: (B) | F16: (C) | H16: (D) | J16: (E) | L16: (F) | N16: (G) | P16: (H) | R16: (I)
H17: (KWH) | J17: ($/KWH) | L17: ($) | N17: (%) | P17: ($) | R17: ($)
A18: 1 | C18: TL | D18: TRAFFIC LIGHTING
A19: 2 | D19: SERVICE
A21: 3 | C21: (A) WHERE COMPANY
A22: 4 | C22: SUPPLIES ENERGY ONLY (3):
A24: 5 | C24: ALL CONSUMPTION | F24: 77028 | H24: 687336 | J24: =ROUND(AC75+(AC75*LT_COS_RATE),6) -> 0.043675 | L24: =ROUND((H24*J24),0) -> 30019 | N24: =ROUND((L24/L$47)*100,1) -> 34 | P24: =ROUND($P$47/$H$47*H24,0) -> 468 | R24: =L24+P24 -> 30487
A26: 6 | C26: (B) WHERE COMPANY
A27: 7 | C27: SUPPLIES ENERGY FROM A
A28: 8 | C28: SEPARATELY METERED SOURCE
A29: 9 | C29: AND PROVIDES LIMITED
A30: 10 | C30: MAINTENANCE:
A32: 11 | C32: ALL CONSUMPTION | F32: 0 | H32: 0 | J32: =ROUND(AC83+(AC83*LT_COS_RATE),6) -> 0.024185 | L32: 0 | N32: =ROUND((L32/L$47)*100,1) -> 0 | P32: =ROUND($P$47/$H$47*H32,0) -> 0 | R32: =L32+P32 -> 0
A34: 12 | C34: (C) WHERE COMPANY
A35: 13 | C35: SUPPLIES ENERGY AND
A36: 14 | C36: PROVIDES LIMITED
A37: 15 | C37: MAINTENANCE (3):
A39: 16 | C39: ALL CONSUMPTION | F39: 18876 | H39: 758460 | J39: =ROUND(AC90+(AC90*LT_COS_RATE),6) -> 0.06786 | L39: =ROUND((H39*J39),0) -> 51469 | N39: =ROUND((L39/L$47)*100,1) -> 58.3 | P39: =ROUND($P$47/$H$47*H39,0) -> 517 | R39: =L39+P39 -> 51986
A40: 17 | C40: TOTAL RATE TL EXCLUDING RIDERS | F40: =F39+F32+F24 -> 95904 | H40: =H39+H32+H24 -> 1445796 | L40: =L39+L32+L24 -> 81488 | N40: =ROUND((L40/L$47)*100,1) -> 92.2 | P40: =P39+P32+P24 -> 985 | R40: =R39+R32+R24 -> 82473
A42: 18 | C42: RIDERS NOT INCLUDED IN RATES ABOVE:
A43: 19 | C43: =ESM_Name -> ENVIRONMENTAL SURCHARGE MECHANISM RIDER (ESM) | L43: =AE94 -> 7102 | N43: =ROUND((L43/L$47)*100,1) -> 8 | R43: =L43+P43 -> 7102
A44: 20 | C44: =PSM_Name -> PROFIT SHARING MECHANISM (PSM) | J44: =PRO_PSM -> -0.000163 | L44: =ROUND($H$40*J44,0) -> -236 | N44: =ROUND((L44/L$47)*100,1) -> -0.3 | R44: =L44+P44 -> -236
A45: 21 | C45: TOTAL RIDERS NOT INCLUDED IN RATES ABOVE | L45: =SUM(L43:L44) -> 6866 | N45: =ROUND((L45/L$47)*100,1) -> 7.8 | R45: =SUM(R43:R44) -> 6866
A47: 22 | C47: TOTAL RATE TL INCLUDING RIDERS | F47: =F40 -> 95904 | H47: =H40 -> 1445796 | L47: =L45+L40 -> 88354 | N47: 100 | P47: =ROUND(H47*CUR_FAC,0) -> 985 | R47: =R45+R40 -> 89339
C49: (1) THESE FIGURES REPRESENT NUMBER OF UNITS BILLED.
C50: ="(2) REFLECTS FUEL COMPONENT OF "&TEXT(PRO_FAC,"$0.000000;($0.000000)")&" PER KWH." -> (2) REFLECTS FUEL COMPONENT OF $0.000681 PER KWH.
C51: ="(3) REFLECTS FUEL COST RECOVERY INCLUDED IN BASE RATES OF "&TEXT(PRO_BASE_FUEL,"$0.000000;($0.000000)")&" PER KWH." -> (3) REFLECTS FUEL COST RECOVERY INCLUDED IN BASE RATES OF $0.023837 PER KWH.
T52: =NAME -> DUKE ENERGY KENTUCKY, INC.
T53: =CASE_NO -> CASE NO. 2019-00271
T54: =TITLE -> ANNUALIZED TEST YEAR REVENUES AT PROPOSED VS. MOST CURRENT RATES
T55: =DATE -> FOR THE TWELVE MONTHS ENDED March 31, 2021
T56: =SERVICE -> (ELECTRIC SERVICE)
T57: =DATA_PERIOD -> DATA: ____ BASE PERIOD __X__FORECASTED PERIOD | AO57: SCHEDULE M-2.2
T58: =TYPE -> TYPE OF FILING: _X_ ORIGINAL ___UPDATED ___ REVISED | AO58: ="PAGE 16 OF "&TEXT(Page_Num_2.2,"00") -> PAGE 16 OF 22
T59: WORK PAPER REFERENCE NO(S).: | AO59: WITNESS:
T60: =TIME -> 12 Months Projected with Riders | AO60: =WIT -> J. L. Kern
T61: CURRENT ANNUALIZED
AE63: CURRENT | AG63: % OF REV TO | AI63: REVENUE | AK63: % INCR IN | AO63: CURRENT | AQ63: TOTAL
AC64: MOST | AE64: REVENUE LESS | AG64: TOTAL LESS | AI64: INCR LESS | AK64: REV LESS | AO64: TOTAL | AQ64: REVENUE
T65: LINE | V65: RATE | W65: CLASS / | Y65: CUSTOMER | AC65: CURRENT | AE65: FAC | AG65: FAC | AI65: FAC REV | AK65: FAC REV | AM65: FAC | AO65: REVENUE | AQ65: % INCREASE
T66: NO. | V66: CODE | W66: DESCRIPTION | Y66: BILLS(1) | AA66: SALES | AC66: RATES | AE66: REVENUE | AG66: REVENUE | AI66: (F - K) | AK66: (M / K) | AM66: REVENUE (2) | AO66: (K + H) | AQ66: (M / K1)
V67: (A) | W67: (B) | Y67: (C) | AA67: (D) | AC67: (J) | AE67: (K) | AG67: (L) | AI67: (M) | AK67: (N) | AM67: (H) | AO67: (K1) | AQ67: (O)
AA68: (KWH) | AC68: ($/KWH) | AE68: ($) | AG68: (%) | AI68: ($) | AK68: (%) | AM68: ($) | AO68: ($) | AQ68: (%)
T69: 1 | V69: TL | W69: TRAFFIC LIGHTING
T70: 2 | W70: SERVICE
T72: 3 | V72: (A) WHERE COMPANY
T73: 4 | V73: SUPPLIES ENERGY ONLY (3):
T75: 5 | V75: ALL CONSUMPTION | Y75: =F24 -> 77028 | AA75: =H24 -> 687336 | AC75: 0.038903 | AE75: =ROUND((AA75*AC75),0) -> 26739 | AG75: =ROUND((AE75/AE$98)*100,1) -> 33.7 | AI75: =L24-AE75 -> 3280 | AK75: =ROUND((AI75/AE75)*100,1) -> 12.3 | AM75: =ROUND($AM$98/$AA$98*AA75,0) -> 468 | AO75: =AE75+AM75 -> 27207 | AQ75: =ROUND((AI75/AO75)*100,1) -> 12.1
T77: 6 | V77: (B) WHERE COMPANY
T78: 7 | V78: SUPPLIES ENERGY FROM A
T79: 8 | V79: SEPARATELY METERED SOURCE
T80: 9 | V80: AND PROVIDES LIMITED
T81: 10 | V81: MAINTENANCE:
T83: 11 | V83: ALL CONSUMPTION | Y83: =F32 -> 0 | AA83: =H32 -> 0 | AC83: 0.021543 | AE83: 0 | AG83: =ROUND((AE83/AE$98)*100,1) -> 0 | AI83: =L32-AE83 -> 0 | AK83: 0 | AM83: =ROUND($AM$98/$AA$98*AA83,0) -> 0 | AO83: =AE83+AM83 -> 0 | AQ83: 0
T85: 12 | V85: (B) WHERE COMPANY
T86: 13 | V86: SUPPLIES ENERGY AND
T87: 14 | V87: PROVIDES LIMITED
T88: 15 | V88: MAINTENANCE (3):
T90: 16 | V90: ALL CONSUMPTION | Y90: =F39 -> 18876 | AA90: =H39 -> 758460 | AC90: 0.060446 | AE90: =ROUND((AA90*AC90),0) -> 45846 | AG90: =ROUND((AE90/AE$98)*100,1)-0.1 -> 57.6 | AI90: =L39-AE90 -> 5623 | AK90: =ROUND((AI90/AE90)*100,1) -> 12.3 | AM90: =ROUND($AM$98/$AA$98*AA90,0) -> 517 | AO90: =AE90+AM90 -> 46363 | AQ90: =ROUND((AI90/AO90)*100,1) -> 12.1
T91: 17 | V91: TOTAL RATE TL EXCLUDING RIDERS | Y91: =Y90+Y83+Y75 -> 95904 | AA91: =AA90+AA83+AA75 -> 1445796 | AE91: =AE90+AE83+AE75 -> 72585 | AG91: =ROUND((AE91/AE$98)*100,1) -> 91.4 | AI91: =AI90+AI83+AI75 -> 8903 | AK91: =ROUND((AI91/AE91)*100,1) -> 12.3 | AM91: =AM90+AM83+AM75 -> 985 | AO91: =AO90+AO83+AO75 -> 73570 | AQ91: =ROUND((AI91/AO91)*100,1) -> 12.1
T93: =A42 -> 18 | V93: RIDERS NOT INCLUDED IN RATES ABOVE:
T94: =A43 -> 19 | V94: =C43 -> ENVIRONMENTAL SURCHARGE MECHANISM RIDER (ESM) | AC94: =CUR_ESM_NonRes -> 0.1816 | AE94: =ROUND(($AO$91-CUR_BASE_FUEL*AA91)*AC94,0) -> 7102 | AG94: =ROUND((AE94/AE$98)*100,1) -> 8.9 | AI94: =L43-AE94 -> 0 | AK94: =IF(AE94=0,0,ROUND((AI94/AE94)*100,1)) -> 0 | AO94: =AE94+AM94 -> 7102 | AQ94: =IF(AO94=0,0,ROUND((AI94/AO94)*100,1)) -> 0
T95: =A44 -> 20 | V95: =C44 -> PROFIT SHARING MECHANISM (PSM) | AC95: =RS_PSM -> -0.000163 | AE95: =ROUND($AA$91*AC95,0) -> -236 | AG95: =ROUND((AE95/AE$98)*100,1) -> -0.3 | AI95: =L44-AE95 -> 0 | AK95: =ROUND((AI95/AE95)*100,1) -> 0 | AO95: =AE95+AM95 -> -236 | AQ95: =ROUND((AI95/AO95)*100,1) -> 0
T96: =A45 -> 21 | V96: TOTAL RIDERS NOT INCLUDED IN RATES ABOVE | AE96: =SUM(AE94:AE95) -> 6866 | AG96: =ROUND((AE96/AE$98)*100,1) -> 8.6 | AI96: =SUM(AI94:AI95) -> 0 | AK96: =ROUND((AI96/AE96)*100,1) -> 0 | AO96: =SUM(AO94:AO95) -> 6866 | AQ96: =ROUND((AI96/AO96)*100,1) -> 0
T98: =A47 -> 22 | V98: TOTAL RATE TL INCLUDING RIDERS | Y98: =Y91 -> 95904 | AA98: =AA91 -> 1445796 | AE98: =AE96+AE91 -> 79451 | AG98: 100 | AI98: =AI96+AI91 -> 8903 | AK98: =ROUND((AI98/AE98)*100,1) -> 11.2 | AM98: =ROUND(AA98*CUR_FAC,0) -> 985 | AO98: =AO96+AO91 -> 80436 | AQ98: =ROUND((AI98/AO98)*100,1) -> 11.1
V100: (1) THESE FIGURES REPRESENT NUMBER OF UNITS BILLED.
V101: ="(2) REFLECTS FUEL COMPONENT OF "&TEXT(CUR_FAC,"$0.000000;($0.000000)")&" PER KWH." -> (2) REFLECTS FUEL COMPONENT OF $0.000681 PER KWH.
V102: ="(3) REFLECTS FUEL COST RECOVERY INCLUDED IN BASE RATES OF "&TEXT(CUR_BASE_FUEL,"$0.000000;($0.000000)")&" PER KWH." -> (3) REFLECTS FUEL COST RECOVERY INCLUDED IN BASE RATES OF $0.023837 PER KWH.

Sheet Rate UOLS
A1: =NAME -> DUKE ENERGY KENTUCKY, INC.
A2: =CASE_NO -> CASE NO. 2019-00271
A3: =TITLE -> ANNUALIZED TEST YEAR REVENUES AT PROPOSED VS. MOST CURRENT RATES
A4: =DATE -> FOR THE TWELVE MONTHS ENDED March 31, 2021
A5: =SERVICE -> (ELECTRIC SERVICE)
A6: =DATA_PERIOD -> DATA: ____ BASE PERIOD __X__FORECASTED PERIOD | R6: SCHEDULE M-2.3
A7: =TYPE -> TYPE OF FILING: _X_ ORIGINAL ___UPDATED ___ REVISED | R7: ="PAGE 17 OF "&TEXT(Page_Num_2.3,"00") -> PAGE 17 OF 23
A8: WORK PAPER REFERENCE NO(S).: | R8: WITNESS:
A9: =TIME -> 12 Months Projected with Riders | R9: =WIT -> J. L. Kern
A10: PROPOSED ANNUALIZED
L12: PROPOSED | N12: % OF REV TO | R12: PROPOSED | Y12: Lighting rate on
L13: REVENUE LESS | N13: TOTAL LESS | R13: TOTAL | Y13: Tariff Sheet
A14: LINE | C14: RATE | D14: CLASS / | F14: CUSTOMER | J14: PROPOSED | L14: FAC | N14: FAC | P14: FAC | R14: REVENUE | Y14: less Base Fuel
A15: NO. | C15: CODE | D15: DESCRIPTION | F15: BILLS(1) | H15: SALES | J15: RATES(3) | L15: REVENUE | N15: REVENUE | P15: REVENUE (2) | R15: (F + H)
C16: (A) | D16: (B) | F16: (C) | H16: (D) | J16: (E) | L16: (F) | N16: (G) | P16: (H) | R16: (I)
H17: (KWH) | J17: ($/KWH) | L17: ($) | N17: (%) | P17: ($) | R17: ($)
A19: 1 | C19: UOLS | D19: UNMETERED OUTDOOR LIGHTING SERV
A21: 2 | C21: BASE RATE | F21: 89808 | H21: 4739968 | J21: =ROUND(AC56+(AC56*LT_COS_RATE),6) -> 0.043003 | L21: =ROUND((H21*J21),0) -> 203833 | N21: =ROUND((L21/L$28)*100,1) -> 94.3 | P21: =P28 -> 3228 | R21: =P21+L21 -> 207061 | Y21: =J21-PRO_BASE_FUEL -> 0.019166
A23: 3 | C23: RIDERS NOT INCLUDED IN RATES ABOVE:
A24: 4 | C24: =ESM_Name -> ENVIRONMENTAL SURCHARGE MECHANISM RIDER (ESM) | L24: =AE59 -> 13040 | N24: =ROUND((L24/L$28)*100,1) -> 6 | R24: =P24+L24 -> 13040
A25: 5 | C25: =PSM_Name -> PROFIT SHARING MECHANISM (PSM) | J25: =PRO_PSM -> -0.000163 | L25: =ROUND($H$21*J25,0) -> -773 | N25: =ROUND((L25/L$28)*100,1) -> -0.4 | R25: =P25+L25 -> -773
A26: 6 | C26: TOTAL RIDERS NOT INCLUDED IN RATES ABOVE | L26: =SUM(L24:L25) -> 12267 | N26: =ROUND((L26/L$28)*100,1) -> 5.7 | R26: =SUM(R24:R25) -> 12267
A28: 7 | C28: TOTAL RATE UOLS INCLUDING RIDERS | F28: =F21 -> 89808 | H28: =H21 -> 4739968 | L28: =L21+L26 -> 216100 | N28: =SUM(N21,N26) -> 100 | P28: =ROUND(H28*CUR_FAC,0) -> 3228 | R28: =R21+R26 -> 219328
C30: (1) THESE FIGURES REPRESENT NUMBER OF UNITS BILLED.
C31: ="(2) REFLECTS FUEL COMPONENT OF "&TEXT(PRO_FAC,"$0.000000;($0.000000)")&" PER KWH." -> (2) REFLECTS FUEL COMPONENT OF $0.000681 PER KWH.
C32: ="(3) REFLECTS FUEL COST RECOVERY INCLUDED IN BASE RATES OF "&TEXT(PRO_BASE_FUEL,"$0.000000;($0.000000)")&" PER KWH." -> (3) REFLECTS FUEL COST RECOVERY INCLUDED IN BASE RATES OF $0.023837 PER KWH.
T36: =NAME -> DUKE ENERGY KENTUCKY, INC.
T37: =CASE_NO -> CASE NO. 2019-00271
T38: =TITLE -> ANNUALIZED TEST YEAR REVENUES AT PROPOSED VS. MOST CURRENT RATES
T39: =DATE -> FOR THE TWELVE MONTHS ENDED March 31, 2021
T40: =SERVICE -> (ELECTRIC SERVICE)
T41: =DATA_PERIOD -> DATA: ____ BASE PERIOD __X__FORECASTED PERIOD | AO41: SCHEDULE M-2.2
T42: =TYPE -> TYPE OF FILING: _X_ ORIGINAL ___UPDATED ___ REVISED | AO42: ="PAGE 17 OF "&TEXT(Page_Num_2.2,"00") -> PAGE 17 OF 22
T43: WORK PAPER REFERENCE NO(S).: | AO43: WITNESS:
T44: =TIME -> 12 Months Projected with Riders | AO44: =WIT -> J. L. Kern
T45: CURRENT ANNUALIZED
AE47: CURRENT | AG47: % OF REV TO | AI47: REVENUE | AK47: % INCR IN | AO47: CURRENT | AQ47: TOTAL
AC48: MOST | AE48: REVENUE LESS | AG48: TOTAL LESS | AI48: INCR LESS | AK48: REV LESS | AO48: TOTAL | AQ48: REVENUE | AU48: Lighting rate on
T49: LINE | V49: RATE | W49: CLASS / | Y49: CUSTOMER | AC49: CURRENT | AE49: FAC | AG49: FAC | AI49: FAC REV | AK49: FAC REV | AM49: FAC | AO49: REVENUE | AQ49: % INCREASE | AU49: Tariff Sheet
T50: NO. | V50: CODE | W50: DESCRIPTION | Y50: BILLS(1) | AA50: SALES | AC50: RATES(3) | AE50: REVENUE | AG50: REVENUE | AI50: (F - K) | AK50: (M / K) | AM50: REVENUE (2) | AO50: (K + H) | AQ50: (M / K1) | AU50: less Base Fuel | AX50: current | AY50: proposed
V51: (A) | W51: (B) | Y51: (C) | AA51: (D) | AC51: (J) | AE51: (K) | AG51: (L) | AI51: (M) | AK51: (N) | AM51: (H) | AO51: (K1) | AQ51: (O) | AW51: annual kwh | AX51: base fuel | AY51: base fuel
AA52: (KWH) | AC52: ($/KWH) | AE52: ($) | AG52: (%) | AI52: ($) | AK52: (%) | AM52: ($) | AO52: ($) | AQ52: (%)
AX53: =CUR_BASE_FUEL -> 0.023837 | AY53: =PRO_BASE_FUEL -> 0.023837
T54: 1 | V54: UOLS | W54: UNMETERED OUTDOOR LIGHTING SERV
T56: 2 | V56: BASE RATE | Y56: =F21 -> 89808 | AA56: =H21 -> 4739968 | AC56: 0.038305 | AE56: =ROUND((AA56*AC56),0) -> 181564 | AG56: =ROUND((AE56/AE$63)*100,1) -> 93.7 | AI56: =L21-AE56 -> 22269 | AK56: =ROUND((AI56/AE56)*100,1) -> 12.3 | AM56: =ROUND($AM$63/$AA$63*AA56,0) -> 3228 | AO56: =AE56+AM56 -> 184792 | AQ56: =ROUND((AI56/AO56)*100,1) -> 12.1 | AU56: =AC56-CUR_BASE_FUEL -> 0.014468
T58: =A23 -> 3 | V58: RIDERS NOT INCLUDED IN RATES ABOVE:
T59: =A24 -> 4 | V59: =C24 -> ENVIRONMENTAL SURCHARGE MECHANISM RIDER (ESM) | AC59: =CUR_ESM_NonRes -> 0.1816 | AE59: =ROUND(($AO$56-CUR_BASE_FUEL*AA56)*AC59,0) -> 13040 | AG59: =ROUND((AE59/AE$63)*100,1) -> 6.7 | AI59: =L24-AE59 -> 0 | AK59: =IF(AE59=0,0,ROUND((AI59/AE59)*100,1)) -> 0 | AO59: =AE59+AM59 -> 13040 | AQ59: =IF(AO59=0,0,ROUND((AI59/AO59)*100,1)) -> 0
T60: =A25 -> 5 | V60: =C25 -> PROFIT SHARING MECHANISM (PSM) | AC60: =RS_PSM -> -0.000163 | AE60: =ROUND($AA$56*AC60,0) -> -773 | AG60: =ROUND((AE60/AE$63)*100,1) -> -0.4 | AI60: =L25-AE60 -> 0 | AK60: =ROUND((AI60/AE60)*100,1) -> 0 | AO60: =AE60+AM60 -> -773 | AQ60: =ROUND((AI60/AO60)*100,1) -> 0
T61: =A26 -> 6 | V61: TOTAL RIDERS NOT INCLUDED IN RATES ABOVE | AE61: =SUM(AE59:AE60) -> 12267 | AG61: =ROUND((AE61/AE$63)*100,1) -> 6.3 | AI61: =SUM(AI59:AI60) -> 0 | AK61: =ROUND((AI61/AE61)*100,1) -> 0 | AO61: =SUM(AO59:AO60) -> 12267 | AQ61: =ROUND((AI61/AO61)*100,1) -> 0
T63: =A28 -> 7 | V63: TOTAL RATE UOLS INCLUDING RIDERS | Y63: =Y56 -> 89808 | AA63: =AA56 -> 4739968 | AE63: =AE61+AE56 -> 193831 | AG63: 100 | AI63: =AI56+AI61 -> 22269 | AK63: =ROUND((AI63/AE63)*100,1) -> 11.5 | AM63: =ROUND(AA63*CUR_FAC,0) -> 3228 | AO63: =AO61+AO56 -> 197059 | AQ63: =ROUND((AI63/AO63)*100,1) -> 11.3
V65: (1) THESE FIGURES REPRESENT NUMBER OF UNITS BILLED.
V66: ="(2) REFLECTS FUEL COMPONENT OF "&TEXT(CUR_FAC,"$0.000000;($0.000000)")&" PER KWH." -> (2) REFLECTS FUEL COMPONENT OF $0.000681 PER KWH.
V67: ="(3) REFLECTS FUEL COST RECOVERY INCLUDED IN BASE RATES OF "&TEXT(CUR_BASE_FUEL,"$0.000000;($0.000000)")&" PER KWH." -> (3) REFLECTS FUEL COST RECOVERY INCLUDED IN BASE RATES OF $0.023837 PER KWH.

Sheet Rate NSU
A1: =NAME -> DUKE ENERGY KENTUCKY, INC.
A2: =CASE_NO -> CASE NO. 2019-00271
A3: =TITLE -> ANNUALIZED TEST YEAR REVENUES AT PROPOSED VS. MOST CURRENT RATES
A4: =DATE -> FOR THE TWELVE MONTHS ENDED March 31, 2021
A5: =SERVICE -> (ELECTRIC SERVICE)
A6: =DATA_PERIOD -> DATA: ____ BASE PERIOD __X__FORECASTED PERIOD | R6: SCHEDULE M-2.3
A7: =TYPE -> TYPE OF FILING: _X_ ORIGINAL ___UPDATED ___ REVISED | R7: ="PAGE 18 OF "&TEXT(Page_Num_2.3,"00") -> PAGE 18 OF 23
A8: WORK PAPER REFERENCE NO(S).: | R8: WITNESS:
A9: =TIME -> 12 Months Projected with Riders | R9: =WIT -> J. L. Kern
A10: PROPOSED ANNUALIZED
L12: PROPOSED | N12: % OF REV TO | R12: PROPOSED
L13: REVENUE LESS | N13: TOTAL LESS | R13: TOTAL
A14: LINE | C14: RATE | D14: CLASS / | F14: CUSTOMER | J14: PROPOSED | L14: FAC | N14: FAC | P14: FAC | R14: REVENUE
A15: NO. | C15: CODE | D15: DESCRIPTION | F15: BILLS(1) | H15: SALES | J15: RATES(3) | L15: REVENUE | N15: REVENUE | P15: REVENUE (2) | R15: (F + H)
C16: (A) | D16: (B) | F16: (C) | H16: (D) | J16: (E) | L16: (F) | N16: (G) | P16: (H) | R16: (I)
H17: (KWH) | J17: ($/UNIT) | L17: ($) | N17: (%) | P17: ($) | R17: ($) | Y17: Lighting rate on
A18: 1 | C18: NSU | D18: NON STANDARD STREET LIGHT UNITS | Y18: Tariff Sheet
Y19: less Base Fuel
A20: 2 | C20: (A) COMPANY OWNED
A21: 3 | C21: (1) BOULEVARD INCANDESCENT(UG):
A22: 4 | C22: 2,500 LUMEN SERIES | F22: 0 | H22: =ROUND(F22*786/12,0) -> 0 | J22: =ROUND(AC72+(AC72*LT_COS_RATE),2) -> 10.58 | L22: =ROUND((F22*J22),0) -> 0 | N22: =ROUND((L22/L$45)*100,1) -> 0 | P22: =ROUND($P$45/$H$45*H22,0) -> 0 | R22: =L22+P22 -> 0 | Y22: =J22-AY72 -> 9.36
A23: 5 | C23: 2,500 LUMEN MULTIPLE | F23: 144 | H23: =ROUND(F23*786/12,0) -> 9432 | J23: =ROUND(AC73+(AC73*LT_COS_RATE),2) -> 8.22 | L23: =ROUND((F23*J23),0) -> 1184 | N23: =ROUND((L23/L$45)*100,1) -> 1.3 | P23: =ROUND($P$45/$H$45*H23,0) -> 6 | R23: =L23+P23 -> 1190 | Y23: =J23-AY73 -> 6.66
A24: 6 | C24: (2) HOLOPHANE DECORATIVE:
A25: 7 | C25: 10,000 LUMEN MV W
A26: 8 | C26: 17' FIBERGLASS POLE | F26: 372 | H26: =ROUND(F26*1215/12,0) -> 37665 | J26: =ROUND(AC76+(AC76*LT_COS_RATE),2) -> 19.26 | L26: =ROUND((F26*J26),0) -> 7165 | N26: =ROUND((L26/L$45)*100,1) -> 8.1 | P26: =ROUND($P$45/$H$45*H26,0) -> 26 | R26: =L26+P26 -> 7191 | Y26: =J26-AY76 -> 16.85
A27: 9 | C27: (3) STREET LGT UNITS (OH)
A28: 10 | C28: 2,500 LUMEN INDANDESCENT | F28: 840 | H28: =ROUND(F28*786/12,0) -> 55020 | J28: =ROUND(AC78+(AC78*LT_COS_RATE),2) -> 8.15 | L28: =ROUND((F28*J28),0) -> 6846 | N28: =ROUND((L28/L$45)*100,1) -> 7.8 | P28: =ROUND($P$45/$H$45*H28,0) -> 37 | R28: =L28+P28 -> 6883 | Y28: =J28-AY78 -> 6.59
A29: 11 | C29: 2,500 LUMEN MERCURY VAPOR | F29: 7372 | H29: =ROUND(F29*453/12,0) -> 278293 | J29: =ROUND(AC79+(AC79*LT_COS_RATE),2) -> 7.71 | L29: =ROUND((F29*J29),0) -> 56838 | N29: =ROUND((L29/L$45)*100,1) -> 64.5 | P29: =ROUND($P$45/$H$45*H29,0) -> 189 | R29: =L29+P29 -> 57027 | Y29: =J29-AY79 -> 6.81
A30: 12 | C30: 21,000 LUMEN MERCURY VAPOR | F30: 408 | H30: =ROUND(F30*1914/12,0) -> 65076 | J30: =ROUND(AC80+(AC80*LT_COS_RATE),2) -> 12.23 | L30: =ROUND((F30*J30),0) -> 4990 | N30: =ROUND((L30/L$45)*100,1) -> 5.7 | P30: =P31-P22-P23-P26-P28-P29 -> 45 | R30: =L30+P30 -> 5035 | Y30: =J30-AY80 -> 8.43
A31: 13 | C31: TOTAL COMPANY OWNED | F31: =SUM(F22:F30) -> 9136 | H31: =SUM(H22:H30) -> 445486 | L31: =SUM(L22:L30) -> 77023 | N31: =ROUND((L31/L$45)*100,1) -> 87.5 | P31: =ROUND($P$45/$H$45*H31,0) -> 303 | R31: =SUM(R22:R30) -> 77326
A33: 14 | C33: (B) CUSTOMER OWNED WITH LTD MAINT
A34: 15 | C34: (1) BOULEVARD INCANDESCENT(UG):
A35: 16 | C35: 2,500 LUMEN SERIES | F35: 0 | H35: =ROUND(F35*616/12,0) -> 0 | J35: =ROUND(AC85+(AC85*LT_COS_RATE),2) -> 6.24 | L35: =ROUND((F35*J35),0) -> 0 | N35: =ROUND((L35/L$45)*100,1) -> 0 | P35: =ROUND($P$45/$H$45*H35,0) -> 0 | R35: =L35+P35 -> 0 | Y35: =J35-AY85 -> 5.016367
A36: 17 | C36: 2,500 LUMEN MULTIPLE | F36: 60 | H36: =ROUND(F36*786/12,0) -> 3930 | J36: =ROUND(AC86+(AC86*LT_COS_RATE),2) -> 7.94 | L36: =ROUND((F36*J36),0) -> 476 | N36: =ROUND((L36/L$45)*100,1) -> 0.5 | P36: =ROUND($P$45/$H$45*H36,0) -> 3 | R36: =L36+P36 -> 479 | Y36: =J36-AY86 -> 6.378676
A37: 18 | C37: TOTAL CUSTOMER OWNED | F37: =SUM(F35:F36) -> 60 | H37: =SUM(H35:H36) -> 3930 | L37: =SUM(L35:L36) -> 476 | N37: =ROUND((L37/L$45)*100,1) -> 0.5 | P37: =ROUND($P$45/$H$45*H37,0) -> 3 | R37: =SUM(R35:R36) -> 479
A38: 19 | C38: TOTAL RATE NSU EXCLUDING RIDERS | F38: =F37+F31 -> 9196 | H38: =H37+H31 -> 449416 | L38: =L37+L31 -> 77499 | N38: =ROUND((L38/L$45)*100,1) -> 88 | P38: =P37+P31 -> 306 | R38: =R37+R31 -> 77805
A40: 20 | C40: RIDERS NOT INCLUDED IN RATES ABOVE ($/KWH):
A41: 21 | C41: =ESM_Name -> ENVIRONMENTAL SURCHARGE MECHANISM RIDER (ESM) | L41: =AE91 -> 10649 | N41: =ROUND((L41/L$45)*100,1) -> 12.1 | R41: =L41+P41 -> 10649
A42: 22 | C42: =PSM_Name -> PROFIT SHARING MECHANISM (PSM) | J42: =PRO_PSM -> -0.000163 | L42: =ROUND($H$38*J42,0) -> -73 | N42: =ROUND((L42/L$45)*100,1) -> -0.1 | R42: =L42+P42 -> -73
A43: 23 | C43: TOTAL RIDERS NOT INCLUDED IN RATES ABOVE | L43: =SUM(L41:L42) -> 10576 | N43: =ROUND((L43/L$45)*100,1) -> 12 | R43: =SUM(R41:R42) -> 10576
V44: =ROUND(0.75*(1+LT_COS_RATE),2) -> 0.84
A45: 24 | C45: TOTAL RATE NSU INCLUDING RIDERS | F45: =F31+F37 -> 9196 | H45: =H31+H37 -> 449416 | L45: =L43+L38 -> 88075 | N45: 100 | P45: =ROUND(H45*CUR_FAC,0) -> 306 | R45: =R43+R38 -> 88381
C47: (1) THESE FIGURES REPRESENT NUMBER OF UNITS BILLED.
C48: ="(2) REFLECTS FUEL COMPONENT OF "&TEXT(PRO_FAC,"$0.000000;($0.000000)")&" PER KWH." -> (2) REFLECTS FUEL COMPONENT OF $0.000681 PER KWH.
C49: ="(3) REFLECTS FUEL COST RECOVERY INCLUDED IN BASE RATES OF "&TEXT(PRO_BASE_FUEL,"$0.000000;($0.000000)")&" PER KWH." -> (3) REFLECTS FUEL COST RECOVERY INCLUDED IN BASE RATES OF $0.023837 PER KWH.
T51: =NAME -> DUKE ENERGY KENTUCKY, INC.
T52: =CASE_NO -> CASE NO. 2019-00271
T53: =TITLE -> ANNUALIZED TEST YEAR REVENUES AT PROPOSED VS. MOST CURRENT RATES
T54: =DATE -> FOR THE TWELVE MONTHS ENDED March 31, 2021
T55: =SERVICE -> (ELECTRIC SERVICE)
T56: =DATA_PERIOD -> DATA: ____ BASE PERIOD __X__FORECASTED PERIOD | AO56: SCHEDULE M-2.2
T57: =TYPE -> TYPE OF FILING: _X_ ORIGINAL ___UPDATED ___ REVISED | AO57: ="PAGE 18 OF "&TEXT(Page_Num_2.2,"00") -> PAGE 18 OF 22
T58: WORK PAPER REFERENCE NO(S).: | AO58: WITNESS:
T59: =TIME -> 12 Months Projected with Riders | AO59: =WIT -> J. L. Kern
T60: CURRENT ANNUALIZED
AE62: CURRENT | AG62: % OF REV TO | AI62: REVENUE | AK62: % INCR IN | AO62: CURRENT | AQ62: TOTAL
AC63: MOST | AE63: REVENUE LESS | AG63: TOTAL LESS | AI63: INCR LESS | AK63: REV LESS | AO63: TOTAL | AQ63: REVENUE
T64: LINE | V64: RATE | W64: CLASS / | Y64: CUSTOMER | AC64: CURRENT | AE64: FAC | AG64: FAC | AI64: FAC REV | AK64: FAC REV | AM64: FAC | AO64: REVENUE | AQ64: % INCREASE
T65: NO. | V65: CODE | W65: DESCRIPTION | Y65: BILLS(1) | AA65: SALES | AC65: RATES(3) | AE65: REVENUE | AG65: REVENUE | AI65: (F - K) | AK65: (M / K) | AM65: REVENUE (2) | AO65: (K + H) | AQ65: (M / K1) | AX65: current | AY65: proposed
V66: (A) | W66: (B) | Y66: (C) | AA66: (D) | AC66: (J) | AE66: (K) | AG66: (L) | AI66: (M) | AK66: (N) | AM66: (H) | AO66: (K1) | AQ66: (O) | AU66: Lighting rate on | AW66: annual kwh | AX66: base fuel | AY66: base fuel
AA67: (KWH) | AC67: ($/UNIT) | AE67: ($) | AG67: (%) | AI67: ($) | AK67: (%) | AM67: ($) | AO67: ($) | AQ67: (%) | AU67: Tariff Sheet
T68: 1 | V68: NSU | W68: NON STANDARD STREET LIGHT UNITS | AU68: less Base Fuel
T70: 2 | V70: (A) COMPANY OWNED
T71: 3 | V71: (1) BOULEVARD INCANDESCENT(UG):
T72: 4 | V72: 2,500 LUMEN SERIES | Y72: =F22 -> 0 | AA72: =H22 -> 0 | AC72: 9.42 | AE72: =ROUND((Y72*AC72),0) -> 0 | AG72: =ROUND((AE72/AE$95)*100,1) -> 0 | AI72: =L22-AE72 -> 0 | AK72: 0 | AM72: =ROUND($AM$95/$AA$95*AA72,0) -> 0 | AO72: =AE72+AM72 -> 0 | AQ72: 0 | AU72: =AC72-AX72 -> 8.2 | AW72: 616 | AX72: =ROUND((AW72/12)*CUR_BASE_FUEL,2) -> 1.22 | AY72: =ROUND((AW72/12)*PRO_BASE_FUEL,2) -> 1.22
T73: 5 | V73: 2,500 LUMEN MULTIPLE | Y73: =F23 -> 144 | AA73: =H23 -> 9432 | AC73: 7.32 | AE73: =ROUND((Y73*AC73),0) -> 1054 | AG73: =ROUND((AE73/AE$95)*100,1) -> 1.3 | AI73: =L23-AE73 -> 130 | AK73: 0 | AM73: =ROUND($AM$95/$AA$95*AA73,0) -> 6 | AO73: =AE73+AM73 -> 1060 | AQ73: 0 | AU73: =AC73-AX73 -> 5.76 | AW73: 786 | AX73: =ROUND((AW73/12)*CUR_BASE_FUEL,2) -> 1.56 | AY73: =ROUND((AW73/12)*PRO_BASE_FUEL,2) -> 1.56
T74: 6 | V74: (2) HOLOPHANE DECORATIVE:
T75: 7 | V75: 10,000 LUMEN MV W
T76: 8 | V76: 17' FIBERGLASS POLE | Y76: =F26 -> 372 | AA76: =H26 -> 37665 | AC76: 17.16 | AE76: =ROUND((Y76*AC76),0) -> 6384 | AG76: =ROUND((AE76/AE$95)*100,1) -> 8 | AI76: =L26-AE76 -> 781 | AK76: =ROUND((AI76/AE76)*100,1) -> 12.2 | AM76: =ROUND($AM$95/$AA$95*AA76,0) -> 26 | AO76: =AE76+AM76 -> 6410 | AQ76: =ROUND((AI76/AO76)*100,1) -> 12.2 | AU76: =AC76-AX76 -> 14.75 | AW76: 1215 | AX76: =ROUND((AW76/12)*CUR_BASE_FUEL,2) -> 2.41 | AY76: =ROUND((AW76/12)*PRO_BASE_FUEL,2) -> 2.41
T77: 9 | V77: (3) STREET LGT UNITS (OH)
T78: 10 | V78: 2,500 LUMEN INDANDESCENT | Y78: =F28 -> 840 | AA78: =H28 -> 55020 | AC78: 7.26 | AE78: =ROUND((Y78*AC78),0) -> 6098 | AG78: =ROUND((AE78/AE$95)*100,1) -> 7.7 | AI78: =L28-AE78 -> 748 | AK78: =ROUND((AI78/AE78)*100,1) -> 12.3 | AM78: =ROUND($AM$95/$AA$95*AA78,0) -> 37 | AO78: =AE78+AM78 -> 6135 | AQ78: =ROUND((AI78/AO78)*100,1) -> 12.2 | AU78: =AC78-AX78 -> 5.7 | AW78: 786 | AX78: =ROUND((AW78/12)*CUR_BASE_FUEL,2) -> 1.56 | AY78: =ROUND((AW78/12)*PRO_BASE_FUEL,2) -> 1.56
T79: 11 | V79: 2,500 LUMEN MERCURY VAPOR | Y79: =F29 -> 7372 | AA79: =H29 -> 278293 | AC79: 6.87 | AE79: =ROUND((Y79*AC79),0) -> 50646 | AG79: =ROUND((AE79/AE$95)*100,1)-0.1 -> 63.5 | AI79: =L29-AE79 -> 6192 | AK79: =ROUND((AI79/AE79)*100,1) -> 12.2 | AM79: =ROUND($AM$95/$AA$95*AA79,0)-1 -> 188 | AO79: =AE79+AM79 -> 50834 | AQ79: =ROUND((AI79/AO79)*100,1) -> 12.2 | AU79: =AC79-AX79 -> 5.97 | AW79: 453 | AX79: =ROUND((AW79/12)*CUR_BASE_FUEL,2) -> 0.9 | AY79: =ROUND((AW79/12)*PRO_BASE_FUEL,2) -> 0.9
T80: 12 | V80: 21,000 LUMEN MERCURY VAPOR | Y80: =F30 -> 408 | AA80: =H30 -> 65076 | AC80: 10.89 | AE80: =ROUND((Y80*AC80),0) -> 4443 | AG80: =ROUND((AE80/AE$95)*100,1) -> 5.6 | AI80: =L30-AE80 -> 547 | AK80: =ROUND((AI80/AE80)*100,1) -> 12.3 | AM80: =ROUND($AM$95/$AA$95*AA80,0) -> 44 | AO80: =AE80+AM80 -> 4487 | AQ80: =ROUND((AI80/AO80)*100,1) -> 12.2 | AU80: =AC80-AX80 -> 7.09 | AW80: 1914 | AX80: =ROUND((AW80/12)*CUR_BASE_FUEL,2) -> 3.8 | AY80: =ROUND((AW80/12)*PRO_BASE_FUEL,2) -> 3.8
T81: 13 | V81: TOTAL COMPANY OWNED | Y81: =SUM(Y72:Y80) -> 9136 | AA81: =SUM(AA72:AA80) -> 445486 | AE81: =SUM(AE72:AE80) -> 68625 | AG81: =SUM(AG72:AG80) -> 86.1 | AI81: =SUM(AI72:AI80) -> 8398 | AK81: =ROUND((AI81/AE81)*100,1) -> 12.2 | AM81: =ROUND($AM$95/$AA$95*AA81,0) -> 303 | AO81: =AE81+AM81 -> 68928 | AQ81: =ROUND((AI81/AO81)*100,1) -> 12.2
T83: 14 | V83: (B) CUSTOMER OWNED WITH LTD MAINT
T84: 15 | V84: (1) BOULEVARD INCANDESCENT(UG):
T85: 16 | V85: 2,500 LUMEN SERIES | Y85: =F35 -> 0 | AA85: =H35 -> 0 | AC85: 5.56 | AE85: =ROUND((Y85*AC85),0) -> 0 | AG85: =ROUND((AE85/AE$95)*100,1) -> 0 | AI85: =L35-AE85 -> 0 | AK85: 0 | AM85: =ROUND($AM$95/$AA$95*AA85,0) -> 0 | AO85: =AE85+AM85 -> 0 | AQ85: 0 | AU85: =AC85-AX85 -> 4.336367 | AW85: 616 | AX85: =ROUND((AW85/12)*CUR_BASE_FUEL,6) -> 1.223633 | AY85: =ROUND((AW85/12)*PRO_BASE_FUEL,6) -> 1.223633
T86: 17 | V86: 2,500 LUMEN MULTIPLE | Y86: =F36 -> 60 | AA86: =H36 -> 3930 | AC86: 7.07 | AE86: =ROUND((Y86*AC86),0) -> 424 | AG86: =ROUND((AE86/AE$95)*100,1) -> 0.5 | AI86: =L36-AE86 -> 52 | AK86: 0 | AM86: =ROUND($AM$95/$AA$95*AA86,0) -> 3 | AO86: =AE86+AM86 -> 427 | AQ86: 0 | AU86: =AC86-AX86 -> 5.508676 | AW86: 786 | AX86: =ROUND((AW86/12)*CUR_BASE_FUEL,6) -> 1.561324 | AY86: =ROUND((AW86/12)*PRO_BASE_FUEL,6) -> 1.561324
T87: 18 | V87: TOTAL CUSTOMER OWNED | Y87: =SUM(Y85:Y86) -> 60 | AA87: =SUM(AA85:AA86) -> 3930 | AE87: =SUM(AE85:AE86) -> 424 | AG87: =ROUND((AE87/AE$95)*100,1) -> 0.5 | AI87: =SUM(AI85:AI86) -> 52 | AK87: =ROUND((AI87/AE87)*100,1) -> 12.3 | AM87: =ROUND($AM$95/$AA$95*AA87,0) -> 3 | AO87: =SUM(AO85:AO86) -> 427 | AQ87: =ROUND((AI87/AO87)*100,1) -> 12.2
T88: 19 | V88: TOTAL RATE NSU EXCLUDING RIDERS | Y88: =Y87+Y81 -> 9196 | AA88: =AA87+AA81 -> 449416 | AE88: =AE87+AE81 -> 69049 | AG88: =ROUND((AE88/AE$95)*100,1) -> 86.7 | AI88: =AI87+AI81 -> 8450 | AK88: =ROUND((AI88/AE88)*100,1) -> 12.2 | AM88: =AM87+AM81 -> 306 | AO88: =AO87+AO81 -> 69355 | AQ88: =ROUND((AI88/AO88)*100,1) -> 12.2
T90: =A40 -> 20 | V90: RIDERS NOT INCLUDED IN RATES ABOVE ($/KWH):
T91: =A41 -> 21 | V91: =C41 -> ENVIRONMENTAL SURCHARGE MECHANISM RIDER (ESM) | AC91: =CUR_ESM_NonRes -> 0.1816 | AE91: =ROUND(($AO$88-CUR_BASE_FUEL*AA88)*AC91,0) -> 10649 | AG91: =ROUND((AE91/AE$95)*100,1) -> 13.4 | AI91: =L41-AE91 -> 0 | AK91: =IF(AE91=0,0,ROUND((AI91/AE91)*100,1)) -> 0 | AO91: =AE91+AM91 -> 10649 | AQ91: =IF(AO91=0,0,ROUND((AI91/AO91)*100,1)) -> 0
T92: =A42 -> 22 | V92: =C42 -> PROFIT SHARING MECHANISM (PSM) | AC92: =RS_PSM -> -0.000163 | AE92: =ROUND($AA$88*AC92,0) -> -73 | AG92: =ROUND((AE92/AE$95)*100,1) -> -0.1 | AI92: =L42-AE92 -> 0 | AK92: =ROUND((AI92/AE92)*100,1) -> 0 | AO92: =AE92+AM92 -> -73 | AQ92: =ROUND((AI92/AO92)*100,1) -> 0
T93: =A43 -> 23 | V93: TOTAL RIDERS NOT INCLUDED IN RATES ABOVE | AE93: =SUM(AE91:AE92) -> 10576 | AG93: =ROUND((AE93/AE$95)*100,1) -> 13.3 | AI93: =SUM(AI91:AI92) -> 0 | AK93: =ROUND((AI93/AE93)*100,1) -> 0 | AO93: =SUM(AO91:AO92) -> 10576 | AQ93: =ROUND((AI93/AO93)*100,1) -> 0
T95: =A45 -> 24 | V95: TOTAL RATE NSU INCLUDING RIDERS | Y95: =Y88 -> 9196 | AA95: =AA88 -> 449416 | AE95: =AE88+AE93 -> 79625 | AG95: 100 | AI95: =AI88+AI93 -> 8450 | AK95: =ROUND((AI95/AE95)*100,1) -> 10.6 | AM95: =ROUND(AA95*CUR_FAC,0) -> 306 | AO95: =AO88+AO93 -> 79931 | AQ95: =ROUND((AI95/AO95)*100,1) -> 10.6
V97: (1) THESE FIGURES REPRESENT NUMBER OF UNITS BILLED.
V98: ="(2) REFLECTS FUEL COMPONENT OF "&TEXT(CUR_FAC,"$0.000000;($0.000000)")&" PER KWH." -> (2) REFLECTS FUEL COMPONENT OF $0.000681 PER KWH.
V99: ="(3) REFLECTS FUEL COST RECOVERY INCLUDED IN BASE RATES OF "&TEXT(CUR_BASE_FUEL,"$0.000000;($0.000000)")&" PER KWH." -> (3) REFLECTS FUEL COST RECOVERY INCLUDED IN BASE RATES OF $0.023837 PER KWH.

Sheet Rate SC
A1: =NAME -> DUKE ENERGY KENTUCKY, INC.
A2: =CASE_NO -> CASE NO. 2019-00271
A3: =TITLE -> ANNUALIZED TEST YEAR REVENUES AT PROPOSED VS. MOST CURRENT RATES
A4: =DATE -> FOR THE TWELVE MONTHS ENDED March 31, 2021
A5: =SERVICE -> (ELECTRIC SERVICE)
A6: =DATA_PERIOD -> DATA: ____ BASE PERIOD __X__FORECASTED PERIOD | R6: SCHEDULE M-2.3
A7: =TYPE -> TYPE OF FILING: _X_ ORIGINAL ___UPDATED ___ REVISED | R7: ="PAGE 19 OF "&TEXT(Page_Num_2.3,"00") -> PAGE 19 OF 23
A8: WORK PAPER REFERENCE NO(S).: | R8: WITNESS:
A9: =TIME -> 12 Months Projected with Riders | R9: =WIT -> J. L. Kern
A10: PROPOSED ANNUALIZED
L12: PROPOSED | N12: % OF REV TO | R12: PROPOSED
L13: REVENUE LESS | N13: TOTAL LESS | R13: TOTAL
A14: LINE | C14: RATE | D14: CLASS / | F14: CUSTOMER | J14: PROPOSED | L14: FAC | N14: FAC | P14: FAC | R14: REVENUE
A15: NO. | C15: CODE | D15: DESCRIPTION | F15: BILLS(1) | H15: SALES | J15: RATES(3) | L15: REVENUE | N15: REVENUE | P15: REVENUE (2) | R15: (F + H)
C16: (A) | D16: (B) | F16: (C) | H16: (D) | J16: (E) | L16: (F) | N16: (G) | P16: (H) | R16: (I)
H17: (KWH) | J17: ($/UNIT)/ | L17: ($) | N17: (%) | P17: ($) | R17: ($) | Y17: Lighting rate on
A18: 1 | C18: SC | D18: STREET LIGHTING - | J18: ($/KWH) | Y18: Tariff Sheet
A19: 2 | C19: CUST OWNED/LTD MAINT
A20: 3 | C20: STANDARD UNIT-COBRAHEAD
A21: 4 | C21: MERCURY VAPOR --
A22: 5 | C22: 7,000 LUMEN | F22: 0 | H22: 0 | J22: =ROUND(AC95+(AC95*LT_COS_RATE),2) -> 4.8 | L22: =ROUND(F22*J22,0) -> 0 | N22: =ROUND((L22/L$72)*100,1) -> 0 | P22: =ROUND((P$72/H$72)*H22,0) -> 0 | R22: =P22+L22 -> 0 | Y22: =J22-AY95 -> 3.2
A23: 6 | C23: 10,000 LUMEN | F23: 0 | H23: 0 | J23: =ROUND(AC96+(AC96*LT_COS_RATE),2) -> 6.12 | L23: =ROUND(F23*J23,0) -> 0 | N23: =ROUND((L23/L$72)*100,1) -> 0 | P23: =ROUND((P$72/H$72)*H23,0) -> 0 | R23: =P23+L23 -> 0 | Y23: =J23-AY96 -> 3.85
A24: 7 | C24: 21,000 LUMEN | F24: 0 | H24: 0 | J24: =ROUND(AC97+(AC97*LT_COS_RATE),2) -> 8.49 | L24: =ROUND(F24*J24,0) -> 0 | N24: =ROUND((L24/L$72)*100,1) -> 0 | P24: =ROUND((P$72/H$72)*H24,0) -> 0 | R24: =P24+L24 -> 0 | Y24: =J24-AY97 -> 4.94
A26: 8 | C26: METAL HALIDE --
A27: 9 | C27: 14,000 LUMEN | F27: 0 | H27: 0 | J27: =ROUND(AC100+(AC100*LT_COS_RATE),2) -> 4.8 | L27: =ROUND(F27*J27,0) -> 0 | N27: =ROUND((L27/L$72)*100,1) -> 0 | P27: =ROUND((P$72/H$72)*H27,0) -> 0 | R27: =P27+L27 -> 0 | Y27: =J27-AY100 -> 3.2
A28: 10 | C28: 20,500 LUMEN | F28: 0 | H28: 0 | J28: =ROUND(AC101+(AC101*LT_COS_RATE),2) -> 6.12 | L28: =ROUND(F28*J28,0) -> 0 | N28: =ROUND((L28/L$72)*100,1) -> 0 | P28: =ROUND((P$72/H$72)*H28,0) -> 0 | R28: =P28+L28 -> 0 | Y28: =J28-AY101 -> 3.85
A29: 11 | C29: 36,000 LUMEN | F29: 0 | H29: 0 | J29: =ROUND(AC102+(AC102*LT_COS_RATE),2) -> 8.49 | L29: =ROUND(F29*J29,0) -> 0 | N29: =ROUND((L29/L$72)*100,1) -> 0 | P29: =ROUND((P$72/H$72)*H29,0) -> 0 | R29: =P29+L29 -> 0 | Y29: =J29-AY102 -> 4.94
A31: 12 | C31: SODIUM VAPOR--
A32: 13 | C32: 9,500 LUMEN | F32: 0 | H32: =ROUND(F32*487/12,0) -> 0 | J32: =ROUND(AC105+(AC105*LT_COS_RATE),2) -> 5.78 | L32: =ROUND(F32*J32,0) -> 0 | N32: =ROUND((L32/L$72)*100,1) -> 0 | P32: =ROUND((P$72/H$72)*H32,0) -> 0 | R32: =P32+L32 -> 0 | Y32: =J32-AY105 -> 4.81
A33: 14 | C33: 16,000 LUMEN | F33: 0 | H33: 0 | J33: =ROUND(AC106+(AC106*LT_COS_RATE),2) -> 6.44 | L33: =ROUND(F33*J33,0) -> 0 | N33: =ROUND((L33/L$72)*100,1) -> 0 | P33: =ROUND((P$72/H$72)*H33,0) -> 0 | R33: =P33+L33 -> 0 | Y33: =J33-AY106 -> 5.03
A34: 15 | C34: 22,000 LUMEN | F34: 0 | H34: 0 | J34: =ROUND(AC107+(AC107*LT_COS_RATE),2) -> 7.08 | L34: =ROUND(F34*J34,0) -> 0 | N34: =ROUND((L34/L$72)*100,1) -> 0 | P34: =ROUND((P$72/H$72)*H34,0) -> 0 | R34: =P34+L34 -> 0 | Y34: =J34-AY107 -> 5.2
A35: 16 | C35: 27,500 LUMEN | F35: 0 | H35: 0 | J35: =ROUND(AC108+(AC108*LT_COS_RATE),2) -> 7.08 | L35: =ROUND(F35*J35,0) -> 0 | N35: =ROUND((L35/L$72)*100,1) -> 0 | P35: =ROUND((P$72/H$72)*H35,0) -> 0 | R35: =P35+L35 -> 0 | Y35: =J35-AY108 -> 5.2
A36: 17 | C36: 50,000 LUMEN | F36: 0 | H36: 0 | J36: =ROUND(AC109+(AC109*LT_COS_RATE),2) -> 9.59 | L36: =ROUND(F36*J36,0) -> 0 | N36: =ROUND((L36/L$72)*100,1) -> 0 | P36: =ROUND((P$72/H$72)*H36,0) -> 0 | R36: =P36+L36 -> 0 | Y36: =J36-AY109 -> 5.7
A38: 18 | C38: DECORATIVE UNITS:
A39: 19 | C39: 7,000 LUMEN MERCURY VAPOR--
A40: 20 | C40: HOLOPHANE | F40: 0 | H40: 0 | J40: =ROUND(AC113+(AC113*LT_COS_RATE),2) -> 6.11 | L40: =ROUND(F40*J40,0) -> 0 | N40: =ROUND((L40/L$72)*100,1) -> 0 | P40: =ROUND((P$72/H$72)*H40,0) -> 0 | R40: =P40+L40 -> 0 | Y40: =J40-AY113 -> 4.37
A41: 21 | C41: TOWN & COUNTRY | F41: 0 | H41: 0 | J41: =ROUND(AC114+(AC114*LT_COS_RATE),2) -> 6.05 | L41: =ROUND(F41*J41,0) -> 0 | N41: =ROUND((L41/L$72)*100,1) -> 0 | P41: =ROUND((P$72/H$72)*H41,0) -> 0 | R41: =P41+L41 -> 0 | Y41: =J41-AY114 -> 4.36
A42: 22 | C42: GAS REPLICA | F42: 0 | H42: 0 | J42: =ROUND(AC115+(AC115*LT_COS_RATE),2) -> 6.11 | L42: =ROUND(F42*J42,0) -> 0 | N42: =ROUND((L42/L$72)*100,1) -> 0 | P42: =ROUND((P$72/H$72)*H42,0) -> 0 | R42: =P42+L42 -> 0 | Y42: =J42-AY115 -> 4.37
A43: 23 | C43: ASPEN | F43: 0 | H43: 0 | J43: =ROUND(AC116+(AC116*LT_COS_RATE),2) -> 6.11 | L43: =ROUND(F43*J43,0) -> 0 | N43: =ROUND((L43/L$72)*100,1) -> 0 | P43: =ROUND((P$72/H$72)*H43,0) -> 0 | R43: =P43+L43 -> 0 | Y43: =J43-AY116 -> 4.37
A45: 24 | C45: 14,000 LUMEN METAL HALIDE-- | AX45: current | AY45: proposed
A46: 25 | C46: TRADITIONAIRE | F46: 0 | H46: 0 | J46: =ROUND(AC119+(AC119*LT_COS_RATE),2) -> 6.05 | L46: =ROUND(F46*J46,0) -> 0 | N46: =ROUND((L46/L$72)*100,1) -> 0 | P46: =ROUND((P$72/H$72)*H46,0) -> 0 | R46: =P46+L46 -> 0 | Y46: =J46-AY119 -> 4.36 | AW46: annual kwh | AX46: base fuel | AY46: base fuel
A47: 26 | C47: GRANVILLE ACORN | F47: 0 | H47: 0 | J47: =ROUND(AC120+(AC120*LT_COS_RATE),2) -> 6.11 | L47: =ROUND(F47*J47,0) -> 0 | N47: =ROUND((L47/L$72)*100,1) -> 0 | P47: =ROUND((P$72/H$72)*H47,0) -> 0 | R47: =P47+L47 -> 0 | Y47: =J47-AY120 -> 4.37
A48: 27 | C48: GAS REPLICA | F48: 0 | H48: 0 | J48: =ROUND(AC121+(AC121*LT_COS_RATE),2) -> 6.11 | L48: =ROUND(F48*J48,0) -> 0 | N48: =ROUND((L48/L$72)*100,1) -> 0 | P48: =ROUND((P$72/H$72)*H48,0) -> 0 | R48: =P48+L48 -> 0 | Y48: =J48-AY121 -> 4.37
A50: 28 | C50: 9,500 LUMEN SODIUM VAPOR--
A51: 29 | C51: TOWN & COUNTRY | F51: 0 | H51: 0 | J51: =ROUND(AC124+(AC124*LT_COS_RATE),2) -> 5.69 | L51: =ROUND(F51*J51,0) -> 0 | N51: =ROUND((L51/L$72)*100,1) -> 0 | P51: =ROUND((P$72/H$72)*H51,0) -> 0 | R51: =P51+L51 -> 0 | Y51: =J51-AY124 -> 4.72
A52: 30 | C52: TRADITIONAIRE | F52: 0 | H52: 0 | J52: 5.69 | L52: 0 | N52: 0 | P52: 0 | R52: 0 | Y52: 4.72
A53: 31 | C53: GRANVILLE ACORN | F53: 0 | H53: 0 | J53: 5.94 | L53: 0 | N53: 0 | P53: 0 | R53: 0 | Y53: 4.88 | AW53: =487 -> 487 | AX53: =ROUND((AW53/12)*CUR_BASE_FUEL,2) -> 0.97 | AY53: =ROUND((AW53/12)*PRO_BASE_FUEL,2) -> 0.97
A54: 32 | C54: RECTILINEAR | F54: 0 | H54: 0 | J54: 5.69 | L54: 0 | N54: 0 | P54: 0 | R54: 0 | Y54: 4.72
A55: 33 | C55: ASPEN | F55: 0 | H55: 0 | J55: 5.94 | L55: 0 | N55: 0 | P55: 0 | R55: 0 | Y55: 4.88
A56: 34 | C56: HOLOPHANE | F56: 0 | H56: 0 | J56: 5.94 | L56: 0 | N56: 0 | P56: 0 | R56: 0 | Y56: 4.88
A57: 35 | C57: GAS REPLICA | F57: 0 | H57: 0 | J57: 5.94 | L57: 0 | N57: 0 | P57: 0 | R57: 0 | Y57: 4.88 | AX57: =CUR_BASE_FUEL -> 0.023837 | AY57: =PRO_BASE_FUEL -> 0.023837
A59: 36 | C59: SODIUM VAPOR --
A60: 37 | C60: 22,000 LUMEN (RECTILINEAR) | F60: 0 | H60: 0 | J60: =ROUND(AC133+(AC133*LT_COS_RATE),2) -> 7.5 | L60: =ROUND(F60*J60,0) -> 0 | N60: =ROUND((L60/L$72)*100,1) -> 0 | P60: =ROUND((P$72/H$72)*H60,0) -> 0 | R60: =P60+L60 -> 0 | Y60: =J60-AY133 -> 5.47
A61: 38 | C61: 50,000 LUMEN (RECTILINEAR) | F61: 0 | H61: 0 | J61: =ROUND(AC134+(AC134*LT_COS_RATE),2) -> 9.92 | L61: =ROUND(F61*J61,0) -> 0 | N61: =ROUND((L61/L$72)*100,1) -> 0 | P61: =ROUND((P$72/H$72)*H61,0) -> 0 | R61: =P61+L61 -> 0 | Y61: =J61-AY134 -> 6.03
A63: 39 | C63: CUST OWNED/CUST MAINT
A64: 40 | C64: ENERGY ONLY | F64: 2065 | H64: =8133*12 -> 97596 | J64: =ROUND(AC137+(AC137*LT_COS_RATE),6) -> 0.043003 | L64: =ROUND((H64*J64),0) -> 4197 | N64: =ROUND((L64/L$72)*100,1) -> 94.3 | P64: =ROUND((P$72/H$72)*H64,0) -> 66 | R64: =P64+L64 -> 4263 | Y64: =J64-PRO_BASE_FUEL -> 0.019166
A65: 41 | C65: TOTAL RATE SC EXCLUDING RIDERS | F65: =SUM(F22:F64) -> 2065 | H65: =SUM(H22:H64) -> 97596 | L65: =SUM(L22:L64) -> 4197 | N65: =ROUND((L65/L$72)*100,1) -> 94.3 | P65: =SUM(P22:P64) -> 66 | R65: =SUM(R22:R64) -> 4263
A67: 42 | C67: RIDERS NOT INCLUDED IN RATES ABOVE ($/KWH):
A68: 43 | C68: =ESM_Name -> ENVIRONMENTAL SURCHARGE MECHANISM RIDER (ESM) | L68: =AE141 -> 268 | N68: =ROUND((L68/L$72)*100,1) -> 6 | R68: =P68+L68 -> 268
A69: 44 | C69: =PSM_Name -> PROFIT SHARING MECHANISM (PSM) | J69: =PRO_PSM -> -0.000163 | L69: =ROUND($H$65*J69,0) -> -16 | N69: =ROUND((L69/L$72)*100,1) -> -0.4 | R69: =P69+L69 -> -16
A70: 45 | C70: TOTAL RIDERS NOT INCLUDED IN RATES ABOVE | L70: =SUM(L68:L69) -> 252 | N70: =ROUND((L70/L$72)*100,1) -> 5.7 | R70: =SUM(R68:R69) -> 252
A72: 46 | C72: TOTAL RATE SC INCLUDING RIDERS | F72: =F65 -> 2065 | H72: =H65 -> 97596 | L72: =L70+L65 -> 4449 | N72: 100 | P72: =ROUND(H72*CUR_FAC,0) -> 66 | R72: =R70+R65 -> 4515
C74: (1) THESE FIGURES REPRESENT NUMBER OF UNITS BILLED. | T74: =NAME -> DUKE ENERGY KENTUCKY, INC.
C75: ="(2) REFLECTS FUEL COMPONENT OF "&TEXT(PRO_FAC,"$0.000000;($0.000000)")&" PER KWH." -> (2) REFLECTS FUEL COMPONENT OF $0.000681 PER KWH. | T75: =CASE_NO -> CASE NO. 2019-00271
C76: ="(3) REFLECTS FUEL COST RECOVERY INCLUDED IN BASE RATES OF "&TEXT(PRO_BASE_FUEL,"$0.000000;($0.000000)")&" PER KWH." -> (3) REFLECTS FUEL COST RECOVERY INCLUDED IN BASE RATES OF $0.023837 PER KWH. | T76: =TITLE -> ANNUALIZED TEST YEAR REVENUES AT PROPOSED VS. MOST CURRENT RATES
T77: =DATE -> FOR THE TWELVE MONTHS ENDED March 31, 2021
T78: =SERVICE -> (ELECTRIC SERVICE)
T79: =DATA_PERIOD -> DATA: ____ BASE PERIOD __X__FORECASTED PERIOD | AO79: SCHEDULE M-2.2
T80: =TYPE -> TYPE OF FILING: _X_ ORIGINAL ___UPDATED ___ REVISED | AO80: ="PAGE 19 OF "&TEXT(Page_Num_2.2,"00") -> PAGE 19 OF 22
T81: WORK PAPER REFERENCE NO(S).: | AO81: WITNESS:
T82: =TIME -> 12 Months Projected with Riders | AO82: =WIT -> J. L. Kern
T83: CURRENT ANNUALIZED
AE85: CURRENT | AG85: % OF REV TO | AI85: REVENUE | AK85: % INCR IN | AO85: CURRENT | AQ85: TOTAL
AC86: MOST | AE86: REVENUE LESS | AG86: TOTAL LESS | AI86: INCR LESS | AK86: REV LESS | AO86: TOTAL | AQ86: REVENUE
T87: LINE | V87: RATE | W87: CLASS / | Y87: CUSTOMER | AC87: CURRENT | AE87: FAC | AG87: FAC | AI87: FAC REV | AK87: FAC REV | AM87: FAC | AO87: REVENUE | AQ87: % INCREASE
T88: NO. | V88: CODE | W88: DESCRIPTION | Y88: BILLS(1) | AA88: SALES | AC88: RATES(3) | AE88: REVENUE | AG88: REVENUE | AI88: (F - K) | AK88: (M / K) | AM88: REVENUE (2) | AO88: (K + H) | AQ88: (M / K1)
V89: (A) | W89: (B) | Y89: (C) | AA89: (D) | AC89: (J) | AE89: (K) | AG89: (L) | AI89: (M) | AK89: (N) | AM89: (H) | AO89: (K1) | AQ89: (O)
AA90: (KWH) | AC90: ($/UNIT) | AE90: ($) | AG90: (%) | AI90: ($) | AK90: (%) | AM90: ($) | AO90: ($) | AQ90: (%)
T91: 1 | V91: SC | W91: STREET LIGHTING - | AC91: ($/KWH)
T92: 2 | V92: CUST OWNED/LTD MAINT | AU92: Tariff Sheet
T93: 3 | V93: STANDARD UNIT-COBRAHEAD | AU93: less Base Fuel | AW93: KWH | AX93: CURRENT BASE | AY93: PROPOSED
T94: 4 | V94: MERCURY VAPOR -- | AW94: ANNUAL | AX94: FUEL | AY94: BASEFUEL
T95: 5 | V95: 7,000 LUMEN | Y95: =F22 -> 0 | AA95: =H22 -> 0 | AC95: 4.28 | AE95: =ROUND(Y95*AC95,0) -> 0 | AG95: =ROUND((AE95/AE$145)*100,1) -> 0 | AI95: =L22-AE95 -> 0 | AK95: 0 | AM95: =ROUND((AM$145/AA$145)*AA95,0) -> 0 | AO95: =AM95+AE95 -> 0 | AQ95: 0 | AU95: =AC95-AX95 -> 2.68 | AW95: 803 | AX95: =ROUND((AW95/12)*CUR_BASE_FUEL,2) -> 1.6 | AY95: =ROUND((AW95/12)*PRO_BASE_FUEL,2) -> 1.6
T96: 6 | V96: 10,000 LUMEN | Y96: =F23 -> 0 | AA96: =H23 -> 0 | AC96: 5.45 | AE96: =ROUND(Y96*AC96,0) -> 0 | AG96: =ROUND((AE96/AE$145)*100,1) -> 0 | AI96: =L23-AE96 -> 0 | AK96: 0 | AM96: =ROUND((AM$145/AA$145)*AA96,0) -> 0 | AO96: =AM96+AE96 -> 0 | AQ96: 0 | AU96: =AC96-AX96 -> 3.18 | AW96: 1144 | AX96: =ROUND((AW96/12)*CUR_BASE_FUEL,2) -> 2.27 | AY96: =ROUND((AW96/12)*PRO_BASE_FUEL,2) -> 2.27
T97: 7 | V97: 21,000 LUMEN | Y97: =F24 -> 0 | AA97: =H24 -> 0 | AC97: 7.56 | AE97: =ROUND(Y97*AC97,0) -> 0 | AG97: =ROUND((AE97/AE$145)*100,1) -> 0 | AI97: =L24-AE97 -> 0 | AK97: 0 | AM97: =ROUND((AM$145/AA$145)*AA97,0) -> 0 | AO97: =AM97+AE97 -> 0 | AQ97: 0 | AU97: =AC97-AX97 -> 4.01 | AW97: 1789 | AX97: =ROUND((AW97/12)*CUR_BASE_FUEL,2) -> 3.55 | AY97: =ROUND((AW97/12)*PRO_BASE_FUEL,2) -> 3.55
T99: 8 | V99: METAL HALIDE --
T100: 9 | V100: 14,000 LUMEN | Y100: =F27 -> 0 | AA100: =H27 -> 0 | AC100: 4.28 | AE100: =ROUND(Y100*AC100,0) -> 0 | AG100: =ROUND((AE100/AE$145)*100,1) -> 0 | AI100: =L27-AE100 -> 0 | AK100: 0 | AM100: =ROUND((AM$145/AA$145)*AA100,0) -> 0 | AO100: =AM100+AE100 -> 0 | AQ100: 0 | AU100: =AC100-AX100 -> 2.68 | AW100: 803 | AX100: =ROUND((AW100/12)*CUR_BASE_FUEL,2) -> 1.6 | AY100: =ROUND((AW100/12)*PRO_BASE_FUEL,2) -> 1.6
T101: 10 | V101: 20,500 LUMEN | Y101: =F28 -> 0 | AA101: =H28 -> 0 | AC101: 5.45 | AE101: =ROUND(Y101*AC101,0) -> 0 | AG101: =ROUND((AE101/AE$145)*100,1) -> 0 | AI101: =L28-AE101 -> 0 | AK101: 0 | AM101: =ROUND((AM$145/AA$145)*AA101,0) -> 0 | AO101: =AM101+AE101 -> 0 | AQ101: 0 | AU101: =AC101-AX101 -> 3.18 | AW101: 1144 | AX101: =ROUND((AW101/12)*CUR_BASE_FUEL,2) -> 2.27 | AY101: =ROUND((AW101/12)*PRO_BASE_FUEL,2) -> 2.27
T102: 11 | V102: 36,000 LUMEN | Y102: =F29 -> 0 | AA102: =H29 -> 0 | AC102: 7.56 | AE102: =ROUND(Y102*AC102,0) -> 0 | AG102: =ROUND((AE102/AE$145)*100,1) -> 0 | AI102: =L29-AE102 -> 0 | AK102: 0 | AM102: =ROUND((AM$145/AA$145)*AA102,0) -> 0 | AO102: =AM102+AE102 -> 0 | AQ102: 0 | AU102: =AC102-AX102 -> 4.01 | AW102: 1789 | AX102: =ROUND((AW102/12)*CUR_BASE_FUEL,2) -> 3.55 | AY102: =ROUND((AW102/12)*PRO_BASE_FUEL,2) -> 3.55
T104: 12 | V104: SODIUM VAPOR--
T105: 13 | V105: 9,500 LUMEN | Y105: =F32 -> 0 | AA105: =H32 -> 0 | AC105: 5.15 | AE105: =ROUND(Y105*AC105,0) -> 0 | AG105: =ROUND((AE105/AE$145)*100,1) -> 0 | AI105: =L32-AE105 -> 0 | AK105: 0 | AM105: =ROUND((AM$145/AA$145)*AA105,0) -> 0 | AO105: =AM105+AE105 -> 0 | AQ105: 0 | AU105: =AC105-AX105 -> 4.18 | AW105: =487 -> 487 | AX105: =ROUND((AW105/12)*CUR_BASE_FUEL,2) -> 0.97 | AY105: =ROUND((AW105/12)*PRO_BASE_FUEL,2) -> 0.97
T106: 14 | V106: 16,000 LUMEN | Y106: =F33 -> 0 | AA106: =H33 -> 0 | AC106: 5.74 | AE106: =ROUND(Y106*AC106,0) -> 0 | AG106: =ROUND((AE106/AE$145)*100,1) -> 0 | AI106: =L33-AE106 -> 0 | AK106: 0 | AM106: =ROUND((AM$145/AA$145)*AA106,0) -> 0 | AO106: =AM106+AE106 -> 0 | AQ106: 0 | AU106: =AC106-AX106 -> 4.33 | AW106: 711 | AX106: =ROUND((AW106/12)*CUR_BASE_FUEL,2) -> 1.41 | AY106: =ROUND((AW106/12)*PRO_BASE_FUEL,2) -> 1.41
T107: 15 | V107: 22,000 LUMEN | Y107: =F34 -> 0 | AA107: =H34 -> 0 | AC107: 6.31 | AE107: =ROUND(Y107*AC107,0) -> 0 | AG107: =ROUND((AE107/AE$145)*100,1) -> 0 | AI107: =L34-AE107 -> 0 | AK107: 0 | AM107: =ROUND((AM$145/AA$145)*AA107,0) -> 0 | AO107: =AM107+AE107 -> 0 | AQ107: 0 | AU107: =AC107-AX107 -> 4.43 | AW107: 948 | AX107: =ROUND((AW107/12)*CUR_BASE_FUEL,2) -> 1.88 | AY107: =ROUND((AW107/12)*PRO_BASE_FUEL,2) -> 1.88
T108: 16 | V108: 27,500 LUMEN | Y108: =F35 -> 0 | AA108: =H35 -> 0 | AC108: 6.31 | AE108: =ROUND(Y108*AC108,0) -> 0 | AG108: =ROUND((AE108/AE$145)*100,1) -> 0 | AI108: =L35-AE108 -> 0 | AK108: 0 | AM108: =ROUND((AM$145/AA$145)*AA108,0) -> 0 | AO108: =AM108+AE108 -> 0 | AQ108: 0 | AU108: =AC108-AX108 -> 4.43 | AW108: 948 | AX108: =ROUND((AW108/12)*CUR_BASE_FUEL,2) -> 1.88 | AY108: =ROUND((AW108/12)*PRO_BASE_FUEL,2) -> 1.88
T109: 17 | V109: 50,000 LUMEN | Y109: =F36 -> 0 | AA109: =H36 -> 0 | AC109: 8.54 | AE109: =ROUND(Y109*AC109,0) -> 0 | AG109: =ROUND((AE109/AE$145)*100,1) -> 0 | AI109: =L36-AE109 -> 0 | AK109: 0 | AM109: =ROUND((AM$145/AA$145)*AA109,0) -> 0 | AO109: =AM109+AE109 -> 0 | AQ109: 0 | AU109: =AC109-AX109 -> 4.65 | AW109: 1959 | AX109: =ROUND((AW109/12)*CUR_BASE_FUEL,2) -> 3.89 | AY109: =ROUND((AW109/12)*PRO_BASE_FUEL,2) -> 3.89
T111: 18 | V111: DECORATIVE UNITS:
T112: 19 | V112: 7,000 LUMEN MERCURY VAPOR--
T113: 20 | V113: HOLOPHANE | Y113: =F40 -> 0 | AA113: =H40 -> 0 | AC113: 5.44 | AE113: =ROUND(Y113*AC113,0) -> 0 | AG113: =ROUND((AE113/AE$145)*100,1) -> 0 | AI113: =L40-AE113 -> 0 | AK113: 0 | AM113: =ROUND((AM$145/AA$145)*AA113,0) -> 0 | AO113: =AM113+AE113 -> 0 | AQ113: 0 | AU113: =AC113-AX113 -> 3.7 | AW113: 874 | AX113: =ROUND((AW113/12)*CUR_BASE_FUEL,2) -> 1.74 | AY113: =ROUND((AW113/12)*PRO_BASE_FUEL,2) -> 1.74
T114: 21 | V114: TOWN & COUNTRY | Y114: =F41 -> 0 | AA114: =H41 -> 0 | AC114: 5.39 | AE114: =ROUND(Y114*AC114,0) -> 0 | AG114: =ROUND((AE114/AE$145)*100,1) -> 0 | AI114: =L41-AE114 -> 0 | AK114: 0 | AM114: =ROUND((AM$145/AA$145)*AA114,0) -> 0 | AO114: =AM114+AE114 -> 0 | AQ114: 0 | AU114: =AC114-AX114 -> 3.7 | AW114: 853 | AX114: =ROUND((AW114/12)*CUR_BASE_FUEL,2) -> 1.69 | AY114: =ROUND((AW114/12)*PRO_BASE_FUEL,2) -> 1.69
T115: 22 | V115: GAS REPLICA | Y115: =F42 -> 0 | AA115: =H42 -> 0 | AC115: 5.44 | AE115: =ROUND(Y115*AC115,0) -> 0 | AG115: =ROUND((AE115/AE$145)*100,1) -> 0 | AI115: =L42-AE115 -> 0 | AK115: 0 | AM115: =ROUND((AM$145/AA$145)*AA115,0) -> 0 | AO115: =AM115+AE115 -> 0 | AQ115: 0 | AU115: =AC115-AX115 -> 3.7 | AW115: 874 | AX115: =ROUND((AW115/12)*CUR_BASE_FUEL,2) -> 1.74 | AY115: =ROUND((AW115/12)*PRO_BASE_FUEL,2) -> 1.74
T116: 23 | V116: ASPEN | Y116: =F43 -> 0 | AA116: =H43 -> 0 | AC116: 5.44 | AE116: =ROUND(Y116*AC116,0) -> 0 | AG116: =ROUND((AE116/AE$145)*100,1) -> 0 | AI116: =L43-AE116 -> 0 | AK116: 0 | AM116: =ROUND((AM$145/AA$145)*AA116,0) -> 0 | AO116: =AM116+AE116 -> 0 | AQ116: 0 | AU116: =AC116-AX116 -> 3.7 | AW116: 874 | AX116: =ROUND((AW116/12)*CUR_BASE_FUEL,2) -> 1.74 | AY116: =ROUND((AW116/12)*PRO_BASE_FUEL,2) -> 1.74
T118: 24 | V118: 14,000 LUMEN METAL HALIDE--
T119: 25 | V119: TRADITIONAIRE | Y119: =F46 -> 0 | AA119: =H46 -> 0 | AC119: 5.39 | AE119: =ROUND(Y119*AC119,0) -> 0 | AG119: =ROUND((AE119/AE$145)*100,1) -> 0 | AI119: =L46-AE119 -> 0 | AK119: 0 | AM119: =ROUND((AM$145/AA$145)*AA119,0) -> 0 | AO119: =AM119+AE119 -> 0 | AQ119: 0 | AU119: =AC119-AX119 -> 3.7 | AW119: 853 | AX119: =ROUND((AW119/12)*CUR_BASE_FUEL,2) -> 1.69 | AY119: =ROUND((AW119/12)*PRO_BASE_FUEL,2) -> 1.69
T120: 26 | V120: GRANVILLE ACORN | Y120: =F47 -> 0 | AA120: =H47 -> 0 | AC120: 5.44 | AE120: =ROUND(Y120*AC120,0) -> 0 | AG120: =ROUND((AE120/AE$145)*100,1) -> 0 | AI120: =L47-AE120 -> 0 | AK120: 0 | AM120: =ROUND((AM$145/AA$145)*AA120,0) -> 0 | AO120: =AM120+AE120 -> 0 | AQ120: 0 | AU120: =AC120-AX120 -> 3.7 | AW120: 874 | AX120: =ROUND((AW120/12)*CUR_BASE_FUEL,2) -> 1.74 | AY120: =ROUND((AW120/12)*PRO_BASE_FUEL,2) -> 1.74
T121: 27 | V121: GAS REPLICA | Y121: =F48 -> 0 | AA121: =H48 -> 0 | AC121: 5.44 | AE121: =ROUND(Y121*AC121,0) -> 0 | AG121: =ROUND((AE121/AE$145)*100,1) -> 0 | AI121: =L48-AE121 -> 0 | AK121: 0 | AM121: =ROUND((AM$145/AA$145)*AA121,0) -> 0 | AO121: =AM121+AE121 -> 0 | AQ121: 0 | AU121: =AC121-AX121 -> 3.7 | AW121: 874 | AX121: =ROUND((AW121/12)*CUR_BASE_FUEL,2) -> 1.74 | AY121: =ROUND((AW121/12)*PRO_BASE_FUEL,2) -> 1.74
T123: 28 | V123: 9,500 LUMEN SODIUM VAPOR--
T124: 29 | V124: TOWN & COUNTRY | Y124: =F51 -> 0 | AA124: =H51 -> 0 | AC124: 5.07 | AE124: =ROUND(Y124*AC124,0) -> 0 | AG124: =ROUND((AE124/AE$145)*100,1) -> 0 | AI124: =L51-AE124 -> 0 | AK124: 0 | AM124: =ROUND((AM$145/AA$145)*AA124,0) -> 0 | AO124: =AM124+AE124 -> 0 | AQ124: 0 | AU124: =AC124-AX124 -> 4.1 | AW124: 487 | AX124: =ROUND((AW124/12)*CUR_BASE_FUEL,2) -> 0.97 | AY124: =ROUND((AW124/12)*PRO_BASE_FUEL,2) -> 0.97
T125: 30 | V125: TRADITIONAIRE | Y125: 0 | AA125: 0 | AC125: 5.07 | AE125: 0 | AG125: 0 | AI125: 0 | AK125: 0 | AM125: 0 | AO125: 0 | AQ125: 0 | AU125: 4.1 | AW125: 487 | AX125: 0.97 | AY125: 0.97
T126: 31 | V126: GRANVILLE ACORN | Y126: 0 | AA126: 0 | AC126: 5.29 | AE126: 0 | AG126: 0 | AI126: 0 | AK126: 0 | AM126: 0 | AO126: 0 | AQ126: 0 | AU126: 4.23 | AW126: 532 | AX126: 1.06 | AY126: 1.06
T127: 32 | V127: RECTILINEAR | Y127: 0 | AA127: 0 | AC127: 5.07 | AE127: 0 | AG127: 0 | AI127: 0 | AK127: 0 | AM127: 0 | AO127: 0 | AQ127: 0 | AU127: 4.1 | AW127: 487 | AX127: 0.97 | AY127: 0.97
T128: 33 | V128: ASPEN | Y128: 0 | AA128: 0 | AC128: 5.29 | AE128: 0 | AG128: 0 | AI128: 0 | AK128: 0 | AM128: 0 | AO128: 0 | AQ128: 0 | AU128: 4.23 | AW128: 532 | AX128: 1.06 | AY128: 1.06
T129: 34 | V129: HOLOPHANE | Y129: 0 | AA129: 0 | AC129: 5.29 | AE129: 0 | AG129: 0 | AI129: 0 | AK129: 0 | AM129: 0 | AO129: 0 | AQ129: 0 | AU129: 4.23 | AW129: 532 | AX129: 1.06 | AY129: 1.06
T130: 35 | V130: GAS REPLICA | Y130: 0 | AA130: 0 | AC130: 5.29 | AE130: 0 | AG130: 0 | AI130: 0 | AK130: 0 | AM130: 0 | AO130: 0 | AQ130: 0 | AU130: 4.23 | AW130: 532 | AX130: 1.06 | AY130: 1.06
T132: 36 | V132: SODIUM VAPOR --
T133: 37 | V133: 22,000 LUMEN (RECTILINEAR) | Y133: =F60 -> 0 | AA133: =H60 -> 0 | AC133: 6.68 | AE133: =ROUND(Y133*AC133,0) -> 0 | AG133: =ROUND((AE133/AE$145)*100,1) -> 0 | AI133: =L60-AE133 -> 0 | AK133: 0 | AM133: =ROUND((AM$145/AA$145)*AA133,0) -> 0 | AO133: =AM133+AE133 -> 0 | AQ133: 0 | AU133: =AC133-AX133 -> 4.65 | AW133: 1023 | AX133: =ROUND((AW133/12)*CUR_BASE_FUEL,2) -> 2.03 | AY133: =ROUND((AW133/12)*PRO_BASE_FUEL,2) -> 2.03
T134: 38 | V134: 50,000 LUMEN (RECTILINEAR) | Y134: =F61 -> 0 | AA134: =H61 -> 0 | AC134: 8.84 | AE134: =ROUND(Y134*AC134,0) -> 0 | AG134: =ROUND((AE134/AE$145)*100,1) -> 0 | AI134: =L61-AE134 -> 0 | AK134: 0 | AM134: =ROUND((AM$145/AA$145)*AA134,0) -> 0 | AO134: =AM134+AE134 -> 0 | AQ134: 0 | AU134: =AC134-AX134 -> 4.95 | AW134: 1959 | AX134: =ROUND((AW134/12)*CUR_BASE_FUEL,2) -> 3.89 | AY134: =ROUND((AW134/12)*PRO_BASE_FUEL,2) -> 3.89
T136: 39 | V136: CUST OWNED/CUST MAINT | AX136: =CUR_BASE_FUEL -> 0.023837 | AY136: =PRO_BASE_FUEL -> 0.023837
T137: 40 | V137: ENERGY ONLY | Y137: =F64 -> 2065 | AA137: =H64 -> 97596 | AC137: 0.038305 | AE137: =ROUND((AA137*AC137),0) -> 3738 | AG137: =ROUND((AE137/AE$145)*100,1) -> 93.7 | AI137: =L64-AE137 -> 459 | AK137: =ROUND((AI137/AE137)*100,1) -> 12.3 | AM137: =ROUND((AM$145/AA$145)*AA137,0) -> 66 | AO137: =AM137+AE137 -> 3804 | AQ137: =ROUND((AI137/AO137)*100,1) -> 12.1
T138: 41 | V138: TOTAL RATE SC EXCLUDING RIDERS | Y138: =SUM(Y95:Y137) -> 2065 | AA138: =SUM(AA95:AA137) -> 97596 | AE138: =SUM(AE95:AE137) -> 3738 | AG138: =ROUND((AE138/AE$145)*100,1) -> 93.7 | AI138: =SUM(AI95:AI137) -> 459 | AK138: =ROUND((AI138/AE138)*100,1) -> 12.3 | AM138: =SUM(AM95:AM137) -> 66 | AO138: =SUM(AO95:AO137) -> 3804 | AQ138: =ROUND((AI138/AO138)*100,1) -> 12.1
T140: =A67 -> 42 | V140: RIDERS NOT INCLUDED IN RATES ABOVE ($/KWH):
T141: =A68 -> 43 | V141: =C68 -> ENVIRONMENTAL SURCHARGE MECHANISM RIDER (ESM) | AC141: =CUR_ESM_NonRes -> 0.1816 | AE141: =ROUND(($AO$138-CUR_BASE_FUEL*AA138)*AC141,0) -> 268 | AG141: =ROUND((AE141/AE$145)*100,1) -> 6.7 | AI141: =L68-AE141 -> 0 | AK141: =IF(AE141=0,0,ROUND((AI141/AE141)*100,1)) -> 0 | AO141: =AM141+AE141 -> 268 | AQ141: =IF(AO141=0,0,ROUND((AI141/AO141)*100,1)) -> 0
T142: =A69 -> 44 | V142: =C69 -> PROFIT SHARING MECHANISM (PSM) | AC142: =RS_PSM -> -0.000163 | AE142: =ROUND($AA$138*AC142,0) -> -16 | AG142: =ROUND((AE142/AE$145)*100,1) -> -0.4 | AI142: =L69-AE142 -> 0 | AK142: =ROUND((AI142/AE142)*100,1) -> 0 | AO142: =AM142+AE142 -> -16 | AQ142: =ROUND((AI142/AO142)*100,1) -> 0
T143: =A70 -> 45 | V143: TOTAL RIDERS NOT INCLUDED IN RATES ABOVE | AE143: =SUM(AE141:AE142) -> 252 | AG143: =ROUND((AE143/AE$145)*100,1) -> 6.3 | AI143: =SUM(AI141:AI142) -> 0 | AK143: =ROUND((AI143/AE143)*100,1) -> 0 | AO143: =SUM(AO141:AO142) -> 252 | AQ143: =ROUND((AI143/AO143)*100,1) -> 0
T145: =A72 -> 46 | V145: TOTAL RATE SC INCLUDING RIDERS | Y145: =Y138 -> 2065 | AA145: =AA138 -> 97596 | AE145: =AE143+AE138 -> 3990 | AG145: 100 | AI145: =AI143+AI138 -> 459 | AK145: =ROUND((AI145/AE145)*100,1) -> 11.5 | AM145: =ROUND(AA145*CUR_FAC,0) -> 66 | AO145: =AO143+AO138 -> 4056 | AQ145: =ROUND((AI145/AO145)*100,1) -> 11.3
V147: (1) THESE FIGURES REPRESENT NUMBER OF UNITS BILLED.
V148: ="(2) REFLECTS FUEL COMPONENT OF "&TEXT(CUR_FAC,"$0.000000;($0.000000)")&" PER KWH." -> (2) REFLECTS FUEL COMPONENT OF $0.000681 PER KWH.
V149: ="(3) REFLECTS FUEL COST RECOVERY INCLUDED IN BASE RATES OF "&TEXT(CUR_BASE_FUEL,"$0.000000;($0.000000)")&" PER KWH." -> (3) REFLECTS FUEL COST RECOVERY INCLUDED IN BASE RATES OF $0.023837 PER KWH.

Sheet Rate SE
A1: =NAME -> DUKE ENERGY KENTUCKY, INC.
A2: =CASE_NO -> CASE NO. 2019-00271
A3: =TITLE -> ANNUALIZED TEST YEAR REVENUES AT PROPOSED VS. MOST CURRENT RATES
A4: =DATE -> FOR THE TWELVE MONTHS ENDED March 31, 2021
A5: =SERVICE -> (ELECTRIC SERVICE)
A6: =DATA_PERIOD -> DATA: ____ BASE PERIOD __X__FORECASTED PERIOD | R6: SCHEDULE M-2.3
A7: =TYPE -> TYPE OF FILING: _X_ ORIGINAL ___UPDATED ___ REVISED | R7: ="PAGE 20 OF "&TEXT(Page_Num_2.3,"00") -> PAGE 20 OF 23
A8: WORK PAPER REFERENCE NO(S).: | R8: WITNESS:
A9: =TIME -> 12 Months Projected with Riders | R9: =WIT -> J. L. Kern
A10: PROPOSED ANNUALIZED
L12: PROPOSED | N12: % OF REV TO | R12: PROPOSED
L13: REVENUE LESS | N13: TOTAL LESS | R13: TOTAL
A14: LINE | C14: RATE | D14: CLASS / | F14: CUSTOMER | J14: PROPOSED | L14: FAC | N14: FAC | P14: FAC | R14: REVENUE
A15: NO. | C15: CODE | D15: DESCRIPTION | F15: BILLS(1) | H15: SALES | J15: RATES(3) | L15: REVENUE | N15: REVENUE | P15: REVENUE (2) | R15: (F + H) | Y15: Lighting rate on
C16: (A) | D16: (B) | F16: (C) | H16: (D) | J16: (E) | L16: (F) | N16: (G) | P16: (H) | R16: (I) | Y16: Tariff Sheet | AA16: Lighting kWh on
H17: (KWH) | J17: ($/UNIT) | L17: ($) | N17: (%) | P17: ($) | R17: ($) | Y17: less Base Fuel | AA17: Tariff Sheet
A18: 1 | C18: SE | D18: STREET LIGHTING
A19: 2 | D19: OVERHEAD EQUIVALENT RATE
A21: 3 | C21: MERCURY VAPOR 7,000 LUMEN:
A22: 4 | C22: TOWN & COUNTRY | F22: 6900 | H22: =ROUND(F22*AA22/12,0) -> 490475 | J22: =ROUND(AC78+(AC78*LT_COS_RATE),2) -> 8.36 | L22: =ROUND(F22*J22,0) -> 57684 | N22: =ROUND((L22/L$52)*100,1) -> 23.1 | P22: =ROUND((P$52/H$52)*H22,0) -> 334 | R22: =P22+L22 -> 58018 | Y22: =J22-AY78 -> 6.67 | AA22: 853
A23: 5 | C23: HOLOPHANE | F23: =2292+36 -> 2328 | H23: =ROUND(F23*AA23/12,0) -> 169556 | J23: =ROUND(AC79+(AC79*LT_COS_RATE),2) -> 8.4 | L23: =ROUND(F23*J23,0) -> 19555 | N23: =ROUND((L23/L$52)*100,1) -> 7.8 | P23: =ROUND((P$52/H$52)*H23,0) -> 115 | R23: =P23+L23 -> 19670 | Y23: =J23-AY79 -> 6.66 | AA23: 874
A24: 6 | C24: GAS REPLICA | F24: =36+326+132+204 -> 698 | H24: =ROUND(F24*AA24/12,0) -> 50838 | J24: =ROUND(AC80+(AC80*LT_COS_RATE),2) -> 8.4 | L24: =ROUND(F24*J24,0) -> 5863 | N24: =ROUND((L24/L$52)*100,1) -> 2.3 | P24: =ROUND((P$52/H$52)*H24,0) -> 35 | R24: =P24+L24 -> 5898 | Y24: =J24-AY80 -> 6.66 | AA24: 874
A25: 7 | C25: ASPEN | F25: 132 | H25: =ROUND(F25*AA25/12,0) -> 9614 | J25: =ROUND(AC81+(AC81*LT_COS_RATE),2) -> 8.4 | L25: =ROUND(F25*J25,0) -> 1109 | N25: =ROUND((L25/L$52)*100,1) -> 0.4 | P25: =ROUND((P$52/H$52)*H25,0) -> 7 | R25: =P25+L25 -> 1116 | Y25: =J25-AY81 -> 6.66 | AA25: 874
A27: 8 | C27: METAL HALIDE 14,000 LUMEN:
A28: 9 | C28: TRADITIONAIRE | F28: =3084+72+48 -> 3204 | H28: =ROUND(F28*AA28/12,0) -> 227751 | J28: =ROUND(AC84+(AC84*LT_COS_RATE),2) -> 8.36 | L28: =ROUND(F28*J28,0) -> 26785 | N28: =ROUND((L28/L$52)*100,1) -> 10.7 | P28: =ROUND((P$52/H$52)*H28,0) -> 155 | R28: =P28+L28 -> 26940 | Y28: =J28-AY84 -> 6.67 | AA28: 853
A29: 10 | C29: GRANVILLE ACORN | F29: 0 | H29: =ROUND(F29*AA29/12,0) -> 0 | J29: =ROUND(AC85+(AC85*LT_COS_RATE),2) -> 8.4 | L29: =ROUND(F29*J29,0) -> 0 | N29: =ROUND((L29/L$52)*100,1) -> 0 | P29: =ROUND((P$52/H$52)*H29,0) -> 0 | R29: =P29+L29 -> 0 | Y29: =J29-AY85 -> 6.66 | AA29: 874
A30: 11 | C30: GAS REPLICA | F30: =260+264+36 -> 560 | H30: =ROUND(F30*AA30/12,0) -> 40787 | J30: =ROUND(AC86+(AC86*LT_COS_RATE),2) -> 8.4 | L30: =ROUND(F30*J30,0) -> 4704 | N30: =ROUND((L30/L$52)*100,1) -> 1.9 | P30: =ROUND((P$52/H$52)*H30,0) -> 28 | R30: =P30+L30 -> 4732 | Y30: =J30-AY86 -> 6.66 | AA30: 874
A32: 12 | C32: SODIUM VAPOR 9,500 LUMEN:
A33: 13 | C33: TOWN & COUNTRY | F33: =84+3127 -> 3211 | H33: =ROUND(F33*AA33/12,0) -> 130313 | J33: =ROUND(AC89+(AC89*LT_COS_RATE),2) -> 9.12 | L33: =ROUND(F33*J33,0) -> 29284 | N33: =ROUND((L33/L$52)*100,1) -> 11.7 | P33: =ROUND((P$52/H$52)*H33,0) -> 89 | R33: =P33+L33 -> 29373 | Y33: =J33-AY89 -> 8.15 | AA33: 487
A34: 15 | C34: HOLOPHANE | F34: 2480 | H34: 109947 | J34: 9.24 | L34: 22915 | N34: 9.2 | P34: 75 | R34: 22990 | Y34: 8.18 | AA34: 532
A35: 16 | C35: RECTILINEAR | F35: =468+122+384 -> 974 | H35: 39528 | J35: 9.12 | L35: 8883 | N35: 3.6 | P35: 27 | R35: 8910 | Y35: 8.15 | AA35: 487
A36: 17 | C36: GAS REPLICA | F36: =588+72+612 -> 1272 | H36: 56392 | J36: 9.23 | L36: 11741 | N36: 4.7 | P36: 38 | R36: 11779 | Y36: 8.17 | AA36: 532
A37: 19 | C37: ASPEN | F37: 2616 | H37: 115976 | J37: 9.23 | L37: 24146 | N37: 9.7 | P37: 79 | R37: 24225 | Y37: 8.17 | AA37: 532
A38: 14 | C38: TRADITIONAIRE | F38: 0 | H38: 0 | J38: 9.12 | L38: 0 | N38: 0 | P38: 0 | R38: 0 | Y38: 8.15 | AA38: 487
A39: 18 | C39: GRANVILLE ACORN | F39: =84+72 -> 156 | H39: 6916 | J39: 9.23 | L39: 1440 | N39: 0.6 | P39: 5 | R39: 1445 | Y39: 8.17 | AA39: 532
A41: 20 | C41: SODIUM VAPOR:
A42: 21 | C42: 22,000 LUMEN (RECTILINEAR) | F42: 481 | H42: =ROUND(F42*AA42/12,0) -> 41005 | J42: =ROUND(AC98+(AC98*LT_COS_RATE),2) -> 13.1 | L42: =ROUND(F42*J42,0) -> 6301 | N42: =ROUND((L42/L$52)*100,1) -> 2.5 | P42: =ROUND((P$52/H$52)*H42,0) -> 28 | R42: =P42+L42 -> 6329 | Y42: =J42-AY98 -> 11.07 | AA42: 1023
A43: 22 | C43: 50,000 LUMEN (RECTILINEAR) | F43: 24 | H43: =ROUND(F43*AA43/12,0) -> 3918 | J43: =ROUND(AC99+(AC99*LT_COS_RATE),2) -> 17.33 | L43: =ROUND(F43*J43,0) -> 416 | N43: =ROUND((L43/L$52)*100,1) -> 0.2 | P43: =ROUND((P$52/H$52)*H43,0) -> 3 | R43: =P43+L43 -> 419 | Y43: =J43-AY99 -> 13.44 | AA43: 1959
A44: 23 | C44: 50,000 LUMEN (SETBACK) | F44: 0 | H44: =ROUND(F44*AA44/12,0) -> 0 | J44: =ROUND(AC100+(AC100*LT_COS_RATE),2) -> 17.33 | L44: =ROUND(F44*J44,0) -> 0 | N44: =ROUND((L44/L$52)*100,1) -> 0 | P44: =ROUND((P$52/H$52)*H44,0) -> 0 | R44: =P44+L44 -> 0 | Y44: =J44-AY100 -> 13.44 | AA44: 1959
A45: 24 | C45: TOTAL RATE SE EXCLUDING RIDERS | F45: =SUM(F22:F44) -> 25036 | H45: =SUM(H22:H44) -> 1493016 | L45: =SUM(L22:L44) -> 220826 | N45: =ROUND((L45/L$52)*100,1) -> 88.3 | P45: =SUM(P22:P44) -> 1018 | R45: =SUM(R22:R44) -> 221844
A47: 25 | C47: RIDERS NOT INCLUDED IN RATES ABOVE ($/KWH):
A48: 26 | C48: =ESM_Name -> ENVIRONMENTAL SURCHARGE MECHANISM RIDER (ESM) | L48: =AE104 -> 29443 | N48: =ROUND((L48/L$52)*100,1) -> 11.8 | R48: =P48+L48 -> 29443
A49: 29 | C49: =PSM_Name -> PROFIT SHARING MECHANISM (PSM) | J49: =PRO_PSM -> -0.000163 | L49: =ROUND($H$45*J49,0) -> -243 | N49: =ROUND((L49/L$52)*100,1) -> -0.1 | R49: =P49+L49 -> -243
A50: 30 | C50: TOTAL RIDERS NOT INCLUDED IN RATES ABOVE | L50: =SUM(L48:L49) -> 29200 | N50: =ROUND((L50/L$52)*100,1) -> 11.7 | R50: =SUM(R48:R49) -> 29200
A52: 31 | C52: TOTAL RATE SE INCLUDING RIDERS | F52: =SUM(F22:F44) -> 25036 | H52: =SUM(H22:H44) -> 1493016 | L52: =L50+L45 -> 250026 | N52: 100 | P52: =ROUND(H52*CUR_FAC,0) -> 1017 | R52: =R50+R45 -> 251044
C54: (1) THESE FIGURES REPRESENT NUMBER OF UNITS BILLED.
C55: ="(2) REFLECTS FUEL COMPONENT OF "&TEXT(PRO_FAC,"$0.000000;($0.000000)")&" PER KWH." -> (2) REFLECTS FUEL COMPONENT OF $0.000681 PER KWH.
C56: ="(3) REFLECTS FUEL COST RECOVERY INCLUDED IN BASE RATES OF "&TEXT(PRO_BASE_FUEL,"$0.000000;($0.000000)")&" PER KWH." -> (3) REFLECTS FUEL COST RECOVERY INCLUDED IN BASE RATES OF $0.023837 PER KWH.
T57: =NAME -> DUKE ENERGY KENTUCKY, INC.
T58: =CASE_NO -> CASE NO. 2019-00271
T59: =TITLE -> ANNUALIZED TEST YEAR REVENUES AT PROPOSED VS. MOST CURRENT RATES
T60: =DATE -> FOR THE TWELVE MONTHS ENDED March 31, 2021
T61: =SERVICE -> (ELECTRIC SERVICE)
T62: =DATA_PERIOD -> DATA: ____ BASE PERIOD __X__FORECASTED PERIOD | AO62: SCHEDULE M-2.2
T63: =TYPE -> TYPE OF FILING: _X_ ORIGINAL ___UPDATED ___ REVISED | AO63: ="PAGE 20 OF "&TEXT(Page_Num_2.2,"00") -> PAGE 20 OF 22
T64: WORK PAPER REFERENCE NO(S).: | AO64: WITNESS:
T65: =TIME -> 12 Months Projected with Riders | AO65: =WIT -> J. L. Kern
T66: CURRENT ANNUALIZED
AE68: CURRENT | AG68: % OF REV TO | AI68: REVENUE | AK68: % INCR IN | AO68: CURRENT | AQ68: TOTAL
AC69: MOST | AE69: REVENUE LESS | AG69: TOTAL LESS | AI69: INCR LESS | AK69: REV LESS | AO69: TOTAL | AQ69: REVENUE
T70: LINE | V70: RATE | W70: CLASS / | Y70: CUSTOMER | AC70: CURRENT | AE70: FAC | AG70: FAC | AI70: FAC REV | AK70: FAC REV | AM70: FAC | AO70: REVENUE | AQ70: % INCREASE | AU70: Lighting rate on | AX70: current | AY70: proposed
T71: NO. | V71: CODE | W71: DESCRIPTION | Y71: BILLS(1) | AA71: SALES | AC71: RATES(3) | AE71: REVENUE | AG71: REVENUE | AI71: (F - K) | AK71: (M / K) | AM71: REVENUE (2) | AO71: (K + H) | AQ71: (M / K1) | AU71: Tariff Sheet | AW71: annual kwh | AX71: base fuel | AY71: base fuel
V72: (A) | W72: (B) | Y72: (C) | AA72: (D) | AC72: (J) | AE72: (K) | AG72: (L) | AI72: (M) | AK72: (N) | AM72: (H) | AO72: (K1) | AQ72: (O) | AU72: less Base Fuel | AX72: =CUR_BASE_FUEL -> 0.023837 | AY72: =PRO_BASE_FUEL -> 0.023837
AA73: (KWH) | AC73: ($/UNIT) | AE73: ($) | AG73: (%) | AI73: ($) | AK73: (%) | AM73: ($) | AO73: ($) | AQ73: (%)
T74: 1 | V74: SE | W74: STREET LIGHTING -
T75: 2 | W75: OVERHEAD EQUIVALENT RATE
T77: 3 | V77: MERCURY VAPOR 7,000 LUMEN:
T78: 4 | V78: TOWN & COUNTRY | Y78: =F22 -> 6900 | AA78: =H22 -> 490475 | AC78: 7.45 | AE78: =ROUND(Y78*AC78,0) -> 51405 | AG78: =ROUND((AE78/AE$108)*100,1) -> 22.8 | AI78: =L22-AE78 -> 6279 | AK78: =IF(AE78=0,"0.0 ",ROUND((AI78/AE78)*100,1)) -> 12.2 | AM78: =ROUND((AM$108/AA$108)*AA78,0)-1 -> 333 | AO78: =AM78+AE78 -> 51738 | AQ78: =IF(AO78=0,"0.0 ",ROUND((AI78/AO78)*100,1)) -> 12.1 | AU78: =AC78-AX78 -> 5.76 | AW78: =853 -> 853 | AX78: =ROUND((AW78/12)*CUR_BASE_FUEL,2) -> 1.69 | AY78: =ROUND((AW78/12)*PRO_BASE_FUEL,2) -> 1.69
T79: 5 | V79: HOLOPHANE | Y79: =F23 -> 2328 | AA79: =H23 -> 169556 | AC79: 7.48 | AE79: =ROUND(Y79*AC79,0) -> 17413 | AG79: =ROUND((AE79/AE$108)*100,1) -> 7.7 | AI79: =L23-AE79 -> 2142 | AK79: =IF(AE79=0,"0.0 ",ROUND((AI79/AE79)*100,1)) -> 12.3 | AM79: =ROUND((AM$108/AA$108)*AA79,0) -> 115 | AO79: =AM79+AE79 -> 17528 | AQ79: =IF(AO79=0,"0.0 ",ROUND((AI79/AO79)*100,1)) -> 12.2 | AU79: =AC79-AX79 -> 5.74 | AW79: 874 | AX79: =ROUND((AW79/12)*CUR_BASE_FUEL,2) -> 1.74 | AY79: =ROUND((AW79/12)*PRO_BASE_FUEL,2) -> 1.74
T80: 6 | V80: GAS REPLICA | Y80: =F24 -> 698 | AA80: =H24 -> 50838 | AC80: 7.48 | AE80: =ROUND(Y80*AC80,0) -> 5221 | AG80: =ROUND((AE80/AE$108)*100,1) -> 2.3 | AI80: =L24-AE80 -> 642 | AK80: =IF(AE80=0,"0.0 ",ROUND((AI80/AE80)*100,1)) -> 12.3 | AM80: =ROUND((AM$108/AA$108)*AA80,0) -> 35 | AO80: =AM80+AE80 -> 5256 | AQ80: =IF(AO80=0,"0.0 ",ROUND((AI80/AO80)*100,1)) -> 12.2 | AU80: =AC80-AX80 -> 5.74 | AW80: 874 | AX80: =ROUND((AW80/12)*CUR_BASE_FUEL,2) -> 1.74 | AY80: =ROUND((AW80/12)*PRO_BASE_FUEL,2) -> 1.74
T81: 7 | V81: ASPEN | Y81: =F25 -> 132 | AA81: =H25 -> 9614 | AC81: 7.48 | AE81: =ROUND(Y81*AC81,0) -> 987 | AG81: =ROUND((AE81/AE$108)*100,1) -> 0.4 | AI81: =L25-AE81 -> 122 | AK81: =IF(AE81=0,"0.0 ",ROUND((AI81/AE81)*100,1)) -> 12.4 | AM81: =ROUND((AM$108/AA$108)*AA81,0) -> 7 | AO81: =AM81+AE81 -> 994 | AQ81: =IF(AO81=0,"0.0 ",ROUND((AI81/AO81)*100,1)) -> 12.3 | AU81: =AC81-AX81 -> 5.74 | AW81: 874 | AX81: =ROUND((AW81/12)*CUR_BASE_FUEL,2) -> 1.74 | AY81: =ROUND((AW81/12)*PRO_BASE_FUEL,2) -> 1.74
T83: 8 | V83: METAL HALIDE 14,000 LUMEN:
T84: 9 | V84: TRADITIONAIRE | Y84: =F28 -> 3204 | AA84: =H28 -> 227751 | AC84: 7.45 | AE84: =ROUND(Y84*AC84,0) -> 23870 | AG84: =ROUND((AE84/AE$108)*100,1) -> 10.6 | AI84: =L28-AE84 -> 2915 | AK84: =IF(AE84=0,"0.0 ",ROUND((AI84/AE84)*100,1)) -> 12.2 | AM84: =ROUND((AM$108/AA$108)*AA84,0) -> 155 | AO84: =AM84+AE84 -> 24025 | AQ84: =IF(AO84=0,"0.0 ",ROUND((AI84/AO84)*100,1)) -> 12.1 | AU84: =AC84-AX84 -> 5.76 | AW84: 853 | AX84: =ROUND((AW84/12)*CUR_BASE_FUEL,2) -> 1.69 | AY84: =ROUND((AW84/12)*PRO_BASE_FUEL,2) -> 1.69
T85: 10 | V85: GRANVILLE ACORN | Y85: =F29 -> 0 | AA85: =H29 -> 0 | AC85: 7.48 | AE85: =ROUND(Y85*AC85,0) -> 0 | AG85: =ROUND((AE85/AE$108)*100,1) -> 0 | AI85: =L29-AE85 -> 0 | AK85: =IF(AE85=0,"0.0 ",ROUND((AI85/AE85)*100,1)) -> 0.0 | AM85: =ROUND((AM$108/AA$108)*AA85,0) -> 0 | AO85: =AM85+AE85 -> 0 | AQ85: =IF(AO85=0,"0.0 ",ROUND((AI85/AO85)*100,1)) -> 0.0 | AU85: =AC85-AX85 -> 5.74 | AW85: 874 | AX85: =ROUND((AW85/12)*CUR_BASE_FUEL,2) -> 1.74 | AY85: =ROUND((AW85/12)*PRO_BASE_FUEL,2) -> 1.74
T86: 11 | V86: GAS REPLICA | Y86: =F30 -> 560 | AA86: =H30 -> 40787 | AC86: 7.48 | AE86: =ROUND(Y86*AC86,0) -> 4189 | AG86: =ROUND((AE86/AE$108)*100,1) -> 1.9 | AI86: =L30-AE86 -> 515 | AK86: =IF(AE86=0,"0.0 ",ROUND((AI86/AE86)*100,1)) -> 12.3 | AM86: =ROUND((AM$108/AA$108)*AA86,0) -> 28 | AO86: =AM86+AE86 -> 4217 | AQ86: =IF(AO86=0,"0.0 ",ROUND((AI86/AO86)*100,1)) -> 12.2 | AU86: =AC86-AX86 -> 5.74 | AW86: 874 | AX86: =ROUND((AW86/12)*CUR_BASE_FUEL,2) -> 1.74 | AY86: =ROUND((AW86/12)*PRO_BASE_FUEL,2) -> 1.74
T88: 12 | V88: SODIUM VAPOR 9,500 LUMEN:
T89: 13 | V89: TOWN & COUNTRY | Y89: =F33 -> 3211 | AA89: =H33 -> 130313 | AC89: 8.12 | AE89: =ROUND(Y89*AC89,0) -> 26073 | AG89: =ROUND((AE89/AE$108)*100,1) -> 11.5 | AI89: =L33-AE89 -> 3211 | AK89: =IF(AE89=0,"0.0 ",ROUND((AI89/AE89)*100,1)) -> 12.3 | AM89: =ROUND((AM$108/AA$108)*AA89,0) -> 89 | AO89: =AM89+AE89 -> 26162 | AQ89: =IF(AO89=0,"0.0 ",ROUND((AI89/AO89)*100,1)) -> 12.3 | AU89: =AC89-AX89 -> 7.15 | AW89: 487 | AX89: =ROUND((AW89/12)*CUR_BASE_FUEL,2) -> 0.97 | AY89: =ROUND((AW89/12)*PRO_BASE_FUEL,2) -> 0.97
T90: 15 | V90: HOLOPHANE | Y90: 2480 | AA90: 109947 | AC90: 8.23 | AE90: 20410 | AG90: 9 | AI90: 2505 | AK90: 12.3 | AM90: 75 | AO90: 20485 | AQ90: 12.2 | AU90: =AC90-AX90 -> 7.17 | AW90: 532 | AX90: =ROUND((AW90/12)*CUR_BASE_FUEL,2) -> 1.06 | AY90: =ROUND((AW90/12)*PRO_BASE_FUEL,2) -> 1.06
T91: 16 | V91: RECTILINEAR | Y91: 974 | AA91: 39528 | AC91: 8.12 | AE91: 7909 | AG91: 3.5 | AI91: 974 | AK91: 12.3 | AM91: 27 | AO91: 7936 | AQ91: 12.3 | AU91: =AC91-AX91 -> 7.15 | AW91: 487 | AX91: =ROUND((AW91/12)*CUR_BASE_FUEL,2) -> 0.97 | AY91: =ROUND((AW91/12)*PRO_BASE_FUEL,2) -> 0.97
T92: 17 | V92: GAS REPLICA | Y92: 1272 | AA92: 56392 | AC92: 8.22 | AE92: 10456 | AG92: 4.6 | AI92: 1285 | AK92: 12.3 | AM92: 38 | AO92: 10494 | AQ92: 12.2 | AU92: =AC92-AX92 -> 7.16 | AW92: 532 | AX92: =ROUND((AW92/12)*CUR_BASE_FUEL,2) -> 1.06 | AY92: =ROUND((AW92/12)*PRO_BASE_FUEL,2) -> 1.06
T93: 19 | V93: ASPEN | Y93: 2616 | AA93: 115976 | AC93: 8.22 | AE93: 21504 | AG93: 9.5 | AI93: 2642 | AK93: 12.3 | AM93: 79 | AO93: 21583 | AQ93: 12.2 | AU93: =AC93-AX93 -> 7.16 | AW93: 532 | AX93: =ROUND((AW93/12)*CUR_BASE_FUEL,2) -> 1.06 | AY93: =ROUND((AW93/12)*PRO_BASE_FUEL,2) -> 1.06
T94: 14 | V94: TRADITIONAIRE | Y94: 0 | AA94: 0 | AC94: 8.12 | AE94: 0 | AG94: 0 | AI94: 0 | AK94: 0.0 | AM94: 0 | AO94: 0 | AQ94: 0.0 | AU94: 7.15 | AW94: 487 | AX94: 0.97 | AY94: 0.97
T95: 18 | V95: GRANVILLE ACORN | Y95: 156 | AA95: 6916 | AC95: 8.22 | AE95: 1282 | AG95: 0.6 | AI95: 158 | AK95: 12.3 | AM95: 5 | AO95: 1287 | AQ95: 12.3 | AU95: 7.16 | AW95: 532 | AX95: 1.06 | AY95: 1.06
T97: 20 | V97: SODIUM VAPOR:
T98: 21 | V98: 22,000 LUMEN (RECTILINEAR) | Y98: =F42 -> 481 | AA98: =H42 -> 41005 | AC98: 11.67 | AE98: =ROUND(Y98*AC98,0) -> 5613 | AG98: =ROUND((AE98/AE$108)*100,1) -> 2.5 | AI98: =L42-AE98 -> 688 | AK98: =IF(AE98=0,"0.0 ",ROUND((AI98/AE98)*100,1)) -> 12.3 | AM98: =ROUND((AM$108/AA$108)*AA98,0) -> 28 | AO98: =AM98+AE98 -> 5641 | AQ98: =IF(AO98=0,"0.0 ",ROUND((AI98/AO98)*100,1)) -> 12.2 | AU98: =AC98-AX98 -> 9.64 | AW98: 1023 | AX98: =ROUND((AW98/12)*CUR_BASE_FUEL,2) -> 2.03 | AY98: =ROUND((AW98/12)*PRO_BASE_FUEL,2) -> 2.03
T99: 22 | V99: 50,000 LUMEN (RECTILINEAR) | Y99: =F43 -> 24 | AA99: =H43 -> 3918 | AC99: 15.44 | AE99: =ROUND(Y99*AC99,0) -> 371 | AG99: =ROUND((AE99/AE$108)*100,1) -> 0.2 | AI99: =L43-AE99 -> 45 | AK99: =IF(AE99=0,"0.0 ",ROUND((AI99/AE99)*100,1)) -> 12.1 | AM99: =ROUND((AM$108/AA$108)*AA99,0) -> 3 | AO99: =AM99+AE99 -> 374 | AQ99: =IF(AO99=0,"0.0 ",ROUND((AI99/AO99)*100,1)) -> 12 | AU99: =AC99-AX99 -> 11.55 | AW99: 1959 | AX99: =ROUND((AW99/12)*CUR_BASE_FUEL,2) -> 3.89 | AY99: =ROUND((AW99/12)*PRO_BASE_FUEL,2) -> 3.89
T100: 23 | V100: 50,000 LUMEN (SETBACK) | Y100: =F44 -> 0 | AA100: =H44 -> 0 | AC100: 15.44 | AE100: =ROUND(Y100*AC100,0) -> 0 | AG100: =ROUND((AE100/AE$108)*100,1) -> 0 | AI100: =L44-AE100 -> 0 | AK100: =IF(AE100=0,"0.0 ",ROUND((AI100/AE100)*100,1)) -> 0.0 | AM100: =ROUND((AM$108/AA$108)*AA100,0) -> 0 | AO100: =AM100+AE100 -> 0 | AQ100: =IF(AO100=0,"0.0 ",ROUND((AI100/AO100)*100,1)) -> 0.0 | AU100: =AC100-AX100 -> 11.55 | AW100: 1959 | AX100: =ROUND((AW100/12)*CUR_BASE_FUEL,2) -> 3.89 | AY100: =ROUND((AW100/12)*PRO_BASE_FUEL,2) -> 3.89
T101: 24 | V101: TOTAL RATE SE EXCLUDING RIDERS | Y101: =SUM(Y78:Y100) -> 25036 | AA101: =SUM(AA78:AA100) -> 1493016 | AE101: =SUM(AE78:AE100) -> 196703 | AG101: =ROUND((AE101/AE$108)*100,1) -> 87.1 | AI101: =SUM(AI78:AI100) -> 24123 | AK101: =IF(AE101=0,"0.0 ",ROUND((AI101/AE101)*100,1)) -> 12.3 | AM101: =SUM(AM78:AM100) -> 1017 | AO101: =SUM(AO78:AO100) -> 197720 | AQ101: =IF(AO101=0,"0.0 ",ROUND((AI101/AO101)*100,1)) -> 12.2
T103: =A47 -> 25 | V103: RIDERS NOT INCLUDED IN RATES ABOVE ($/KWH):
T104: =A48 -> 26 | V104: =C48 -> ENVIRONMENTAL SURCHARGE MECHANISM RIDER (ESM) | AC104: =CUR_ESM_NonRes -> 0.1816 | AE104: =ROUND(($AO$101-CUR_BASE_FUEL*AA101)*AC104,0) -> 29443 | AG104: =ROUND((AE104/AE$108)*100,1) -> 13 | AI104: =L48-AE104 -> 0 | AK104: =IF(AE104=0,"0.0 ",ROUND((AI104/AE104)*100,1)) -> 0 | AO104: =AM104+AE104 -> 29443 | AQ104: =IF(AO104=0,"0.0 ",ROUND((AI104/AO104)*100,1)) -> 0
T105: =A49 -> 29 | V105: =C49 -> PROFIT SHARING MECHANISM (PSM) | AC105: =RS_PSM -> -0.000163 | AE105: =ROUND($AA$101*AC105,0) -> -243 | AG105: =ROUND((AE105/AE$108)*100,1) -> -0.1 | AI105: =L49-AE105 -> 0 | AK105: =IF(AE105=0,"0.0 ",ROUND((AI105/AE105)*100,1)) -> 0 | AO105: =AM105+AE105 -> -243 | AQ105: =IF(AO105=0,"0.0 ",ROUND((AI105/AO105)*100,1)) -> 0
T106: =A50 -> 30 | V106: TOTAL RIDERS NOT INCLUDED IN RATES ABOVE | AE106: =SUM(AE104:AE105) -> 29200 | AG106: =ROUND((AE106/AE$108)*100,1) -> 12.9 | AI106: =SUM(AI104:AI105) -> 0 | AK106: =IF(AE106=0,"0.0 ",ROUND((AI106/AE106)*100,1)) -> 0 | AO106: =SUM(AO104:AO105) -> 29200 | AQ106: =IF(AO106=0,"0.0 ",ROUND((AI106/AO106)*100,1)) -> 0
T108: =A52 -> 31 | V108: TOTAL RATE SE INCLUDING RIDERS | Y108: =Y101 -> 25036 | AA108: =AA101 -> 1493016 | AE108: =AE106+AE101 -> 225903 | AG108: 100 | AI108: =AI106+AI101 -> 24123 | AK108: =ROUND((AI108/AE108)*100,1) -> 10.7 | AM108: =ROUND(AA108*CUR_FAC,0) -> 1017 | AO108: =AO106+AO101 -> 226920 | AQ108: =ROUND((AI108/AO108)*100,1) -> 10.6
V110: (1) THESE FIGURES REPRESENT NUMBER OF UNITS BILLED.
V111: ="(2) REFLECTS FUEL COMPONENT OF "&TEXT(CUR_FAC,"$0.000000;($0.000000)")&" PER KWH." -> (2) REFLECTS FUEL COMPONENT OF $0.000681 PER KWH.
V112: ="(3) REFLECTS FUEL COST RECOVERY INCLUDED IN BASE RATES OF "&TEXT(CUR_BASE_FUEL,"$0.000000;($0.000000)")&" PER KWH." -> (3) REFLECTS FUEL COST RECOVERY INCLUDED IN BASE RATES OF $0.023837 PER KWH.

Sheet Rate LED
A1: =NAME -> DUKE ENERGY KENTUCKY, INC. | AA1: Increase in Street Lighting rate SL per COSS: | AG1: ='Revenue Requirements'!O33 -> 0.1226523579
A2: =CASE_NO -> CASE NO. 2019-00271
A3: =TITLE -> ANNUALIZED TEST YEAR REVENUES AT PROPOSED VS. MOST CURRENT RATES
A4: =DATE -> FOR THE TWELVE MONTHS ENDED March 31, 2021
A5: =SERVICE -> (ELECTRIC SERVICE)
A6: =DATA_PERIOD -> DATA: ____ BASE PERIOD __X__FORECASTED PERIOD | R6: SCHEDULE M-2.3
A7: =TYPE -> TYPE OF FILING: _X_ ORIGINAL ___UPDATED ___ REVISED | R7: ="PAGE 21 OF "&TEXT(Page_Num_2.3,"00") -> PAGE 21 OF 23
A8: WORK PAPER REFERENCE NO(S).: | R8: WITNESS:
A9: =TIME -> 12 Months Projected with Riders | R9: =WIT -> J. L. Kern
A10: PROPOSED ANNUALIZED
L12: PROPOSED | N12: % OF REV TO | R12: PROPOSED
L13: REVENUE LESS | N13: TOTAL LESS | R13: TOTAL
A14: LINE | C14: RATE | D14: CLASS / | F14: CUSTOMER | J14: PROPOSED | L14: FAC | N14: FAC | P14: FAC | R14: REVENUE
A15: NO. | C15: CODE | D15: DESCRIPTION | F15: BILLS(1) | H15: SALES | J15: FIXTURE | K15: MAINTNCE | L15: REVENUE | N15: REVENUE | P15: REVENUE (2) | R15: (F + H)
C16: (A) | D16: (B) | F16: (C) | H16: (D) | J16: (E1) | K16: (E2) | L16: (F) | N16: (G) | P16: (H) | R16: (I)
H17: (KWH) | J17: ($/UNIT) | L17: ($) | N17: (%) | P17: ($) | R17: ($)
A18: 1 | C18: LED | D18: STREET LIGHTING -- LED
A19: 2 | C19: FIXTURES | AA19: Monthly kwh/light | AC19: Annual kWh / Light
A20: 3 | C20: 50W Neighborhood | F20: 0 | H20: =ROUND(F20*AC19/12,0) -> 0 | J20: =ROUND(AC270+(AC270*$AG$1),2) -> 4.5 | K20: =ROUND(AD270+(AD270*$AG$1),2) -> 4.76 | L20: =ROUND((F20*(J20+K20)),0) -> 0 | N20: 0 | R20: =L20+P20 -> 0 | AA20: 17 | AC20: =AA20*12 -> 204
A21: 4 | C21: 50W Neighborhood with Lens | F21: 0 | H21: =ROUND(F21*AC20/12,0) -> 0 | J21: =ROUND(AC271+(AC271*$AG$1),2) -> 4.69 | K21: =ROUND(AD271+(AD271*$AG$1),2) -> 4.76 | L21: =ROUND((F21*(J21+K21)),0) -> 0 | N21: 0 | R21: =L21+P21 -> 0 | AA21: 17 | AC21: =AA21*12 -> 204
A22: 5 | C22: 50W Standard LED | F22: 0 | H22: 0 | J22: =ROUND(AC233+(AC233*$AG$1),2) -> 5.53 | K22: 4.76 | L22: 0 | N22: 0 | R22: =L22+P22 -> 0 | AA22: 17 | AC22: 204
A23: 6 | C23: 70W Standard LED | F23: 0 | H23: 0 | J23: 5.52 | K23: 4.76 | L23: 0 | N23: 0 | R23: =L23+P23 -> 0 | AA23: 24 | AC23: 288
A24: 7 | C24: 110W Standard LED | F24: 0 | H24: 0 | J24: 6.26 | K24: 4.76 | L24: 0 | N24: 0 | R24: 0 | AA24: 38 | AC24: 456
A25: 8 | C25: 150W Standard LED | F25: 0 | H25: 0 | J25: 8.3 | K25: 4.76 | L25: 0 | N25: 0 | R25: =L25+P25 -> 0 | AA25: 52 | AC25: 624
A26: 9 | C26: 220W Standard LED | F26: 0 | H26: 0 | J26: 9.41 | K26: 5.8 | L26: 0 | N26: 0 | R26: =L26+P26 -> 0 | AA26: 76 | AC26: 912
A27: 10 | C27: 280W Standard LED | F27: 0 | H27: 0 | J27: 11.57 | K27: 5.8 | L27: 0 | N27: 0 | R27: =L27+P27 -> 0 | AA27: 97 | AC27: 1164
A28: 11 | C28: 50W Acorn LED | F28: 0 | H28: 0 | J28: =ROUND(AC240+(AC240*$AG$1),2) -> 14.55 | K28: =ROUND(AD240+(AD240*$AG$1),2) -> 4.76 | L28: 0 | N28: 0 | R28: 0 | AA28: 17 | AC28: 204
A29: 12 | C29: 50W Deluxe Acorn LED | F29: 0 | H29: 0 | J29: =ROUND(AC239+(AC239*$AG$1),2) -> 16.14 | K29: =ROUND(AD239+(AD239*$AG$1),2) -> 4.76 | L29: 0 | N29: 0 | R29: =L29+P29 -> 0 | AA29: 17 | AC29: 204
A30: 13 | C30: 70W LED Open Deluxe Acorn | F30: 0 | H30: 0 | J30: =ROUND(AC246+(AC246*$AG$1),2) -> 15.74 | K30: =ROUND(AD246+(AD246*$AG$1),2) -> 4.76 | L30: 0 | N30: 0 | R30: 0 | AA30: 24 | AC30: 288
A31: 14 | C31: 50W Traditional LED | F31: 0 | H31: 0 | J31: =ROUND(AC243+(AC243*$AG$1),2) -> 10.54 | K31: =ROUND(AD243+(AD243*$AG$1),2) -> 4.76 | L31: 0 | N31: 0 | R31: 0 | AA31: 17 | AC31: 204
A32: 15 | C32: 50W Open Traditional LED | F32: 0 | H32: 0 | J32: =ROUND(AC244+(AC244*$AG$1),2) -> 10.54 | K32: =ROUND(AD244+(AD244*$AG$1),2) -> 4.76 | L32: 0 | N32: 0 | R32: =L32+P32 -> 0 | AA32: 17 | AC32: 204
A33: 16 | C33: 50W Mini Bell LED | F33: 0 | H33: 0 | J33: =ROUND(AC241+(AC241*$AG$1),2) -> 13.72 | K33: =ROUND(AD241+(AD241*$AG$1),2) -> 4.76 | L33: 0 | N33: 0 | R33: 0 | AA33: 17 | AC33: 204
A34: 17 | C34: 50W Enterprise LED | F34: 0 | H34: 0 | J34: =ROUND(AC245+(AC245*$AG$1),2) -> 14.17 | K34: =ROUND(AD245+(AD245*$AG$1),2) -> 4.76 | L34: 0 | N34: 0 | R34: 0 | AA34: 17 | AC34: 204
A35: 18 | C35: 70W Sanibel LED | F35: 0 | H35: 0 | J35: =ROUND(AC242+(AC242*$AG$1),2) -> 17.47 | K35: =ROUND(AD242+(AD242*$AG$1),2) -> 4.76 | L35: 0 | N35: 0 | R35: 0 | AA35: 24 | AC35: 288
A36: 19 | C36: 150W Sanibel LED | F36: 0 | H36: 0 | J36: =ROUND(AC268+(AC268*$AG$1),2) -> 17.47 | K36: =ROUND(AD268+(AD268*$AG$1),2) -> 4.76 | L36: 0 | N36: 0 | R36: 0 | AA36: 52 | AC36: 624
A37: 20 | C37: 150W LED Teardrop | F37: 0 | H37: 0 | J37: =ROUND(AC247+(AC247*$AG$1),2) -> 21.14 | K37: 4.76 | L37: 0 | N37: 0 | R37: 0 | AA37: 52 | AC37: 624
A38: 21 | C38: 50W LED Teardrop Pedestrian | F38: 0 | H38: 0 | J38: 17.15 | K38: 4.76 | L38: 0 | N38: 0 | R38: 0 | AA38: 17 | AC38: 204
A39: 22 | C39: 220W LED Shoebox | F39: 0 | H39: 0 | J39: 14.64 | K39: 5.8 | L39: 0 | N39: 0 | R39: 0 | AA39: 76 | AC39: 912
A40: 23 | C40: 420W LED Shoebox | F40: 0 | H40: 0 | J40: =ROUND(AC269+(AC269*$AG$1),2) -> 21.85 | K40: =ROUND(AD269+(AD269*$AG$1),2) -> 5.8 | L40: 0 | N40: 0 | R40: =L40+P40 -> 0 | AA40: 146 | AC40: 1752
A41: 24 | C41: 530W LED Shoebox | F41: 0 | H41: 0 | J41: 26.55 | K41: =$K$40 -> 5.8 | L41: 0 | N41: 0 | R41: 0 | AA41: 184 | AC41: 2208
A42: 25 | C42: 150W Clermont LED | F42: 0 | H42: 0 | J42: 25.19 | K42: =$K$38 -> 4.76 | L42: 0 | N42: 0 | R42: =L42+P42 -> 0 | AA42: 52 | AC42: =AA42*12 -> 624
A43: 26 | C43: 130W Flood LED | F43: 0 | H43: 0 | J43: 8.65 | K43: 4.76 | L43: 0 | N43: 0 | R43: 0 | AA43: 45 | AC43: 540
A44: 27 | C44: 260W Flood LED | F44: 0 | H44: 0 | J44: 13.61 | K44: 4.76 | L44: 0 | N44: 0 | R44: =L44+P44 -> 0 | AA44: 90 | AC44: 1080
A45: 28 | C45: 50W Monticello LED | F45: 0 | H45: 0 | J45: 16.82 | K45: 4.76 | L45: 0 | N45: 0 | R45: =L45+P45 -> 0 | AA45: 17 | AC45: 204
A46: 29 | C46: 50W Mitchell Finial | F46: 0 | H46: 0 | J46: 15.95 | K46: 4.76 | L46: 0 | N46: 0 | R46: 0 | AA46: 17 | AC46: 204
A47: 30 | C47: 50W Mitchell Ribs, Bands, and Medallions LED | F47: 0 | H47: =ROUND(F47*AC46/12,0) -> 0 | J47: 17.57 | K47: 4.76 | L47: =ROUND((F47*(J47+K47)),0) -> 0 | N47: 0 | R47: =L47+P47 -> 0 | AA47: 17 | AC47: 204
A48: 31 | C48: 50W Mitchell Top Hat LED | F48: 0 | H48: =ROUND(F48*AC47/12,0) -> 0 | J48: 15.95 | K48: 4.76 | L48: =ROUND((F48*(J48+K48)),0) -> 0 | N48: 0 | R48: =L48+P48 -> 0 | AA48: 17 | AC48: 204
A49: 32 | C49: 50W Mitchell Top Hat with Ribs, Bands, and Medallions LED | F49: 0 | H49: =ROUND(F49*AC48/12,0) -> 0 | J49: 17.57 | K49: =$K$40 -> 5.8 | L49: =ROUND((F49*(J49+K49)),0) -> 0 | N49: 0 | R49: =L49+P49 -> 0 | AA49: 17 | AC49: 204
A50: 33 | C50: 50W Open Monticello LED | F50: 0 | H50: =ROUND(F50*AC49/12,0) -> 0 | J50: 16.75 | K50: =$K$40 -> 5.8 | L50: =ROUND((F50*(J50+K50)),0) -> 0 | N50: 0 | R50: =L50+P50 -> 0 | AA50: 17 | AC50: 204
A51: 34 | C51: TOTAL LED FIXTURES | F51: =SUM(F20:F50) -> 0 | H51: =SUM(H20:H50) -> 0 | L51: =SUM(L20:L50) -> 0 | R51: =SUM(R20:R50) -> 0
A53: 35 | C53: ENERGY CHARGE (1A) | H53: =H51 -> 0 | J53: =ROUND(AC274+(AC274*$AG$1),6) -> 0.043003 | L53: =H53*J53 -> 0 | R53: =L53+P53 -> 0
A55: 36 | C55: POLES
A56: 37 | C56: Style A 12 Ft Long Anchor Base Top Tenon Aluminum | F56: 0 | J56: =ROUND(AC314+(AC314*$AG$1),2) -> 6.33 | L56: =ROUND((F56*J56),0) -> 0 | N56: 0 | R56: =L56+P56 -> 0
A57: 38 | C57: Style A 15 Ft Long Direct Buried Top Tenon Aluminum | F57: 0 | J57: 5.42 | L57: 0 | N57: 0 | R57: 0
A58: 39 | C58: Style A 15 Ft Long Anchor Base Top Tenon Aluminum | F58: 0 | J58: 6.51 | L58: 0 | N58: 0 | R58: 0
